Workbook

Sheet CMFs (hidden)
C17: 518 (Install Continuous Turn Lane) | D17: Introduce TWLTL (two-way left turn lanes) | F17: 0.71 | G17: All | H17: All | I17: 583, 1285, 2337, 2338, 2339, 2340, 2341, 2352, 2354, 2356, 2358 | J17: This is a TTI Meta-Analysis Result.
D21: Provide Passing or Climbing Lane in One Direction | F21: 0.75 | G21: All | H21: All | J21: Rural Two-Lane; Texas Report | M21: Roadway Safety Design Workbook (pg 3-25)

Sheet Helper (hidden)
B1: SkidNums | D1: Passing_Lane_Type | E1: PassLNCMF | H1: HCurveChange | J1: VCurveChange
B2: Hot Mix – 37 | D2: No Passing Lane | E2: 1 | H2: Yes. | J2: Yes.
B3: Seal Coat – 54 | D3: Passing or Climbing Lane in One Direction | E3: 0.75 | F3: See CMF Tab | H3: No, I will change the L/R. | J3: No, I will change the G/L.
B4: No Change | D4: Super 2 | E4: 0.65 | F4: See Park et al. 2012
C11: ModView
C12: Existing
C13: Standard
C14: Design 1
C15: Design 2
C16: HolderNone
C17: Optimal

Sheet Traffic (hidden)
A2: Category | B2: No. | C2: Name of Countermeasure | D2: Workcode Number (Name) | E2: Countermeasure Name | F2: Recommended CMF | G2: Target Crash Type | H2: Crash Severity | I2: Note | J2: CMFClearinghouse ID | K2: Study
A3: Signs | B3: 1 | C3: Hazard Warning (Crash Warning Sign) | D3: 101 (Install Warning/Guide Signs) | E3: Install changeable crash ahead warning signs | F3: 0.56 | G3: All | H3: ABC | I3: in Urban area. (Meta-Ana. Method) | J3: 75 | K3: Handbook of Road Safety Measures
B4: 2 | C4: Curve Warning | D4: 123 (Install Advance Curve Warning Signals – Existing Warning Signs) | E4: Advance static curve warning signs | F4: 0.7 | G4: All | H4: ABC | I4: Not specified (Meta-Ana. Method) | J4: 71 | K4: Handbook of Road Safety Measures
B5: 3 | C5: Chevrons | D5: 137 (Install Chevrons on Curve)
E6: Install chevron signs on horizontal curves | F6: 0.96 | G6: Non-intersection | H6: All | I6: Rural Two-Lane | J6: 2436 | K6: Safety Evaluation of Improved Curve Delineation
E7: Install chevron signs on horizontal curves | F7: 0.94 | G7: Head on,Non-intersection,Run off road,Sideswipe | H7: All | I7: Rural Two-Lane | J7: 2437 | K7: Safety Evaluation of Improved Curve Delineation
E8: Install chevron signs on horizontal curves | F8: 0.84 | G8: Non-intersection | H8: KABC | I8: Rural Two-Lane | J8: 2438 | K8: Safety Evaluation of Improved Curve Delineation
E9: Install chevron signs on horizontal curves | F9: 0.75 | G9: Nighttime,Non-intersection | H9: All | I9: Rural Two-Lane | J9: 2439 | K9: Safety Evaluation of Improved Curve Delineation
E10: Install chevron signs on horizontal curves | F10: 0.78 | G10: Head on,Nighttime,Non-intersection,Run off road,Sideswipe | H10: All | I10: Rural Two-Lane | J10: 2440 | K10: Safety Evaluation of Improved Curve Delineation
B11: 4 | C11: Delineators | D11: 113 (Install Delineators)
E12: Install post-mounted delineators | F12: 0.85 | G12: Run off road | H12: All | I12: Rural Two-Lane (Regression Model Method) | J12: 9727 | K12: Estimating Crash Modification Factors for Lane Departure Countermeasures in Kansas
E13: Install post-mounted delineators | F13: 0.9 | G13: Run off road | H13: KABC | I13: Rural Two-Lane (Regression Model Method) | J13: 9728 | K13: Estimating Crash Modification Factors for Lane Departure Countermeasures in Kansas
B14: 5 | C14: Multiple Curve Treatment Combination | D14: 123 (Install Advance Curve Warning Signals – Existing Warning Signs) 125 (Install Advance Curve Warning Signals and Signs) 136 (Install LED Flashing Chevrons on Curve) 137 (Install Chevrons on Curve) | E14: Install chevron signs, curve warning signs, and sequential flashing beacons | F14: 0.52 | G14: Run off road | H14: All | I14: Freeway | J14: 1919 | K14: Safety Evaluation of Curve Delineation Improvements An Empirical Bayes Observational Before-After Study
A15: Markings | B15: 6 | C15: Centerline Marking | D15: 404 (Install Centerline Striping)
E16: Place centerline markings | F16: 0.99 | G16: All | H16: ABC | I16: Rural Two-Lane (Meta-Ana. Method) | J16: 87 | K16: Handbook of Road Safety Measures
E17: Place centerline markings | F17: 1.01 | G17: All | H17: PDO | I17: Rural Two-Lane (Meta-Ana. Method) | J17: 88 | K17: Handbook of Road Safety Measures
B18: 7 | C18: Edgeline Marking | D18: 402 (Install Edge Marking) | E18: Install edgeline pavement markings on narrow, rural, two-lane roads | F18: 0.85 | G18: All | H18: All | I18: Rural Two-Lane | J18: 5646 | K18: Investigating Safety Impact of Edge Line on Narrow Rural 2-lane Highways by Empirical Bayes Method
B19: 8 | C19: Profile Pavement Markings (Both CL&EL) | D19: 543 (Profile Centerline Markings) 533 (Profile Edgeline Markings)
E20: Install alternative audible lane departure warning treatments | F20: 0.79 | G20: Head on,Run off road,Sideswipe | H20: All | I20: Rural Two-Lane Texas | J20: 9716 | K20: Safety Evaluation of Alternative Audible Lane Departure Warning Treatments in Reducing Traffic Crashes: an Empirical Bayes Observational Before-After Study
E21: Install alternative audible lane departure warning treatments | F21: 0.68 | G21: Head on,Run off road,Sideswipe | H21: KABC | I21: Rural Two-Lane Texas | J21: 9717 | K21: Safety Evaluation of Alternative Audible Lane Departure Warning Treatments in Reducing Traffic Crashes: an Empirical Bayes Observational Before-After Study
B22: 9 | C22: Raised Pavement Markers (Both CL&EL) | D22: 544 (Raised Centerline Rumble Strips) 534 (Raised Edgeline Rumble Strips)
E23: Install snowplowable, permanent raised pavement markers | F23: 1.13 | G23: Nighttime | H23: All | I23: Rural Four-Lane (AADT < 20,000) | J23: 109 | K23: NCHRP Report 518: Safety Evaluation of Permanent Raised Pavement Markers
E24: Install snowplowable, permanent raised pavement markers | F24: 0.94 | G24: Nighttime | H24: All | I24: Rural Four-Lane (20,000 < AADT < 60,000) | J24: 110 | K24: NCHRP Report 518: Safety Evaluation of Permanent Raised Pavement Markers
E25: Install snowplowable, permanent raised pavement markers | F25: 0.67 | G25: Nighttime | H25: All | I25: Rural Four-Lane (AADT > 60,000) | J25: 111 | K25: NCHRP Report 518: Safety Evaluation of Permanent Raised Pavement Markers
A26: Tactile (Rumble Strips) | B26: 10 | C26: Edgeline Rumble Strips | D26: 532 (Milled Edgeline Rumble Strips)
E27: Shoulder rumble strips | F27: 0.83 | G27: Run off road | H27: All | I27: Rural Two-Lane | J27: 3442, 3443, 3444, 3445, 3582, 3583, 3584, 3585, 3603, 3604, 3605, 3606, 7744 | K27: This is a TTI Meta-Analysis Result.
E28: Shoulder rumble strips | F28: 0.64 | G28: Run off road | H28: KABC | I28: Rural Two-Lane | J28: 3454, 3455, 3456, 3457, 7745 | K28: This is a TTI Meta-Analysis Result.
B29: 11 | C29: Centerline Rumble Strips | D29: 542 (Milled Centerline Rumble Strips) | E29: Install centerline rumble strips | F29: 0.808 | G29: Run off road | H29: All | I29: Rural Two-Lane | J29: 5400 | K29: Study of KDOT Policy on Lane and Shoulder Minimum Width for Application of Centerline Rumble Strips
E30: Install centerline rumble strips | F30: 0.86 | H30: All | K30: CMF 124 from Crash Reduction Following Installation of Centerline Rumble Strips on Rural Two-Lane Roads, Persaud (HSM)
B31: 12 | C31: Install CL and EL Rumble Strips | E31: Install centerline and shoulder rumble strips | F31: 0.6 | G31: Head on | H31: All | I31: Rural Two-Lane | J31: 6853, 6940, 6950, 6971 | K31: This is a TTI Meta-Analysis Result.
A32: Access Management | B32: 13 | C32: Driveway Density | D32: NA | E32: Reduce driveway density by 1 per mile, base 3 driveways per mi. | F32: 0.98 | G32: All | H32: All | I32: Rural Two-Lane | J32: 2248 | K32: Potential Driveway Density Accident Modification Factors for Rural Highways Using Texas Data
B39: 16 | C39: Delineations, Signs for Accesses (No CMFs found)
A40: Lighting | B40: 17 | C40: Lighting at General / Normal Segment | D40: 305 (Safety Lighting)
E41: Install lighting | F41: 0.63 | G41: All | H41: KABC | I41: Both Rural&Urban, all roadway | J41: 7774 | K41: Validation and Application of Highway Safety Manual (Part D) in Florida
E42: Install lighting | F42: 0.84 | G42: All | H42: PDO | I42: Both Rural&Urban, all roadway | J42: 7775 | K42: Validation and Application of Highway Safety Manual (Part D) in Florida
E43: Install lighting | F43: 0.68 | G43: All | H43: All | I43: Both Rural&Urban, all roadway | J43: 7776 | K43: Validation and Application of Highway Safety Manual (Part D) in Florida
E44: Install lighting | F44: 0.67 | G44: Rear end | H44: All | I44: Both Rural&Urban, all roadway | J44: 7777 | K44: Validation and Application of Highway Safety Manual (Part D) in Florida
E45: Install lighting | F45: 0.64 | G45: Angle | H45: All | I45: Both Rural&Urban, all roadway | J45: 7778 | K45: Validation and Application of Highway Safety Manual (Part D) in Florida
E46: Install lighting | F46: 0.72 | G46: Single vehicle | H46: All | I46: Both Rural&Urban, all roadway | J46: 7779 | K46: Validation and Application of Highway Safety Manual (Part D) in Florida
E47: Install lighting | F47: 0.72 | G47: Other | H47: All | I47: Both Rural&Urban, all roadway | J47: 7780 | K47: Validation and Application of Highway Safety Manual (Part D) in Florida
A48: Pavement Friction | B48: 18 | C48: Skid Number | D48: 303 (Resurfacing)
E49: Increase Skid Number by 1 unit, base 40 | F49: 0.991 | G49: All | H49: All | I49: Rural Two-Lane Curve Texas | K49: TTI Report FHWA/TX-18/0-6932-R1
E50: Increase Skid Number by 1 unit, base 40 | F50: 0.963 | G50: Wet-weather | H50: All | I50: Rural Two-Lane Curve Texas | K50: TTI Report FHWA/TX-18/0-6932-R1
E51: Increase Skid Number by 1 unit, base 40 | F51: 0.99 | G51: Run off road | H51: All | I51: Rural Two-Lane Curve Texas | K51: TTI Report FHWA/TX-18/0-6932-R1
E52: Increase Skid Number by 1 unit, base 40 | F52: 0.963 | G52: Wet-weather Run off Road | H52: All | I52: Rural Two-Lane Curve Texas | K52: TTI Report FHWA/TX-18/0-6932-R1
E54: FROM ELVIK ET AL
E55: Install lighting | F55: 0.72 | G55: Nighttime | H55: ABC | J55: 191 | K55: Elvik et al.
E56: Install lighting | F56: 0.83 | G56: Nighttime | H56: O | J56: 192 | K56: Elvik et al.
E57: Install lighting | F57: 0.31 | G57: All | H57: K | J57: 193 | K57: Elvik et al.
E61: From MUTCD
E63: Table 2C-5. Horizontal Alignment Sign Selection
E64: Type of | F64: Difference Between Speed Limit and Advisory Speed
E65: Horizontal
E66: Alignment Sign | F66: 5 mph | G66: 10 mph | H66: 15 mph | I66: 20 mph | J66: 25 mph or more
E67: Turn (W1-1), Curve (W1-2), Reverse Turn (W1-3), Reverse Curve (W1-4), Winding Road (W1-5), and Combination Horizontal Alignment/Intersection (W1-10) (see Section 2C.07 to determine which sign to use) | F67: Recommended | G67: Required | H67: Required | I67: Required | J67: Required
E68: Advisory Speed Plaque (W13-1P) | F68: Recommended | G68: Required | H68: Required | I68: Required | J68: Required
E69: Chevrons (W1-8) and/or One Direction Large Arrow (W1-6) | F69: Optional | G69: Recommended | H69: Required | I69: Required | J69: Required
E70: Exit Speed (W13-2) and Ramp Speed (W13-3) on exit ramp | F70: Optional | G70: Optional | H70: Recommended | I70: Required | J70: Required
E71: Note: Required means that the sign and/or plaque shall be used, recommended means that the sign and/or plaque should be used, and optional means that the sign and/or plaque may be used.
E72: See Section 2C.06 for roadways with less than 1,000 AADT.

Sheet Versioning (hidden)
B2: Version | C2: Release | D2: Comments | E2: Updated by
B3: 2.1 | C3: 2020-01-01 | E3: RA
B4: 2.2 | C4: 2020-07-01 | D4: Fixed a bug on the calculation of the effect of vertical grade (cell D129 in configuration sheets) | E4: RA
B5: 2.3 | C5: 2020-07-01 | D5: 1. Expanded the range of values for lane width (C3:E4 in Construction Tab). 2. Space for optional notes added to the right of the vortex. | E5: RA
B6: 2.3 | C6: 2020-08-07 | D6: Split the cells for notes in two. Updated all the configuration tabs | E6: RA
B7: 2.4 | C7: 2020-12-21 | D7: Created new tab "Reporting" that should display the results plus additional areas to indicate various project-level assessments. Updated the title of "PRIMARY CONSTRAINTS" in all the tabs | E7: RA
B8: 2.45 | C8: 2020-12-22 | D8: Enhancements to the new Reporting form (check boxes and others) | E8: RA
B9: V3.1 | C9: 2022-02-01 | D9: Major improvements & updates made in 2021, mainly inlcude: horizontal and vertical curves; interface, missing warning message; vortex; etc. | E9: LW
B10: V3.2 | C10: 2022-07-13 | D10: Minor corrections. | E10: LW
B11: V3.3 | C11: 2024-04-16 | D11: Fixed plot missing a feature; Update Reporting per TxDOT request. | E11: LW

Sheet Constraints (hidden)
C2: Total ROW
C3: Total Pavement W
O13: CRIS 2017
C14: BMT Rural-Two Lane Collision Type Distribution | O14: N_2017 | P14: HARM_EVNT_DESC | Q14: Percent
C15: Collision Type | D15: Total Crash | E15: Total | F15: KA Crash | G15: KA | H15: FI Crash | I15: FI | O15: 8620 | P15: ANIMAL | Q15: =O15/$O$25 -> 0.1269588783 | T15: 0.007441144356
E16: Percent | G16: Percent | I16: Percent | O16: 21547 | P16: FIXED OBJECT | Q16: 0.3173530105 | T16: 0.6815442782
C17: SVROR | D17: 3448 | E17: =D17/$D$24 -> 0.5279436533 | F17: 293 | G17: =F17/$F$24 -> 0.5077989601 | H17: 1467 | I17: =H17/$H$24 -> 0.5699300699 | O17: 23945 | P17: MOTOR VEHICLE IN TRANSPORT | Q17: 0.3526717332 | T17: 0.009626227116
C18: RE | D18: 873 | E18: 0.1336701883 | F18: 46 | G18: 0.07972270364 | H18: 316 | I18: 0.1227661228 | O18: 1282 | P18: OTHER NON COLLISION | Q18: 0.01888181925 | S18: 0.2889379707 | T18: 0.09584068923
C19: LT | D19: 489 | E19: 0.07487367938 | F19: 46 | G19: 0.07972270364 | H19: 216 | I19: 0.08391608392 | O19: 1081 | P19: OTHER OBJECT | Q19: 0.01592140921 | T19: 0.1875114803
C20: HO | D20: 378 | E20: 0.0578778135 | F20: 109 | G20: 0.1889081456 | H20: 243 | I20: 0.09440559441 | O20: 10392 | P20: OVERTURNED | Q20: 0.1530576175 | T20: 0.01180748311
C21: SSS | D21: 126 | E21: 0.0192926045 | F21: 7 | G21: 0.01213171577 | H21: 29 | I21: 0.01126651127 | O21: 631 | P21: PARKED CAR | Q21: 0.009293625545 | T21: 0.005585801172
C22: ANG | D22: 109 | E22: 0.01668963405 | F22: 10 | G22: 0.01733102253 | H22: 45 | I22: 0.01748251748 | O22: 76 | P22: PEDALCYCLIST | Q22: 0.00111935902 | T22: 0.0006428965039
C23: Ped/Bicycle, Animal, Overturn, Others | D23: 1108 | E23: 0.1696524269 | F23: 66 | G23: 0.1143847487 | H23: 258 | I23: 0.1002331002 | O23: 298 | P23: PEDESTRIAN | Q23: 0.00438906563
C24: Grand Total | D24: 6531 | E24: =SUM(E17:E23) -> 1 | F24: 577 | G24: =SUM(G17:G23) -> 1 | H24: 2574 | I24: =SUM(I17:I23) -> 1 | O24: 24 | P24: RR TRAIN | Q24: 0.0003534817957
O25: 67896 | Q25: =SUM(Q15:Q24) -> 1
C29: 2 Lane Rural On System
C30: Row Labels | D30: Total Crash | E30: Total Percent | F30: KA Crash | G30: KA Percent | H30: FI Crash | I30: FI Percent
C31: Angle Crash | D31: 5659 | E31: 0.08362765816 | F31: 544 | G31: 0.08053293856 | H31: 2504 | I31: 0.09072135068
C32: Head-on Crash | D32: 3963 | E32: 0.058564483 | F32: 1156 | G32: 0.1711324944 | H32: 2349 | I32: 0.08510561212
C33: Left Turn Crash | D33: 8772 | E33: 0.1296309979 | F33: 758 | G33: 0.1122131754 | H33: 3586 | I33: 0.1299228289
C34: Other | D34: 2839 | E34: 0.04195421833 | F34: 108 | G34: 0.01598815692 | H34: 653 | I34: 0.0236585631
C35: Rear End Crash | D35: 11339 | E35: 0.1675656504 | F35: 631 | G35: 0.09341228719 | H35: 4234 | I35: 0.1534002391
C36: SVROR | D36: 35097 | E36: 0.5186569921 | F36: 3558 | G36: 0.5267209474 | H36: 14275 | I36: 0.5171914061
C37: Grand Total | D37: 67669 | E37: 1 | F37: 6755 | G37: 1 | H37: 27601 | I37: 1
P174: Emax=6%
P176: super | Q176: 15 | R176: 20 | S176: 25 | T176: 30 | U176: 35 | V176: 40 | W176: 45 | X176: 50 | Y176: 55 | Z176: 60 | AA176: 65 | AB176: 70 | AC176: 75 | AD176: 80
P177: 2 | Q177: 614 | R177: 1120 | S177: 1630 | T177: 2240 | U177: 2950 | V177: 3770 | W177: 4680 | X177: 5700 | Y177: 6820 | Z177: 8060 | AA177: 9130 | AB177: 10300 | AC177: 11500 | AD177: 12900 | AE177: 2
P178: 2.2 | Q178: 543 | R178: 991 | S178: 1450 | T178: 2000 | U178: 2630 | V178: 3370 | W178: 4190 | X178: 5100 | Y178: 6110 | Z178: 7230 | AA178: 8200 | AB178: 9240 | AC178: 10400 | AD178: 11600 | AE178: 2.2
P179: 2.4 | Q179: 482 | R179: 884 | S179: 1300 | T179: 1790 | U179: 2360 | V179: 3030 | W179: 3770 | X179: 4600 | Y179: 5520 | Z179: 6540 | AA179: 7430 | AB179: 8380 | AC179: 9420 | AD179: 10600 | AE179: 2.4
P180: 2.6 | Q180: 430 | R180: 791 | S180: 1170 | T180: 1610 | U180: 2130 | V180: 2740 | W180: 3420 | X180: 4170 | Y180: 5020 | Z180: 5950 | AA180: 6770 | AB180: 7660 | AC180: 8620 | AD180: 9670 | AE180: 2.6
P181: 2.8 | Q181: 384 | R181: 709 | S181: 1050 | T181: 1460 | U181: 1930 | V181: 2490 | W181: 3110 | X181: 3800 | Y181: 4580 | Z181: 5440 | AA181: 6200 | AB181: 7030 | AC181: 7930 | AD181: 8910 | AE181: 2.8
P182: 3 | Q182: 341 | R182: 635 | S182: 944 | T182: 1320 | U182: 1760 | V182: 2270 | W182: 2840 | X182: 3480 | Y182: 4200 | Z182: 4990 | AA182: 5710 | AB182: 6490 | AC182: 7330 | AD182: 8260 | AE182: 3
P183: 3.2 | Q183: 300 | R183: 566 | S183: 850 | T183: 1200 | U183: 1600 | V183: 2080 | W183: 2600 | X183: 3200 | Y183: 3860 | Z183: 4600 | AA183: 5280 | AB183: 6010 | AC183: 6810 | AD183: 7680 | AE183: 3.2
P184: 3.4 | Q184: 256 | R184: 498 | S184: 761 | T184: 1080 | U184: 1460 | V184: 1900 | W184: 2390 | X184: 2940 | Y184: 3560 | Z184: 4250 | AA184: 4890 | AB184: 5580 | AC184: 6340 | AD184: 7180 | AE184: 3.4
P185: 3.6 | Q185: 209 | R185: 422 | S185: 673 | T185: 972 | U185: 1320 | V185: 1740 | W185: 2190 | X185: 2710 | Y185: 3290 | Z185: 3940 | AA185: 4540 | AB185: 5210 | AC185: 5930 | AD185: 6720 | AE185: 3.6
P186: 3.8 | Q186: 176 | R186: 358 | S186: 583 | T186: 864 | U186: 1190 | V186: 1590 | W186: 2010 | X186: 2490 | Y186: 3040 | Z186: 3650 | AA186: 4230 | AB186: 4860 | AC186: 5560 | AD186: 6320 | AE186: 3.8
P187: 4 | Q187: 151 | R187: 309 | S187: 511 | T187: 766 | U187: 1070 | V187: 1440 | W187: 1840 | X187: 2300 | Y187: 2810 | Z187: 3390 | AA187: 3950 | AB187: 4550 | AC187: 5220 | AD187: 5950 | AE187: 4
P188: 4.2 | Q188: 131 | R188: 270 | S188: 452 | T188: 684 | U188: 960 | V188: 1310 | W188: 1680 | X188: 2110 | Y188: 2590 | Z188: 3140 | AA188: 3680 | AB188: 4270 | AC188: 4910 | AD188: 5620 | AE188: 4.2
P189: 4.4 | Q189: 116 | R189: 238 | S189: 402 | T189: 615 | U189: 868 | V189: 1190 | W189: 1540 | X189: 1940 | Y189: 2400 | Z189: 2920 | AA189: 3440 | AB189: 4010 | AC189: 4630 | AD189: 5320 | AE189: 4.4
P190: 4.6 | Q190: 102 | R190: 212 | S190: 360 | T190: 555 | U190: 788 | V190: 1090 | W190: 1410 | X190: 1780 | Y190: 2210 | Z190: 2710 | AA190: 3220 | AB190: 3770 | AC190: 4380 | AD190: 5040 | AE190: 4.6
P191: 4.8 | Q191: 91 | R191: 189 | S191: 324 | T191: 502 | U191: 718 | V191: 995 | W191: 1300 | X191: 1640 | Y191: 2050 | Z191: 2510 | AA191: 3000 | AB191: 3550 | AC191: 4140 | AD191: 4790 | AE191: 4.8
P192: 5 | Q192: 82 | R192: 169 | S192: 292 | T192: 456 | U192: 654 | V192: 911 | W192: 1190 | X192: 1510 | Y192: 1890 | Z192: 2330 | AA192: 2800 | AB192: 3330 | AC192: 3910 | AD192: 4550 | AE192: 5
P193: 5.2 | Q193: 73 | R193: 152 | S193: 264 | T193: 413 | U193: 595 | V193: 833 | W193: 1090 | X193: 1390 | Y193: 1750 | Z193: 2160 | AA193: 2610 | AB193: 3120 | AC193: 3690 | AD193: 4320 | AE193: 5.2
P194: 5.4 | Q194: 65 | R194: 136 | S194: 237 | T194: 373 | U194: 540 | V194: 759 | W194: 995 | X194: 1280 | Y194: 1610 | Z194: 1990 | AA194: 2420 | AB194: 2910 | AC194: 3460 | AD194: 4090 | AE194: 5.4
P195: 5.6 | Q195: 58 | R195: 121 | S195: 212 | T195: 335 | U195: 487 | V195: 687 | W195: 903 | X195: 1160 | Y195: 1470 | Z195: 1830 | AA195: 2230 | AB195: 2700 | AC195: 3230 | AD195: 3840 | AE195: 5.6
P196: 5.8 | Q196: 51 | R196: 106 | S196: 186 | T196: 296 | U196: 431 | V196: 611 | W196: 806 | X196: 1040 | Y196: 1320 | Z196: 1650 | AA196: 2020 | AB196: 2460 | AC196: 2970 | AD196: 3560 | AE196: 5.8
P197: 6 | Q197: 39 | R197: 81 | S197: 144 | T197: 231 | U197: 340 | V197: 485 | W197: 643 | X197: 833 | Y197: 1060 | Z197: 1330 | AA197: 1660 | AB197: 2040 | AC197: 2500 | AD197: 3050 | AE197: 6
P201: Emax=8%
Q202: speed
P203: super | Q203: 15 | R203: 20 | S203: 25 | T203: 30 | U203: 35 | V203: 40 | W203: 45 | X203: 50 | Y203: 55 | Z203: 60 | AA203: 65 | AB203: 70 | AC203: 75 | AD203: 80
P204: 2 | Q204: 676 | R204: 1190 | S204: 1720 | T204: 2370 | U204: 3120 | V204: 3970 | W204: 4930 | X204: 5990 | Y204: 7150 | Z204: 8440 | AA204: 9510 | AB204: 10700 | AC204: 12000 | AD204: 13300 | AE204: 2
P205: 2.2 | Q205: 605 | R205: 1070 | S205: 1550 | T205: 2130 | U205: 2800 | V205: 3570 | W205: 4440 | X205: 5400 | Y205: 6450 | Z205: 7620 | AA205: 8600 | AB205: 9660 | AC205: 10800 | AD205: 12000 | AE205: 2.2
P206: 2.4 | Q206: 546 | R206: 959 | S206: 1400 | T206: 1930 | U206: 2540 | V206: 3240 | W206: 4030 | X206: 4910 | Y206: 5870 | Z206: 6930 | AA206: 7830 | AB206: 8810 | AC206: 9850 | AD206: 11000 | AE206: 2.4
P207: 2.6 | Q207: 496 | R207: 872 | S207: 1280 | T207: 1760 | U207: 2320 | V207: 2960 | W207: 3690 | X207: 4490 | Y207: 5370 | Z207: 6350 | AA207: 7180 | AB207: 8090 | AC207: 9050 | AD207: 10100 | AE207: 2.6
P208: 2.8 | Q208: 453 | R208: 796 | S208: 1170 | T208: 1610 | U208: 2130 | V208: 2720 | W208: 3390 | X208: 4130 | Y208: 4950 | Z208: 5850 | AA208: 6630 | AB208: 7470 | AC208: 8370 | AD208: 9340 | AE208: 2.8
P209: 3 | Q209: 415 | R209: 730 | S209: 1070 | T209: 1480 | U209: 1960 | V209: 2510 | W209: 3130 | X209: 3820 | Y209: 4580 | Z209: 5420 | AA209: 6140 | AB209: 6930 | AC209: 7780 | AD209: 8700 | AE209: 3
P210: 3.2 | Q210: 382 | R210: 672 | S210: 985 | T210: 1370 | U210: 1820 | V210: 2330 | W210: 2900 | X210: 3550 | Y210: 4250 | Z210: 5040 | AA210: 5720 | AB210: 6460 | AC210: 7260 | AD210: 8130 | AE210: 3.2
P211: 3.4 | Q211: 352 | R211: 620 | S211: 911 | T211: 1270 | U211: 1690 | V211: 2170 | W211: 2700 | X211: 3300 | Y211: 3970 | Z211: 4700 | AA211: 5350 | AB211: 6050 | AC211: 6800 | AD211: 7620 | AE211: 3.4
P212: 3.6 | Q212: 324 | R212: 572 | S212: 845 | T212: 1180 | U212: 1570 | V212: 2020 | W212: 2520 | X212: 3090 | Y212: 3710 | Z212: 4400 | AA212: 5010 | AB212: 5680 | AC212: 6400 | AD212: 7180 | AE212: 3.6
P213: 3.8 | Q213: 300 | R213: 530 | S213: 784 | T213: 1100 | U213: 1470 | V213: 1890 | W213: 2360 | X213: 2890 | Y213: 3480 | Z213: 4140 | AA213: 4710 | AB213: 5350 | AC213: 6030 | AD213: 6780 | AE213: 3.8
P214: 4 | Q214: 277 | R214: 490 | S214: 729 | T214: 1030 | U214: 1370 | V214: 1770 | W214: 2220 | X214: 2720 | Y214: 3270 | Z214: 3890 | AA214: 4450 | AB214: 5050 | AC214: 5710 | AD214: 6420 | AE214: 4
P215: 4.2 | Q215: 255 | R215: 453 | S215: 678 | T215: 955 | U215: 1280 | V215: 1660 | W215: 2080 | X215: 2560 | Y215: 3080 | Z215: 3670 | AA215: 4200 | AB215: 4780 | AC215: 5410 | AD215: 6090 | AE215: 4.2
P216: 4.4 | Q216: 235 | R216: 418 | S216: 630 | T216: 893 | U216: 1200 | V216: 1560 | W216: 1960 | X216: 2410 | Y216: 2910 | Z216: 3470 | AA216: 3980 | AB216: 4540 | AC216: 5140 | AD216: 5800 | AE216: 4.4
P217: 4.6 | Q217: 215 | R217: 384 | S217: 585 | T217: 834 | U217: 1130 | V217: 1470 | W217: 1850 | X217: 2280 | Y217: 2750 | Z217: 3290 | AA217: 3770 | AB217: 4310 | AC217: 4890 | AD217: 5530 | AE217: 4.6
P218: 4.8 | Q218: 193 | R218: 349 | S218: 542 | T218: 779 | U218: 1060 | V218: 1390 | W218: 1750 | X218: 2160 | Y218: 2610 | Z218: 3120 | AA218: 3590 | AB218: 4100 | AC218: 4670 | AD218: 5280 | AE218: 4.8
P219: 5 | Q219: 172 | R219: 314 | S219: 499 | T219: 727 | U219: 991 | V219: 1310 | W219: 1650 | X219: 2040 | Y219: 2470 | Z219: 2960 | AA219: 3410 | AB219: 3910 | AC219: 4460 | AD219: 5050 | AE219: 5
P220: 5.2 | Q220: 154 | R220: 284 | S220: 457 | T220: 676 | U220: 929 | V220: 1230 | W220: 1560 | X220: 1930 | Y220: 2350 | Z220: 2820 | AA220: 3250 | AB220: 3740 | AC220: 4260 | AD220: 4840 | AE220: 5.2
P221: 5.4 | Q221: 139 | R221: 258 | S221: 420 | T221: 627 | U221: 870 | V221: 1160 | W221: 1480 | X221: 1830 | Y221: 2230 | Z221: 2680 | AA221: 3110 | AB221: 3570 | AC221: 4090 | AD221: 4640 | AE221: 5.4
P222: 5.6 | Q222: 126 | R222: 236 | S222: 387 | T222: 582 | U222: 813 | V222: 1090 | W222: 1390 | X222: 1740 | Y222: 2120 | Z222: 2550 | AA222: 2970 | AB222: 3420 | AC222: 3920 | AD222: 4460 | AE222: 5.6
P223: 5.8 | Q223: 115 | R223: 216 | S223: 358 | T223: 542 | U223: 761 | V223: 1030 | W223: 1320 | X223: 1650 | Y223: 2010 | Z223: 2430 | AA223: 2840 | AB223: 3280 | AC223: 3760 | AD223: 4290 | AE223: 5.8
P224: 6 | Q224: 105 | R224: 199 | S224: 332 | T224: 506 | U224: 713 | V224: 965 | W224: 1250 | X224: 1560 | Y224: 1920 | Z224: 2320 | AA224: 2710 | AB224: 3150 | AC224: 3620 | AD224: 4140 | AE224: 6
P225: 6.2 | Q225: 97 | R225: 184 | S225: 308 | T225: 472 | U225: 669 | V225: 909 | W225: 1180 | X225: 1480 | Y225: 1820 | Z225: 2210 | AA225: 2600 | AB225: 3020 | AC225: 3480 | AD225: 3990 | AE225: 6.2
P226: 6.4 | Q226: 89 | R226: 170 | S226: 287 | T226: 442 | U226: 628 | V226: 857 | W226: 1110 | X226: 1400 | Y226: 1730 | Z226: 2110 | AA226: 2490 | AB226: 2910 | AC226: 3360 | AD226: 3850 | AE226: 6.4
P227: 6.6 | Q227: 82 | R227: 157 | S227: 267 | T227: 413 | U227: 590 | V227: 808 | W227: 1050 | X227: 1330 | Y227: 1650 | Z227: 2010 | AA227: 2380 | AB227: 2790 | AC227: 3240 | AD227: 3720 | AE227: 6.6
P228: 6.8 | Q228: 76 | R228: 146 | S228: 248 | T228: 386 | U228: 553 | V228: 761 | W228: 990 | X228: 1260 | Y228: 1560 | Z228: 1910 | AA228: 2280 | AB228: 2690 | AC228: 3120 | AD228: 3600 | AE228: 6.8
P229: 7 | Q229: 70 | R229: 135 | S229: 231 | T229: 360 | U229: 518 | V229: 716 | W229: 933 | X229: 1190 | Y229: 1480 | Z229: 1820 | AA229: 2180 | AB229: 2580 | AC229: 3010 | AD229: 3480 | AE229: 7
P230: 7.2 | Q230: 64 | R230: 125 | S230: 214 | T230: 336 | U230: 485 | V230: 672 | W230: 878 | X230: 1120 | Y230: 1400 | Z230: 1720 | AA230: 2070 | AB230: 2470 | AC230: 2900 | AD230: 3370 | AE230: 7.2
P231: 7.4 | Q231: 59 | R231: 115 | S231: 198 | T231: 312 | U231: 451 | V231: 628 | W231: 822 | X231: 1060 | Y231: 1320 | Z231: 1630 | AA231: 1970 | AB231: 2350 | AC231: 2780 | AD231: 3250 | AE231: 7.4
P232: 7.6 | Q232: 54 | R232: 105 | S232: 182 | T232: 287 | U232: 417 | V232: 583 | W232: 765 | X232: 980 | Y232: 1230 | Z232: 1530 | AA232: 1850 | AB232: 2230 | AC232: 2650 | AD232: 3120 | AE232: 7.6
P233: 7.8 | Q233: 48 | R233: 94 | S233: 164 | T233: 261 | U233: 380 | V233: 533 | W233: 701 | X233: 901 | Y233: 1140 | Z233: 1410 | AA233: 1720 | AB233: 2090 | AC233: 2500 | AD233: 2970 | AE233: 7.8
P234: 8 | Q234: 38 | R234: 76 | S234: 134 | T234: 214 | U234: 314 | V234: 444 | W234: 587 | X234: 758 | Y234: 960 | Z234: 1200 | AA234: 1480 | AB234: 1810 | AC234: 2210 | AD234: 2670 | AE234: 8

Sheet Roadside (hidden)
A1: No. | B1: Name of Countermeasure | C1: Workcode Number (Name) | D1: Preventable Crash Type | E1: Workcode CMF | F1: Recommended CMF | G1: Target Crash Type | H1: Crash Severity | I1: Countermeasure Name | J1: Note | K1: CMFClearinghouse ID | L1: Study
A2: 1 | B2: Relocate Utility Pole | C2: 209 (Safety Treat Fixed Objects) | D2: ROR, Hit Objects (pole, barrier, etc.) (Roadway Related = 2, 3 or 4) OR (Object Struck = 20–26, 29–36, 40–42, 56–58, 60, 62, or 63) | E2: 0.5
F3: 0.9134743339 | G3: Fixed object | H3: All | I3: Offset increase by 1 ft. base = 15.8 ft | J3: Rural 2L and Muti-L, undivided (Regression) | K3: 5240 | L3: Evaluating safety risk of locating above ground utility structures in the highway right-of-way
F4: 0.66 * D^0.1162 | G4: Fixed object | H4: All | I4: D: Density of utility pole. base = 38/mi (Range 0.3 - 185) | J4: Rural 2L and Muti-L, undivided (Regression) | K4: 5241 | L4: Evaluating safety risk of locating above ground utility structures in the highway right-of-way
A5: 2 | B5: Remove or Shield Tree or Fixed Objects | C5: 209 (Safety Treat Fixed Objects) | D5: ROR, Hit Objects (pole, barrier, etc.) (Roadway Related = 2, 3 or 4) OR (Object Struck = 20–26, 29–36, 40–42, 56–58, 60, 62, or 63) | E5: 0.5
F6: 0.62 | G6: All | H6: All | I6: Remove or relocate fixed objects outside of clear zone | J6: Both Rural&Urban, Roadway type not specified | K6: 1024 | L6: Development of Crash Reduction Factors
F7: 0.62 | G7: All | H7: KABC | I7: Remove or relocate fixed objects outside of clear zone | J7: Both Rural&Urban, Roadway type not specified | K7: 1044 | L7: Development of Crash Reduction Factors
F8: 0.024 | G8: Fixed object | H8: All | I8: Remove or relocate fixed objects outside of clear zone | J8: Condition/Roadway type not specified | K8: 2724 | L8: Support for the Elimination of Roadside Hazards
A9: 4 | B9: Lateral Clearance | F9: 0.68 | G9: SVROR | H9: AKBC | I9: Increase lateral clearance from 10 to 40 feet | J9: Rural Two-Lane Texas | K9: 4127 | L9: Investigating the Effect of Roadside Features on Single-Vehicle Roadway Departure Crashes on Rural Two-Lane Roads
B10: For tangents | F10: 0.68 | G10: SVROR | H10: AKBC | I10: Increase lateral clearance by a delta value | J10: Rural Two-Lane Texas | K10: 4127 | L10: Robert's review of the report extracted the beta. Sept 2019
B11: For Curves | F11: 0.49 | G11: SVROR | H11: AKBC | I11: Increase lateral clearance by a delta value | J11: Rural Two-Lane Texas | K11: 4128 | L11: Robert's review of the report extracted the beta. Sept 2019
A12: 5 | B12: Flattening Sideslopes | C12: 204 (Flatten Side Slope) | D12: Median Related (Roadway Related = 3) | E12: 0.54
F13: 0.1 | G13: SVROR | H13: KABC | I13: Improve sideslope rating from 5 to 1 | J13: Rural Two-Lane Texas | K13: 4129 | L13: Investigating the Effect of Roadside Features on Single-Vehicle Roadway Departure Crashes on Rural Two-Lane Roads
F14: 0.82 | G14: Run off road | H14: All | I14: Flatten sideslope from 1V:3H to 1V:4H | J14: Rural Two-Lane | K14: 28 | L14: Measuring the Goodness of Fit of Accident Prediction Models
D15: Elvik et al. | F15: 0.58 | G15: All | H15: ABC | I15: Flatten sideslope from 1V:3H to 1V:4H | K15: 26
D16: Elvik et al. | F16: 0.78 | G16: All | H16: ABC | I16: Flatten sideslope from 1V:4H to 1V:6H | K16: 29
A17: 6 | B17: Install Median Barrier | C17: 201 (Install Median Barrier) | D17: HO Vehicle Movements/Manner of Collision = 30 | E17: 0.45
F18: 0.56 | G18: Head on | H18: All | I18: Install cable median barrier | J18: Condition/Roadway type not specified | K18: 9395 | L18: Crash Modification Factors for Median Cable Barriers in Tennessee
F19: 0.27 | G19: Sideswipe | H19: All | I19: Install cable median barrier | J19: Condition/Roadway type not specified | K19: 9396 | L19: Crash Modification Factors for Median Cable Barriers in Tennessee
F20: 0.5 | G20: Head on,Sideswipe | H20: All | I20: Install cable median barrier | J20: Condition/Roadway type not specified | K20: 9397 | L20: Crash Modification Factors for Median Cable Barriers in Tennessee
A21: 7 | B21: Install Roadside Barrier | C21: NA | D21: NA | E21: NA
F22: 0.49 | G22: Run off road | H22: KABC | I22: Install roadside barrier | J22: Rural Two-Lane | K22: 6402 | L22: Analyzing road design risk factors for run-off-road crashes in the Netherlands with crash prediction models
A23: 7 | B23: Install Safety Edge | C23: NA | D23: All | E23: NA | F23: 0.892 | H23: KAB | I23: Install Safety Edge | K23: 9205
D24: ROR, Hit Objects (pole, barrier, etc.) (Roadway Related = 2, 3 or 4) OR (Object Struck = 20–26, 29–36, 40–42, 56–58, 60, 62, or 63) | F24: 0.79 | G24: Run off road | H24: All | I24: Install Safety Edge | J24: Rural Two-Lane | K24: 9211 | L24: Study Title: Development Of Crash Modification Factors For The Application Of The Safetyedge Treatment On Two-Lane Rural Roads. Donnell et al. March 2017
B25: Roadside Object | D25: SVROR reduced severity | F25: 0.55 | K25: 37 and 38 | L25: Elviks
D29: Daniello and Garber, Fatality risk in motorcycle collisions with roadside objects in the US. AAP 2011
D31: P(fatal w guardrail)/P(fatal w ground) | E31: 16.7
D32: P(fatal w tree or pole)/P(fatal w ground) | E32: 9.5
B35: From Robert W.
B36: The CMFs for increasing clearance’s are:
B38: 0.68 for tangents
B39: 0.49 for curves
B41: For guardrail, the CMF is
B43: 0.84 for KA | F43: 0.84 | G43: Effect on KA crashes, to be applied for credit on Guardrail application
B45: I know this would be mixing applications, but it seems reasonable to say that you get that credit in the safety score for reducing severity. And at least we have some reason to do so.

Sheet Construction (hidden)
A1: Lane Width | D1: HSM | K1: For validation of curve signing | M1: Yes or No | N1: (Cell range named "Responses")
C2: LW | D2: CMF | E2: CRF | M2: Yes
C3: 9 | D3: 1.5 | E3: =100*(1-D3) -> -50 | M3: No
C4: 9.5 | D4: =EXP(AVERAGE(LN(D3),LN(D5))) -> 1.396424004 | E4: -39.64240044
C5: 10 | D5: 1.3 | E5: -30
C6: 10.5 | D6: =EXP(AVERAGE(LN(D5),LN(D7))) -> 1.168332145 | E6: -16.83321446 | AD6: Xsect | AE6: Blank | AH6: For validation
C7: 11 | D7: 1.05 | E7: -5 | H7: Meta Parameters | I7: Total Score | M7: Lane | N7: Shld | P7: Super | R7: Emax6 | S7: Emax8 | U7: AADT | W7: View2 | Y7: Sslope | AA7: PrType | AD7: Configuration 1 | AE7: -- | AF7: =AD7 -> Configuration 1 | AG7: =IFERROR(RIGHT('Start Here'!H81,2)+0,0) -> 1 | AH7: ="Construction!$AF$7:$AF$"&Construction!$AG$23+7 -> Construction!$AF$7:$AF$8
C8: 11.5 | D8: =EXP(AVERAGE(LN(D7),LN(D9))) -> 1.024695077 | E8: -2.46950766 | H8: Geometry | I8: 40 | M8: 9 | N8: 0 | P8: 6 | R8: 2 | S8: 2 | U8: < 400 vpd | W8: Existing | Y8: 1V:1H | AA8: 3R | AD8: Configuration 2 | AF8: =AD8 -> Configuration 2 | AG8: =IFERROR(RIGHT('Start Here'!H82,2)+0,0) -> 1
C9: 12 | D9: 1 | E9: 0 | H9: Traffic Control | I9: 20 | M9: 9.5 | N9: 1 | P9: 8 | R9: 2.2 | S9: 2.2 | U9: 400 to 2,000 vpd | W9: Standard | Y9: 1V:2H | AA9: 4R | AD9: Configuration 3 | AF9: Configuration 3 | AG9: =IFERROR(RIGHT('Start Here'!H83,2)+0,0) -> 1
H10: Roadside | I10: 40 | M10: 10 | N10: 2 | R10: 2.4 | S10: 2.4 | U10: 2,001 to 8,000 vpd | W10: Design 1 | Y10: 1V:3H | AD10: Configuration 4 | AF10: Configuration 4 | AG10: =IFERROR(RIGHT('Start Here'!H84,2)+0,0) -> 1
A11: Shoulder Width | H11: Total: | I11: =SUM(I8:I10) -> 100 | M11: 10.5 | N11: 3 | R11: 2.6 | S11: 2.6 | U11: > 8,000 vpd | W11: Design 2 | Y11: 1V:4H | AD11: Configuration 5 | AF11: Configuration 5 | AG11: =IFERROR(RIGHT('Start Here'!H85,2)+0,0) -> 1
C12: SW | D12: CMF | E12: CRF | M12: 11 | N12: 4 | R12: 2.8 | S12: 2.8 | W12: Optimal | Y12: 1V:5H | AD12: Configuration 6 | AF12: Configuration 6 | AG12: =IFERROR(RIGHT('Start Here'!H86,2)+0,0) -> 1
C13: 0 | D13: 1.29 | E13: =100*(1-D13) -> -29 | M13: 11.5 | N13: 5 | R13: 3 | S13: 3 | Y13: 1V:6H | AD13: Configuration 7 | AF13: Configuration 7 | AG13: =IFERROR(RIGHT('Start Here'!H87,2)+0,0) -> 1
C14: 1 | D14: 1.23 | E14: -23 | M14: 12 | N14: 6 | R14: 3.2 | S14: 3.2 | Y14: 1V:7H | AD14: Configuration 8 | AF14: Configuration 8 | AG14: =IFERROR(RIGHT('Start Here'!H88,2)+0,0) -> 1
C15: 2 | D15: 1.17 | E15: -17 | N15: 7 | R15: 3.4 | S15: 3.4 | Y15: 1V:8H | AD15: Configuration 9 | AF15: Configuration 9 | AG15: =IFERROR(RIGHT('Start Here'!H89,2)+0,0) -> 1
C16: 3 | D16: 1.13 | E16: -13 | N16: 8 | R16: 3.6 | S16: 3.6 | U16: SLimit | Y16: 1V:9H | AD16: Configuration 10 | AF16: Configuration 10 | AG16: =IFERROR(RIGHT('Start Here'!H90,2)+0,0) -> 1
C17: 4 | D17: 1.09 | E17: -9 | N17: 9 | R17: 3.8 | S17: 3.8 | U17: 20 | Y17: 1V:10H | AD17: Configuration 11 | AF17: Configuration 11 | AG17: =IFERROR(RIGHT('Start Here'!H91,2)+0,0) -> 1
C18: 5 | D18: 1.04 | E18: -4 | N18: 10 | R18: 4 | S18: 4 | U18: 25 | Y18: 1V:11H | AD18: Configuration 12 | AF18: Configuration 12 | AG18: =IFERROR(RIGHT('Start Here'!H92,2)+0,0) -> 1
C19: 6 | D19: 1 | E19: 0 | N19: 11 | R19: 0.2 | S19: 0.2 | U19: 30 | Y19: 1V:12H | AD19: Configuration 13 | AF19: Configuration 13 | AG19: =IFERROR(RIGHT('Start Here'!H93,2)+0,0) -> 1
C20: 7 | D20: 0.96 | E20: 4 | N20: 12 | R20: 4.4 | S20: 4.4 | U20: 35 | AD20: Configuration 14 | AF20: Configuration 14 | AG20: =IFERROR(RIGHT('Start Here'!H94,2)+0,0) -> 1
C21: 8 | D21: 0.93 | E21: 7 | R21: 4.6 | S21: 4.6 | U21: 40 | AD21: Configuration 15 | AF21: Configuration 15 | AG21: =IFERROR(RIGHT('Start Here'!H95,2)+0,0) -> 1
C22: 9 | D22: 0.91 | E22: 9 | R22: 4.8 | S22: 4.8 | U22: 45 | W22: Location
C23: 10 | D23: 0.9 | E23: 10 | R23: 5 | S23: 5 | U23: 50 | W23: Rural (no town) | AF23: max | AG23: =MAX(AG7:AG21) -> 1
U24: 55
B25: HC | C25: Table 2-3 TxDOT design Manual | G25: Table 2-4 TxDOT design Manual | U25: 60
U26: 65
B27: Emax 6 | G27: Emax 8 | U27: 70
B28: Des. Speed | C28: usual min R | D28: Abs min R | G28: Des. Speed | H28: usual min R | I28: Abs min R | J28: emax = 8 | U28: 75
B29: 45 | C29: 810 | D29: 643 | G29: 45 | H29: 740 | I29: 587 | U29: 80
B30: 50 | C30: 1050 | D30: 833 | G30: 50 | H30: 955 | I30: 758
B31: 55 | C31: 1635 | D31: 1060 | G31: 55 | H31: 1480 | I31: 960
B32: 60 | C32: 2195 | D32: 1330 | G32: 60 | H32: 1980 | I32: 1200
B33: 65 | C33: 2740 | D33: 1660 | G33: 65 | H33: 2445 | I33: 1480
B34: 70 | C34: 3390 | D34: 2040 | G34: 70 | H34: 3005 | I34: 1810
B35: 75 | C35: 3750 | D35: 2500 | G35: 75 | H35: 3315 | I35: 2210
B36: 80 | C36: 4575 | D36: 3050 | G36: 80 | H36: 4005 | I36: 2670
B42: OPTIMAL VALUES (Karen's)
B43: Emax 6 | G43: Emax 8
B44: Des. Speed | C44: R | G44: Des. Speed | H44: R | J44: emax = 8
B45: 45 | C45: =C29*2 -> 1620 | G45: 45 | H45: 1480
B46: 50 | C46: 1800 | G46: 50 | H46: 1700
B47: 55 | C47: 2200 | G47: 55 | H47: 2100
B48: 60 | C48: 3300 | G48: 60 | H48: 3100
B49: 65 | C49: 4200 | G49: 65 | H49: 4000
B50: 70 | C50: 5600 | G50: 70 | H50: 5400
B51: 75 | C51: 6200 | G51: 75 | H51: 6000
B52: 80 | C52: 7000 | G52: 80 | H52: 6800
H55: Was D28, now H25 | I55: Was E28, now I25 | J55: Was F28, now J25 | R55: 5.2 | S55: 5.2 | W55: Rural (small town)
A56: Combined Horizontal Curves and Straight Grades | R56: 5.4 | S56: 5.4 | W56: Urban to Rural Transition
A57: Safety Effects of Horizontal Curve and Grade Combinations on Rural Two-Lane Highways. Bauer and Harwood | H57: Grade | I57: HC Coeff. | J57: Interaction Term | R57: 5.6 | S57: 5.6 | W57: Urban
H58: 0.042 | I58: 0.16 | J58: 4.16 | R58: 5.8 | S58: 5.8
A59: Equations below represent HC with straight tangent (sum for total crashes) | R59: 6 | S59: 6
S60: 6.2 | W60: Fixed
S61: 6.4 | W61: Guardrail
S62: 6.6 | W62: Other Fixed Object
S63: 6.8 | W63: None
S64: 7
S65: 7.2
S66: 7.4
S67: 7.6
S68: 7.8
S69: 8
A71: Equations below represent HC and tangents with Type 1 crest -- so G1>G2 (sum for total crashes)
A72: 3 | B72: HA and VA: Crests Type I | D72: Interact
D73: =(0.0088*EXP(-9.56)+0.0046*EXP(-8.46))/(EXP(-8.46)+EXP(-9.56)) -> 0.005648907557
A88: Equations below represent HC and tangents with Type I sag vertical curve -- so G1<G2 (sum for total crashes)
B89: HA and VA: Sags Type I | D89: K | E89: Interact
D90: =(10.51*EXP(-9.55)+8.62*EXP(-8.63))/(EXP(-8.63)+EXP(-9.55)) -> 9.15857042 | E90: =(0.011*EXP(-9.55)+0.01*EXP(-8.63))/(EXP(-8.63)+EXP(-9.55)) -> 0.01028495789
B102: HA and VA: Crest Type II | D102: R effect
D103: =(0.2*EXP(-9.52)+0.1*EXP(-8.38))/(EXP(-8.38)+EXP(-9.52)) -> 0.1242320361
I105: OVERWROTE TO TYPE I BECAUSE OF INCONSISTENT RESULTS AND CAUTION OFFERRED BY THE RESEARCHERS
B128: HA and VA: Sag Type II
D131: ln R effect | E131: weight | F131: R effect | G131: weight
D132: 0.188 | E132: =EXP(-9.42)/(EXP(-9.42)+EXP(-8.3)) -> 0.2460112836 | F132: 0.022 | G132: =EXP(-8.3)/(EXP(-9.42)+EXP(-8.3)) -> 0.7539887164
A156: Table 2-6 and 2-7 of TxDOT Design Manual
A157: Minimum Design Controls for Vertical Curves (Standard)
B158: Design Speed | C158: Min Crest K | D158: Min Sag K
B159: 20 | C159: 7 | D159: 17
B160: 25 | C160: 12 | D160: 26
B161: 30 | C161: 19 | D161: 37
B162: 35 | C162: 29 | D162: 49
B163: 40 | C163: 44 | D163: 64
B164: 45 | C164: 61 | D164: 79
B165: 50 | C165: 84 | D165: 96
B166: 55 | C166: 114 | D166: 115
B167: 60 | C167: 151 | D167: 136
B168: 65 | C168: 193 | D168: 157
B169: 70 | C169: 247 | D169: 181
B170: 75 | C170: 312 | D170: 206
B171: 80 | C171: 384 | D171: 231
A176: Table 2-6 and 2-7 of TxDOT Design Manual
A177: Design Controls for Vertical Curves (Optimal)
B178: Design Speed | C178: Min Crest K | D178: Min Sag K
B179: 20 | C179: 10 | D179: 10
B180: 25 | C180: 20 | D180: 40
B181: 30 | C181: 40 | D181: 70
B182: 35 | C182: 60 | D182: 100
B183: 40 | C183: 90 | D183: 130
B184: 45 | C184: 120 | D184: 160
B185: 50 | C185: 170 | D185: 190
B186: 55 | C186: 230 | D186: 230
B187: 60 | C187: 300 | D187: 270
B188: 65 | C188: 390 | D188: 310
B189: 70 | C189: 490 | D189: 360
B190: 75 | C190: 620 | D190: 410
B191: 80 | C191: 760 | D191: 460

Sheet Definitions
D4: Rural Two-Lane Roadway Element Definitions
D5: Geometric Design Elements | E5: Definition | F5: Notes
D6: Lane Width (feet) | E6: The nominal width of the lane.
D7: Shoulder Width (feet) | E7: The average width of paved shoulders.
D8: If Horizontal Curve is Present
D9: Horizontal Curve Data for Controlling Element:
D10: Radius (feet) | E10: Radius of the controlling curve at the centerline.
D11: Length of Horizontal Curve (feet) | E11: Length of curve along the centerline from point of curvature to point of tangency.
D12: If Vertical Curve is Present
D13: Vertical Curve Data for Controlling Element:
D14: Approach (Entry) Grade, G1 (%) | E14: grade of the approach vertical tangent.
D15: Departure (Exit) Grade, G2 (%) | E15: grade of the departure vertical tangent.
D16: Length (feet) | E16: distance between the point of vertical curvature and point of tangency (see Design Manual Figure 2-4). (see Design Manual Figure 2-4, reproduced to the right).
D17: Calculated Rate of Change, K (ft/ft) | E17: The length of curve divided by the algebraic difference in grades G1 and G2. | K17: Figure 2-4 from TxDOT Roadway Design Manual
D18: Calculated Sag or Crest? | E18: Is the curve a vertical sag or crest curve.
D19: TWLTL (two-way left-turn lane) | E19: Presence of two-way left-turn lane.
D20: Passing Lane Type | E20: The type of passing lane: (1) None; (2) Passing or Climbing Lane in One Direction; or (3) Super 2.
D26: Traffic Elements | E26: Definition | F26: Notes
D27: Advance Static Curve Warning Signs | E27: Are curve warning signs posted in compliance with MUTCD requirements on both approaches to all horizontal curves in the segment?
D28: Chevron Signs on Horizontal Curves | E28: Are chevron signs posted in compliance with MUTCD requirements on all horizontal curves in the segment?
D29: Post-Mounted Delineators | E29: Are post-mounted delineators placed in compliance with MUTCD spacing recommendations along all horizontal curves in the segment?
D30: Edgeline Pavement Markings or Profile Markings | E30: Are continuous edgeline rumble strips or profile markings present along both sides of the segment?
D31: Shoulder Rumble Strips | E31: Are rumble strips present on the shoulder? | F31: * Only one of these treatments should be present at the site
D32: Centerline Rumble Strips | E32: Are continuous centerline rumble strips present along the entire segment? | F32: * Only one of these treatments should be present at the site
D33: Driveway Density (driveways per mile) | E33: The number of driveways along both sides of the roadway divided by the segment length.
D34: Lighting | E34: Is continuous roadway lighting provided along the entire length of the segment?
D35: Pavement Friction (skid number) | E35: What is the recorded skid number along the segment? (available in TxDOTs roadway inventory)
D40: Roadside Elements | E40: Definition | F40: Notes
D41: Sideslope (Foreslope) | E41: The ratio of horizontal distance for to 1 unit of vertical distance on the slope immediately adjacent to the travel lane or shouder. The smallest ratio of any foreslop in the segment is entered.
D42: Backslope | E42: The ratio of horizontal distance for to 1 unit of vertical distance on the slope adjacent to the foreslope. The smallest ratio of any backslope in the segment is entered.
D43: SafetyEdge | E43: Is a safety edge present along both pavement edgelines for the entire segment length.
D44: Lateral Clearance to obstruction (ft) | E44: The distance from the edge of the travel lane to the nearest obstruction or guardrail. Examples of obstructions are fixed objects such as trees, utility poles, non-breakawy luminaires, fences, culverts without forgiving features, piers, columns, and buildings or dropoffs and ditches with slopes greater than 1V:3H or the beginning of any backslope greater than 1V:3H.
D45: Obstruction Type | E45: choose between 1) fixed objects drop offs or 2) guardrail.

Sheet Start Here
G2: Rural Two-Lane Road Segment -- Safety Score Input
G3: INPUT INSTRUCTIONS
G4: Blue Boxes -- Select from pulldown options | J4: Select from Pulldown
G5: Yellow Boxes -- Type input information into box | J5: Type Input Value
G6: General Information
H7: Analyst:
H8: Agency / Company / District:
H9: Date:
G10: Segment Limits (Limit up to 15 miles in length):
H11: Road Name:
H12: Category (4R, 3R) -- Future Enhancement
H13: Segment Beginning Mile Point (BMP):
H14: Segment Ending Mile Point (EMP):
J15: =+J14-J13 -> 0
G16: Calculated Total Segment Length (miles):
H19: Questions for Developing Worksheets
H21: Are controlling elements for Segment X the same as for Segment Y?
H22: X | I22: Y | J22: Yes or No
H23: 2 | I23: 1 | J23: Yes
H25: 3 | I25: 1 | J25: Yes
H26: 3 | I26: 2 | J26: Yes
H28: 4 | I28: 1 | J28: Yes
H29: 4 | I29: 2 | J29: Yes
H30: 4 | I30: 3 | J30: Yes
H32: 5 | I32: 1
H33: 5 | I33: 2
H34: 5 | I34: 3
H35: 5 | I35: 4
H37: 6 | I37: 1
H38: 6 | I38: 2
H39: 6 | I39: 3
H40: 6 | I40: 4
H41: 6 | I41: 5
H43: 7 | I43: 1
H44: 7 | I44: 2
H45: 7 | I45: 3
H46: 7 | I46: 4
H47: 7 | I47: 5
H48: 7 | I48: 6
H50: 8 | I50: 1
H51: 8 | I51: 2
H52: 8 | I52: 3
H53: 8 | I53: 4
H54: 8 | I54: 5
H55: 8 | I55: 6
H56: 8 | I56: 7
H58: 9 | I58: 1
H59: 9 | I59: 2
H60: 9 | I60: 3
H61: 9 | I61: 4
H62: 9 | I62: 5
H63: 9 | I63: 6
H64: 9 | I64: 7
H65: 9 | I65: 8
H67: 10 | I67: 1
H68: 10 | I68: 2
H69: 10 | I69: 3
H70: 10 | I70: 4
H71: 10 | I71: 5
H72: 10 | I72: 6
H73: 10 | I73: 7
H74: 10 | I74: 8
H75: 10 | I75: 9
B79: Segment Number | D79: Type | E79: Boundary Conditions | H79: Applicable Worksheet (similar segment can use same worksheet) | I79: Segment Safety Score
E80: BMP | F80: EMP | G80: Length | I80: Existing | J80: Standard | K80: Design 1 | L80: Design 2 | M80: Optimal
B81: 1 | D81: R2LS | E81: =+$J$13 -> 0 | F81: =IF($J$15<=1,$J$14,($J$13+1)) -> 0 | G81: =IF($J$14-$J$13>1,1,F81-E81) -> 0 | H81: Configuration 1 | I81: =IF($E81=" "," ",INDIRECT("'" & $H81 & "'!d46")) ->  | J81: =IF($E81=" "," ",INDIRECT("'" & $H81 & "'!e46")) ->  | K81: =IF($E81=" "," ",INDIRECT("'" & $H81 & "'!f46")) ->  | L81: =IF($E81=" "," ",INDIRECT("'" & $H81 & "'!g46")) ->  | M81: =IF($E81=" "," ",INDIRECT("'" & $H81 & "'!i46")) -> 
B82: =IF($E82=" "," ", 2) ->  | D82: =IF(E82=" ","","R2LS") ->  | E82: =IF($J$14-$J$13<=1," ",F81) ->  | F82: =IF($E82=" "," ",IF($J$14<($F81+1),$J$14,($F81+1))) ->  | G82: =+IF(E82=" "," ",IF($J$14<(F81+1),(F82-E82),1)) ->  | H82: Configuration 1
B83: =IF($E83=" "," ", 3) ->  | D83: =IF(E83=" ","","R2LS") ->  | E83: =IF($J$14-$J$13<=2," ",F82) ->  | F83: =IF($E83=" "," ",IF($J$14<($F82+1),$J$14,($F82+1))) ->  | G83: =+IF(E83=" "," ",IF($J$14<(F82+1),(F83-E83),1)) ->  | H83: Configuration 1
B84: =IF($E84=" "," ", 4) ->  | E84: =IF($J$14-$J$13<=3," ",F83) ->  | F84: =IF($E84=" "," ",IF($J$14<($F83+1),$J$14,($F83+1))) ->  | G84: =+IF(E84=" "," ",IF($J$14<(F83+1),(F84-E84),1)) ->  | H84: Configuration 1
B85: =IF($E85=" "," ", 5) ->  | E85: =IF($J$14-$J$13<=4," ",F84) ->  | F85: =IF($E85=" "," ",IF($J$14<($F84+1),$J$14,($F84+1))) ->  | H85: Configuration 1
B86: =IF($E86=" "," ", 6) ->  | E86: =IF($J$14-$J$13<=5," ",F85) ->  | F86: =IF($E86=" "," ",IF($J$14<($F85+1),$J$14,($F85+1))) ->  | H86: Configuration 1
B87: =IF($E87=" "," ", 7) ->  | E87: =IF($J$14-$J$13<=6," ",F86) ->  | F87: =IF($E87=" "," ",IF($J$14<($F86+1),$J$14,($F86+1))) ->  | H87: Configuration 1
B88: =IF($E88=" "," ", 8) ->  | E88: =IF($J$14-$J$13<=7," ",F87) ->  | H88: Configuration 1
B89: =IF($E89=" "," ", 9) ->  | E89: =IF($J$14-$J$13<=8," ",F88) ->  | H89: Configuration 1
B90: =IF($E90=" "," ", 10) ->  | E90: =IF($J$14-$J$13<=9," ",F89) ->  | H90: Configuration 1
B91: =IF($E91=" "," ", 11) ->  | E91: =IF($J$14-$J$13<=10," ",F90) ->  | H91: Configuration 1
B92: =IF($E92=" "," ",12) ->  | E92: =IF($J$14-$J$13<=11," ",F91) ->  | H92: Configuration 1
B93: =IF($E93=" "," ", 13) ->  | E93: =IF($J$14-$J$13<=12," ",F92) ->  | H93: Configuration 1
B94: =IF($E94=" "," ", 14) ->  | E94: =IF($J$14-$J$13<=13," ",F93) ->  | H94: Configuration 1
B95: =IF($E95=" "," ", 15) ->  | E95: =IF($J$14-$J$13<=14," ",F94) ->  | H95: Configuration 1 | I95: =IF(OR($E95=" ",$H95=" ")," ",INDIRECT("'" & $H95 & "'!d46")) ->  | J95: =IF(OR($E95=" ",$H95=" ")," ",INDIRECT("'" & $H95 & "'!d46")) ->  | K95: =IF(OR($E95=" ",$H95=" ")," ",INDIRECT("'" & $H95 & "'!d46")) ->  | L95: =IF(OR($E95=" ",$H95=" ")," ",INDIRECT("'" & $H95 & "'!d46")) ->  | M95: =IF(OR($E95=" ",$H95=" ")," ",INDIRECT("'" & $H95 & "'!d46")) -> 
C96: =""& CELL("filename") -> C:\Users\l-wu\Documents\GitHub\RW_Intersection_Excel_Tools0\Documents\[Rural TwoLane v3.3.xlsm]Reporting | D96: R2LS | E96: =J13 -> 0 | F96: =J14 -> 0 | G96: =SUM(G81:G95) -> 0 | H96: Weighted Total Score: | I96: =IF(ISERROR(I98), "Check Conf.",I98) ->  | J96: =IF(ISERROR(J98), "Check Conf.",J98) ->  | K96: =IF(ISERROR(K98), "Check Conf.",K98) ->  | L96: =IF(ISERROR(L98), "Check Conf.",L98) ->  | M96: =IF(ISERROR(M98), "Check Conf.",M98) -> 
I98: =+IF($G$96>14,((SUM(I$81:I$94)+(I$95*$G$95))/$G$96),IF($G$96>13,(SUM(I$81:I$93)+(I$94*$G$94))/$G$96,IF($G$96>12,(SUM(I$81:I$92)+(I$93*$G$93))/$G$96,IF($G$96>11,(SUM(I$81:I$91)+(I$92*$G$92))/$G$96,IF($G$96>10,((SUM(I$81:I$90)+(I$91*$G$91))/$G$96),IF($G$96>9,((SUM(I$81:I$89)+(I$90*$G$90))/$G$96),IF($G$96>8,(SUM(I$81:I$88)+(I$89*$G$89))/$G$96,IF($G$96>7,(SUM(I$81:I$87)+(I$88*$G$88))/$G$96,IF($G$96>6,(SUM(I$81:I$86)+(I$87*$G$87))/$G$96,IF($G$96>5,(SUM(I$81:I$85)+(I$86*$G$86))/$G$96,IF($G$96>4,(SUM(I$81:I$84)+(I$85*$G$85))/$G$96,IF($G$96>3,(SUM(I$81:I$83)+(I$84*$G$84))/$G$96,IF($G$96>2,(SUM(I$81:I$82)+I$83*$G$83)/$G$96,IF($G$96>1,(I$81+I$82*$G$82)/$G$96,I$81)))))))))))))) ->  | J98: =+IF($G$96>14,((SUM(J$81:J$94)+(J$95*$G$95))/$G$96),IF($G$96>13,(SUM(J$81:J$93)+(J$94*$G$94))/$G$96,IF($G$96>12,(SUM(J$81:J$92)+(J$93*$G$93))/$G$96,IF($G$96>11,(SUM(J$81:J$91)+(J$92*$G$92))/$G$96,IF($G$96>10,((SUM(J$81:J$90)+(J$91*$G$91))/$G$96),IF($G$96>9,((SUM(J$81:J$89)+(J$90*$G$90))/$G$96),IF($G$96>8,(SUM(J$81:J$88)+(J$89*$G$89))/$G$96,IF($G$96>7,(SUM(J$81:J$87)+(J$88*$G$88))/$G$96,IF($G$96>6,(SUM(J$81:J$86)+(J$87*$G$87))/$G$96,IF($G$96>5,(SUM(J$81:J$85)+(J$86*$G$86))/$G$96,IF($G$96>4,(SUM(J$81:J$84)+(J$85*$G$85))/$G$96,IF($G$96>3,(SUM(J$81:J$83)+(J$84*$G$84))/$G$96,IF($G$96>2,(SUM(J$81:J$82)+J$83*$G$83)/$G$96,IF($G$96>1,(J$81+J$82*$G$82)/$G$96,J$81)))))))))))))) ->  | K98: =+IF($G$96>14,((SUM(K$81:K$94)+(K$95*$G$95))/$G$96),IF($G$96>13,(SUM(K$81:K$93)+(K$94*$G$94))/$G$96,IF($G$96>12,(SUM(K$81:K$92)+(K$93*$G$93))/$G$96,IF($G$96>11,(SUM(K$81:K$91)+(K$92*$G$92))/$G$96,IF($G$96>10,((SUM(K$81:K$90)+(K$91*$G$91))/$G$96),IF($G$96>9,((SUM(K$81:K$89)+(K$90*$G$90))/$G$96),IF($G$96>8,(SUM(K$81:K$88)+(K$89*$G$89))/$G$96,IF($G$96>7,(SUM(K$81:K$87)+(K$88*$G$88))/$G$96,IF($G$96>6,(SUM(K$81:K$86)+(K$87*$G$87))/$G$96,IF($G$96>5,(SUM(K$81:K$85)+(K$86*$G$86))/$G$96,IF($G$96>4,(SUM(K$81:K$84)+(K$85*$G$85))/$G$96,IF($G$96>3,(SUM(K$81:K$83)+(K$84*$G$84))/$G$96,IF($G$96>2,(SUM(K$81:K$82)+K$83*$G$83)/$G$96,IF($G$96>1,(K$81+K$82*$G$82)/$G$96,K$81)))))))))))))) ->  | L98: =+IF($G$96>14,((SUM(L$81:L$94)+(L$95*$G$95))/$G$96),IF($G$96>13,(SUM(L$81:L$93)+(L$94*$G$94))/$G$96,IF($G$96>12,(SUM(L$81:L$92)+(L$93*$G$93))/$G$96,IF($G$96>11,(SUM(L$81:L$91)+(L$92*$G$92))/$G$96,IF($G$96>10,((SUM(L$81:L$90)+(L$91*$G$91))/$G$96),IF($G$96>9,((SUM(L$81:L$89)+(L$90*$G$90))/$G$96),IF($G$96>8,(SUM(L$81:L$88)+(L$89*$G$89))/$G$96,IF($G$96>7,(SUM(L$81:L$87)+(L$88*$G$88))/$G$96,IF($G$96>6,(SUM(L$81:L$86)+(L$87*$G$87))/$G$96,IF($G$96>5,(SUM(L$81:L$85)+(L$86*$G$86))/$G$96,IF($G$96>4,(SUM(L$81:L$84)+(L$85*$G$85))/$G$96,IF($G$96>3,(SUM(L$81:L$83)+(L$84*$G$84))/$G$96,IF($G$96>2,(SUM(L$81:L$82)+L$83*$G$83)/$G$96,IF($G$96>1,(L$81+L$82*$G$82)/$G$96,L$81)))))))))))))) ->  | M98: =+IF($G$96>14,((SUM(M$81:M$94)+(M$95*$G$95))/$G$96),IF($G$96>13,(SUM(M$81:M$93)+(M$94*$G$94))/$G$96,IF($G$96>12,(SUM(M$81:M$92)+(M$93*$G$93))/$G$96,IF($G$96>11,(SUM(M$81:M$91)+(M$92*$G$92))/$G$96,IF($G$96>10,((SUM(M$81:M$90)+(M$91*$G$91))/$G$96),IF($G$96>9,((SUM(M$81:M$89)+(M$90*$G$90))/$G$96),IF($G$96>8,(SUM(M$81:M$88)+(M$89*$G$89))/$G$96,IF($G$96>7,(SUM(M$81:M$87)+(M$88*$G$88))/$G$96,IF($G$96>6,(SUM(M$81:M$86)+(M$87*$G$87))/$G$96,IF($G$96>5,(SUM(M$81:M$85)+(M$86*$G$86))/$G$96,IF($G$96>4,(SUM(M$81:M$84)+(M$85*$G$85))/$G$96,IF($G$96>3,(SUM(M$81:M$83)+(M$84*$G$84))/$G$96,IF($G$96>2,(SUM(M$81:M$82)+M$83*$G$83)/$G$96,IF($G$96>1,(M$81+M$82*$G$82)/$G$96,M$81)))))))))))))) -> 

Sheet Reporting_0 (hidden)
D6: ='Start Here'!G6 -> General Information | M6: ='Start Here'!$B$79 -> Segment Number | N6: ='Start Here'!D79 -> Type | O6: ='Start Here'!E79 -> Boundary Conditions | R6: Configuration | S6: ='Start Here'!I79 -> Segment Safety Score
E7: ='Start Here'!H7 -> Analyst: | G7: ='Start Here'!J7 -> 0 | O7: ='Start Here'!E80 -> BMP | P7: ='Start Here'!F80 -> EMP | Q7: ='Start Here'!G80 -> Length | S7: ='Start Here'!I80 -> Existing | T7: ='Start Here'!J80 -> Standard | U7: ='Start Here'!K80 -> Design 1 | V7: ='Start Here'!L80 -> Design 2 | W7: ='Start Here'!M80 -> Optimal
E8: ='Start Here'!H8 -> Agency / Company / District: | G8: ='Start Here'!J8 -> 0 | M8: ='Start Here'!B81 -> 1 | N8: ='Start Here'!D81 -> R2LS | O8: ='Start Here'!E81 -> 0 | P8: ='Start Here'!F81 -> 0 | Q8: ='Start Here'!G81 -> 0 | R8: ='Start Here'!H81 -> Configuration 1 | S8: ='Start Here'!I81 ->  | T8: ='Start Here'!J81 ->  | U8: ='Start Here'!K81 ->  | V8: ='Start Here'!L81 ->  | W8: ='Start Here'!M81 -> 
E9: ='Start Here'!H9 -> Date: | G9: ='Start Here'!J9 -> 00:00:00 | M9: ='Start Here'!B82 ->  | N9: ='Start Here'!D82 ->  | O9: ='Start Here'!E82 ->  | P9: ='Start Here'!F82 ->  | Q9: ='Start Here'!G82 ->  | R9: ='Start Here'!H82 -> Configuration 1 | S9: ='Start Here'!I82 ->  | T9: ='Start Here'!J82 ->  | U9: ='Start Here'!K82 ->  | V9: ='Start Here'!L82 ->  | W9: ='Start Here'!M82 -> 
D10: ='Start Here'!G10 -> Segment Limits (Limit up to 15 miles in length): | M10: ='Start Here'!B83 ->  | N10: ='Start Here'!D83 ->  | O10: ='Start Here'!E83 ->  | P10: ='Start Here'!F83 ->  | Q10: ='Start Here'!G83 ->  | R10: ='Start Here'!H83 -> Configuration 1 | S10: ='Start Here'!I83 ->  | T10: ='Start Here'!J83 ->  | U10: ='Start Here'!K83 ->  | V10: ='Start Here'!L83 ->  | W10: ='Start Here'!M83 -> 
E11: ='Start Here'!H11 -> Road Name: | G11: ='Start Here'!J11 -> 0 | M11: ='Start Here'!B84 ->  | N11: ='Start Here'!D84 ->  | O11: ='Start Here'!E84 ->  | P11: ='Start Here'!F84 ->  | Q11: ='Start Here'!G84 ->  | R11: ='Start Here'!H84 -> Configuration 1 | S11: ='Start Here'!I84 ->  | T11: ='Start Here'!J84 ->  | U11: ='Start Here'!K84 ->  | V11: ='Start Here'!L84 ->  | W11: ='Start Here'!M84 -> 
E12: ='Start Here'!H12 -> Category (4R, 3R) -- Future Enhancement | G12: ='Start Here'!J12 -> 0 | M12: ='Start Here'!B85 ->  | N12: ='Start Here'!D85 ->  | O12: ='Start Here'!E85 ->  | P12: ='Start Here'!F85 ->  | Q12: ='Start Here'!G85 ->  | R12: ='Start Here'!H85 -> Configuration 1 | S12: ='Start Here'!I85 ->  | T12: ='Start Here'!J85 ->  | U12: ='Start Here'!K85 ->  | V12: ='Start Here'!L85 ->  | W12: ='Start Here'!M85 -> 
M13: ='Start Here'!B86 ->  | N13: ='Start Here'!D86 ->  | O13: ='Start Here'!E86 ->  | P13: ='Start Here'!F86 ->  | Q13: ='Start Here'!G86 ->  | R13: ='Start Here'!H86 -> Configuration 1 | S13: ='Start Here'!I86 ->  | T13: ='Start Here'!J86 ->  | U13: ='Start Here'!K86 ->  | V13: ='Start Here'!L86 ->  | W13: ='Start Here'!M86 -> 
E14: ='Start Here'!H13 -> Segment Beginning Mile Point (BMP): | G14: ='Start Here'!J13 -> 0 | M14: ='Start Here'!B87 ->  | N14: ='Start Here'!D87 ->  | O14: ='Start Here'!E87 ->  | P14: ='Start Here'!F87 ->  | Q14: ='Start Here'!G87 ->  | R14: ='Start Here'!H87 -> Configuration 1 | S14: ='Start Here'!I87 ->  | T14: ='Start Here'!J87 ->  | U14: ='Start Here'!K87 ->  | V14: ='Start Here'!L87 ->  | W14: ='Start Here'!M87 -> 
E15: ='Start Here'!H14 -> Segment Ending Mile Point (EMP): | G15: ='Start Here'!J14 -> 0 | M15: ='Start Here'!B88 ->  | N15: ='Start Here'!D88 ->  | O15: ='Start Here'!E88 ->  | P15: ='Start Here'!F88 ->  | Q15: ='Start Here'!G88 ->  | R15: ='Start Here'!H88 -> Configuration 1 | S15: ='Start Here'!I88 ->  | T15: ='Start Here'!J88 ->  | U15: ='Start Here'!K88 ->  | V15: ='Start Here'!L88 ->  | W15: ='Start Here'!M88 -> 
G16: ='Start Here'!J15 -> 0 | M16: ='Start Here'!B89 ->  | N16: ='Start Here'!D89 ->  | O16: ='Start Here'!E89 ->  | P16: ='Start Here'!F89 ->  | Q16: ='Start Here'!G89 ->  | R16: ='Start Here'!H89 -> Configuration 1 | S16: ='Start Here'!I89 ->  | T16: ='Start Here'!J89 ->  | U16: ='Start Here'!K89 ->  | V16: ='Start Here'!L89 ->  | W16: ='Start Here'!M89 -> 
D17: ='Start Here'!G16 -> Calculated Total Segment Length (miles): | M17: ='Start Here'!B90 ->  | N17: ='Start Here'!D90 ->  | O17: ='Start Here'!E90 ->  | P17: ='Start Here'!F90 ->  | Q17: ='Start Here'!G90 ->  | R17: ='Start Here'!H90 -> Configuration 1 | S17: ='Start Here'!I90 ->  | T17: ='Start Here'!J90 ->  | U17: ='Start Here'!K90 ->  | V17: ='Start Here'!L90 ->  | W17: ='Start Here'!M90 -> 
M18: ='Start Here'!B91 ->  | N18: ='Start Here'!D91 ->  | O18: ='Start Here'!E91 ->  | P18: ='Start Here'!F91 ->  | Q18: ='Start Here'!G91 ->  | R18: ='Start Here'!H91 -> Configuration 1 | S18: ='Start Here'!I91 ->  | T18: ='Start Here'!J91 ->  | U18: ='Start Here'!K91 ->  | V18: ='Start Here'!L91 ->  | W18: ='Start Here'!M91 -> 
M19: ='Start Here'!B92 ->  | N19: ='Start Here'!D92 ->  | O19: ='Start Here'!E92 ->  | P19: ='Start Here'!F92 ->  | Q19: ='Start Here'!G92 ->  | R19: ='Start Here'!H92 -> Configuration 1 | S19: ='Start Here'!I92 ->  | T19: ='Start Here'!J92 ->  | U19: ='Start Here'!K92 ->  | V19: ='Start Here'!L92 ->  | W19: ='Start Here'!M92 -> 
E20: FUTURE FUNDED PROJECT | F20: =IF(H103,"Yes","No") -> No | M20: ='Start Here'!B93 ->  | N20: ='Start Here'!D93 ->  | O20: ='Start Here'!E93 ->  | P20: ='Start Here'!F93 ->  | Q20: ='Start Here'!G93 ->  | R20: ='Start Here'!H93 -> Configuration 1 | S20: ='Start Here'!I93 ->  | T20: ='Start Here'!J93 ->  | U20: ='Start Here'!K93 ->  | V20: ='Start Here'!L93 ->  | W20: ='Start Here'!M93 -> 
M21: ='Start Here'!B94 ->  | N21: ='Start Here'!D94 ->  | O21: ='Start Here'!E94 ->  | P21: ='Start Here'!F94 ->  | Q21: ='Start Here'!G94 ->  | R21: ='Start Here'!H94 -> Configuration 1 | S21: ='Start Here'!I94 ->  | T21: ='Start Here'!J94 ->  | U21: ='Start Here'!K94 ->  | V21: ='Start Here'!L94 ->  | W21: ='Start Here'!M94 -> 
E22: FUTURE UNFUNDED PROJECT IDENTIFIED | F22: =IF(H104,"Yes","No") -> No | M22: ='Start Here'!B95 ->  | N22: ='Start Here'!D95 ->  | O22: ='Start Here'!E95 ->  | P22: ='Start Here'!F95 ->  | Q22: ='Start Here'!G95 ->  | R22: ='Start Here'!H95 -> Configuration 1 | S22: ='Start Here'!I95 ->  | T22: ='Start Here'!J95 ->  | U22: ='Start Here'!K95 ->  | V22: ='Start Here'!L95 ->  | W22: ='Start Here'!M95 -> 
M23: ='Start Here'!$C$96 -> C:\Users\l-wu\Documents\GitHub\RW_Intersection_Excel_Tools0\Documents\[Rural TwoLane v3.3.xlsm]Reporting | N23: ='Start Here'!D96 -> R2LS | O23: ='Start Here'!E96 -> 0 | P23: ='Start Here'!F96 -> 0 | Q23: ='Start Here'!G96 -> 0 | R23: ='Start Here'!H96 -> Weighted Total Score: | S23: ='Start Here'!I96 ->  | T23: ='Start Here'!J96 ->  | U23: ='Start Here'!K96 ->  | V23: ='Start Here'!L96 ->  | W23: ='Start Here'!M96 -> 
A28: ELEMENTS INCREASING SAFETY | L28: COMMENTS ON PRIMARY CONSTRAINTS | S28: ESTIMATED ADDITIONAL COST TO ACHIEVE OPTIMAL
S43: ESTIMATED ADDITIONAL TIME (mo). TO ACHIEVE OPTIMAL
S59: PRIMARY CONSTRAINTS TOWARD OPTIMAL SAFETY SCORE
T61: A. FUNDING ELEGIBILITY / SCOPE | W61: =IF(X100,"Yes","No") -> No
T62: B. SCHEDULE / DELIVERY TIMEFRAME | W62: =IF(X101,"Yes","No") -> No
T63: C. LOCAL ROW / UTILITIES | W63: No
T64: D. ROW / UTILITIES | W64: No
T65: E. ENVIRONMENTAL ISSUES | W65: No
T66: F. RAILROAD IMPACT | W66: No
X100: FALSE
X101: FALSE
X102: FALSE
H103: FALSE | X103: FALSE
H104: FALSE | X104: FALSE
X105: FALSE

Sheet Reporting
B2: Please complete all yellow fields
B3: Grey fields are automatically populated
B5: CCSJ
B6: DIST
B7: Total Project Length
B9: ='Start Here'!G6 -> General Information | F9: ='Start Here'!$B$79 -> Segment Number | G9: ='Start Here'!D79 -> Type | H9: ='Start Here'!E79 -> Boundary Conditions | K9: Configuration | L9: ='Start Here'!I79 -> Segment Safety Score
B10: ='Start Here'!H7 -> Analyst: | C10: ='Start Here'!J7 -> 0 | H10: ='Start Here'!E80 -> BMP | I10: ='Start Here'!F80 -> EMP | J10: ='Start Here'!G80 -> Length | L10: ='Start Here'!I80 -> Existing | M10: ='Start Here'!J80 -> Standard | N10: ='Start Here'!K80 -> Design 1 | O10: ='Start Here'!L80 -> Design 2 | P10: ='Start Here'!M80 -> Optimal
B11: ='Start Here'!H8 -> Agency / Company / District: | C11: ='Start Here'!J8 -> 0 | F11: ='Start Here'!B81 -> 1 | G11: ='Start Here'!D81 -> R2LS | H11: ='Start Here'!E81 -> 0 | I11: ='Start Here'!F81 -> 0 | J11: ='Start Here'!G81 -> 0 | K11: ='Start Here'!H81 -> Configuration 1 | L11: ='Start Here'!I81 ->  | M11: ='Start Here'!J81 ->  | N11: ='Start Here'!K81 ->  | O11: ='Start Here'!L81 ->  | P11: ='Start Here'!M81 -> 
B12: ='Start Here'!H9 -> Date: | C12: ='Start Here'!J9 -> 00:00:00 | F12: ='Start Here'!B82 ->  | G12: ='Start Here'!D82 ->  | H12: ='Start Here'!E82 ->  | I12: ='Start Here'!F82 ->  | J12: ='Start Here'!G82 ->  | K12: ='Start Here'!H82 -> Configuration 1 | L12: ='Start Here'!I82 ->  | M12: ='Start Here'!J82 ->  | N12: ='Start Here'!K82 ->  | O12: ='Start Here'!L82 ->  | P12: ='Start Here'!M82 -> 
B13: ='Start Here'!G10 -> Segment Limits (Limit up to 15 miles in length): | F13: ='Start Here'!B83 ->  | G13: ='Start Here'!D83 ->  | H13: ='Start Here'!E83 ->  | I13: ='Start Here'!F83 ->  | J13: ='Start Here'!G83 ->  | K13: ='Start Here'!H83 -> Configuration 1 | L13: ='Start Here'!I83 ->  | M13: ='Start Here'!J83 ->  | N13: ='Start Here'!K83 ->  | O13: ='Start Here'!L83 ->  | P13: ='Start Here'!M83 -> 
B14: ='Start Here'!H11 -> Road Name: | C14: ='Start Here'!J11 -> 0 | F14: ='Start Here'!B84 ->  | G14: ='Start Here'!D84 ->  | H14: ='Start Here'!E84 ->  | I14: ='Start Here'!F84 ->  | J14: ='Start Here'!G84 ->  | K14: ='Start Here'!H84 -> Configuration 1 | L14: ='Start Here'!I84 ->  | M14: ='Start Here'!J84 ->  | N14: ='Start Here'!K84 ->  | O14: ='Start Here'!L84 ->  | P14: ='Start Here'!M84 -> 
B15: ='Start Here'!H12 -> Category (4R, 3R) -- Future Enhancement | C15: ='Start Here'!J12 -> 0 | F15: ='Start Here'!B85 ->  | G15: ='Start Here'!D85 ->  | H15: ='Start Here'!E85 ->  | I15: ='Start Here'!F85 ->  | J15: ='Start Here'!G85 ->  | K15: ='Start Here'!H85 -> Configuration 1 | L15: ='Start Here'!I85 ->  | M15: ='Start Here'!J85 ->  | N15: ='Start Here'!K85 ->  | O15: ='Start Here'!L85 ->  | P15: ='Start Here'!M85 -> 
B16: ='Start Here'!H13 -> Segment Beginning Mile Point (BMP): | C16: ='Start Here'!J13 -> 0 | F16: ='Start Here'!B86 ->  | G16: ='Start Here'!D86 ->  | H16: ='Start Here'!E86 ->  | I16: ='Start Here'!F86 ->  | J16: ='Start Here'!G86 ->  | K16: ='Start Here'!H86 -> Configuration 1 | L16: ='Start Here'!I86 ->  | M16: ='Start Here'!J86 ->  | N16: ='Start Here'!K86 ->  | O16: ='Start Here'!L86 ->  | P16: ='Start Here'!M86 -> 
B17: ='Start Here'!H14 -> Segment Ending Mile Point (EMP): | C17: ='Start Here'!J14 -> 0 | F17: ='Start Here'!B87 ->  | G17: ='Start Here'!D87 ->  | H17: ='Start Here'!E87 ->  | I17: ='Start Here'!F87 ->  | J17: ='Start Here'!G87 ->  | K17: ='Start Here'!H87 -> Configuration 1 | L17: ='Start Here'!I87 ->  | M17: ='Start Here'!J87 ->  | N17: ='Start Here'!K87 ->  | O17: ='Start Here'!L87 ->  | P17: ='Start Here'!M87 -> 
B18: ='Start Here'!G16 -> Calculated Total Segment Length (miles): | C18: ='Start Here'!J15 -> 0 | F18: ='Start Here'!B88 ->  | G18: ='Start Here'!D88 ->  | H18: ='Start Here'!E88 ->  | I18: ='Start Here'!F88 ->  | J18: ='Start Here'!G88 ->  | K18: ='Start Here'!H88 -> Configuration 1 | L18: ='Start Here'!I88 ->  | M18: ='Start Here'!J88 ->  | N18: ='Start Here'!K88 ->  | O18: ='Start Here'!L88 ->  | P18: ='Start Here'!M88 -> 
F19: ='Start Here'!B89 ->  | G19: ='Start Here'!D89 ->  | H19: ='Start Here'!E89 ->  | I19: ='Start Here'!F89 ->  | J19: ='Start Here'!G89 ->  | K19: ='Start Here'!H89 -> Configuration 1 | L19: ='Start Here'!I89 ->  | M19: ='Start Here'!J89 ->  | N19: ='Start Here'!K89 ->  | O19: ='Start Here'!L89 ->  | P19: ='Start Here'!M89 -> 
F20: ='Start Here'!B90 ->  | G20: ='Start Here'!D90 ->  | H20: ='Start Here'!E90 ->  | I20: ='Start Here'!F90 ->  | J20: ='Start Here'!G90 ->  | K20: ='Start Here'!H90 -> Configuration 1 | L20: ='Start Here'!I90 ->  | M20: ='Start Here'!J90 ->  | N20: ='Start Here'!K90 ->  | O20: ='Start Here'!L90 ->  | P20: ='Start Here'!M90 -> 
F21: ='Start Here'!B91 ->  | G21: ='Start Here'!D91 ->  | H21: ='Start Here'!E91 ->  | I21: ='Start Here'!F91 ->  | J21: ='Start Here'!G91 ->  | K21: ='Start Here'!H91 -> Configuration 1 | L21: ='Start Here'!I91 ->  | M21: ='Start Here'!J91 ->  | N21: ='Start Here'!K91 ->  | O21: ='Start Here'!L91 ->  | P21: ='Start Here'!M91 -> 
F22: ='Start Here'!B92 ->  | G22: ='Start Here'!D92 ->  | H22: ='Start Here'!E92 ->  | I22: ='Start Here'!F92 ->  | J22: ='Start Here'!G92 ->  | K22: ='Start Here'!H92 -> Configuration 1 | L22: ='Start Here'!I92 ->  | M22: ='Start Here'!J92 ->  | N22: ='Start Here'!K92 ->  | O22: ='Start Here'!L92 ->  | P22: ='Start Here'!M92 -> 
F23: ='Start Here'!B93 ->  | G23: ='Start Here'!D93 ->  | H23: ='Start Here'!E93 ->  | I23: ='Start Here'!F93 ->  | J23: ='Start Here'!G93 ->  | K23: ='Start Here'!H93 -> Configuration 1 | L23: ='Start Here'!I93 ->  | M23: ='Start Here'!J93 ->  | N23: ='Start Here'!K93 ->  | O23: ='Start Here'!L93 ->  | P23: ='Start Here'!M93 -> 
F24: ='Start Here'!B94 ->  | G24: ='Start Here'!D94 ->  | H24: ='Start Here'!E94 ->  | I24: ='Start Here'!F94 ->  | J24: ='Start Here'!G94 ->  | K24: ='Start Here'!H94 -> Configuration 1 | L24: ='Start Here'!I94 ->  | M24: ='Start Here'!J94 ->  | N24: ='Start Here'!K94 ->  | O24: ='Start Here'!L94 ->  | P24: ='Start Here'!M94 -> 
F25: ='Start Here'!B95 ->  | G25: ='Start Here'!D95 ->  | H25: ='Start Here'!E95 ->  | I25: ='Start Here'!F95 ->  | J25: ='Start Here'!G95 ->  | K25: ='Start Here'!H95 -> Configuration 1 | L25: ='Start Here'!I95 ->  | M25: ='Start Here'!J95 ->  | N25: ='Start Here'!K95 ->  | O25: ='Start Here'!L95 ->  | P25: ='Start Here'!M95 -> 
F26: ='Start Here'!$C$96 -> C:\Users\l-wu\Documents\GitHub\RW_Intersection_Excel_Tools0\Documents\[Rural TwoLane v3.3.xlsm]Reporting | G26: ='Start Here'!D96 -> R2LS | H26: ='Start Here'!E96 -> 0 | I26: ='Start Here'!F96 -> 0 | J26: ='Start Here'!G96 -> 0 | K26: ='Start Here'!H96 -> Weighted Total Score: | L26: ='Start Here'!I96 ->  | M26: ='Start Here'!J96 ->  | N26: ='Start Here'!K96 ->  | O26: ='Start Here'!L96 ->  | P26: ='Start Here'!M96 -> 
B28: Selected Design | C28: Design 1
B29: Initial Score | C29: =L26 -> 
B30: Final Score | C30: =IFERROR(HLOOKUP(C28,M10:P26,17,FALSE),"") -> 
B31: Safety Score Increase | C31: =IFERROR(C30-C29,"") -> 
B33: ELEMENTS INCREASING SAFETY
B36: KEY LEMENTS REQUIRED TO MATCH OPTIMAL SCORE
B39: PRIMARY CONSTRAINTS TOWARD OPTIMAL SAFETY SCORE | E39: Options - Hide
B40: A. FUNDING ELEGIBILITY / SCOPE | C40: =IF(I91,"Yes","No") -> No | E40: Yes | F40: Check the boxes for Yes
B41: B. SCHEDULE / DELIVERY TIMEFRAME | C41: =IF(I92,"Yes","No") -> No | E41: No
B42: C. LOCAL ROW / UTILITIES | C42: No
B43: D. ROW / UTILITIES | C43: No
B44: E. ENVIRONMENTAL ISSUES | C44: No
B45: F. RAILROAD IMPACT | C45: No
B47: PLANNED PROJECTS/PROGRAMS DEALING WITH KEY ELEMENTS TO MATCH OPTIMAL
B48: FUTURE FUNDED PROJECT | C48: =IF(I98,"Yes","No") -> No
B49: FUTURE UNFUNDED PROJECT IDENTIFIED | C49: =IF(I99,"Yes","No") -> No
B51: ESTIMATED ADDITIONAL COST TO ACHIEVE OPTIMAL
B54: ESTIMATED ADDITIONAL TIME (mo). TO ACHIEVE OPTIMAL
B57: COMMENTS ON PRIMARY CONSTRAINTS
I91: FALSE
I92: FALSE
I93: FALSE
I94: FALSE
I95: FALSE
I96: FALSE
I98: FALSE
I99: FALSE
I100: FALSE

Sheet Configuration 1
G2: Preferred Schematic View to Display | I2: Standard | V2: NOTES:
B3: CHARACTERISTICS TO CONSIDER FOR ANALYSIS | V3: ELEMENTS INCREASING SAFETY | AE3: COMMENTS ON PRIMARY CONSTRAINTS
B4: INPUT INSTRUCTIONS | G4: Relative to | I4: Existing
B5: Blue Boxes -- Select from pulldown options | D5: Select from Pulldown
B6: Yellow Boxes -- Type input information into box | D6: Type Input Value
B7: Rural Two-Lane Road Segment -- Safety Score Input | CF7: Unadjusted Marginal Safety
B8: General Information: | F8: General Site Features | H8: =I315 & " Missing Features and Curves" -> 9 Missing Features and Curves | CF8: =I2&" relative to " &I4 -> Standard relative to Existing
C9: Analyst: | D9: =+'Start Here'!J7 -> 0 | F9: Location
C10: Agency or Company: | D10: =+'Start Here'!J8 -> 0 | F10: Design Speed (mph)
C11: Date: | D11: =+'Start Here'!J9 -> 00:00:00 | F11: Posted Speed (mph)
C12: Description: | F12: E max (%)
F13: Design Year AADT (vehicles per day)
F14: Dist. from Centerline to Left ROW (feet)
F15: Dist. from Centerline to Right ROW (feet)
B17: Warning:
C18: =+IF(+I11>I10,"Posted speed exceeds design speed. Optimal safety will only be achieved if design speed exceeds posted speed. The Safety Assessment Score is based on the higher of the two speed values.","No warnings identified") -> No warnings identified
P19: ="Unadjusted Marginal Safety of elements in "&I2&" from Design Standards" -> Unadjusted Marginal Safety of elements in Standard from Design Standards | DB19: =COUNTIF(DB23:DB41,DB20) -> 1
DB20: =VLOOKUP(0,CZ23:DB41,3,) -> 10.01
D21: Fill all elements | F21: To enter notes, use boxes to the right of the vortex
B22: =+Construction!$I$8&" Total Available Points" -> 40 Total Available Points | D22: =D249 & " Missing Elements" -> 18 Missing Elements | F22: =F249 & " Missing Elements" -> 18 Missing Elements | G22: =G249 & " Missing Elements" -> 18 Missing Elements | CX22: Ranked element | CY22: CRF | CZ22: abs | DA22: Re-rank | DB22: Rank | DC22: Ranked CRF | DD22: Element | DE22: New Element | DF22: crf.abs | DG22: rank | DH22: Sorted Element | DI22: Sorted CRF
B23: Geometric Design Elements | D23: Existing | E23: Standard | F23: Design 1 | G23: Design 2 | H23: ="Marginal Safety for "&$I$2&" (compared to " & $I$4 & ")" -> Marginal Safety for Standard (compared to Existing) | I23: Optimal | CX23: =IF(CY23=0,"",DB23&". "&DD23) ->  | CY23: =H24 -> 0 | CZ23: =ABS(CY23) -> 0 | DA23: =RANK(DB23,$DB$23:$DB$41,1) -> 10 | DB23: =_xlfn.RANK.EQ(CZ23,$CZ$23:$CZ$41)+DG23/100 -> 10.01 | DC23: =CY23 -> 0 | DD23: =IF(ROUND(DF23,2)=0,"",C24) ->  | DE23: =DD23 ->  | DF23: =CZ23 -> 0 | DG23: 1 | DH23: =IFERROR(IF(IFERROR(VLOOKUP(DG23,$DA$23:$DF$41,4,)&", "&CY23=0,""),"",IFERROR(VLOOKUP(DG23,$DA$23:$DE$41,4,),"")),"") -> TWLTL (two-way left-turn lane) | DI23: =IFERROR(IF(IFERROR(VLOOKUP(DG23,$DA$23:$DF$41,3,)&", "&CY23=0,""),"",IFERROR(VLOOKUP(DG23,$DA$23:$DE$41,3,),"")),"") -> -0.4084507042
C24: Lane Width (feet) | E24: 12 | H24: =M100 -> 0 | I24: 12 | CX24: 5.02. Shoulder Width (feet) | CY24: =H25 -> 0.1550387597 | CZ24: 0.1550387597 | DA24: =RANK(DB24,$DB$23:$DB$41,1) -> 5 | DB24: =_xlfn.RANK.EQ(CZ24,$CZ$23:$CZ$41)+DG24/100 -> 5.02 | DC24: =CY24 -> 0.1550387597 | DD24: =IF(ROUND(DF24,2)=0,"",C25) -> Shoulder Width (feet) | DE24: =DD24 -> Shoulder Width (feet) | DF24: 0.1550387597 | DG24: 2 | DH24: Pavement Friction (skid number) *** | DI24: =IFERROR(IF(IFERROR(VLOOKUP(DG24,$DA$23:$DF$41,3,)&", "&CY24=0,""),"",IFERROR(VLOOKUP(DG24,$DA$23:$DE$41,3,),"")),"") -> 0.2843095602
C25: Shoulder Width (feet) | E25: =IF('Start Here'!$J$12="4R",8,4) -> 4 | H25: =M101 -> 0.1550387597 | I25: 10 | CY25: =H29 -> 0 | CZ25: 0 | DA25: 11 | DB25: 10.03 | DC25: 0 | DD25: =IF(ROUND(DF25,2)=0,"","Hz and Vt Alignment") ->  | DF25: 0 | DG25: 3 | DH25: Driveway Density (driveways per mile) | DI25: -0.223881142
C26: Cross-slope or Superelevation (%) | E26: =IF($I$12=6,IFERROR(VLOOKUP(E29,$C$382:$D$402,2,TRUE),6),IFERROR(VLOOKUP(E29,$C$409:$D$439,2,TRUE),8)) -> 8 | I26: =I12 -> 0 | CX26: 1.04. TWLTL (two-way left-turn lane) | CY26: =H43 -> -0.4084507042 | CZ26: 0.4084507042 | DA26: 1 | DB26: 1.04 | DC26: -0.4084507042 | DD26: =IF(ROUND(DF26,2)=0,"",C43) -> TWLTL (two-way left-turn lane) | DE26: TWLTL (two-way left-turn lane) | DF26: 0.4084507042 | DG26: 4 | DH26: Centerline Rumble Strips | DI26: -0.1627906977
C27: Horizontal Curve Present? | D27: -- | E27: -- | F27: -- | G27: -- | I27: -- | CY27: =H44 -> 0 | CZ27: 0 | DA27: 12 | DB27: 10.05 | DC27: 0 | DD27: =IF(ROUND(DF27,2)=0,"",C44) ->  | DF27: 0 | DG27: 5 | DH27: Shoulder Width (feet) | DI27: 0.1550387597
C28: Horizontal Curve Data for Controlling Element: | D28: -- | E28: -- | F28: -- | G28: -- | I28: -- | CY28: =H52 -> 0 | CZ28: 0 | DA28: 13 | DB28: 10.06 | DC28: 0 | DD28: =IF(ROUND(DF28,2)=0,"",C52) ->  | DF28: 0 | DG28: 6 | DH28: Edgeline Pavement Markings or Profile Markings | DI28: 0.1382411869
C29: Radius (feet) | E29: =IF(MAX($I$10,$I$11)<45,590,IF($I$12=6,VLOOKUP(MAX($I$10,$I$11),Construction!$B$29:$D$36,2,TRUE),VLOOKUP(MAX($I$10,$I$11),Construction!$G$29:$I$36,2,TRUE))) -> 590 | H29: =M140 -> 0 | I29: =IF(MAX($I$10,$I$11)<45,590,IF($I$12=6,VLOOKUP(MAX($I$10,$I$11),Construction!$B$45:$C$52,2,TRUE),VLOOKUP(MAX($I$10,$I$11),Construction!$G$45:$H$52,2,TRUE))) -> 590 | CY29: 0 | CZ29: 0 | DA29: 14 | DB29: 10.07 | DC29: 0 | DF29: 0 | DG29: 7 | DH29: Lateral Clearance to obstruction (ft) | DI29: 0.09030716297
C30: Length of Horizontal Curve (feet) | E30: =IF(D31="", "", E29*E31/57.296) ->  | I30: =I29*I31/57.296 -> 3758.55208 | CY30: 0 | CZ30: 0 | DA30: 15 | DB30: 10.08 | DC30: 0 | DF30: 0 | DG30: 8 | DH30: SafetyEdge | DI30: -0.02818899192
C31: Calculated Deflection Angle ∆ | D31: =IF(OR(ISBLANK(D29),ISBLANK(D30),$B$27="No",ISBLANK($B$27)),"",ROUND(D30/D29*57.296,1)) ->  | E31: =IF(ISBLANK(D31), "",D31) ->  | F31: =IF(OR(ISBLANK(F29),ISBLANK(F30),$B$27="No",ISBLANK($B$27)),"",ROUND(F30/F29*57.296,1)) ->  | G31: =IF(OR(ISBLANK(G29),ISBLANK(G30),$B$27="No",ISBLANK($B$27)),"",ROUND(G30/G29*57.296,1)) ->  | I31: =MIN(D31,IF(F33=INDEX(HCurveChange,1,0), F31, 365),IF(G33=INDEX(HCurveChange,1,0), G31, 365)) -> 365 | CX31: 6.09. Edgeline Pavement Markings or Profile Markings | CY31: 0.1382411869 | CZ31: 0.1382411869 | DA31: 6 | DB31: 6.09 | DC31: 0.1382411869 | DD31: Edgeline Pavement Markings or Profile Markings | DE31: Edgeline Pavement Markings or Profile Markings | DF31: 0.1382411869 | DG31: 9 | DH31: Lighting | DI31: -0.02349908153
F32: ∆ has changed. Are you changing the ∆? | G32: ∆ has changed. Are you changing the ∆? | CY32: 0 | CZ32: =ABS(CY32) -> 0 | DA32: 16 | DB32: 10.1 | DC32: 0 | DE32: =DD32 ->  | DF32: 0 | DG32: 10 | DI32: 0
CX33: 4.11. Centerline Rumble Strips | CY33: -0.1627906977 | CZ33: 0.1627906977 | DA33: 4 | DB33: 4.11 | DC33: -0.1627906977 | DD33: Centerline Rumble Strips | DE33: Centerline Rumble Strips | DF33: 0.1627906977 | DG33: 11 | DI33: 0
C34: Vertical Curve Present? | D34: -- | E34: -- | F34: -- | G34: -- | I34: =E34 -> -- | CX34: 3.12. Driveway Density (driveways per mile) | CY34: -0.223881142 | CZ34: 0.223881142 | DA34: 3 | DB34: 3.12 | DC34: -0.223881142 | DD34: =IF(DF34=0,"",C58) -> Driveway Density (driveways per mile) | DE34: Driveway Density (driveways per mile) | DF34: 0.223881142 | DG34: 12 | DI34: 0
C35: Vertical Curve Data for Controlling Element: | D35: -- | E35: -- | F35: -- | G35: -- | I35: -- | CX35: 9.13. Lighting | CY35: -0.02349908153 | CZ35: 0.02349908153 | DA35: 9 | DB35: 9.13 | DC35: -0.02349908153 | DD35: =IF(DF35=0,"",C59) -> Lighting | DE35: Lighting | DF35: 0.02349908153 | DG35: 13 | DI35: 0
C36: Approach (Entry) Grade, G1 (%) | E36: =IF(ISBLANK(D36),"", D36) ->  | I36: =IF(B34="Yes",I227,I237) ->  | CX36: 2.14. Pavement Friction (skid number) *** | CY36: 0.2843095602 | CZ36: 0.2843095602 | DA36: 2 | DB36: 2.14 | DC36: 0.2843095602 | DD36: =IF(DF36=0,"",C60) -> Pavement Friction (skid number) *** | DE36: Pavement Friction (skid number) *** | DF36: 0.2843095602 | DG36: 14 | DI36: 0
C37: Departure (Exit) Grade, G2 (%) | E37: =IF(ISBLANK(D37),"", D37) ->  | I37: =IF($B$34="Yes",I228,"") ->  | CY37: =H72 -> 0 | CZ37: 0 | DA37: 17 | DB37: 10.15 | DC37: 0 | DD37: =IF(DF37=0,"",C72) ->  | DF37: 0 | DG37: 15 | DI37: 0
C38: Length (feet) | E38: =IF(AND($B$34="Yes", D39<>""), ABS(E36-E37)*D39, "") ->  | I38: =IF(AND($B$34="Yes",I36<>"",I37<>"", NOT(ISBLANK($I$10)), NOT(ISBLANK($I$11))),ABS(I37-I36)*I39,"") ->  | CY38: =H73 -> 0 | CZ38: =ABS(CY38) -> 0 | DA38: 18 | DB38: 10.16 | DC38: 0 | DD38: =IF(DF38=0,"",C73) ->  | DF38: 0 | DG38: 16 | DI38: 0
C39: Calculated Rate of Change, K (ft/ft) | D39: =IF(OR($B$34="No",ISBLANK($B$34), ISBLANK(D36), ISBLANK(D37),ISBLANK(D38), D36=D37), "", ROUND(D38/(ABS(D37-D36)),1)) ->  | E39: =IF(AND($B$34="Yes", NOT(ISBLANK($I$10)), NOT(ISBLANK($I$11)), D39<>""), IF($E$42="Crest", VLOOKUP(MAX($I$10,$I$11),Construction!$B$159:$D$171,2,TRUE), VLOOKUP(MAX($I$10,$I$11),Construction!$B$159:$D$171,3,TRUE)), "") ->  | F39: =IF(AND($B$34="Yes", SUM(F263:F265)=0),ROUND(F38/(ABS(F37-F36)),1),"") ->  | G39: =IF(AND($B$34="Yes", SUM(G263:G265)=0),ROUND(G38/(ABS(G37-G36)),1),"") ->  | I39: =IF(OR($B$34<>"Yes", ISBLANK($I$10), ISBLANK($I$11), $I$36="", $I$37="", $I$42="--", ISBLANK($I$42)),"",IF($I$42="Crest",VLOOKUP(MAX($I$10,$I$11),Construction!$B$179:$D$191,2,TRUE),VLOOKUP(MAX($I$10,$I$11),Construction!$B$179:$D$191,3,TRUE))) ->  | CX39: 8.17. SafetyEdge | CY39: =H74 -> -0.02818899192 | CZ39: =ABS(CY39) -> 0.02818899192 | DA39: 8 | DB39: 8.17 | DC39: -0.02818899192 | DD39: =IF(DF39=0,"",C74) -> SafetyEdge | DE39: SafetyEdge | DF39: 0.02818899192 | DG39: 17 | DI39: 0
F40: Are you changing the geometry? | G40: Are you changing the geometry? | CX40: 7.18. Lateral Clearance to obstruction (ft) | CY40: =H75 -> 0.09030716297 | CZ40: =ABS(CY40) -> 0.09030716297 | DA40: 7 | DB40: 7.18 | DC40: 0.09030716297 | DD40: =IF(DF40=0,"",C75) -> Lateral Clearance to obstruction (ft) | DE40: Lateral Clearance to obstruction (ft) | DF40: 0.09030716297 | DG40: 18 | DI40: 0
CY41: =H76 -> 0 | CZ41: =ABS(CY41) -> 0 | DA41: 19 | DB41: 10.19 | DC41: 0 | DD41: =IF(DF41=0,"",C76) ->  | DF41: 0 | DG41: 19 | DI41: 0
C42: Calculated Sag or Crest? | D42: =IF(AND($B$34="Yes", SUM(D263:D265)=0),IF(D36>D37,"Crest","Sag"),"--") -> -- | E42: =IF(AND($B$34="Yes", SUM(D263:D265)=0),IF(E36>E37,"Crest","Sag"),"--") -> -- | F42: =IF(AND($B$34="Yes", SUM(F263:F265)=0),IF(F36>F37,"Crest","Sag"),"--") -> -- | G42: =IF(AND($B$34="Yes", SUM(G263:G265)=0),IF(G36>G37,"Crest","Sag"),"--") -> -- | I42: =IF($B$34="Yes",IF(I36>I37,"Crest","Sag"),"--") -> --
C43: TWLTL (two-way left-turn lane) | E43: No | H43: =M108 -> -0.4084507042 | I43: =IF(OR($D$43="Yes", $F$43="Yes",$G$43="Yes"), "Yes", "No") -> No
C44: Passing Lane Type | E44: No Passing Lane | H44: =M109 -> 0 | I44: Super 2
C45: Geometric Design Element (Partial Score) | D45: =IF(OR(SUM(D251:D253,D256:D257,D263:D265,D270:D271)>0, ISERR(D125)),"",D125) ->  | E45: =IF(OR(SUM(E251:E253,E256:E257,E263:E265,E270:E271)>0, ISERR(E125)),"",E125) ->  | I45: =IF(OR(SUM(I251:I253,I256:I257,I263:I265,I270:I271)>0, ISERR(I125)),"",I125) -> 
C46: Total Safety Score | D46: =IF(OR(D$249>0, $I$315>0,ISERROR(D$201+D$171+D$125)),"",D$201+D$171+D$125) ->  | E46: =IF(OR(E$249>0, $I$315>0,ISERROR(E$201+E$171+E$125)),"",E$201+E$171+E$125) ->  | M46: SCHEMATIC REPRESENTING INPUT DATA FOR | U46: =IF($I$2="Existing","EXISTING CONFIGURATION",IF($I$2="Standard","STANDARD OPTION",IF($I$2="Design 1","DESIGN 1 OPTION",IF($I$2="Design 2","DESIGN 2 OPTION","OPTIMAL OPTION")))) -> STANDARD OPTION
L48: LT | AA48: RT
L49: R/W | AA49: R/W
B50: =+Construction!$I$9&" Total Available Points" -> 20 Total Available Points
B51: Traffic Elements | D51: Existing | E51: Standard | F51: Design 1 | G51: Design 2 | H51: =$H$23 -> Marginal Safety for Standard (compared to Existing) | I51: Optimal | O51: =+$I$14 -> 0 | W51: =+$I$15 -> 0
C52: Advance Static Curve Warning Signs | E52: No | H52: =M145 -> 0 | I52: Yes
C53: Chevron Signs on Horizontal Curves | E53: No | H53: =M146 -> 0 | I53: Yes | L53: =+O51-N53-Q53 -> -16 | N53: =IF(+$I$2="Existing",D25,IF($I$2="Standard",E25,IF($I$2="Design 1",F25,IF($I$2="Design 2",G25,I25)))) -> 4 | Q53: =IF(+$I$2="Existing",D24,IF($I$2="Standard",E24,IF($I$2="Design 1",F24,IF($I$2="Design 2",G24,I24)))) -> 12 | V53: =+Q53 -> 12 | Y53: =+N53 -> 4 | Z53: =+W51-V53-Y53 -> -16
C54: Post-Mounted Delineators | E54: No | H54: 0 | I54: Yes
C55: Edgeline Pavement Markings or Profile Markings | E55: Yes | H55: 0.1382411869 | I55: Yes
C56: Shoulder Rumble Strips | E56: Yes | H56: =M150 -> 0 | I56: Yes
C57: Centerline Rumble Strips | E57: No | H57: =M151 -> -0.1627906977 | I57: Yes
C58: Driveway Density (driveways per mile) | E58: 10 | H58: =M152 -> -0.223881142 | I58: 0
C59: Lighting | E59: No | H59: =M153 -> -0.02349908153 | I59: Yes | S59: Tangent X-Section
C60: Pavement Friction (skid number) *** | E60: 37 | H60: =M154 -> 0.2843095602 | I60: 54
C62: Traffic Control Element (Partial Score): | D62: =IF(ISERROR(D171), "", D171) -> 12 | E62: =IF(ISERROR(E171), "", E171) -> 14 | F62: =IF(ISERROR(F171), "", F171) ->  | G62: =IF(ISERROR(G171), "", G171) ->  | I62: =IF(ISERROR(I171), "", I171) -> 20
C63: Total Safety Score | D63: =IF(OR(D$249>0, $I$315>0,ISERROR(D$201+D$171+D$125)),"",D$201+D$171+D$125) ->  | E63: =IF(OR(E$249>0, $I$315>0,ISERROR(E$201+E$171+E$125)),"",E$201+E$171+E$125) -> 
C65: *** Pavement friction/skid numbers will not be subject to open records requests ***
S69: Curved X-Section
B70: =+Construction!$I$10&" Total Available Points" -> 40 Total Available Points
B71: Roadside Elements | D71: Existing | E71: Standard | F71: Design 1 | G71: Design 2 | H71: =$H$23 -> Marginal Safety for Standard (compared to Existing) | I71: Optimal
C72: Sideslope (Foreslope) | E72: 1V:4H | H72: =M180 -> 0 | I72: 1V:6H
C73: Backslope | E73: =E72 -> 1V:4H | H73: =M181 -> 0 | I73: 1V:4H
C74: SafetyEdge | E74: No | H74: =M182 -> -0.02818899192 | I74: Yes
C75: Lateral Clearance to obstruction (ft) | E75: 30 | H75: =M183 -> 0.09030716297 | I75: 40 | Q75: =IF($I$2="Existing","SCORE SUMMARY FOR EXISTING CONFIGURATION", IF($I$2="Standard","SCORE SUMMARY FOR STANDARD OPTION",IF($I$2="Design 1","SCORE SUMMARY FOR DESIGN 1 OPTION",IF($I$2="Design 2","SCORE SUMMARY FOR DESIGN 2 OPTION", "SCORE SUMMARY FOR OPTIMAL OPTION")))) -> SCORE SUMMARY FOR STANDARD OPTION
C76: Obstruction Type | E76: Other Fixed Object | H76: =M184 -> 0 | I76: None | Q76: GEOMETRIC DESIGN: | W76: =IF($I$2="Existing",D45,IF($I$2="Standard",E45,IF($I$2="Design 1",F45,IF($I$2="Design 2",G45,I45)))) -> 
C77: Roadside Element (Partial Score): | D77: =IF(ISERR(D201),"",D201) ->  | E77: =IF(ISERR(E201),"",E201) -> 27 | F77: =IF(ISERR(F201),"",F201) ->  | G77: =IF(ISERR(G201),"",G201) ->  | I77: =IF(ISERR(I201),"",I201) -> 40 | Q77: TRAFFIC CONTROL: | W77: =IF($I$2="Existing",D62,IF($I$2="Standard",E62,IF($I$2="Design 1",F62,IF($I$2="Design 2",G62,I62)))) -> 14
C78: Total Safety Score | D78: =IF(OR(D$249>0, $I$315>0,ISERROR(D$201+D$171+D$125)),"",D$201+D$171+D$125) ->  | E78: =IF(OR(E$249>0, $I$315>0,ISERROR(E$201+E$171+E$125)),"",E$201+E$171+E$125) ->  | Q78: ROADSIDE: | W78: =IF($I$2="Existing",D77,IF($I$2="Standard",E77,IF($I$2="Design 1",F77,IF($I$2="Design 2",G77,I77)))) -> 27
Q79: OVERALL SAFETY SCORE: | W79: =SUM(W76:X78) -> 41
B83: ADDITIONAL SIDESLOPE INFORMATION
C84: Distance to Slope Toe from Shoulder (ft) | E84: =D84 -> 0 | F84: =E84 -> 0 | G84: =F84 -> 0 | I84: =G84 -> 0
B85: Minimum foreslope feasible within current ROW | E85: =IF(OR(ISBLANK($D$84), ISERROR(E206)), "", "1V:"&E206&"H") ->  | F85: =IF(OR(ISBLANK($D$84), ISERROR(F206)), "", "1V:"&F206&"H") ->  | G85: =IF(OR(ISBLANK($D$84), ISERROR(G206)), "", "1V:"&G206&"H") ->  | I85: =IF(OR(ISBLANK($D$84), ISERROR(I206)), "", "1V:"&I206&"H") -> 
B86: Additional R/W needed on left side | E86: =IF(OR(ISBLANK($D$84), ISERROR(E210)),"", MAX(E210,E213)) ->  | F86: =IF(OR(ISBLANK($D$84), ISERROR(F210)), "", MAX(F210,F213)) ->  | G86: =IF(OR(ISBLANK($D$84), ISERROR(G210)),"", MAX(G210,G213)) ->  | I86: =IF(OR(ISBLANK($D$84), ISERROR(I210)),"", MAX(I210,I213)) -> 
B87: Additional R/W needed on right side | E87: =IF(OR(ISBLANK($D$84), ISERROR(E211)), "", MAX(E211,E214)) ->  | F87: =IF(OR(ISBLANK($D$84), ISERROR(F211)), "", MAX(F211,F214)) ->  | G87: =IF(OR(ISBLANK($D$84), ISERROR(G211)),"", MAX(G211,G214)) ->  | I87: =IF(OR(ISBLANK($D$84), ISERROR(I211)),"", MAX(I211,I214)) -> 
J95: =1-I100/E100 -> 0
J96: =1-I101/E101 -> 0.1743119266 | K96: For Plot
D97: =MAX(SUM(D103:D107)-5,$I$97) ->  | E97: =MAX(SUM(E103:E107)-5,$I$97) ->  | F97: =MAX(SUM(F103:F107)-5,$I$97) ->  | G97: =MAX(SUM(G103:G107)-5,$I$97) ->  | I97: =SUM(I103:I107)-5 ->  | J97: =1-I102/E102 -> 0 | K97: relative to | L97: Prefer
J98: =1-I103/E103 ->  | K98: =MATCH(K99,ModView,0) -> 1 | L98: =MATCH(L99,ModView,0) -> 2
B99: Geometric | K99: =I4 -> Existing | L99: =I2 -> Standard | M99: %
C100: LW CMF | D100: =VLOOKUP(+D24,Construction!$C$3:$D$9,2) ->  | E100: =VLOOKUP(+E24,Construction!$C$3:$D$9,2) -> 1 | F100: =VLOOKUP(+F24,Construction!$C$3:$D$9,2) ->  | G100: =VLOOKUP(+G24,Construction!$C$3:$D$9,2) ->  | H100: =H24 -> 0 | I100: =VLOOKUP(+I24,Construction!$C$3:$D$9,2) -> 1 | K100: =INDEX($D100:$I100,K$98) ->  | L100: =INDEX($D100:$I100,L$98) -> 1 | M100: =IF(ISERROR(1-L100/K100), 0, 1-L100/K100) -> 0
C101: SW CMF | D101: =VLOOKUP(D25,Construction!$C$13:D23,2) -> 1.29 | E101: =VLOOKUP(E25,Construction!$C$13:E23,2) -> 1.09 | F101: =VLOOKUP(F25,Construction!$C$13:F23,2) -> 1.29 | G101: =VLOOKUP(G25,Construction!$C$13:G23,2) -> 1.29 | H101: =IF($I$2="Existing",(1-D101/E101),(IF($I$2="Design 1",(1-F101/E101),(IF($I$2="Design 2",(1-G101/E101),(IF($I$2="Optimal",(1-I101/E101),0))))))) -> 0 | I101: =VLOOKUP(I25,Construction!$C$13:I23,2) -> 0.9 | K101: =INDEX($D101:$I101,K$98) -> 1.29 | L101: =INDEX($D101:$I101,L$98) -> 1.09 | M101: =IF(ISERROR(1-L101/K101), 0, 1-L101/K101) -> 0.1550387597
C102: Placeholder for super deficincy | D102: 1 | E102: 1 | F102: 1 | G102: 1 | H102: 0 | I102: 1 | K102: =INDEX($D102:$I102,K$98) -> 1 | L102: =INDEX($D102:$I102,L$98) -> 1 | M102: 0
C103: HC and Grade | D103: =D$134^D$127 -> 1 | E103: =E$134^E$127 ->  | F103: =F$134^F$127 -> 1 | G103: =G$134^G$127 -> 1 | H103: 0 | I103: =I$134^I$127 ->  | K103: =INDEX($D103:$I103,K$98) -> 1 | L103: =INDEX($D103:$I103,L$98) ->  | M103: 0
C104: HC and VC Crest type I | D104: =D$135^D$128 -> 1 | E104: =E$135^E$128 -> 1 | F104: =F$135^F$128 -> 1 | G104: =G$135^G$128 -> 1 | H104: 0 | I104: =I$135^I$128 ->  | K104: =INDEX($D104:$I104,K$98) -> 1 | L104: =INDEX($D104:$I104,L$98) -> 1 | M104: 0
C105: HC and VC Sag type I | D105: =D$136^D$129 -> 1 | E105: =E$136^E$129 -> 1 | F105: =F$136^F$129 -> 1 | G105: =G$136^G$129 -> 1 | H105: 0 | I105: =I$136^I$129 ->  | K105: =INDEX($D105:$I105,K$98) -> 1 | L105: =INDEX($D105:$I105,L$98) -> 1 | M105: 0
C106: HC and VC Crest type II | D106: =D$137^D$130 -> 1 | E106: =E$137^E$130 -> 1 | F106: =F$137^F$130 -> 1 | G106: =G$137^G$130 -> 1 | H106: 0 | I106: =I$137^I$130 ->  | J106: =1-I111/E111 ->  | K106: =INDEX($D106:$I106,K$98) -> 1 | L106: =INDEX($D106:$I106,L$98) -> 1 | M106: 0
C107: HC and VC Sag type II | D107: =D$138^D$131 -> 1 | E107: =E$138^E$131 -> 1 | F107: =F$138^F$131 -> 1 | G107: =G$138^G$131 -> 1 | H107: 0 | I107: =I$138^I$131 ->  | J107: =1-I112/E112 ->  | K107: =INDEX($D107:$I107,K$98) -> 1 | L107: =INDEX($D107:$I107,L$98) -> 1 | M107: 0
C108: Add TWLTL | D108: =IF(D$43="No",1,CMFs!$F$17) -> 0.71 | E108: =IF(E$43="No",1,CMFs!$F$17) -> 1 | F108: =IF(F$43="No",1,CMFs!$F$17) -> 0.71 | G108: =IF(G$43="No",1,CMFs!$F$17) -> 0.71 | H108: 0 | I108: =IF(I$43="No",1,CMFs!$F$17) -> 1 | J108: =1-I113/E113 ->  | K108: =INDEX($D108:$I108,K$98) -> 0.71 | L108: =INDEX($D108:$I108,L$98) -> 1 | M108: -0.4084507042
C109: Passing Lane Type | D109: =IF(ISNUMBER(INDEX(PassLNCMF, MATCH(D44,Passing_Lane_Type,0))),INDEX(PassLNCMF, MATCH(D44,Passing_Lane_Type,0)),1) -> 1 | E109: =IF(ISNUMBER(INDEX(PassLNCMF, MATCH(E44,Passing_Lane_Type,0))),INDEX(PassLNCMF, MATCH(E44,Passing_Lane_Type,0)),1) -> 1 | F109: =IF(ISNUMBER(INDEX(PassLNCMF, MATCH(F44,Passing_Lane_Type,0))),INDEX(PassLNCMF, MATCH(F44,Passing_Lane_Type,0)),1) -> 1 | G109: =IF(ISNUMBER(INDEX(PassLNCMF, MATCH(G44,Passing_Lane_Type,0))),INDEX(PassLNCMF, MATCH(G44,Passing_Lane_Type,0)),1) -> 1 | H109: 0 | I109: =IF(ISNUMBER(INDEX(PassLNCMF, MATCH(I44,Passing_Lane_Type,0))),INDEX(PassLNCMF, MATCH(I44,Passing_Lane_Type,0)),1) -> 0.65 | J109: =1-I114/E114 ->  | K109: =INDEX($D109:$I109,K$98) -> 1 | L109: =INDEX($D109:$I109,L$98) -> 1 | M109: 0
J110: =I115/E115 -> 
C111: COMBINED Calculated CMF | D111: =+D100*D101*D102*D103*D104*D105*D106*D107*D108*D109 ->  | E111: =+E100*E101*E102*E103*E104*E105*E106*E107*E108*E109 ->  | F111: =+F100*F101*F102*F103*F104*F105*F106*F107*F108*F109 ->  | G111: =+G100*G101*G102*G103*G104*G105*G106*G107*G108*G109 ->  | H111: =IF($I$2="Existing",(D111),(IF($I$2="Design 1",(F111),(IF($I$2="Design 2",(G111),(IF($I$2="Optimal",(I111),E111))))))) ->  | I111: =+I100*I101*I102*I103*I104*I105*I106*I107*I108*I109 ->  | K111: =INDEX($D111:$I111,K$98) ->  | L111: =INDEX($D111:$I111,L$98) ->  | M111: 0
C112: Calculated Relative to Design Standards (Column E) | D112: =+D111/$E$111 ->  | K112: =INDEX($D112:$I112,K$98) ->  | L112: =INDEX($D112:$I112,L$98) ->  | M112: 0
C113: P(Crash) | D113: =+D112/(D112+1) ->  | K113: =INDEX($D113:$I113,K$98) ->  | L113: =INDEX($D113:$I113,L$98) ->  | M113: 0
C114: Factor Change on S curve | D114: =+D113/$E$113 ->  | K114: =INDEX($D114:$I114,K$98) ->  | L114: =INDEX($D114:$I114,L$98) ->  | M114: 0
C115: Adjust to Scale of 100 | D115: =+$I$114/D114*100 -> 
C116: Unadjusted Combined Relative to Standard | D116: =+D111/$E$111 ->  | K116: =INDEX($D116:$I116,K$98) ->  | L116: =INDEX($D116:$I116,L$98) ->  | M116: 0
J117: =I122/E122 -> 
C118: Adjusted for PA Basis | D118: =+D111*(1+1)/(1+D111*1) ->  | H118: =IF($I$2="Existing",(D118),(IF($I$2="Design 1",(F118),(IF($I$2="Design 2",(G118),(IF($I$2="Optimal",(I118),E118))))))) ->  | K118: =INDEX($D118:$I118,K$98) ->  | L118: =INDEX($D118:$I118,L$98) ->  | M118: 0
C119: Corrected by Odds Ratio | D119: =+D118/$E$118 ->  | H119: =IF($I$2="Existing",(D119),(IF($I$2="Design 1",(F119),(IF($I$2="Design 2",(G119),(IF($I$2="Optimal",(I119),E119))))))) ->  | K119: =INDEX($D119:$I119,K$98) ->  | L119: =INDEX($D119:$I119,L$98) ->  | M119: 0
C120: Pinned s | D120: =(1/D119)^$D123 ->  | J120: =I125/E125 ->  | K120: =INDEX($D120:$I120,K$98) ->  | L120: =INDEX($D120:$I120,L$98) ->  | M120: 0
D121: =(D120+$F124-1)/(1+(D120+$F124-1)) ->  | K121: =INDEX($D121:$I121,K$98) ->  | L121: =INDEX($D121:$I121,L$98) ->  | M121: 0
C122: Score Odds Ratio with Optimal (old) | D122: =MIN(ROUND($I$119/D119*Construction!$I$8,0),$I122) ->  | E122: =MIN(ROUND($I$119/E119*Construction!$I$8,0),$I122) ->  | F122: =MIN(ROUND($I$119/F119*Construction!$I$8,0),$I122) ->  | G122: =MIN(ROUND($I$119/G119*Construction!$I$8,0),$I122) ->  | H122: =IF($I$2="Existing",(D122),(IF($I$2="Design 1",(F122),(IF($I$2="Design 2",(G122),(IF($I$2="Optimal",(I122),E122))))))) ->  | I122: =ROUND($I$119/I119*Construction!$I$8,0) -> 
C123: Logistic1 | D123: =LN((D124/(1-D124))/(0.5/0.5))/LN($E119/I119) -> 
C124: Logistic Param | D124: 0.999 | F124: =0.7/0.3 -> 2.333333333
C125: Score | D125: =MIN(ROUND(D121*Construction!$I$8,0),$I122) ->  | E125: =MIN(ROUND(E121*Construction!$I$8,0),$I122) ->  | F125: =MIN(ROUND(F121*Construction!$I$8,0),$I122) ->  | G125: =MIN(ROUND(G121*Construction!$I$8,0),$I122) ->  | H125: =MIN(ROUND(H121*Construction!$I$8,0),$I122) ->  | I125: =MIN(ROUND(I121*Construction!$I$8,0),$I122) -> 
C127: HC and Grade | D127: =IF($B$135,0,1) -> 1 | E127: =IF($B$135,0,1) -> 1 | F127: =IF($B$135,0,1) -> 1 | G127: =IF($B$135,0,1) -> 1 | H127: =IF($I$2="Existing",(D127),(IF($I$2="Design 1",(F127),(IF($I$2="Design 2",(G127),(IF($I$2="Optimal",(I127),E127))))))) -> 1 | I127: =IF($B$135,0,1) -> 1
C128: HC and VC Crest type I | D128: =IF(AND($B$135=1,SIGN(D$36)=1,ABS(D$36)<=ABS(D$36-D$37),D$42="Crest"),1,0) -> 0 | E128: =IF(AND($B$135=1, SIGN(IF(ISNUMBER(E$36),E$36,0))=1,ABS(IF(ISNUMBER(E$36),E$36,0)) <= ABS(IF(ISNUMBER(E$36),E$36,0)-IF(ISNUMBER(E$37),E$37,0)),E$42="Crest"),1,0) -> 0 | F128: =IF(AND($B$135=1,SIGN(F$36)=1,ABS(F$36)<=ABS(F$36-F$37),F$42="Crest"),1,0) -> 0 | G128: =IF(AND($B$135=1,SIGN(G$36)=1,ABS(G$36)<=ABS(G$36-G$37),G$42="Crest"),1,0) -> 0 | H128: =IF($I$2="Existing",(D128),(IF($I$2="Design 1",(F128),(IF($I$2="Design 2",(G128),(IF($I$2="Optimal",(I128),E128))))))) -> 0 | I128: =IF(AND($B$135=1,SIGN(I$36)=1,ABS(I$36)<=ABS(I$36-IF(ISNUMBER(I$37), I$37,0)),I$42="Crest"),1,0) -> 
A129: HC? | C129: HC and VC Sag type I | D129: =IF(AND($B$135=1,SIGN(D$36)=1,ABS(D$36)<=ABS(D$36-D$37),D$42="Sag"),1,0) -> 0 | E129: =IF(AND($B$135=1, SIGN(IF(ISNUMBER(E$36),E$36,0))=1,ABS(IF(ISNUMBER(E$36),E$36,0)) <= ABS(IF(ISNUMBER(E$36),E$36,0)-IF(ISNUMBER(E$37),E$37,0)),E$42="Sag"),1,0) -> 0 | F129: =IF(AND($B$135=1,SIGN(F$36)=1,ABS(F$36)<=ABS(F$36-F$37),F$42="Sag"),1,0) -> 0 | G129: =IF(AND($B$135=1,SIGN(G$36)=1,ABS(G$36)<=ABS(G$36-G$37),G$42="Sag"),1,0) -> 0 | H129: =IF($I$2="Existing",(D129),(IF($I$2="Design 1",(F129),(IF($I$2="Design 2",(G129),(IF($I$2="Optimal",(I129),E129))))))) -> 0 | I129: =IF(AND($B$135=1,SIGN(I$36)=1,ABS(I$36)<=ABS(I$36-IF(ISNUMBER(I$37), I$37,0)),I$42="Sag"),1,0) -> 
A130: VC? | C130: HC and VC Crest type II | D130: =IF(AND($B$135=1,D$42="Crest",D$128=0),1,0) -> 0 | E130: =IF(AND($B$135=1,E$42="Crest",E$128=0),1,0) -> 0 | F130: =IF(AND($B$135=1,F$42="Crest",F$128=0),1,0) -> 0 | G130: =IF(AND($B$135=1,G$42="Crest",G$128=0),1,0) -> 0 | H130: =IF($I$2="Existing",(D130),(IF($I$2="Design 1",(F130),(IF($I$2="Design 2",(G130),(IF($I$2="Optimal",(I130),E130))))))) -> 0 | I130: =IF(AND($B$135=1,I$42="Crest",I$128=0),1,0) -> 
C131: HC and VC Sag type II | D131: =IF(AND($B$135=1,D$42="Sag",D$129=0),1,0) -> 0 | E131: =IF(AND($B$135=1,E$42="Sag",E$129=0),1,0) -> 0 | F131: =IF(AND($B$135=1,F$42="Sag",F$129=0),1,0) -> 0 | G131: =IF(AND($B$135=1,G$42="Sag",G$129=0),1,0) -> 0 | H131: =IF($I$2="Existing",(D131),(IF($I$2="Design 1",(F131),(IF($I$2="Design 2",(G131),(IF($I$2="Optimal",(I131),E131))))))) -> 0 | I131: =IF(AND($B$135=1,I$42="Sag",I$129=0),1,0) -> 
B132: Yes/No
C133: HC and VC: | E133: =EXP(0.042*ABS(D$36)+$B$134*0.16*LN(2*5730/IF(ISNUMBER(E$29),E$29,1))) -> 1
B134: =IF(B27="Yes",1,0) -> 0 | C134: HC and Grade | D134: =IF($B$135=0,EXP(0.042*ABS(D$36)+$B$134*0.16*LN(2*5730/D$141)+4.16*$B$134/D$141/IF(ISNUMBER(D$30),D$30,999999)),1) -> 1 | E134: =IF($B$135=0,EXP(0.042*ABS(E$36)+$B$134*0.16*LN(2*5730/E$141)+4.16*$B$134/E$141/IF(ISNUMBER(E$30),E$30,999999)),1) ->  | F134: 1 | G134: 1 | H134: =IF($B$135=0,EXP(0.042*ABS(H$36)+$B$134*0.16*LN(2*5730/IF(ISNUMBER(H$29),H$29,1))+4.16*$B$134/IF(ISNUMBER(H$29),H$29,1)/IF(ISNUMBER(H$30),H$30,1)),1) ->  | K134: =INDEX($D134:$I134,K$98) -> 1 | L134: =INDEX($D134:$I134,L$98) ->  | M134: 0
B135: =IF(B34="Yes",1,0) -> 0 | C135: HC and VC Crest type I | D135: =IF($B$135=0,1,EXP(0.005648908*5730*ABS(+D$36-D$37)*$B$135/D$141*$B$134)) -> 1 | E135: =IF($B$135=0,1,EXP(0.005648908*5730*ABS(+E$36-E$37)*$B$135/E$141*$B$134)) -> 1 | F135: 1 | G135: 1 | H135: =IF($I$2="Existing",(D135),(IF($I$2="Design 1",(F135),(IF($I$2="Design 2",(G135),(IF($I$2="Optimal",(I135),E135))))))) -> 1 | I135: 1 | K135: =INDEX($D135:$I135,K$98) -> 1 | L135: =INDEX($D135:$I135,L$98) -> 1 | M135: 0
C136: HC and VC Sag type I | D136: =IF($B$135=0,1,EXP(9.15857042*$B$135/D$142+0.010284958*5730*$B$135*$B$134*ABS(+D$36-D$37)/D$141)) -> 1 | E136: =IF($B$135=0,1,EXP(9.15857042*$B$135/E$142+0.010284958*5730*$B$135*$B$134*ABS(+E$36-E$37)/E$141)) -> 1 | F136: 1 | G136: 1 | H136: =IF($I$2="Existing",(D136),(IF($I$2="Design 1",(F136),(IF($I$2="Design 2",(G136),(IF($I$2="Optimal",(I136),E136))))))) -> 1 | I136: 1 | K136: =INDEX($D136:$I136,K$98) -> 1 | L136: =INDEX($D136:$I136,L$98) -> 1 | M136: 0
C137: HC and VC Crest type II | D137: =IF($B$135=0,1,EXP(0.005648908*5730*ABS(+D$36-D$37)*$B$135/D$141*$B$134)) -> 1 | E137: =IF($B$135=0,1,EXP(0.005648908*5730*ABS(+E$36-E$37)*$B$135/E$141*$B$134)) -> 1 | F137: 1 | G137: 1 | H137: =IF($I$2="Existing",(D137),(IF($I$2="Design 1",(F137),(IF($I$2="Design 2",(G137),(IF($I$2="Optimal",(I137),E137))))))) -> 1 | I137: 1 | K137: =INDEX($D137:$I137,K$98) -> 1 | L137: =INDEX($D137:$I137,L$98) -> 1 | M137: 0
C138: HC and VC Sag type II | D138: =IF($B$135=0,1,(0.246011284*EXP(LN(0.188*2*5730/D$141)*$B$134)+0.7514288716*EXP(0.022*5730/D$141*ABS(D$36-D$37)*$B$135*$B$134))) -> 1 | E138: =IF($B$135=0,1,(0.246011284*EXP(LN(0.188*2*5730/E$141)*$B$134)+0.7514288716*EXP(0.022*5730/E$141*ABS(E$36-E$37)*$B$135*$B$134))) -> 1 | F138: 1 | G138: 1 | H138: =IF($I$2="Existing",(D138),(IF($I$2="Design 1",(F138),(IF($I$2="Design 2",(G138),(IF($I$2="Optimal",(I138),E138))))))) -> 1 | I138: 1 | K138: =INDEX($D138:$I138,K$98) -> 1 | L138: =INDEX($D138:$I138,L$98) -> 1 | M138: 0
C140: Combined HZ and VT | D140: =MMULT(TRANSPOSE(D127:D131),D134:D138) -> 1 | E140: =MMULT(TRANSPOSE(E127:E131),E134:E138) ->  | F140: =MMULT(TRANSPOSE(F127:F131),F134:F138) -> 1 | G140: =MMULT(TRANSPOSE(G127:G131),G134:G138) -> 1 | H140: =IF($I$2="Existing",(D140),(IF($I$2="Design 1",(F140),(IF($I$2="Design 2",(G140),(IF($I$2="Optimal",(I140),E140))))))) ->  | I140: =MMULT(TRANSPOSE(I127:I131),I134:I138) ->  | K140: =INDEX($D140:$I140,K$98) -> 1 | L140: =INDEX($D140:$I140,L$98) ->  | M140: =IF(ISERROR(1-L140/K140), 0, 1-L140/K140) -> 0
C141: effective R for calculation | D141: =IF(ISNUMBER(D29), D29, 99999999) -> 99999999 | E141: =IF(ISNUMBER(E29), E29, 99999999) -> 590 | F141: 99999999 | G141: 99999999 | I141: 590
C142: effective K for calculation | D142: =IF(ISNUMBER(D39), D39, 9999999) -> 9999999 | E142: =IF(ISNUMBER(E39), E39, 9999999) -> 9999999 | F142: 9999999 | G142: 9999999 | I142: 9999999
B143: Traffic
D144: Existing | E144: Standard | F144: Design 1 | G144: Design 2
C145: Advance static curve warning signs | D145: =IF(AND($B$27="Yes",D$52="Yes"),(Traffic!$F$4-1)*AVERAGE(Constraints!$F$37,Constraints!$H$37)/Constraints!$D$37+1,1) -> 1 | E145: =IF(AND($B$27="Yes",E$52="Yes"),(Traffic!$F$4-1)*AVERAGE(Constraints!$F$37,Constraints!$H$37)/Constraints!$D$37+1,1) -> 1 | F145: =IF(AND($B$27="Yes",F$52="Yes"),(Traffic!$F$4-1)*AVERAGE(Constraints!$F$37,Constraints!$H$37)/Constraints!$D$37+1,1) -> 1 | G145: =IF(AND($B$27="Yes",G$52="Yes"),(Traffic!$F$4-1)*AVERAGE(Constraints!$F$37,Constraints!$H$37)/Constraints!$D$37+1,1) -> 1 | H145: =IF($I$2="Existing",(D145),(IF($I$2="Design 1",(F145),(IF($I$2="Design 2",(G145),(IF($I$2="Optimal",(I145),E145))))))) -> 1 | I145: =IF(AND($B$27="Yes",I$52="Yes"),(Traffic!$F$4-1)*AVERAGE(Constraints!$F$37,Constraints!$H$37)/Constraints!$D$37+1,1) -> 1 | K145: =INDEX($D145:$I145,K$98) -> 1 | L145: =INDEX($D145:$I145,L$98) -> 1 | M145: 0
C146: Install chevron signs on horizontal curves | D146: =IF(D$53="No",1,(IF(AND($B$27="Yes",D$24<11.5),((Traffic!$F$6-1)*(Constraints!$E$35+Constraints!$E$31))+1,1))) -> 1 | E146: =IF(E$53="No",1,(IF(AND($B$27="Yes",E$24<11.5),((Traffic!$F$6-1)*(Constraints!$E$35+Constraints!$E$31))+1,1))) -> 1 | F146: =IF(F$53="No",1,(IF(AND($B$27="Yes",F$24<11.5),((Traffic!$F$6-1)*(Constraints!$E$35+Constraints!$E$31))+1,1))) -> 1 | G146: =IF(G$53="No",1,(IF(AND($B$27="Yes",G$24<11.5),((Traffic!$F$6-1)*(Constraints!$E$35+Constraints!$E$31))+1,1))) -> 1 | H146: =IF($I$2="Existing",(D146),(IF($I$2="Design 1",(F146),(IF($I$2="Design 2",(G146),(IF($I$2="Optimal",(I146),E146))))))) -> 1 | I146: =IF(I$53="No",1,(IF(AND($B$27="Yes",I$24<11.5),((Traffic!$F$6-1)*(Constraints!$E$35+Constraints!$E$31))+1,1))) -> 1 | K146: =INDEX($D146:$I146,K$98) -> 1 | L146: =INDEX($D146:$I146,L$98) -> 1 | M146: 0
C147: Install post-mounted delineators | D147: =IF(AND($B$27="Yes",D$54="Yes"),(Traffic!$F$12-1)*Constraints!$E$36+1,1) -> 1 | E147: =IF(AND($B$27="Yes",E$54="Yes"),(Traffic!$F$12-1)*Constraints!$E$36+1,1) -> 1 | F147: =IF(AND($B$27="Yes",F$54="Yes"),(Traffic!$F$12-1)*Constraints!$E$36+1,1) -> 1 | G147: =IF(AND($B$27="Yes",G$54="Yes"),(Traffic!$F$12-1)*Constraints!$E$36+1,1) -> 1 | H147: =IF($I$2="Existing",(D147),(IF($I$2="Design 1",(F147),(IF($I$2="Design 2",(G147),(IF($I$2="Optimal",(I147),E147))))))) -> 1 | I147: =IF(AND($B$27="Yes",I$54="Yes"),(Traffic!$F$12-1)*Constraints!$E$36+1,1) -> 1 | K147: =INDEX($D147:$I147,K$98) -> 1 | L147: =INDEX($D147:$I147,L$98) -> 1 | M147: 0
C148: Install edgeline or Profile pavement markings | D148: =IF(D$55="Yes",Traffic!$F$18*0.5+((Traffic!$F$20*(Constraints!$H$36+Constraints!$H$32)+1*(Constraints!$H$37-(Constraints!$H$36+Constraints!$H$32)))/Constraints!$H$37)*0.5,1) -> 1 | E148: =IF(E$55="Yes",Traffic!$F$18*0.5+((Traffic!$F$20*(Constraints!$H$36+Constraints!$H$32)+1*(Constraints!$H$37-(Constraints!$H$36+Constraints!$H$32)))/Constraints!$H$37)*0.5,1) -> 0.8617588131 | F148: =IF(F$55="Yes",Traffic!$F$18*0.5+((Traffic!$F$20*(Constraints!$H$36+Constraints!$H$32)+1*(Constraints!$H$37-(Constraints!$H$36+Constraints!$H$32)))/Constraints!$H$37)*0.5,1) -> 1 | G148: =IF(G$55="Yes",Traffic!$F$18*0.5+((Traffic!$F$20*(Constraints!$H$36+Constraints!$H$32)+1*(Constraints!$H$37-(Constraints!$H$36+Constraints!$H$32)))/Constraints!$H$37)*0.5,1) -> 1 | H148: =IF($I$2="Existing",(D148),(IF($I$2="Design 1",(F148),(IF($I$2="Design 2",(G148),(IF($I$2="Optimal",(I148),E148))))))) -> 0.8617588131 | I148: =IF(I$55="Yes",Traffic!$F$18*0.5+((Traffic!$F$20*(Constraints!$H$36+Constraints!$H$32)+1*(Constraints!$H$37-(Constraints!$H$36+Constraints!$H$32)))/Constraints!$H$37)*0.5,1) -> 0.8617588131 | K148: =INDEX($D148:$I148,K$98) -> 1 | L148: =INDEX($D148:$I148,L$98) -> 0.8617588131 | M148: 0.1382411869
C149: Profiles | D149: 1 | E149: 1 | F149: 1 | G149: 1 | H149: 1 | I149: 1 | K149: =INDEX($D149:$I149,K$98) -> 1 | L149: =INDEX($D149:$I149,L$98) -> 1 | M149: 0
C150: Shoulder rumble strips | D150: =IF(D$56="No",1,(Traffic!$F$27*(Constraints!$H$36+Constraints!$H$32)+1*(Constraints!$H$37-(Constraints!$H$36+Constraints!$H$32)))/Constraints!$H$37) -> 0.8976095069 | E150: =IF(E$56="No",1,(Traffic!$F$27*(Constraints!$H$36+Constraints!$H$32)+1*(Constraints!$H$37-(Constraints!$H$36+Constraints!$H$32)))/Constraints!$H$37) -> 0.8976095069 | F150: =IF(F$56="No",1,(Traffic!$F$27*(Constraints!$H$36+Constraints!$H$32)+1*(Constraints!$H$37-(Constraints!$H$36+Constraints!$H$32)))/Constraints!$H$37) -> 0.8976095069 | G150: =IF(G$56="No",1,(Traffic!$F$27*(Constraints!$H$36+Constraints!$H$32)+1*(Constraints!$H$37-(Constraints!$H$36+Constraints!$H$32)))/Constraints!$H$37) -> 0.8976095069 | H150: =IF($I$2="Existing",(D150),(IF($I$2="Design 1",(F150),(IF($I$2="Design 2",(G150),(IF($I$2="Optimal",(I150),E150))))))) -> 0.8976095069 | I150: =IF(I$56="No",1,(Traffic!$F$27*(Constraints!$H$36+Constraints!$H$32)+1*(Constraints!$H$37-(Constraints!$H$36+Constraints!$H$32)))/Constraints!$H$37) -> 0.8976095069 | K150: =INDEX($D150:$I150,K$98) -> 0.8976095069 | L150: =INDEX($D150:$I150,L$98) -> 0.8976095069 | M150: 0
C151: Install centerline rumble strips | D151: =IF(D$57="No",1,Traffic!$F$30) -> 0.86 | E151: =IF(E$57="No",1,Traffic!$F$30) -> 1 | F151: =IF(F$57="No",1,Traffic!$F$30) -> 0.86 | G151: =IF(G$57="No",1,Traffic!$F$30) -> 0.86 | H151: =IF($I$2="Existing",(D151),(IF($I$2="Design 1",(F151),(IF($I$2="Design 2",(G151),(IF($I$2="Optimal",(I151),E151))))))) -> 1 | I151: =IF(I$57="No",1,Traffic!$F$30) -> 0.86 | K151: =INDEX($D151:$I151,K$98) -> 0.86 | L151: =INDEX($D151:$I151,L$98) -> 1 | M151: -0.1627906977
C152: Driveway Density (driveways per mile) | D152: =EXP(-LN(Traffic!$F$32)*(D$58-$E$58)) -> 0.8170728069 | E152: =EXP(-LN(Traffic!$F$32)*(E$58-$E$58)) -> 1 | F152: =EXP(-LN(Traffic!$F$32)*(F$58-$E$58)) -> 0.8170728069 | G152: =EXP(-LN(Traffic!$F$32)*(G$58-$E$58)) -> 0.8170728069 | H152: =IF($I$2="Existing",(D152),(IF($I$2="Design 1",(F152),(IF($I$2="Design 2",(G152),(IF($I$2="Optimal",(I152),E152))))))) -> 1 | I152: =EXP(-LN(Traffic!$F$32)*(I$58-$E$58)) -> 0.8170728069 | K152: =INDEX($D152:$I152,K$98) -> 0.8170728069 | L152: =INDEX($D152:$I152,L$98) -> 1 | M152: -0.223881142
C153: Install lighting | D153: =IF(D$59="No",1,1-(((1-Traffic!$F$55*Constraints!$H$37-Constraints!$F$37/3)+((1-Traffic!$F$55*Constraints!$D$37-Constraints!$H$37)))*$S$19+((1-Traffic!$F$57)*Constraints!$F$37/3))/Constraints!$D$37) -> 0.9770404469 | E153: =IF(E$59="No",1,1-(((1-Traffic!$F$55*Constraints!$H$37-Constraints!$F$37/3)+((1-Traffic!$F$55*Constraints!$D$37-Constraints!$H$37)))*$S$19+((1-Traffic!$F$57)*Constraints!$F$37/3))/Constraints!$D$37) -> 1 | F153: =IF(F$59="No",1,1-(((1-Traffic!$F$55*Constraints!$H$37-Constraints!$F$37/3)+((1-Traffic!$F$55*Constraints!$D$37-Constraints!$H$37)))*$S$19+((1-Traffic!$F$57)*Constraints!$F$37/3))/Constraints!$D$37) -> 0.9770404469 | G153: =IF(G$59="No",1,1-(((1-Traffic!$F$55*Constraints!$H$37-Constraints!$F$37/3)+((1-Traffic!$F$55*Constraints!$D$37-Constraints!$H$37)))*$S$19+((1-Traffic!$F$57)*Constraints!$F$37/3))/Constraints!$D$37) -> 0.9770404469 | H153: =IF($I$2="Existing",(D153),(IF($I$2="Design 1",(F153),(IF($I$2="Design 2",(G153),(IF($I$2="Optimal",(I153),E153))))))) -> 1 | I153: =IF(I$59="No",1,1-(((1-Traffic!$F$55*Constraints!$H$37-Constraints!$F$37/3)+((1-Traffic!$F$55*Constraints!$D$37-Constraints!$H$37)))*$S$19+((1-Traffic!$F$57)*Constraints!$F$37/3))/Constraints!$D$37) -> 0.9770404469 | K153: =INDEX($D153:$I153,K$98) -> 0.9770404469 | L153: =INDEX($D153:$I153,L$98) -> 1 | M153: -0.02349908153
C154: Pavement friction (skid number) | D154: =EXP(LN(Traffic!$F$49)*(D$60-$E$60)) -> 1.397252142 | E154: =EXP(LN(Traffic!$F$49)*(E$60-$E$60)) -> 1 | F154: =IF(MATCH(F60,SkidNums,0)=3, $D154,EXP(LN(Traffic!$F$49)*(RIGHT(F$60,2)-$E$60))) ->  | G154: =IF(MATCH(G60,SkidNums,0)=3, $D154,EXP(LN(Traffic!$F$49)*(RIGHT(G$60,2)-$E$60))) ->  | H154: =IF($I$2="Existing",(D154),(IF($I$2="Design 1",(F154),(IF($I$2="Design 2",(G154),(IF($I$2="Optimal",(I154),E154))))))) -> 1 | I154: =EXP(LN(Traffic!$F$49)*(I$60-$E$60)) -> 0.8575355363 | K154: =INDEX($D154:$I154,K$98) -> 1.397252142 | L154: =INDEX($D154:$I154,L$98) -> 1 | M154: 0.2843095602
C157: COMBINED Calculated CMF | D157: =+D145*D146*D147*D148*D149*D150*D151*D152*D153*D154 -> 0.8610611179 | E157: =+E145*E146*E147*E148*E149*E150*E151*E152*E153*E154 -> 0.7735229033 | F157: =+F145*F146*F147*F148*F149*F150*F151*F152*F153*F154 ->  | G157: =+G145*G146*G147*G148*G149*G150*G151*G152*G153*G154 ->  | H157: =IF($I$2="Existing",(D157),(IF($I$2="Design 1",(F157),(IF($I$2="Design 2",(G157),(IF($I$2="Optimal",(I157),E157))))))) -> 0.7735229033 | I157: =+I145*I146*I147*I148*I149*I150*I151*I152*I153*I154 -> 0.4554042239 | K157: =INDEX($D157:$I157,K$98) -> 0.8610611179 | L157: =INDEX($D157:$I157,L$98) -> 0.7735229033 | M157: 0.1016631837
C158: Calculated Relative to Design Standards (Column E) | D158: =+D157/$E$157 -> 1.113168226 | E158: =+E157/$E$157 -> 1 | F158: =+F157/$E$157 ->  | G158: =+G157/$E$157 ->  | H158: 1 | I158: =+I157/$E$157 -> 0.5887404523 | K158: =INDEX($D158:$I158,K$98) -> 1.113168226 | L158: =INDEX($D158:$I158,L$98) -> 1 | M158: 0.1016631837
C159: P(Crash) | D159: =+D158/(D158+1) -> 0.5267769088 | E159: =+E158/(E158+1) -> 0.5 | F159: =+F158/(F158+1) ->  | G159: =+G158/(G158+1) ->  | H159: 0.5 | I159: =+I158/(I158+1) -> 0.3705705683
C160: Factor Change on S curve | D160: =+D159/$E$159 -> 1.053553818 | E160: =+E159/$E$159 -> 1 | F160: =+F159/$E$159 ->  | G160: =+G159/$E$159 ->  | H160: 1 | I160: =+I159/$E$159 -> 0.7411411366
C161: Adjust to Scale of 100 | D161: =+$I$114/D160*100 ->  | E161: =+$I$114/E160*100 ->  | F161: =+$I$114/F160*100 ->  | G161: =+$I$114/G160*100 ->  | I161: =+$I$114/I160*100 -> 
C162: Unadjusted Combined Relative to Standard | D162: =+D157/$E$157 -> 1.113168226 | E162: =+E157/$E$157 -> 1 | F162: =+F157/$E$157 ->  | G162: =+G157/$E$157 ->  | H162: 1 | I162: =+I157/$E$157 -> 0.5887404523
H163: 0 | J163: =I168/E168 -> 1.428571429
C164: Adjusted for PA Basis | D164: =+D157*(1+1)/(1+D157*1) -> 0.9253442669 | E164: =+E157*(1+1)/(1+E157*1) -> 0.8723010025 | F164: =+F157*(1+1)/(1+F157*1) ->  | G164: =+G157*(1+1)/(1+G157*1) ->  | H164: 0.8723010025 | I164: =+I157*(1+1)/(1+I157*1) -> 0.6258113264
C165: Corrected by Odds Ratio | D165: =+D164/$E$164 -> 1.060808441 | E165: =+E164/$E$164 -> 1 | F165: =+F164/$E$164 ->  | G165: =+G164/$E$164 ->  | H165: 1 | I165: =+I164/$E$164 -> 0.7174258938
D166: =(1/D165)^$D169 -> 0.2929539947 | E166: 1 | H166: 1 | I166: 999 | J166: =I171/E171 -> 1.428571429
D167: =(D166+$F170-1)/(1+(D166+$F170-1)) -> 0.6192343506 | E167: 0.7 | H167: 0.7 | I167: 0.9990013316
C168: Score Odds Ratio with Optimal as 100 (old) | D168: =MIN(ROUND($I$165/D165*Construction!$I$9,0),$I168) -> 14 | E168: =MIN(ROUND($I$165/E165*Construction!$I$9,0),$I168) -> 14 | F168: =MIN(ROUND($I$165/F165*Construction!$I$9,0),$I168) ->  | G168: =MIN(ROUND($I$165/G165*Construction!$I$9,0),$I168) ->  | I168: =ROUND($I$165/I165*Construction!$I$9,0) -> 20
C169: Logistic1 | D169: =LN((D170/(1-D170))/(0.5/0.5))/LN($E165/I165) -> 20.79811455
C170: Logistic Param | D170: 0.999 | F170: =0.7/0.3 -> 2.333333333
C171: Score | D171: =MIN(ROUND(D167*Construction!$I$9,0),$I168) -> 12 | E171: =MIN(ROUND(E167*Construction!$I$9,0),$I168) -> 14 | F171: =MIN(ROUND(F167*Construction!$I$9,0),$I168) ->  | G171: =MIN(ROUND(G167*Construction!$I$9,0),$I168) ->  | I171: =MIN(ROUND(I167*Construction!$I$9,0),$I168) -> 20
B178: Roadsde | D178: Existing | E178: Standard | F178: Design 1 | G178: Design 2
D179: =MID(D72,FIND(":",D72,1)+1,FIND("H",D72,1)-FIND(":",D72,1)-1)+0 ->  | E179: =MID(E72,FIND(":",E72,1)+1,FIND("H",E72,1)-FIND(":",E72,1)-1)+0 -> 4 | F179: =MID(F72,FIND(":",F72,1)+1,FIND("H",F72,1)-FIND(":",F72,1)-1)+0 ->  | G179: =MID(G72,FIND(":",G72,1)+1,FIND("H",G72,1)-FIND(":",G72,1)-1)+0 ->  | I179: =MID(I72,FIND(":",I72,1)+1,FIND("H",I72,1)-FIND(":",I72,1)-1)+0 -> 6 | K179: =INDEX($D179:$I179,K$98) ->  | L179: =INDEX($D179:$I179,L$98) -> 4 | M179: =IF(ISERROR(1-L179/K179), 0, 1-L179/K179) -> 0
C180: Sideslope (Foreslope) | D180: =IF(D179<=3,1,IF(OR(D179=4,D179=5),(Roadside!$F$15-1)*Constraints!$H$37/Constraints!$D$37+1,(Roadside!$F$15*Roadside!$F$16-1)*Constraints!$H$37/Constraints!$D$37+1)) ->  | E180: =IF(E179<=3,1,IF(OR(E179=4,E179=5),(Roadside!$F$15-1)*Constraints!$H$37/Constraints!$D$37+1,(Roadside!$F$15*Roadside!$F$16-1)*Constraints!$H$37/Constraints!$D$37+1)) -> 0.8286893555 | F180: =IF(F179<=3,1,IF(OR(F179=4,F179=5),(Roadside!$F$15-1)*Constraints!$H$37/Constraints!$D$37+1,(Roadside!$F$15*Roadside!$F$16-1)*Constraints!$H$37/Constraints!$D$37+1)) ->  | G180: =IF(G179<=3,1,IF(OR(G179=4,G179=5),(Roadside!$F$15-1)*Constraints!$H$37/Constraints!$D$37+1,(Roadside!$F$15*Roadside!$F$16-1)*Constraints!$H$37/Constraints!$D$37+1)) ->  | H180: =IF($I$2="Existing",(D180),(IF($I$2="Design 1",(F180),(IF($I$2="Design 2",(G180),(IF($I$2="Optimal",(I180),E180))))))) -> 0.8286893555 | I180: =IF(I179<=3,1,IF(OR(I179=4,I179=5),(Roadside!$F$15-1)*Constraints!$H$37/Constraints!$D$37+1,(Roadside!$F$15*Roadside!$F$16-1)*Constraints!$H$37/Constraints!$D$37+1)) -> 0.7766435502 | K180: =INDEX($D180:$I180,K$98) ->  | L180: =INDEX($D180:$I180,L$98) -> 0.8286893555 | M180: 0
C181: Backslope | D181: 1 | E181: 1 | F181: 1 | G181: 1 | H181: =IF($I$2="Existing",(D181),(IF($I$2="Design 1",(F181),(IF($I$2="Design 2",(G181),(IF($I$2="Optimal",(I181),E181))))))) -> 1 | I181: 1 | K181: =INDEX($D181:$I181,K$98) -> 1 | L181: =INDEX($D181:$I181,L$98) -> 1 | M181: 0
C182: SafetyEdge | D182: =IF(D$74="No",1,(Roadside!$F$23-1)*AVERAGE(Constraints!$H$37,Constraints!$F$37)/Constraints!$D$37+1) -> 0.9725838419 | E182: =IF(E$74="No",1,(Roadside!$F$23-1)*AVERAGE(Constraints!$H$37,Constraints!$F$37)/Constraints!$D$37+1) -> 1 | F182: =IF(F$74="No",1,(Roadside!$F$23-1)*AVERAGE(Constraints!$H$37,Constraints!$F$37)/Constraints!$D$37+1) -> 0.9725838419 | G182: =IF(G$74="No",1,(Roadside!$F$23-1)*AVERAGE(Constraints!$H$37,Constraints!$F$37)/Constraints!$D$37+1) -> 0.9725838419 | H182: =IF($I$2="Existing",(D182),(IF($I$2="Design 1",(F182),(IF($I$2="Design 2",(G182),(IF($I$2="Optimal",(I182),E182))))))) -> 1 | I182: =IF(I$74="No",1,(Roadside!$F$23-1)*AVERAGE(Constraints!$H$37,Constraints!$F$37)/Constraints!$D$37+1) -> 0.9725838419 | K182: =INDEX($D182:$I182,K$98) -> 0.9725838419 | L182: =INDEX($D182:$I182,L$98) -> 1 | M182: -0.02818899192
C183: Lateral Clearance (ft) | D183: =IF($B$27="Yes",((EXP(LN(Roadside!$F$11)*(IF(D$76="None",40,D$75)-30)/30)-1))*Constraints!$H$36/Constraints!$D$37+1,((EXP(LN(Roadside!$F$10)*(IF(D$76="None",40,D$75)-30)/30)-1))*Constraints!$H$36/Constraints!$D$37+1) -> 1.099272149 | E183: =IF($B$27="Yes",((EXP(LN(Roadside!$F$11)*(IF(E$76="None",40,E$75)-30)/30)-1))*Constraints!$H$36/Constraints!$D$37+1,((EXP(LN(Roadside!$F$10)*(IF(E$76="None",40,E$75)-30)/30)-1))*Constraints!$H$36/Constraints!$D$37+1) -> 1 | F183: =IF($B$27="Yes",((EXP(LN(Roadside!$F$11)*(IF(F$76="None",40,F$75)-30)/30)-1))*Constraints!$H$36/Constraints!$D$37+1,((EXP(LN(Roadside!$F$10)*(IF(F$76="None",40,F$75)-30)/30)-1))*Constraints!$H$36/Constraints!$D$37+1) -> 1.099272149 | G183: =IF($B$27="Yes",((EXP(LN(Roadside!$F$11)*(IF(G$76="None",40,G$75)-30)/30)-1))*Constraints!$H$36/Constraints!$D$37+1,((EXP(LN(Roadside!$F$10)*(IF(G$76="None",40,G$75)-30)/30)-1))*Constraints!$H$36/Constraints!$D$37+1) -> 1.099272149 | H183: =IF($I$2="Existing",(D183),(IF($I$2="Design 1",(F183),(IF($I$2="Design 2",(G183),(IF($I$2="Optimal",(I183),E183))))))) -> 1 | I183: =IF($B$27="Yes",((EXP(LN(Roadside!$F$11)*(IF(I$76="None",40,I$75)-30)/30)-1))*Constraints!$H$36/Constraints!$D$37+1,((EXP(LN(Roadside!$F$10)*(IF(I$76="None",40,I$75)-30)/30)-1))*Constraints!$H$36/Constraints!$D$37+1) -> 0.9745518437 | K183: =INDEX($D183:$I183,K$98) -> 1.099272149 | L183: =INDEX($D183:$I183,L$98) -> 1 | M183: 0.09030716297
C184: Fixed Object Type | D184: =IF(D$76="Guardrail",(Roadside!$F$25-1)*(($I$75-D$75)/$I$75)^2*Constraints!$H$36/Constraints!$D$37+1,1) -> 1 | E184: =IF(E$76="Guardrail",(Roadside!$F$25-1)*(($I$75-E$75)/$I$75)^2*Constraints!$H$36/Constraints!$D$37+1,1) -> 1 | F184: =IF(F$76="Guardrail",(Roadside!$F$25-1)*(($I$75-F$75)/$I$75)^2*Constraints!$H$36/Constraints!$D$37+1,1) -> 1 | G184: =IF(G$76="Guardrail",(Roadside!$F$25-1)*(($I$75-G$75)/$I$75)^2*Constraints!$H$36/Constraints!$D$37+1,1) -> 1 | H184: =IF($I$2="Existing",(D184),(IF($I$2="Design 1",(F184),(IF($I$2="Design 2",(G184),(IF($I$2="Optimal",(I184),E184))))))) -> 1 | I184: =IF(I$76="Guardrail",(Roadside!$F$25-1)*(($I$75-I$75)/$I$75)^2*Constraints!$H$36/Constraints!$D$37+1,1) -> 1 | K184: =INDEX($D184:$I184,K$98) -> 1 | L184: =INDEX($D184:$I184,L$98) -> 1 | M184: 0
C187: COMBINED Calculated CMF | D187: =+D180*D181*D182*D183*D184 ->  | E187: =+E180*E181*E182*E183*E184 -> 0.8286893555 | F187: =+F180*F181*F182*F183*F184 ->  | G187: =+G180*G181*G182*G183*G184 ->  | H187: =IF($I$2="Existing",(D187),(IF($I$2="Design 1",(F187),(IF($I$2="Design 2",(G187),(IF($I$2="Optimal",(I187),E187))))))) -> 0.8286893555 | I187: =+I180*I181*I182*I183*I184 -> 0.7361286784
C188: Calculated Relative to Design Standards (Column E) | D188: =+D187/$E$187 ->  | E188: =+E187/$E$187 -> 1 | F188: =+F187/$E$187 ->  | G188: =+G187/$E$187 ->  | H188: 1 | I188: =+I187/$E$187 -> 0.8883047351
C189: P(Crash) | D189: =+D188/(D188+1) ->  | E189: =+E188/(E188+1) -> 0.5 | F189: =+F188/(F188+1) ->  | G189: =+G188/(G188+1) ->  | H189: 0.5 | I189: =+I188/(I188+1) -> 0.4704244599
C190: Factor Change on S curve | D190: =+D189/$E$189 ->  | E190: =+E189/$E$189 -> 1 | F190: =+F189/$E$189 ->  | G190: =+G189/$E$189 ->  | H190: 1 | I190: =+I189/$E$189 -> 0.9408489197
C191: Adjust to Scale of 100 | D191: =+$I$114/D190*100 ->  | E191: =+$I$114/E190*100 ->  | F191: =+$I$114/F190*100 ->  | G191: =+$I$114/G190*100 ->  | I191: =+$I$114/I190*100 -> 
C192: Unadjusted Combined Relative to Standard | D192: =+D187/$E$187 ->  | E192: =+E187/$E$187 -> 1 | F192: =+F187/$E$187 ->  | G192: =+G187/$E$187 ->  | H192: 1 | I192: =+I187/$E$187 -> 0.8883047351
J193: =I198/E198 -> 1.111111111
C194: Adjusted for PA Basis | D194: =+D187*(1+1)/(1+D187*1) ->  | E194: =+E187*(1+1)/(1+E187*1) -> 0.9063205328 | F194: =+F187*(1+1)/(1+F187*1) ->  | G194: =+G187*(1+1)/(1+G187*1) ->  | H194: =IF($I$2="Existing",(D194),(IF($I$2="Design 1",(F194),(IF($I$2="Design 2",(G194),(IF($I$2="Optimal",(I194),E194))))))) -> 0.9063205328 | I194: =+I187*(1+1)/(1+I187*1) -> 0.8480116567
C195: Corrected by Odds Ratio | D195: =+D187/$E$187 ->  | E195: =+E187/$E$187 -> 1 | F195: =+F187/$E$187 ->  | G195: =+G187/$E$187 ->  | H195: =IF($I$2="Existing",(D195),(IF($I$2="Design 1",(F195),(IF($I$2="Design 2",(G195),(IF($I$2="Optimal",(I195),E195))))))) -> 1 | I195: =+I187/$E$187 -> 0.8883047351
D196: =(1/D195)^$D199 ->  | E196: 1 | H196: 1 | I196: 999 | J196: =I201/E201 -> 1.481481481
D197: =(D196+$F200-1)/(1+(D196+$F200-1)) ->  | E197: 0.6666666667 | H197: 0.6666666667 | I197: 0.999000999
C198: Score Odds Ratio with Optimal as 100 (old) | D198: =MIN(ROUND($I$195/D195*Construction!$I$10,0),$I198) ->  | E198: =MIN(ROUND($I$195/E195*Construction!$I$10,0),$I198) -> 36 | F198: =MIN(ROUND($I$195/F195*Construction!$I$10,0),$I198) ->  | G198: =MIN(ROUND($I$195/G195*Construction!$I$10,0),$I198) ->  | I198: =ROUND($I$195/I195*Construction!$I$10,0) -> 40
C199: Logistic1 | D199: =LN((D200/(1-D200))/(0.5/0.5))/LN($E195/I195) -> 58.3141676
C200: Logistic Param | D200: 0.999 | F200: 2
C201: Score | D201: =MIN(ROUND(D197*Construction!$I$10,0),$I198) ->  | E201: =MIN(ROUND(E197*Construction!$I$10,0),$I198) -> 27 | F201: =MIN(ROUND(F197*Construction!$I$10,0),$I198) ->  | G201: =MIN(ROUND(G197*Construction!$I$10,0),$I198) ->  | I201: =MIN(ROUND(I197*Construction!$I$10,0),$I198) -> 40
C206: =D84/D179 ->  | E206: =ROUNDUP((MIN($I$14,$I$15)-E24-E25)/$C$206,0) ->  | F206: =ROUNDUP((MIN($I$14,$I$15)-F24-F25)/$C$206,0) ->  | G206: =ROUNDUP((MIN($I$14,$I$15)-G24-G25)/$C$206,0) ->  | I206: =ROUNDUP((MIN($I$14,$I$15)-I24-I25)/$C$206,0) -> 
C209: Distance to low point | D209: Distance to low point | E209: =$C$206*E179 ->  | F209: =$C$206*F179 ->  | G209: =$C$206*G179 ->  | I209: =$C$206*I179 -> 
D210: Additional ROW1 Needed for Foreslope | E210: =IF(E209>($I$14-E24-E25),E209-($I$14-E24-E25),0) ->  | F210: =IF(F209>($I$14-F24-F25),F209-($I$14-F24-F25),0) ->  | G210: =IF(G209>($I$14-G24-G25),G209-($I$14-G24-G25),0) ->  | I210: =IF(I209>($I$14-I24-I25),I209-($I$14-I24-I25),0) -> 
D211: Additional ROW2 Needed for Foreslope | E211: =IF(E209>($I$15-E24-E25),E209-($I$15-E24-E25),0) ->  | F211: =IF(F209>($I$15-F24-F25),F209-($I$15-F24-F25),0) ->  | G211: =IF(G209>($I$15-G24-G25),G209-($I$15-G24-G25),0) ->  | I211: =IF(I209>($I$15-I24-I25),I209-($I$15-I24-I25),0) -> 
D213: Additional ROW1 Needed for Lateral Clearance | E213: =IF((CL248+E26)-$I$14<0,0,(CL248+E26)-$I$14) -> 8 | F213: =IF((CM248+F26)-$I$14<0,0,(CM248+F26)-$I$14) -> 0 | G213: =IF((CN248+G26)-$I$14<0,0,(CN248+G26)-$I$14) -> 0 | I213: =IF((CP248+I26)-$I$14<0,0,(CP248+I26)-$I$14) -> 0
D214: Additional ROW2 Needed for Lateral Clearance | E214: =IF((CL248+E26)-$I$15<0,0,(CL248+E26)-$I$15) -> 8 | F214: =IF((CM248+F26)-$I$15<0,0,(CM248+F26)-$I$15) -> 0 | G214: =IF((CN248+G26)-$I$15<0,0,(CN248+G26)-$I$15) -> 0 | I214: =IF((CP248+I26)-$I$15<0,0,(CP248+I26)-$I$15) -> 0
C226: For Vertical Opt Use when Yes Vertical:
C227: G1 | D227: =D36 -> 0 | F227: =F36 -> 0 | G227: =G36 -> 0 | I227: =IF(ISERROR($E$234),"",INDEX(D227:G227,$E$234)) -> 
C228: G2 | D228: =D37 -> 0 | F228: =F37 -> 0 | G228: =G37 -> 0 | I228: =IF(ISERROR($E$234),"",INDEX(D228:G228,$E$234)) -> 
C229: abs(G2-G1) | D229: =ABS(D36-D37) -> 0 | F229: =ABS(F36-F37) -> 0 | G229: =ABS(G36-G37) -> 0
C230: Count in indicator (K no change; or K change but accept) | D230: =IF(D39<>"",1,"") ->  | F230: =IF(OR(AND($B$34 = "Yes", $D$39 <> F39, F39 <>"", $D$39 <> "", F41="Yes."),AND($B$34 = "Yes", $D$39 = F39, F39 <>"", $D$39 <> "")), 1,"") ->  | G230: =IF(OR(AND($B$34 = "Yes", $D$39 <> G39, G39 <>"", $D$39 <> "", G41="Yes."),AND($B$34 = "Yes", $D$39 = G39, G39 <>"", $D$39 <> "")), 1,"") -> 
C232: Valid abs(G2-G1) | D232: =IF(ISERROR(D229*D230),"",D229*D230) ->  | F232: =IF(ISERROR(F229*F230),"",F229*F230) ->  | G232: =IF(ISERROR(G229*G230),"",G229*G230) -> 
C233: The min valid abs(G2-G1) | E233: =MIN(D232,F232,G232) -> 0
C234: Index | E234: =MATCH(E233,D232:G232,0) -> 
C236: For Vertical Opt Use When No Vertical:
C237: G1 | D237: =IF(ISBLANK(D36), 999, D36) -> 999 | F237: =IF(ISBLANK(F36), 999, F36) -> 999 | G237: =IF(ISBLANK(G36), 999, G36) -> 999 | I237: =IF(E242=999,"",E242) -> 
C238: Sign of G1 | D238: =IF(D237>=0,1,-1) -> 1 | F238: =IF(F237>=0,1,-1) -> 1 | G238: =IF(G237>=0,1,-1) -> 1
C239: Abs G1 | D239: =ABS(D237) -> 999 | F239: =ABS(F237) -> 999 | G239: =ABS(G237) -> 999
C240: Min Abs G1 | E240: =MIN(D239:G239) -> 999
C241: Which is the Best G1 | E241: =MATCH(E240,D239:G239,0) -> 1
C242: Best G1 Value | E242: =INDEX(D237:G237,1,E241) -> 999
C249: Check if all cells filled | D249: =SUM(D251:D311) -> 18 | E249: =SUM(E251:E311) -> 1 | F249: 18 | G249: 18 | I249: 1
C251: =C24 -> Lane Width (feet) | D251: =IF(ISBLANK(D24),1,0) -> 1 | E251: =IF(ISBLANK(E24),1,0) -> 0 | F251: 1 | G251: 1 | I251: 0
C252: =C25 -> Shoulder Width (feet) | D252: =IF(ISBLANK(D25),1,0) -> 1 | E252: =IF(ISBLANK(E25),1,0) -> 0 | F252: 1 | G252: 1 | I252: 0
C253: Cross-slope or Superelevation (%) | D253: =IF(ISBLANK(D26),1,0) -> 1 | E253: =IF(ISBLANK(E26),1,0) -> 0 | F253: 1 | G253: 1 | I253: 0
C254: Horizontal Curve Present?
C255: Horizontal Curve Data for Controlling Element:
C256: Radius (feet) | D256: =IF(AND($B$27="Yes", ISBLANK(D29)),1,0) -> 0 | E256: =IF(AND($B$27="Yes", ISBLANK(E29)),1,0) -> 0 | F256: 0 | G256: 0 | I256: 0
C257: Length of Horizontal Curve (feet) | D257: =IF(AND($B$27="Yes", ISBLANK(D30)),1,0) -> 0 | E257: =IF(AND($B$27="Yes", ISBLANK(E30)),1,0) -> 0 | F257: 0 | G257: 0 | I257: 0
... 99 more rows

Sheet Configuration 2
G2: Preferred Schematic View to Display | I2: Standard | V2: NOTES:
B3: CHARACTERISTICS TO CONSIDER FOR ANALYSIS | V3: ELEMENTS INCREASING SAFETY | AE3: COMMENTS ON PRIMARY CONSTRAINTS
B4: INPUT INSTRUCTIONS | G4: Relative to | I4: Existing
B5: Blue Boxes -- Select from pulldown options | D5: Select from Pulldown
B6: Yellow Boxes -- Type input information into box | D6: Type Input Value
B7: Rural Two-Lane Road Segment -- Safety Score Input | CF7: Unadjusted Marginal Safety
B8: General Information: | F8: General Site Features | H8: =I315 & " Missing Features and Curves" -> 9 Missing Features and Curves | CF8: =I2&" relative to " &I4 -> Standard relative to Existing
C9: Analyst: | D9: =+'Start Here'!J7 -> 0 | F9: Location
C10: Agency or Company: | D10: =+'Start Here'!J8 -> 0 | F10: Design Speed (mph)
C11: Date: | D11: =+'Start Here'!J9 -> 00:00:00 | F11: Posted Speed (mph)
C12: Description: | F12: E max (%)
F13: Design Year AADT (vehicles per day)
F14: Dist. from Centerline to Left ROW (feet)
F15: Dist. from Centerline to Right ROW (feet)
B17: Warning:
C18: =+IF(+I11>I10,"Posted speed exceeds design speed. Optimal safety will only be achieved if design speed exceeds posted speed. The Safety Assessment Score is based on the higher of the two speed values.","No warnings identified") -> No warnings identified
P19: ="Unadjusted Marginal Safety of elements in "&I2&" from Design Standards" -> Unadjusted Marginal Safety of elements in Standard from Design Standards | DB19: =COUNTIF(DB23:DB41,DB20) -> 1
DB20: =VLOOKUP(0,CZ23:DB41,3,) -> 10.01
D21: Fill all elements | F21: To enter notes, use boxes to the right of the vortex
B22: =+Construction!$I$8&" Total Available Points" -> 40 Total Available Points | D22: =D249 & " Missing Elements" -> 18 Missing Elements | F22: =F249 & " Missing Elements" -> 18 Missing Elements | G22: =G249 & " Missing Elements" -> 18 Missing Elements | CX22: Ranked element | CY22: CRF | CZ22: abs | DA22: Re-rank | DB22: Rank | DC22: Ranked CRF | DD22: Element | DE22: New Element | DF22: crf.abs | DG22: rank | DH22: Sorted Element | DI22: Sorted CRF
B23: Geometric Design Elements | D23: Existing | E23: Standard | F23: Design 1 | G23: Design 2 | H23: ="Marginal Safety for "&$I$2&" (compared to " & $I$4 & ")" -> Marginal Safety for Standard (compared to Existing) | I23: Optimal | CX23: =IF(CY23=0,"",DB23&". "&DD23) ->  | CY23: =H24 -> 0 | CZ23: =ABS(CY23) -> 0 | DA23: =RANK(DB23,$DB$23:$DB$41,1) -> 10 | DB23: =_xlfn.RANK.EQ(CZ23,$CZ$23:$CZ$41)+DG23/100 -> 10.01 | DC23: =CY23 -> 0 | DD23: =IF(ROUND(DF23,2)=0,"",C24) ->  | DE23: =DD23 ->  | DF23: =CZ23 -> 0 | DG23: 1 | DH23: =IFERROR(IF(IFERROR(VLOOKUP(DG23,$DA$23:$DF$41,4,)&", "&CY23=0,""),"",IFERROR(VLOOKUP(DG23,$DA$23:$DE$41,4,),"")),"") -> TWLTL (two-way left-turn lane) | DI23: =IFERROR(IF(IFERROR(VLOOKUP(DG23,$DA$23:$DF$41,3,)&", "&CY23=0,""),"",IFERROR(VLOOKUP(DG23,$DA$23:$DE$41,3,),"")),"") -> -0.4084507042
C24: Lane Width (feet) | E24: 12 | H24: =M100 -> 0 | I24: 12 | CX24: 5.02. Shoulder Width (feet) | CY24: =H25 -> 0.1550387597 | CZ24: 0.1550387597 | DA24: =RANK(DB24,$DB$23:$DB$41,1) -> 5 | DB24: =_xlfn.RANK.EQ(CZ24,$CZ$23:$CZ$41)+DG24/100 -> 5.02 | DC24: =CY24 -> 0.1550387597 | DD24: =IF(ROUND(DF24,2)=0,"",C25) -> Shoulder Width (feet) | DE24: =DD24 -> Shoulder Width (feet) | DF24: 0.1550387597 | DG24: 2 | DH24: Pavement Friction (skid number) *** | DI24: =IFERROR(IF(IFERROR(VLOOKUP(DG24,$DA$23:$DF$41,3,)&", "&CY24=0,""),"",IFERROR(VLOOKUP(DG24,$DA$23:$DE$41,3,),"")),"") -> 0.2843095602
C25: Shoulder Width (feet) | E25: =IF('Start Here'!$J$12="4R",8,4) -> 4 | H25: =M101 -> 0.1550387597 | I25: 10 | CY25: =H29 -> 0 | CZ25: 0 | DA25: 11 | DB25: 10.03 | DC25: 0 | DD25: =IF(ROUND(DF25,2)=0,"","Hz and Vt Alignment") ->  | DF25: 0 | DG25: 3 | DH25: Driveway Density (driveways per mile) | DI25: -0.223881142
C26: Cross-slope or Superelevation (%) | E26: =IF($I$12=6,IFERROR(VLOOKUP(E29,$C$382:$D$402,2,TRUE),6),IFERROR(VLOOKUP(E29,$C$409:$D$439,2,TRUE),8)) -> 8 | I26: =I12 -> 0 | CX26: 1.04. TWLTL (two-way left-turn lane) | CY26: =H43 -> -0.4084507042 | CZ26: 0.4084507042 | DA26: 1 | DB26: 1.04 | DC26: -0.4084507042 | DD26: =IF(ROUND(DF26,2)=0,"",C43) -> TWLTL (two-way left-turn lane) | DE26: TWLTL (two-way left-turn lane) | DF26: 0.4084507042 | DG26: 4 | DH26: Centerline Rumble Strips | DI26: -0.1627906977
C27: Horizontal Curve Present? | D27: -- | E27: -- | F27: -- | G27: -- | I27: -- | CY27: =H44 -> 0 | CZ27: 0 | DA27: 12 | DB27: 10.05 | DC27: 0 | DD27: =IF(ROUND(DF27,2)=0,"",C44) ->  | DF27: 0 | DG27: 5 | DH27: Shoulder Width (feet) | DI27: 0.1550387597
C28: Horizontal Curve Data for Controlling Element: | D28: -- | E28: -- | F28: -- | G28: -- | I28: -- | CY28: =H52 -> 0 | CZ28: 0 | DA28: 13 | DB28: 10.06 | DC28: 0 | DD28: =IF(ROUND(DF28,2)=0,"",C52) ->  | DF28: 0 | DG28: 6 | DH28: Edgeline Pavement Markings or Profile Markings | DI28: 0.1382411869
C29: Radius (feet) | E29: =IF(MAX($I$10,$I$11)<45,590,IF($I$12=6,VLOOKUP(MAX($I$10,$I$11),Construction!$B$29:$D$36,2,TRUE),VLOOKUP(MAX($I$10,$I$11),Construction!$G$29:$I$36,2,TRUE))) -> 590 | H29: =M140 -> 0 | I29: =IF(MAX($I$10,$I$11)<45,590,IF($I$12=6,VLOOKUP(MAX($I$10,$I$11),Construction!$B$45:$C$52,2,TRUE),VLOOKUP(MAX($I$10,$I$11),Construction!$G$45:$H$52,2,TRUE))) -> 590 | CY29: 0 | CZ29: 0 | DA29: 14 | DB29: 10.07 | DC29: 0 | DF29: 0 | DG29: 7 | DH29: Lateral Clearance to obstruction (ft) | DI29: 0.09030716297
C30: Length of Horizontal Curve (feet) | E30: =IF(D31="", "", E29*E31/57.296) ->  | I30: =I29*I31/57.296 -> 3758.55208 | CY30: 0 | CZ30: 0 | DA30: 15 | DB30: 10.08 | DC30: 0 | DF30: 0 | DG30: 8 | DH30: SafetyEdge | DI30: -0.02818899192
C31: Calculated Deflection Angle ∆ | D31: =IF(OR(ISBLANK(D29),ISBLANK(D30),$B$27="No",ISBLANK($B$27)),"",ROUND(D30/D29*57.296,1)) ->  | E31: =IF(ISBLANK(D31), "",D31) ->  | F31: =IF(OR(ISBLANK(F29),ISBLANK(F30),$B$27="No",ISBLANK($B$27)),"",ROUND(F30/F29*57.296,1)) ->  | G31: =IF(OR(ISBLANK(G29),ISBLANK(G30),$B$27="No",ISBLANK($B$27)),"",ROUND(G30/G29*57.296,1)) ->  | I31: =MIN(D31,IF(F33=INDEX(HCurveChange,1,0), F31, 365),IF(G33=INDEX(HCurveChange,1,0), G31, 365)) -> 365 | CX31: 6.09. Edgeline Pavement Markings or Profile Markings | CY31: 0.1382411869 | CZ31: 0.1382411869 | DA31: 6 | DB31: 6.09 | DC31: 0.1382411869 | DD31: Edgeline Pavement Markings or Profile Markings | DE31: Edgeline Pavement Markings or Profile Markings | DF31: 0.1382411869 | DG31: 9 | DH31: Lighting | DI31: -0.02349908153
F32: ∆ has changed. Are you changing the ∆? | G32: ∆ has changed. Are you changing the ∆? | CY32: 0 | CZ32: 0 | DA32: 16 | DB32: 10.1 | DC32: 0 | DF32: 0 | DG32: 10 | DI32: 0
CX33: 4.11. Centerline Rumble Strips | CY33: -0.1627906977 | CZ33: 0.1627906977 | DA33: 4 | DB33: 4.11 | DC33: -0.1627906977 | DD33: Centerline Rumble Strips | DE33: Centerline Rumble Strips | DF33: 0.1627906977 | DG33: 11 | DI33: 0
C34: Vertical Curve Present? | D34: -- | E34: -- | F34: -- | G34: -- | I34: =E34 -> -- | CX34: 3.12. Driveway Density (driveways per mile) | CY34: -0.223881142 | CZ34: 0.223881142 | DA34: 3 | DB34: 3.12 | DC34: -0.223881142 | DD34: =IF(DF34=0,"",C58) -> Driveway Density (driveways per mile) | DE34: Driveway Density (driveways per mile) | DF34: 0.223881142 | DG34: 12 | DI34: 0
C35: Vertical Curve Data for Controlling Element: | D35: -- | E35: -- | F35: -- | G35: -- | I35: -- | CX35: 9.13. Lighting | CY35: -0.02349908153 | CZ35: 0.02349908153 | DA35: 9 | DB35: 9.13 | DC35: -0.02349908153 | DD35: =IF(DF35=0,"",C59) -> Lighting | DE35: Lighting | DF35: 0.02349908153 | DG35: 13 | DI35: 0
C36: Approach (Entry) Grade, G1 (%) | E36: =IF(ISBLANK(D36),"", D36) ->  | I36: =IF(B34="Yes",I227,I237) ->  | CX36: 2.14. Pavement Friction (skid number) *** | CY36: 0.2843095602 | CZ36: 0.2843095602 | DA36: 2 | DB36: 2.14 | DC36: 0.2843095602 | DD36: =IF(DF36=0,"",C60) -> Pavement Friction (skid number) *** | DE36: Pavement Friction (skid number) *** | DF36: 0.2843095602 | DG36: 14 | DI36: 0
C37: Departure (Exit) Grade, G2 (%) | E37: =IF(ISBLANK(D37),"", D37) ->  | I37: =IF($B$34="Yes",I228,"") ->  | CY37: =H72 -> 0 | CZ37: 0 | DA37: 17 | DB37: 10.15 | DC37: 0 | DD37: =IF(DF37=0,"",C72) ->  | DF37: 0 | DG37: 15 | DI37: 0
C38: Length (feet) | E38: =IF(AND($B$34="Yes", D39<>""), ABS(E36-E37)*D39, "") ->  | I38: =IF(AND($B$34="Yes",I36<>"",I37<>"", NOT(ISBLANK($I$10)), NOT(ISBLANK($I$11))),ABS(I37-I36)*I39,"") ->  | CY38: =H73 -> 0 | CZ38: =ABS(CY38) -> 0 | DA38: 18 | DB38: 10.16 | DC38: 0 | DD38: =IF(DF38=0,"",C73) ->  | DF38: 0 | DG38: 16 | DI38: 0
C39: Calculated Rate of Change, K (ft/ft) | D39: =IF(OR($B$34="No",ISBLANK($B$34), ISBLANK(D36), ISBLANK(D37),ISBLANK(D38), D36=D37), "", ROUND(D38/(ABS(D37-D36)),1)) ->  | E39: =IF(AND($B$34="Yes", NOT(ISBLANK($I$10)), NOT(ISBLANK($I$11)), D39<>""), IF($E$42="Crest", VLOOKUP(MAX($I$10,$I$11),Construction!$B$159:$D$171,2,TRUE), VLOOKUP(MAX($I$10,$I$11),Construction!$B$159:$D$171,3,TRUE)), "") ->  | F39: =IF(AND($B$34="Yes", SUM(F263:F265)=0),ROUND(F38/(ABS(F37-F36)),1),"") ->  | G39: =IF(AND($B$34="Yes", SUM(G263:G265)=0),ROUND(G38/(ABS(G37-G36)),1),"") ->  | I39: =IF(OR($B$34<>"Yes", ISBLANK($I$10), ISBLANK($I$11), $I$36="", $I$37="", $I$42="--", ISBLANK($I$42)),"",IF($I$42="Crest",VLOOKUP(MAX($I$10,$I$11),Construction!$B$179:$D$191,2,TRUE),VLOOKUP(MAX($I$10,$I$11),Construction!$B$179:$D$191,3,TRUE))) ->  | CX39: 8.17. SafetyEdge | CY39: =H74 -> -0.02818899192 | CZ39: =ABS(CY39) -> 0.02818899192 | DA39: 8 | DB39: 8.17 | DC39: -0.02818899192 | DD39: =IF(DF39=0,"",C74) -> SafetyEdge | DE39: SafetyEdge | DF39: 0.02818899192 | DG39: 17 | DI39: 0
F40: Are you changing the geometry? | G40: Are you changing the geometry? | CX40: 7.18. Lateral Clearance to obstruction (ft) | CY40: =H75 -> 0.09030716297 | CZ40: =ABS(CY40) -> 0.09030716297 | DA40: 7 | DB40: 7.18 | DC40: 0.09030716297 | DD40: =IF(DF40=0,"",C75) -> Lateral Clearance to obstruction (ft) | DE40: Lateral Clearance to obstruction (ft) | DF40: 0.09030716297 | DG40: 18 | DI40: 0
CY41: =H76 -> 0 | CZ41: =ABS(CY41) -> 0 | DA41: 19 | DB41: 10.19 | DC41: 0 | DD41: =IF(DF41=0,"",C76) ->  | DF41: 0 | DG41: 19 | DI41: 0
C42: Calculated Sag or Crest? | D42: =IF(AND($B$34="Yes", SUM(D263:D265)=0),IF(D36>D37,"Crest","Sag"),"--") -> -- | E42: =IF(AND($B$34="Yes", SUM(D263:D265)=0),IF(E36>E37,"Crest","Sag"),"--") -> -- | F42: =IF(AND($B$34="Yes", SUM(F263:F265)=0),IF(F36>F37,"Crest","Sag"),"--") -> -- | G42: =IF(AND($B$34="Yes", SUM(G263:G265)=0),IF(G36>G37,"Crest","Sag"),"--") -> -- | I42: =IF($B$34="Yes",IF(I36>I37,"Crest","Sag"),"--") -> --
C43: TWLTL (two-way left-turn lane) | E43: No | H43: =M108 -> -0.4084507042 | I43: =IF(OR($D$43="Yes", $F$43="Yes",$G$43="Yes"), "Yes", "No") -> No
C44: Passing Lane Type | E44: No Passing Lane | H44: =M109 -> 0 | I44: Super 2
C45: Geometric Design Element (Partial Score) | D45: =IF(OR(SUM(D251:D253,D256:D257,D263:D265,D270:D271)>0, ISERR(D125)),"",D125) ->  | E45: =IF(OR(SUM(E251:E253,E256:E257,E263:E265,E270:E271)>0, ISERR(E125)),"",E125) ->  | I45: =IF(OR(SUM(I251:I253,I256:I257,I263:I265,I270:I271)>0, ISERR(I125)),"",I125) -> 
C46: Total Safety Score | D46: =IF(OR(D$249>0, $I$315>0,ISERROR(D$201+D$171+D$125)),"",D$201+D$171+D$125) ->  | E46: =IF(OR(E$249>0, $I$315>0,ISERROR(E$201+E$171+E$125)),"",E$201+E$171+E$125) ->  | M46: SCHEMATIC REPRESENTING INPUT DATA FOR | U46: =IF($I$2="Existing","EXISTING CONFIGURATION",IF($I$2="Standard","STANDARD OPTION",IF($I$2="Design 1","DESIGN 1 OPTION",IF($I$2="Design 2","DESIGN 2 OPTION","OPTIMAL OPTION")))) -> STANDARD OPTION
L48: LT | AA48: RT
L49: R/W | AA49: R/W
B50: =+Construction!$I$9&" Total Available Points" -> 20 Total Available Points
B51: Traffic Elements | D51: Existing | E51: Standard | F51: Design 1 | G51: Design 2 | H51: =$H$23 -> Marginal Safety for Standard (compared to Existing) | I51: Optimal | O51: =+$I$14 -> 0 | W51: =+$I$15 -> 0
C52: Advance Static Curve Warning Signs | E52: No | H52: =M145 -> 0 | I52: Yes
C53: Chevron Signs on Horizontal Curves | E53: No | H53: =M146 -> 0 | I53: Yes | L53: =+O51-N53-Q53 -> -16 | N53: =IF(+$I$2="Existing",D25,IF($I$2="Standard",E25,IF($I$2="Design 1",F25,IF($I$2="Design 2",G25,I25)))) -> 4 | Q53: =IF(+$I$2="Existing",D24,IF($I$2="Standard",E24,IF($I$2="Design 1",F24,IF($I$2="Design 2",G24,I24)))) -> 12 | V53: =+Q53 -> 12 | Y53: =+N53 -> 4 | Z53: =+W51-V53-Y53 -> -16
C54: Post-Mounted Delineators | E54: No | H54: 0 | I54: Yes
C55: Edgeline Pavement Markings or Profile Markings | E55: Yes | H55: 0.1382411869 | I55: Yes
C56: Shoulder Rumble Strips | E56: Yes | H56: =M150 -> 0 | I56: Yes
C57: Centerline Rumble Strips | E57: No | H57: =M151 -> -0.1627906977 | I57: Yes
C58: Driveway Density (driveways per mile) | E58: 10 | H58: =M152 -> -0.223881142 | I58: 0
C59: Lighting | E59: No | H59: =M153 -> -0.02349908153 | I59: Yes | S59: Tangent X-Section
C60: Pavement Friction (skid number) *** | E60: 37 | H60: =M154 -> 0.2843095602 | I60: 54
C62: Traffic Control Element (Partial Score): | D62: =IF(ISERROR(D171), "", D171) -> 12 | E62: =IF(ISERROR(E171), "", E171) -> 14 | F62: =IF(ISERROR(F171), "", F171) ->  | G62: =IF(ISERROR(G171), "", G171) ->  | I62: =IF(ISERROR(I171), "", I171) -> 20
C63: Total Safety Score | D63: =IF(OR(D$249>0, $I$315>0,ISERROR(D$201+D$171+D$125)),"",D$201+D$171+D$125) ->  | E63: =IF(OR(E$249>0, $I$315>0,ISERROR(E$201+E$171+E$125)),"",E$201+E$171+E$125) -> 
C65: *** Pavement friction/skid numbers will not be subject to open records requests ***
S69: Curved X-Section
B70: =+Construction!$I$10&" Total Available Points" -> 40 Total Available Points
B71: Roadside Elements | D71: Existing | E71: Standard | F71: Design 1 | G71: Design 2 | H71: =$H$23 -> Marginal Safety for Standard (compared to Existing) | I71: Optimal
C72: Sideslope (Foreslope) | E72: 1V:4H | H72: =M180 -> 0 | I72: 1V:6H
C73: Backslope | E73: =E72 -> 1V:4H | H73: =M181 -> 0 | I73: 1V:4H
C74: SafetyEdge | E74: No | H74: =M182 -> -0.02818899192 | I74: Yes
C75: Lateral Clearance to obstruction (ft) | E75: 30 | H75: =M183 -> 0.09030716297 | I75: 40 | Q75: =IF($I$2="Existing","SCORE SUMMARY FOR EXISTING CONFIGURATION", IF($I$2="Standard","SCORE SUMMARY FOR STANDARD OPTION",IF($I$2="Design 1","SCORE SUMMARY FOR DESIGN 1 OPTION",IF($I$2="Design 2","SCORE SUMMARY FOR DESIGN 2 OPTION", "SCORE SUMMARY FOR OPTIMAL OPTION")))) -> SCORE SUMMARY FOR STANDARD OPTION
C76: Obstruction Type | E76: Other Fixed Object | H76: =M184 -> 0 | I76: None | Q76: GEOMETRIC DESIGN: | W76: =IF($I$2="Existing",D45,IF($I$2="Standard",E45,IF($I$2="Design 1",F45,IF($I$2="Design 2",G45,I45)))) -> 
C77: Roadside Element (Partial Score): | D77: =IF(ISERR(D201),"",D201) ->  | E77: =IF(ISERR(E201),"",E201) -> 27 | F77: =IF(ISERR(F201),"",F201) ->  | G77: =IF(ISERR(G201),"",G201) ->  | I77: =IF(ISERR(I201),"",I201) -> 40 | Q77: TRAFFIC CONTROL: | W77: =IF($I$2="Existing",D62,IF($I$2="Standard",E62,IF($I$2="Design 1",F62,IF($I$2="Design 2",G62,I62)))) -> 14
C78: Total Safety Score | D78: =IF(OR(D$249>0, $I$315>0,ISERROR(D$201+D$171+D$125)),"",D$201+D$171+D$125) ->  | E78: =IF(OR(E$249>0, $I$315>0,ISERROR(E$201+E$171+E$125)),"",E$201+E$171+E$125) ->  | Q78: ROADSIDE: | W78: =IF($I$2="Existing",D77,IF($I$2="Standard",E77,IF($I$2="Design 1",F77,IF($I$2="Design 2",G77,I77)))) -> 27
Q79: OVERALL SAFETY SCORE: | W79: =SUM(W76:X78) -> 41
B83: ADDITIONAL SIDESLOPE INFORMATION
C84: Distance to Slope Toe from Shoulder (ft) | E84: =D84 -> 0 | F84: =E84 -> 0 | G84: =F84 -> 0 | I84: =G84 -> 0
B85: Minimum foreslope feasible within current ROW | E85: =IF(OR(ISBLANK($D$84), ISERROR(E206)), "", "1V:"&E206&"H") ->  | F85: =IF(OR(ISBLANK($D$84), ISERROR(F206)), "", "1V:"&F206&"H") ->  | G85: =IF(OR(ISBLANK($D$84), ISERROR(G206)), "", "1V:"&G206&"H") ->  | I85: =IF(OR(ISBLANK($D$84), ISERROR(I206)), "", "1V:"&I206&"H") -> 
B86: Additional R/W needed on left side | E86: =IF(OR(ISBLANK($D$84), ISERROR(E210)),"", MAX(E210,E213)) ->  | F86: =IF(OR(ISBLANK($D$84), ISERROR(F210)), "", MAX(F210,F213)) ->  | G86: =IF(OR(ISBLANK($D$84), ISERROR(G210)),"", MAX(G210,G213)) ->  | I86: =IF(OR(ISBLANK($D$84), ISERROR(I210)),"", MAX(I210,I213)) -> 
B87: Additional R/W needed on right side | E87: =IF(OR(ISBLANK($D$84), ISERROR(E211)), "", MAX(E211,E214)) ->  | F87: =IF(OR(ISBLANK($D$84), ISERROR(F211)), "", MAX(F211,F214)) ->  | G87: =IF(OR(ISBLANK($D$84), ISERROR(G211)),"", MAX(G211,G214)) ->  | I87: =IF(OR(ISBLANK($D$84), ISERROR(I211)),"", MAX(I211,I214)) -> 
J95: =1-I100/E100 -> 0
J96: =1-I101/E101 -> 0.1743119266 | K96: For Plot
D97: =MAX(SUM(D103:D107)-5,$I$97) ->  | E97: =MAX(SUM(E103:E107)-5,$I$97) ->  | F97: =MAX(SUM(F103:F107)-5,$I$97) ->  | G97: =MAX(SUM(G103:G107)-5,$I$97) ->  | I97: =SUM(I103:I107)-5 ->  | J97: =1-I102/E102 -> 0 | K97: relative to | L97: Prefer
J98: =1-I103/E103 ->  | K98: =MATCH(K99,ModView,0) -> 1 | L98: =MATCH(L99,ModView,0) -> 2
B99: Geometric | K99: =I4 -> Existing | L99: =I2 -> Standard | M99: %
C100: LW CMF | D100: =VLOOKUP(+D24,Construction!$C$3:$D$9,2) ->  | E100: =VLOOKUP(+E24,Construction!$C$3:$D$9,2) -> 1 | F100: =VLOOKUP(+F24,Construction!$C$3:$D$9,2) ->  | G100: =VLOOKUP(+G24,Construction!$C$3:$D$9,2) ->  | H100: =H24 -> 0 | I100: =VLOOKUP(+I24,Construction!$C$3:$D$9,2) -> 1 | K100: =INDEX($D100:$I100,K$98) ->  | L100: =INDEX($D100:$I100,L$98) -> 1 | M100: =IF(ISERROR(1-L100/K100), 0, 1-L100/K100) -> 0
C101: SW CMF | D101: =VLOOKUP(D25,Construction!$C$13:D23,2) -> 1.29 | E101: =VLOOKUP(E25,Construction!$C$13:E23,2) -> 1.09 | F101: =VLOOKUP(F25,Construction!$C$13:F23,2) -> 1.29 | G101: =VLOOKUP(G25,Construction!$C$13:G23,2) -> 1.29 | H101: =IF($I$2="Existing",(1-D101/E101),(IF($I$2="Design 1",(1-F101/E101),(IF($I$2="Design 2",(1-G101/E101),(IF($I$2="Optimal",(1-I101/E101),0))))))) -> 0 | I101: =VLOOKUP(I25,Construction!$C$13:I23,2) -> 0.9 | K101: =INDEX($D101:$I101,K$98) -> 1.29 | L101: =INDEX($D101:$I101,L$98) -> 1.09 | M101: =IF(ISERROR(1-L101/K101), 0, 1-L101/K101) -> 0.1550387597
C102: Placeholder for super deficincy | D102: 1 | E102: 1 | F102: 1 | G102: 1 | H102: 0 | I102: 1 | K102: =INDEX($D102:$I102,K$98) -> 1 | L102: =INDEX($D102:$I102,L$98) -> 1 | M102: 0
C103: HC and Grade | D103: =D$134^D$127 -> 1 | E103: =E$134^E$127 ->  | F103: =F$134^F$127 -> 1 | G103: =G$134^G$127 -> 1 | H103: 0 | I103: =I$134^I$127 ->  | K103: =INDEX($D103:$I103,K$98) -> 1 | L103: =INDEX($D103:$I103,L$98) ->  | M103: 0
C104: HC and VC Crest type I | D104: =D$135^D$128 -> 1 | E104: =E$135^E$128 -> 1 | F104: =F$135^F$128 -> 1 | G104: =G$135^G$128 -> 1 | H104: 0 | I104: =I$135^I$128 ->  | K104: =INDEX($D104:$I104,K$98) -> 1 | L104: =INDEX($D104:$I104,L$98) -> 1 | M104: 0
C105: HC and VC Sag type I | D105: =D$136^D$129 -> 1 | E105: =E$136^E$129 -> 1 | F105: =F$136^F$129 -> 1 | G105: =G$136^G$129 -> 1 | H105: 0 | I105: =I$136^I$129 ->  | K105: =INDEX($D105:$I105,K$98) -> 1 | L105: =INDEX($D105:$I105,L$98) -> 1 | M105: 0
C106: HC and VC Crest type II | D106: =D$137^D$130 -> 1 | E106: =E$137^E$130 -> 1 | F106: =F$137^F$130 -> 1 | G106: =G$137^G$130 -> 1 | H106: 0 | I106: =I$137^I$130 ->  | J106: =1-I111/E111 ->  | K106: =INDEX($D106:$I106,K$98) -> 1 | L106: =INDEX($D106:$I106,L$98) -> 1 | M106: 0
C107: HC and VC Sag type II | D107: =D$138^D$131 -> 1 | E107: =E$138^E$131 -> 1 | F107: =F$138^F$131 -> 1 | G107: =G$138^G$131 -> 1 | H107: 0 | I107: =I$138^I$131 ->  | J107: =1-I112/E112 ->  | K107: =INDEX($D107:$I107,K$98) -> 1 | L107: =INDEX($D107:$I107,L$98) -> 1 | M107: 0
C108: Add TWLTL | D108: =IF(D$43="No",1,CMFs!$F$17) -> 0.71 | E108: =IF(E$43="No",1,CMFs!$F$17) -> 1 | F108: =IF(F$43="No",1,CMFs!$F$17) -> 0.71 | G108: =IF(G$43="No",1,CMFs!$F$17) -> 0.71 | H108: 0 | I108: =IF(I$43="No",1,CMFs!$F$17) -> 1 | J108: =1-I113/E113 ->  | K108: =INDEX($D108:$I108,K$98) -> 0.71 | L108: =INDEX($D108:$I108,L$98) -> 1 | M108: -0.4084507042
C109: Passing Lane Type | D109: =IF(ISNUMBER(INDEX(PassLNCMF, MATCH(D44,Passing_Lane_Type,0))),INDEX(PassLNCMF, MATCH(D44,Passing_Lane_Type,0)),1) -> 1 | E109: =IF(ISNUMBER(INDEX(PassLNCMF, MATCH(E44,Passing_Lane_Type,0))),INDEX(PassLNCMF, MATCH(E44,Passing_Lane_Type,0)),1) -> 1 | F109: =IF(ISNUMBER(INDEX(PassLNCMF, MATCH(F44,Passing_Lane_Type,0))),INDEX(PassLNCMF, MATCH(F44,Passing_Lane_Type,0)),1) -> 1 | G109: =IF(ISNUMBER(INDEX(PassLNCMF, MATCH(G44,Passing_Lane_Type,0))),INDEX(PassLNCMF, MATCH(G44,Passing_Lane_Type,0)),1) -> 1 | H109: 0 | I109: =IF(ISNUMBER(INDEX(PassLNCMF, MATCH(I44,Passing_Lane_Type,0))),INDEX(PassLNCMF, MATCH(I44,Passing_Lane_Type,0)),1) -> 0.65 | J109: =1-I114/E114 ->  | K109: =INDEX($D109:$I109,K$98) -> 1 | L109: =INDEX($D109:$I109,L$98) -> 1 | M109: 0
J110: =I115/E115 -> 
C111: COMBINED Calculated CMF | D111: =+D100*D101*D102*D103*D104*D105*D106*D107*D108*D109 ->  | E111: =+E100*E101*E102*E103*E104*E105*E106*E107*E108*E109 ->  | F111: =+F100*F101*F102*F103*F104*F105*F106*F107*F108*F109 ->  | G111: =+G100*G101*G102*G103*G104*G105*G106*G107*G108*G109 ->  | H111: =IF($I$2="Existing",(D111),(IF($I$2="Design 1",(F111),(IF($I$2="Design 2",(G111),(IF($I$2="Optimal",(I111),E111))))))) ->  | I111: =+I100*I101*I102*I103*I104*I105*I106*I107*I108*I109 ->  | K111: =INDEX($D111:$I111,K$98) ->  | L111: =INDEX($D111:$I111,L$98) ->  | M111: =IF(ISERROR(1-L111/K111), 0, 1-L111/K111) -> 0
C112: Calculated Relative to Design Standards (Column E) | D112: =+D111/$E$111 ->  | K112: =INDEX($D112:$I112,K$98) ->  | L112: =INDEX($D112:$I112,L$98) ->  | M112: 0
C113: P(Crash) | D113: =+D112/(D112+1) ->  | K113: =INDEX($D113:$I113,K$98) ->  | L113: =INDEX($D113:$I113,L$98) ->  | M113: 0
C114: Factor Change on S curve | D114: =+D113/$E$113 ->  | K114: =INDEX($D114:$I114,K$98) ->  | L114: =INDEX($D114:$I114,L$98) ->  | M114: 0
C115: Adjust to Scale of 100 | D115: =+$I$114/D114*100 -> 
C116: Unadjusted Combined Relative to Standard | D116: =+D111/$E$111 ->  | K116: =INDEX($D116:$I116,K$98) ->  | L116: =INDEX($D116:$I116,L$98) ->  | M116: =IF(ISERROR(1-L116/K116), 0, 1-L116/K116) -> 0
J117: =I122/E122 -> 
C118: Adjusted for PA Basis | D118: =+D111*(1+1)/(1+D111*1) ->  | H118: =IF($I$2="Existing",(D118),(IF($I$2="Design 1",(F118),(IF($I$2="Design 2",(G118),(IF($I$2="Optimal",(I118),E118))))))) ->  | K118: =INDEX($D118:$I118,K$98) ->  | L118: =INDEX($D118:$I118,L$98) ->  | M118: =IF(ISERROR(1-L118/K118), 0, 1-L118/K118) -> 0
C119: Corrected by Odds Ratio | D119: =+D118/$E$118 ->  | H119: =IF($I$2="Existing",(D119),(IF($I$2="Design 1",(F119),(IF($I$2="Design 2",(G119),(IF($I$2="Optimal",(I119),E119))))))) ->  | K119: =INDEX($D119:$I119,K$98) ->  | L119: =INDEX($D119:$I119,L$98) ->  | M119: 0
C120: Pinned s | D120: =(1/D119)^$D123 ->  | J120: =I125/E125 ->  | K120: =INDEX($D120:$I120,K$98) ->  | L120: =INDEX($D120:$I120,L$98) ->  | M120: 0
D121: =(D120+$F124-1)/(1+(D120+$F124-1)) ->  | K121: =INDEX($D121:$I121,K$98) ->  | L121: =INDEX($D121:$I121,L$98) ->  | M121: 0
C122: Score Odds Ratio with Optimal (old) | D122: =MIN(ROUND($I$119/D119*Construction!$I$8,0),$I122) ->  | E122: =MIN(ROUND($I$119/E119*Construction!$I$8,0),$I122) ->  | F122: =MIN(ROUND($I$119/F119*Construction!$I$8,0),$I122) ->  | G122: =MIN(ROUND($I$119/G119*Construction!$I$8,0),$I122) ->  | H122: =IF($I$2="Existing",(D122),(IF($I$2="Design 1",(F122),(IF($I$2="Design 2",(G122),(IF($I$2="Optimal",(I122),E122))))))) ->  | I122: =ROUND($I$119/I119*Construction!$I$8,0) -> 
C123: Logistic1 | D123: =LN((D124/(1-D124))/(0.5/0.5))/LN($E119/I119) -> 
C124: Logistic Param | D124: 0.999 | F124: =0.7/0.3 -> 2.333333333
C125: Score | D125: =MIN(ROUND(D121*Construction!$I$8,0),$I122) ->  | E125: =MIN(ROUND(E121*Construction!$I$8,0),$I122) ->  | F125: =MIN(ROUND(F121*Construction!$I$8,0),$I122) ->  | G125: =MIN(ROUND(G121*Construction!$I$8,0),$I122) ->  | H125: =MIN(ROUND(H121*Construction!$I$8,0),$I122) ->  | I125: =MIN(ROUND(I121*Construction!$I$8,0),$I122) -> 
C127: HC and Grade | D127: =IF($B$135,0,1) -> 1 | E127: =IF($B$135,0,1) -> 1 | F127: =IF($B$135,0,1) -> 1 | G127: =IF($B$135,0,1) -> 1 | H127: =IF($I$2="Existing",(D127),(IF($I$2="Design 1",(F127),(IF($I$2="Design 2",(G127),(IF($I$2="Optimal",(I127),E127))))))) -> 1 | I127: =IF($B$135,0,1) -> 1
C128: HC and VC Crest type I | D128: =IF(AND($B$135=1,SIGN(D$36)=1,ABS(D$36)<=ABS(D$36-D$37),D$42="Crest"),1,0) -> 0 | E128: =IF(AND($B$135=1, SIGN(IF(ISNUMBER(E$36),E$36,0))=1,ABS(IF(ISNUMBER(E$36),E$36,0)) <= ABS(IF(ISNUMBER(E$36),E$36,0)-IF(ISNUMBER(E$37),E$37,0)),E$42="Crest"),1,0) -> 0 | F128: =IF(AND($B$135=1,SIGN(F$36)=1,ABS(F$36)<=ABS(F$36-F$37),F$42="Crest"),1,0) -> 0 | G128: =IF(AND($B$135=1,SIGN(G$36)=1,ABS(G$36)<=ABS(G$36-G$37),G$42="Crest"),1,0) -> 0 | H128: =IF($I$2="Existing",(D128),(IF($I$2="Design 1",(F128),(IF($I$2="Design 2",(G128),(IF($I$2="Optimal",(I128),E128))))))) -> 0 | I128: =IF(AND($B$135=1,SIGN(I$36)=1,ABS(I$36)<=ABS(I$36-IF(ISNUMBER(I$37), I$37,0)),I$42="Crest"),1,0) -> 
A129: HC? | C129: HC and VC Sag type I | D129: =IF(AND($B$135=1,SIGN(D$36)=1,ABS(D$36)<=ABS(D$36-D$37),D$42="Sag"),1,0) -> 0 | E129: =IF(AND($B$135=1, SIGN(IF(ISNUMBER(E$36),E$36,0))=1,ABS(IF(ISNUMBER(E$36),E$36,0)) <= ABS(IF(ISNUMBER(E$36),E$36,0)-IF(ISNUMBER(E$37),E$37,0)),E$42="Sag"),1,0) -> 0 | F129: =IF(AND($B$135=1,SIGN(F$36)=1,ABS(F$36)<=ABS(F$36-F$37),F$42="Sag"),1,0) -> 0 | G129: =IF(AND($B$135=1,SIGN(G$36)=1,ABS(G$36)<=ABS(G$36-G$37),G$42="Sag"),1,0) -> 0 | H129: =IF($I$2="Existing",(D129),(IF($I$2="Design 1",(F129),(IF($I$2="Design 2",(G129),(IF($I$2="Optimal",(I129),E129))))))) -> 0 | I129: =IF(AND($B$135=1,SIGN(I$36)=1,ABS(I$36)<=ABS(I$36-IF(ISNUMBER(I$37), I$37,0)),I$42="Sag"),1,0) -> 
A130: VC? | C130: HC and VC Crest type II | D130: =IF(AND($B$135=1,D$42="Crest",D$128=0),1,0) -> 0 | E130: =IF(AND($B$135=1,E$42="Crest",E$128=0),1,0) -> 0 | F130: =IF(AND($B$135=1,F$42="Crest",F$128=0),1,0) -> 0 | G130: =IF(AND($B$135=1,G$42="Crest",G$128=0),1,0) -> 0 | H130: =IF($I$2="Existing",(D130),(IF($I$2="Design 1",(F130),(IF($I$2="Design 2",(G130),(IF($I$2="Optimal",(I130),E130))))))) -> 0 | I130: =IF(AND($B$135=1,I$42="Crest",I$128=0),1,0) -> 
C131: HC and VC Sag type II | D131: =IF(AND($B$135=1,D$42="Sag",D$129=0),1,0) -> 0 | E131: =IF(AND($B$135=1,E$42="Sag",E$129=0),1,0) -> 0 | F131: =IF(AND($B$135=1,F$42="Sag",F$129=0),1,0) -> 0 | G131: =IF(AND($B$135=1,G$42="Sag",G$129=0),1,0) -> 0 | H131: =IF($I$2="Existing",(D131),(IF($I$2="Design 1",(F131),(IF($I$2="Design 2",(G131),(IF($I$2="Optimal",(I131),E131))))))) -> 0 | I131: =IF(AND($B$135=1,I$42="Sag",I$129=0),1,0) -> 
B132: Yes/No
C133: HC and VC: | E133: =EXP(0.042*ABS(D$36)+$B$134*0.16*LN(2*5730/IF(ISNUMBER(E$29),E$29,1))) -> 1
B134: =IF(B27="Yes",1,0) -> 0 | C134: HC and Grade | D134: =IF($B$135=0,EXP(0.042*ABS(D$36)+$B$134*0.16*LN(2*5730/D$141)+4.16*$B$134/D$141/IF(ISNUMBER(D$30),D$30,999999)),1) -> 1 | E134: =IF($B$135=0,EXP(0.042*ABS(E$36)+$B$134*0.16*LN(2*5730/E$141)+4.16*$B$134/E$141/IF(ISNUMBER(E$30),E$30,999999)),1) ->  | F134: 1 | G134: 1 | H134: =IF($B$135=0,EXP(0.042*ABS(H$36)+$B$134*0.16*LN(2*5730/IF(ISNUMBER(H$29),H$29,1))+4.16*$B$134/IF(ISNUMBER(H$29),H$29,1)/IF(ISNUMBER(H$30),H$30,1)),1) ->  | K134: =INDEX($D134:$I134,K$98) -> 1 | L134: =INDEX($D134:$I134,L$98) ->  | M134: =IF(ISERROR(1-L134/K134), 0, 1-L134/K134) -> 0
B135: =IF(B34="Yes",1,0) -> 0 | C135: HC and VC Crest type I | D135: =IF($B$135=0,1,EXP(0.005648908*5730*ABS(+D$36-D$37)*$B$135/D$141*$B$134)) -> 1 | E135: =IF($B$135=0,1,EXP(0.005648908*5730*ABS(+E$36-E$37)*$B$135/E$141*$B$134)) -> 1 | F135: 1 | G135: 1 | H135: =IF($I$2="Existing",(D135),(IF($I$2="Design 1",(F135),(IF($I$2="Design 2",(G135),(IF($I$2="Optimal",(I135),E135))))))) -> 1 | I135: 1 | K135: =INDEX($D135:$I135,K$98) -> 1 | L135: =INDEX($D135:$I135,L$98) -> 1 | M135: 0
C136: HC and VC Sag type I | D136: =IF($B$135=0,1,EXP(9.15857042*$B$135/D$142+0.010284958*5730*$B$135*$B$134*ABS(+D$36-D$37)/D$141)) -> 1 | E136: =IF($B$135=0,1,EXP(9.15857042*$B$135/E$142+0.010284958*5730*$B$135*$B$134*ABS(+E$36-E$37)/E$141)) -> 1 | F136: 1 | G136: 1 | H136: =IF($I$2="Existing",(D136),(IF($I$2="Design 1",(F136),(IF($I$2="Design 2",(G136),(IF($I$2="Optimal",(I136),E136))))))) -> 1 | I136: 1 | K136: =INDEX($D136:$I136,K$98) -> 1 | L136: =INDEX($D136:$I136,L$98) -> 1 | M136: 0
C137: HC and VC Crest type II | D137: =IF($B$135=0,1,EXP(0.005648908*5730*ABS(+D$36-D$37)*$B$135/D$141*$B$134)) -> 1 | E137: =IF($B$135=0,1,EXP(0.005648908*5730*ABS(+E$36-E$37)*$B$135/E$141*$B$134)) -> 1 | F137: 1 | G137: 1 | H137: =IF($I$2="Existing",(D137),(IF($I$2="Design 1",(F137),(IF($I$2="Design 2",(G137),(IF($I$2="Optimal",(I137),E137))))))) -> 1 | I137: 1 | K137: =INDEX($D137:$I137,K$98) -> 1 | L137: =INDEX($D137:$I137,L$98) -> 1 | M137: 0
C138: HC and VC Sag type II | D138: =IF($B$135=0,1,(0.246011284*EXP(LN(0.188*2*5730/D$141)*$B$134)+0.7514288716*EXP(0.022*5730/D$141*ABS(D$36-D$37)*$B$135*$B$134))) -> 1 | E138: =IF($B$135=0,1,(0.246011284*EXP(LN(0.188*2*5730/E$141)*$B$134)+0.7514288716*EXP(0.022*5730/E$141*ABS(E$36-E$37)*$B$135*$B$134))) -> 1 | F138: 1 | G138: 1 | H138: =IF($I$2="Existing",(D138),(IF($I$2="Design 1",(F138),(IF($I$2="Design 2",(G138),(IF($I$2="Optimal",(I138),E138))))))) -> 1 | I138: 1 | K138: =INDEX($D138:$I138,K$98) -> 1 | L138: =INDEX($D138:$I138,L$98) -> 1 | M138: 0
C140: Combined HZ and VT | D140: =MMULT(TRANSPOSE(D127:D131),D134:D138) -> 1 | E140: =MMULT(TRANSPOSE(E127:E131),E134:E138) ->  | F140: =MMULT(TRANSPOSE(F127:F131),F134:F138) -> 1 | G140: =MMULT(TRANSPOSE(G127:G131),G134:G138) -> 1 | H140: =IF($I$2="Existing",(D140),(IF($I$2="Design 1",(F140),(IF($I$2="Design 2",(G140),(IF($I$2="Optimal",(I140),E140))))))) ->  | I140: =MMULT(TRANSPOSE(I127:I131),I134:I138) ->  | K140: =INDEX($D140:$I140,K$98) -> 1 | L140: =INDEX($D140:$I140,L$98) ->  | M140: =IF(ISERROR(1-L140/K140), 0, 1-L140/K140) -> 0
C141: effective R for calculation | D141: =IF(ISNUMBER(D29), D29, 99999999) -> 99999999 | E141: =IF(ISNUMBER(E29), E29, 99999999) -> 590 | F141: 99999999 | G141: 99999999 | I141: 590
C142: effective K for calculation | D142: =IF(ISNUMBER(D39), D39, 9999999) -> 9999999 | E142: =IF(ISNUMBER(E39), E39, 9999999) -> 9999999 | F142: 9999999 | G142: 9999999 | I142: 9999999
B143: Traffic
D144: Existing | E144: Standard | F144: Design 1 | G144: Design 2
C145: Advance static curve warning signs | D145: =IF(AND($B$27="Yes",D$52="Yes"),(Traffic!$F$4-1)*AVERAGE(Constraints!$F$37,Constraints!$H$37)/Constraints!$D$37+1,1) -> 1 | E145: =IF(AND($B$27="Yes",E$52="Yes"),(Traffic!$F$4-1)*AVERAGE(Constraints!$F$37,Constraints!$H$37)/Constraints!$D$37+1,1) -> 1 | F145: =IF(AND($B$27="Yes",F$52="Yes"),(Traffic!$F$4-1)*AVERAGE(Constraints!$F$37,Constraints!$H$37)/Constraints!$D$37+1,1) -> 1 | G145: =IF(AND($B$27="Yes",G$52="Yes"),(Traffic!$F$4-1)*AVERAGE(Constraints!$F$37,Constraints!$H$37)/Constraints!$D$37+1,1) -> 1 | H145: =IF($I$2="Existing",(D145),(IF($I$2="Design 1",(F145),(IF($I$2="Design 2",(G145),(IF($I$2="Optimal",(I145),E145))))))) -> 1 | I145: =IF(AND($B$27="Yes",I$52="Yes"),(Traffic!$F$4-1)*AVERAGE(Constraints!$F$37,Constraints!$H$37)/Constraints!$D$37+1,1) -> 1 | K145: =INDEX($D145:$I145,K$98) -> 1 | L145: =INDEX($D145:$I145,L$98) -> 1 | M145: =IF(ISERROR(1-L145/K145), 0, 1-L145/K145) -> 0
C146: Install chevron signs on horizontal curves | D146: =IF(D$53="No",1,(IF(AND($B$27="Yes",D$24<11.5),((Traffic!$F$6-1)*(Constraints!$E$35+Constraints!$E$31))+1,1))) -> 1 | E146: =IF(E$53="No",1,(IF(AND($B$27="Yes",E$24<11.5),((Traffic!$F$6-1)*(Constraints!$E$35+Constraints!$E$31))+1,1))) -> 1 | F146: =IF(F$53="No",1,(IF(AND($B$27="Yes",F$24<11.5),((Traffic!$F$6-1)*(Constraints!$E$35+Constraints!$E$31))+1,1))) -> 1 | G146: =IF(G$53="No",1,(IF(AND($B$27="Yes",G$24<11.5),((Traffic!$F$6-1)*(Constraints!$E$35+Constraints!$E$31))+1,1))) -> 1 | H146: =IF($I$2="Existing",(D146),(IF($I$2="Design 1",(F146),(IF($I$2="Design 2",(G146),(IF($I$2="Optimal",(I146),E146))))))) -> 1 | I146: =IF(I$53="No",1,(IF(AND($B$27="Yes",I$24<11.5),((Traffic!$F$6-1)*(Constraints!$E$35+Constraints!$E$31))+1,1))) -> 1 | K146: =INDEX($D146:$I146,K$98) -> 1 | L146: =INDEX($D146:$I146,L$98) -> 1 | M146: 0
C147: Install post-mounted delineators | D147: =IF(AND($B$27="Yes",D$54="Yes"),(Traffic!$F$12-1)*Constraints!$E$36+1,1) -> 1 | E147: =IF(AND($B$27="Yes",E$54="Yes"),(Traffic!$F$12-1)*Constraints!$E$36+1,1) -> 1 | F147: =IF(AND($B$27="Yes",F$54="Yes"),(Traffic!$F$12-1)*Constraints!$E$36+1,1) -> 1 | G147: =IF(AND($B$27="Yes",G$54="Yes"),(Traffic!$F$12-1)*Constraints!$E$36+1,1) -> 1 | H147: =IF($I$2="Existing",(D147),(IF($I$2="Design 1",(F147),(IF($I$2="Design 2",(G147),(IF($I$2="Optimal",(I147),E147))))))) -> 1 | I147: =IF(AND($B$27="Yes",I$54="Yes"),(Traffic!$F$12-1)*Constraints!$E$36+1,1) -> 1 | K147: =INDEX($D147:$I147,K$98) -> 1 | L147: =INDEX($D147:$I147,L$98) -> 1 | M147: 0
C148: Install edgeline or Profile pavement markings | D148: =IF(D$55="Yes",Traffic!$F$18*0.5+((Traffic!$F$20*(Constraints!$H$36+Constraints!$H$32)+1*(Constraints!$H$37-(Constraints!$H$36+Constraints!$H$32)))/Constraints!$H$37)*0.5,1) -> 1 | E148: =IF(E$55="Yes",Traffic!$F$18*0.5+((Traffic!$F$20*(Constraints!$H$36+Constraints!$H$32)+1*(Constraints!$H$37-(Constraints!$H$36+Constraints!$H$32)))/Constraints!$H$37)*0.5,1) -> 0.8617588131 | F148: =IF(F$55="Yes",Traffic!$F$18*0.5+((Traffic!$F$20*(Constraints!$H$36+Constraints!$H$32)+1*(Constraints!$H$37-(Constraints!$H$36+Constraints!$H$32)))/Constraints!$H$37)*0.5,1) -> 1 | G148: =IF(G$55="Yes",Traffic!$F$18*0.5+((Traffic!$F$20*(Constraints!$H$36+Constraints!$H$32)+1*(Constraints!$H$37-(Constraints!$H$36+Constraints!$H$32)))/Constraints!$H$37)*0.5,1) -> 1 | H148: =IF($I$2="Existing",(D148),(IF($I$2="Design 1",(F148),(IF($I$2="Design 2",(G148),(IF($I$2="Optimal",(I148),E148))))))) -> 0.8617588131 | I148: =IF(I$55="Yes",Traffic!$F$18*0.5+((Traffic!$F$20*(Constraints!$H$36+Constraints!$H$32)+1*(Constraints!$H$37-(Constraints!$H$36+Constraints!$H$32)))/Constraints!$H$37)*0.5,1) -> 0.8617588131 | K148: =INDEX($D148:$I148,K$98) -> 1 | L148: =INDEX($D148:$I148,L$98) -> 0.8617588131 | M148: 0.1382411869
C149: Profiles | D149: 1 | E149: 1 | F149: 1 | G149: 1 | H149: 1 | I149: 1 | K149: =INDEX($D149:$I149,K$98) -> 1 | L149: =INDEX($D149:$I149,L$98) -> 1 | M149: 0
C150: Shoulder rumble strips | D150: =IF(D$56="No",1,(Traffic!$F$27*(Constraints!$H$36+Constraints!$H$32)+1*(Constraints!$H$37-(Constraints!$H$36+Constraints!$H$32)))/Constraints!$H$37) -> 0.8976095069 | E150: =IF(E$56="No",1,(Traffic!$F$27*(Constraints!$H$36+Constraints!$H$32)+1*(Constraints!$H$37-(Constraints!$H$36+Constraints!$H$32)))/Constraints!$H$37) -> 0.8976095069 | F150: =IF(F$56="No",1,(Traffic!$F$27*(Constraints!$H$36+Constraints!$H$32)+1*(Constraints!$H$37-(Constraints!$H$36+Constraints!$H$32)))/Constraints!$H$37) -> 0.8976095069 | G150: =IF(G$56="No",1,(Traffic!$F$27*(Constraints!$H$36+Constraints!$H$32)+1*(Constraints!$H$37-(Constraints!$H$36+Constraints!$H$32)))/Constraints!$H$37) -> 0.8976095069 | H150: =IF($I$2="Existing",(D150),(IF($I$2="Design 1",(F150),(IF($I$2="Design 2",(G150),(IF($I$2="Optimal",(I150),E150))))))) -> 0.8976095069 | I150: =IF(I$56="No",1,(Traffic!$F$27*(Constraints!$H$36+Constraints!$H$32)+1*(Constraints!$H$37-(Constraints!$H$36+Constraints!$H$32)))/Constraints!$H$37) -> 0.8976095069 | K150: =INDEX($D150:$I150,K$98) -> 0.8976095069 | L150: =INDEX($D150:$I150,L$98) -> 0.8976095069 | M150: 0
C151: Install centerline rumble strips | D151: =IF(D$57="No",1,Traffic!$F$30) -> 0.86 | E151: =IF(E$57="No",1,Traffic!$F$30) -> 1 | F151: =IF(F$57="No",1,Traffic!$F$30) -> 0.86 | G151: =IF(G$57="No",1,Traffic!$F$30) -> 0.86 | H151: =IF($I$2="Existing",(D151),(IF($I$2="Design 1",(F151),(IF($I$2="Design 2",(G151),(IF($I$2="Optimal",(I151),E151))))))) -> 1 | I151: =IF(I$57="No",1,Traffic!$F$30) -> 0.86 | K151: =INDEX($D151:$I151,K$98) -> 0.86 | L151: =INDEX($D151:$I151,L$98) -> 1 | M151: -0.1627906977
C152: Driveway Density (driveways per mile) | D152: =EXP(-LN(Traffic!$F$32)*(D$58-$E$58)) -> 0.8170728069 | E152: =EXP(-LN(Traffic!$F$32)*(E$58-$E$58)) -> 1 | F152: =EXP(-LN(Traffic!$F$32)*(F$58-$E$58)) -> 0.8170728069 | G152: =EXP(-LN(Traffic!$F$32)*(G$58-$E$58)) -> 0.8170728069 | H152: =IF($I$2="Existing",(D152),(IF($I$2="Design 1",(F152),(IF($I$2="Design 2",(G152),(IF($I$2="Optimal",(I152),E152))))))) -> 1 | I152: =EXP(-LN(Traffic!$F$32)*(I$58-$E$58)) -> 0.8170728069 | K152: =INDEX($D152:$I152,K$98) -> 0.8170728069 | L152: =INDEX($D152:$I152,L$98) -> 1 | M152: -0.223881142
C153: Install lighting | D153: =IF(D$59="No",1,1-(((1-Traffic!$F$55*Constraints!$H$37-Constraints!$F$37/3)+((1-Traffic!$F$55*Constraints!$D$37-Constraints!$H$37)))*$S$19+((1-Traffic!$F$57)*Constraints!$F$37/3))/Constraints!$D$37) -> 0.9770404469 | E153: =IF(E$59="No",1,1-(((1-Traffic!$F$55*Constraints!$H$37-Constraints!$F$37/3)+((1-Traffic!$F$55*Constraints!$D$37-Constraints!$H$37)))*$S$19+((1-Traffic!$F$57)*Constraints!$F$37/3))/Constraints!$D$37) -> 1 | F153: =IF(F$59="No",1,1-(((1-Traffic!$F$55*Constraints!$H$37-Constraints!$F$37/3)+((1-Traffic!$F$55*Constraints!$D$37-Constraints!$H$37)))*$S$19+((1-Traffic!$F$57)*Constraints!$F$37/3))/Constraints!$D$37) -> 0.9770404469 | G153: =IF(G$59="No",1,1-(((1-Traffic!$F$55*Constraints!$H$37-Constraints!$F$37/3)+((1-Traffic!$F$55*Constraints!$D$37-Constraints!$H$37)))*$S$19+((1-Traffic!$F$57)*Constraints!$F$37/3))/Constraints!$D$37) -> 0.9770404469 | H153: =IF($I$2="Existing",(D153),(IF($I$2="Design 1",(F153),(IF($I$2="Design 2",(G153),(IF($I$2="Optimal",(I153),E153))))))) -> 1 | I153: =IF(I$59="No",1,1-(((1-Traffic!$F$55*Constraints!$H$37-Constraints!$F$37/3)+((1-Traffic!$F$55*Constraints!$D$37-Constraints!$H$37)))*$S$19+((1-Traffic!$F$57)*Constraints!$F$37/3))/Constraints!$D$37) -> 0.9770404469 | K153: =INDEX($D153:$I153,K$98) -> 0.9770404469 | L153: =INDEX($D153:$I153,L$98) -> 1 | M153: -0.02349908153
C154: Pavement friction (skid number) | D154: =EXP(LN(Traffic!$F$49)*(D$60-$E$60)) -> 1.397252142 | E154: =EXP(LN(Traffic!$F$49)*(E$60-$E$60)) -> 1 | F154: =IF(MATCH(F60,SkidNums,0)=3, $D154,EXP(LN(Traffic!$F$49)*(RIGHT(F$60,2)-$E$60))) ->  | G154: =IF(MATCH(G60,SkidNums,0)=3, $D154,EXP(LN(Traffic!$F$49)*(RIGHT(G$60,2)-$E$60))) ->  | H154: =IF($I$2="Existing",(D154),(IF($I$2="Design 1",(F154),(IF($I$2="Design 2",(G154),(IF($I$2="Optimal",(I154),E154))))))) -> 1 | I154: =EXP(LN(Traffic!$F$49)*(I$60-$E$60)) -> 0.8575355363 | K154: =INDEX($D154:$I154,K$98) -> 1.397252142 | L154: =INDEX($D154:$I154,L$98) -> 1 | M154: 0.2843095602
C157: COMBINED Calculated CMF | D157: =+D145*D146*D147*D148*D149*D150*D151*D152*D153*D154 -> 0.8610611179 | E157: =+E145*E146*E147*E148*E149*E150*E151*E152*E153*E154 -> 0.7735229033 | F157: =+F145*F146*F147*F148*F149*F150*F151*F152*F153*F154 ->  | G157: =+G145*G146*G147*G148*G149*G150*G151*G152*G153*G154 ->  | H157: =IF($I$2="Existing",(D157),(IF($I$2="Design 1",(F157),(IF($I$2="Design 2",(G157),(IF($I$2="Optimal",(I157),E157))))))) -> 0.7735229033 | I157: =+I145*I146*I147*I148*I149*I150*I151*I152*I153*I154 -> 0.4554042239 | K157: =INDEX($D157:$I157,K$98) -> 0.8610611179 | L157: =INDEX($D157:$I157,L$98) -> 0.7735229033 | M157: =IF(ISERROR(1-L157/K157), 0, 1-L157/K157) -> 0.1016631837
C158: Calculated Relative to Design Standards (Column E) | D158: =+D157/$E$157 -> 1.113168226 | E158: =+E157/$E$157 -> 1 | F158: =+F157/$E$157 ->  | G158: =+G157/$E$157 ->  | H158: 1 | I158: =+I157/$E$157 -> 0.5887404523 | K158: =INDEX($D158:$I158,K$98) -> 1.113168226 | L158: =INDEX($D158:$I158,L$98) -> 1 | M158: 0.1016631837
C159: P(Crash) | D159: =+D158/(D158+1) -> 0.5267769088 | E159: =+E158/(E158+1) -> 0.5 | F159: =+F158/(F158+1) ->  | G159: =+G158/(G158+1) ->  | H159: 0.5 | I159: =+I158/(I158+1) -> 0.3705705683
C160: Factor Change on S curve | D160: =+D159/$E$159 -> 1.053553818 | E160: =+E159/$E$159 -> 1 | F160: =+F159/$E$159 ->  | G160: =+G159/$E$159 ->  | H160: 1 | I160: =+I159/$E$159 -> 0.7411411366
C161: Adjust to Scale of 100 | D161: =+$I$114/D160*100 ->  | E161: =+$I$114/E160*100 ->  | F161: =+$I$114/F160*100 ->  | G161: =+$I$114/G160*100 ->  | I161: =+$I$114/I160*100 -> 
C162: Unadjusted Combined Relative to Standard | D162: =+D157/$E$157 -> 1.113168226 | E162: =+E157/$E$157 -> 1 | F162: =+F157/$E$157 ->  | G162: =+G157/$E$157 ->  | H162: 1 | I162: =+I157/$E$157 -> 0.5887404523
H163: 0 | J163: =I168/E168 -> 1.428571429
C164: Adjusted for PA Basis | D164: =+D157*(1+1)/(1+D157*1) -> 0.9253442669 | E164: =+E157*(1+1)/(1+E157*1) -> 0.8723010025 | F164: =+F157*(1+1)/(1+F157*1) ->  | G164: =+G157*(1+1)/(1+G157*1) ->  | H164: 0.8723010025 | I164: =+I157*(1+1)/(1+I157*1) -> 0.6258113264
C165: Corrected by Odds Ratio | D165: =+D164/$E$164 -> 1.060808441 | E165: =+E164/$E$164 -> 1 | F165: =+F164/$E$164 ->  | G165: =+G164/$E$164 ->  | H165: 1 | I165: =+I164/$E$164 -> 0.7174258938
D166: =(1/D165)^$D169 -> 0.2929539947 | E166: 1 | H166: 1 | I166: 999 | J166: =I171/E171 -> 1.428571429
D167: =(D166+$F170-1)/(1+(D166+$F170-1)) -> 0.6192343506 | E167: 0.7 | H167: 0.7 | I167: 0.9990013316
C168: Score Odds Ratio with Optimal as 100 (old) | D168: =MIN(ROUND($I$165/D165*Construction!$I$9,0),$I168) -> 14 | E168: =MIN(ROUND($I$165/E165*Construction!$I$9,0),$I168) -> 14 | F168: =MIN(ROUND($I$165/F165*Construction!$I$9,0),$I168) ->  | G168: =MIN(ROUND($I$165/G165*Construction!$I$9,0),$I168) ->  | I168: =ROUND($I$165/I165*Construction!$I$9,0) -> 20
C169: Logistic1 | D169: =LN((D170/(1-D170))/(0.5/0.5))/LN($E165/I165) -> 20.79811455
C170: Logistic Param | D170: 0.999 | F170: =0.7/0.3 -> 2.333333333
C171: Score | D171: =MIN(ROUND(D167*Construction!$I$9,0),$I168) -> 12 | E171: =MIN(ROUND(E167*Construction!$I$9,0),$I168) -> 14 | F171: =MIN(ROUND(F167*Construction!$I$9,0),$I168) ->  | G171: =MIN(ROUND(G167*Construction!$I$9,0),$I168) ->  | I171: =MIN(ROUND(I167*Construction!$I$9,0),$I168) -> 20
B178: Roadsde | D178: Existing | E178: Standard | F178: Design 1 | G178: Design 2
D179: =MID(D72,FIND(":",D72,1)+1,FIND("H",D72,1)-FIND(":",D72,1)-1)+0 ->  | E179: =MID(E72,FIND(":",E72,1)+1,FIND("H",E72,1)-FIND(":",E72,1)-1)+0 -> 4 | F179: =MID(F72,FIND(":",F72,1)+1,FIND("H",F72,1)-FIND(":",F72,1)-1)+0 ->  | G179: =MID(G72,FIND(":",G72,1)+1,FIND("H",G72,1)-FIND(":",G72,1)-1)+0 ->  | I179: =MID(I72,FIND(":",I72,1)+1,FIND("H",I72,1)-FIND(":",I72,1)-1)+0 -> 6 | K179: =INDEX($D179:$I179,K$98) ->  | L179: =INDEX($D179:$I179,L$98) -> 4 | M179: =IF(ISERROR(1-L179/K179), 0, 1-L179/K179) -> 0
C180: Sideslope (Foreslope) | D180: =IF(D179<=3,1,IF(OR(D179=4,D179=5),(Roadside!$F$15-1)*Constraints!$H$37/Constraints!$D$37+1,(Roadside!$F$15*Roadside!$F$16-1)*Constraints!$H$37/Constraints!$D$37+1)) ->  | E180: =IF(E179<=3,1,IF(OR(E179=4,E179=5),(Roadside!$F$15-1)*Constraints!$H$37/Constraints!$D$37+1,(Roadside!$F$15*Roadside!$F$16-1)*Constraints!$H$37/Constraints!$D$37+1)) -> 0.8286893555 | F180: =IF(F179<=3,1,IF(OR(F179=4,F179=5),(Roadside!$F$15-1)*Constraints!$H$37/Constraints!$D$37+1,(Roadside!$F$15*Roadside!$F$16-1)*Constraints!$H$37/Constraints!$D$37+1)) ->  | G180: =IF(G179<=3,1,IF(OR(G179=4,G179=5),(Roadside!$F$15-1)*Constraints!$H$37/Constraints!$D$37+1,(Roadside!$F$15*Roadside!$F$16-1)*Constraints!$H$37/Constraints!$D$37+1)) ->  | H180: =IF($I$2="Existing",(D180),(IF($I$2="Design 1",(F180),(IF($I$2="Design 2",(G180),(IF($I$2="Optimal",(I180),E180))))))) -> 0.8286893555 | I180: =IF(I179<=3,1,IF(OR(I179=4,I179=5),(Roadside!$F$15-1)*Constraints!$H$37/Constraints!$D$37+1,(Roadside!$F$15*Roadside!$F$16-1)*Constraints!$H$37/Constraints!$D$37+1)) -> 0.7766435502 | K180: =INDEX($D180:$I180,K$98) ->  | L180: =INDEX($D180:$I180,L$98) -> 0.8286893555 | M180: 0
C181: Backslope | D181: 1 | E181: 1 | F181: 1 | G181: 1 | H181: =IF($I$2="Existing",(D181),(IF($I$2="Design 1",(F181),(IF($I$2="Design 2",(G181),(IF($I$2="Optimal",(I181),E181))))))) -> 1 | I181: 1 | K181: =INDEX($D181:$I181,K$98) -> 1 | L181: =INDEX($D181:$I181,L$98) -> 1 | M181: 0
C182: SafetyEdge | D182: =IF(D$74="No",1,(Roadside!$F$23-1)*AVERAGE(Constraints!$H$37,Constraints!$F$37)/Constraints!$D$37+1) -> 0.9725838419 | E182: =IF(E$74="No",1,(Roadside!$F$23-1)*AVERAGE(Constraints!$H$37,Constraints!$F$37)/Constraints!$D$37+1) -> 1 | F182: =IF(F$74="No",1,(Roadside!$F$23-1)*AVERAGE(Constraints!$H$37,Constraints!$F$37)/Constraints!$D$37+1) -> 0.9725838419 | G182: =IF(G$74="No",1,(Roadside!$F$23-1)*AVERAGE(Constraints!$H$37,Constraints!$F$37)/Constraints!$D$37+1) -> 0.9725838419 | H182: =IF($I$2="Existing",(D182),(IF($I$2="Design 1",(F182),(IF($I$2="Design 2",(G182),(IF($I$2="Optimal",(I182),E182))))))) -> 1 | I182: =IF(I$74="No",1,(Roadside!$F$23-1)*AVERAGE(Constraints!$H$37,Constraints!$F$37)/Constraints!$D$37+1) -> 0.9725838419 | K182: =INDEX($D182:$I182,K$98) -> 0.9725838419 | L182: =INDEX($D182:$I182,L$98) -> 1 | M182: -0.02818899192
C183: Lateral Clearance (ft) | D183: =IF($B$27="Yes",((EXP(LN(Roadside!$F$11)*(IF(D$76="None",40,D$75)-30)/30)-1))*Constraints!$H$36/Constraints!$D$37+1,((EXP(LN(Roadside!$F$10)*(IF(D$76="None",40,D$75)-30)/30)-1))*Constraints!$H$36/Constraints!$D$37+1) -> 1.099272149 | E183: =IF($B$27="Yes",((EXP(LN(Roadside!$F$11)*(IF(E$76="None",40,E$75)-30)/30)-1))*Constraints!$H$36/Constraints!$D$37+1,((EXP(LN(Roadside!$F$10)*(IF(E$76="None",40,E$75)-30)/30)-1))*Constraints!$H$36/Constraints!$D$37+1) -> 1 | F183: =IF($B$27="Yes",((EXP(LN(Roadside!$F$11)*(IF(F$76="None",40,F$75)-30)/30)-1))*Constraints!$H$36/Constraints!$D$37+1,((EXP(LN(Roadside!$F$10)*(IF(F$76="None",40,F$75)-30)/30)-1))*Constraints!$H$36/Constraints!$D$37+1) -> 1.099272149 | G183: =IF($B$27="Yes",((EXP(LN(Roadside!$F$11)*(IF(G$76="None",40,G$75)-30)/30)-1))*Constraints!$H$36/Constraints!$D$37+1,((EXP(LN(Roadside!$F$10)*(IF(G$76="None",40,G$75)-30)/30)-1))*Constraints!$H$36/Constraints!$D$37+1) -> 1.099272149 | H183: =IF($I$2="Existing",(D183),(IF($I$2="Design 1",(F183),(IF($I$2="Design 2",(G183),(IF($I$2="Optimal",(I183),E183))))))) -> 1 | I183: =IF($B$27="Yes",((EXP(LN(Roadside!$F$11)*(IF(I$76="None",40,I$75)-30)/30)-1))*Constraints!$H$36/Constraints!$D$37+1,((EXP(LN(Roadside!$F$10)*(IF(I$76="None",40,I$75)-30)/30)-1))*Constraints!$H$36/Constraints!$D$37+1) -> 0.9745518437 | K183: =INDEX($D183:$I183,K$98) -> 1.099272149 | L183: =INDEX($D183:$I183,L$98) -> 1 | M183: 0.09030716297
C184: Fixed Object Type | D184: =IF(D$76="Guardrail",(Roadside!$F$25-1)*(($I$75-D$75)/$I$75)^2*Constraints!$H$36/Constraints!$D$37+1,1) -> 1 | E184: =IF(E$76="Guardrail",(Roadside!$F$25-1)*(($I$75-E$75)/$I$75)^2*Constraints!$H$36/Constraints!$D$37+1,1) -> 1 | F184: =IF(F$76="Guardrail",(Roadside!$F$25-1)*(($I$75-F$75)/$I$75)^2*Constraints!$H$36/Constraints!$D$37+1,1) -> 1 | G184: =IF(G$76="Guardrail",(Roadside!$F$25-1)*(($I$75-G$75)/$I$75)^2*Constraints!$H$36/Constraints!$D$37+1,1) -> 1 | H184: =IF($I$2="Existing",(D184),(IF($I$2="Design 1",(F184),(IF($I$2="Design 2",(G184),(IF($I$2="Optimal",(I184),E184))))))) -> 1 | I184: =IF(I$76="Guardrail",(Roadside!$F$25-1)*(($I$75-I$75)/$I$75)^2*Constraints!$H$36/Constraints!$D$37+1,1) -> 1 | K184: =INDEX($D184:$I184,K$98) -> 1 | L184: =INDEX($D184:$I184,L$98) -> 1 | M184: 0
C187: COMBINED Calculated CMF | D187: =+D180*D181*D182*D183*D184 ->  | E187: =+E180*E181*E182*E183*E184 -> 0.8286893555 | F187: =+F180*F181*F182*F183*F184 ->  | G187: =+G180*G181*G182*G183*G184 ->  | H187: =IF($I$2="Existing",(D187),(IF($I$2="Design 1",(F187),(IF($I$2="Design 2",(G187),(IF($I$2="Optimal",(I187),E187))))))) -> 0.8286893555 | I187: =+I180*I181*I182*I183*I184 -> 0.7361286784
C188: Calculated Relative to Design Standards (Column E) | D188: =+D187/$E$187 ->  | E188: =+E187/$E$187 -> 1 | F188: =+F187/$E$187 ->  | G188: =+G187/$E$187 ->  | H188: 1 | I188: =+I187/$E$187 -> 0.8883047351
C189: P(Crash) | D189: =+D188/(D188+1) ->  | E189: =+E188/(E188+1) -> 0.5 | F189: =+F188/(F188+1) ->  | G189: =+G188/(G188+1) ->  | H189: 0.5 | I189: =+I188/(I188+1) -> 0.4704244599
C190: Factor Change on S curve | D190: =+D189/$E$189 ->  | E190: =+E189/$E$189 -> 1 | F190: =+F189/$E$189 ->  | G190: =+G189/$E$189 ->  | H190: 1 | I190: =+I189/$E$189 -> 0.9408489197
C191: Adjust to Scale of 100 | D191: =+$I$114/D190*100 ->  | E191: =+$I$114/E190*100 ->  | F191: =+$I$114/F190*100 ->  | G191: =+$I$114/G190*100 ->  | I191: =+$I$114/I190*100 -> 
C192: Unadjusted Combined Relative to Standard | D192: =+D187/$E$187 ->  | E192: =+E187/$E$187 -> 1 | F192: =+F187/$E$187 ->  | G192: =+G187/$E$187 ->  | H192: 1 | I192: =+I187/$E$187 -> 0.8883047351
J193: =I198/E198 -> 1.111111111
C194: Adjusted for PA Basis | D194: =+D187*(1+1)/(1+D187*1) ->  | E194: =+E187*(1+1)/(1+E187*1) -> 0.9063205328 | F194: =+F187*(1+1)/(1+F187*1) ->  | G194: =+G187*(1+1)/(1+G187*1) ->  | H194: =IF($I$2="Existing",(D194),(IF($I$2="Design 1",(F194),(IF($I$2="Design 2",(G194),(IF($I$2="Optimal",(I194),E194))))))) -> 0.9063205328 | I194: =+I187*(1+1)/(1+I187*1) -> 0.8480116567
C195: Corrected by Odds Ratio | D195: =+D187/$E$187 ->  | E195: =+E187/$E$187 -> 1 | F195: =+F187/$E$187 ->  | G195: =+G187/$E$187 ->  | H195: =IF($I$2="Existing",(D195),(IF($I$2="Design 1",(F195),(IF($I$2="Design 2",(G195),(IF($I$2="Optimal",(I195),E195))))))) -> 1 | I195: =+I187/$E$187 -> 0.8883047351
D196: =(1/D195)^$D199 ->  | E196: 1 | H196: 1 | I196: 999 | J196: =I201/E201 -> 1.481481481
D197: =(D196+$F200-1)/(1+(D196+$F200-1)) ->  | E197: 0.6666666667 | H197: 0.6666666667 | I197: 0.999000999
C198: Score Odds Ratio with Optimal as 100 (old) | D198: =MIN(ROUND($I$195/D195*Construction!$I$10,0),$I198) ->  | E198: =MIN(ROUND($I$195/E195*Construction!$I$10,0),$I198) -> 36 | F198: =MIN(ROUND($I$195/F195*Construction!$I$10,0),$I198) ->  | G198: =MIN(ROUND($I$195/G195*Construction!$I$10,0),$I198) ->  | I198: =ROUND($I$195/I195*Construction!$I$10,0) -> 40
C199: Logistic1 | D199: =LN((D200/(1-D200))/(0.5/0.5))/LN($E195/I195) -> 58.3141676
C200: Logistic Param | D200: 0.999 | F200: 2
C201: Score | D201: =MIN(ROUND(D197*Construction!$I$10,0),$I198) ->  | E201: =MIN(ROUND(E197*Construction!$I$10,0),$I198) -> 27 | F201: =MIN(ROUND(F197*Construction!$I$10,0),$I198) ->  | G201: =MIN(ROUND(G197*Construction!$I$10,0),$I198) ->  | I201: =MIN(ROUND(I197*Construction!$I$10,0),$I198) -> 40
C206: =D84/D179 ->  | E206: =ROUNDUP((MIN($I$14,$I$15)-E24-E25)/$C$206,0) ->  | F206: =ROUNDUP((MIN($I$14,$I$15)-F24-F25)/$C$206,0) ->  | G206: =ROUNDUP((MIN($I$14,$I$15)-G24-G25)/$C$206,0) ->  | I206: =ROUNDUP((MIN($I$14,$I$15)-I24-I25)/$C$206,0) -> 
C209: Distance to low point | D209: Distance to low point | E209: =$C$206*E179 ->  | F209: =$C$206*F179 ->  | G209: =$C$206*G179 ->  | I209: =$C$206*I179 -> 
D210: Additional ROW1 Needed for Foreslope | E210: =IF(E209>($I$14-E24-E25),E209-($I$14-E24-E25),0) ->  | F210: =IF(F209>($I$14-F24-F25),F209-($I$14-F24-F25),0) ->  | G210: =IF(G209>($I$14-G24-G25),G209-($I$14-G24-G25),0) ->  | I210: =IF(I209>($I$14-I24-I25),I209-($I$14-I24-I25),0) -> 
D211: Additional ROW2 Needed for Foreslope | E211: =IF(E209>($I$15-E24-E25),E209-($I$15-E24-E25),0) ->  | F211: =IF(F209>($I$15-F24-F25),F209-($I$15-F24-F25),0) ->  | G211: =IF(G209>($I$15-G24-G25),G209-($I$15-G24-G25),0) ->  | I211: =IF(I209>($I$15-I24-I25),I209-($I$15-I24-I25),0) -> 
D213: Additional ROW1 Needed for Lateral Clearance | E213: =IF((CL248+E26)-$I$14<0,0,(CL248+E26)-$I$14) -> 8 | F213: =IF((CM248+F26)-$I$14<0,0,(CM248+F26)-$I$14) -> 0 | G213: =IF((CN248+G26)-$I$14<0,0,(CN248+G26)-$I$14) -> 0 | I213: =IF((CP248+I26)-$I$14<0,0,(CP248+I26)-$I$14) -> 0
D214: Additional ROW2 Needed for Lateral Clearance | E214: =IF((CL248+E26)-$I$15<0,0,(CL248+E26)-$I$15) -> 8 | F214: =IF((CM248+F26)-$I$15<0,0,(CM248+F26)-$I$15) -> 0 | G214: =IF((CN248+G26)-$I$15<0,0,(CN248+G26)-$I$15) -> 0 | I214: =IF((CP248+I26)-$I$15<0,0,(CP248+I26)-$I$15) -> 0
C226: For Vertical Opt Use when Yes Vertical:
C227: G1 | D227: =D36 -> 0 | F227: =F36 -> 0 | G227: =G36 -> 0 | I227: =IF(ISERROR($E$234),"",INDEX(D227:G227,$E$234)) -> 
C228: G2 | D228: =D37 -> 0 | F228: =F37 -> 0 | G228: =G37 -> 0 | I228: =IF(ISERROR($E$234),"",INDEX(D228:G228,$E$234)) -> 
C229: abs(G2-G1) | D229: =ABS(D36-D37) -> 0 | F229: =ABS(F36-F37) -> 0 | G229: =ABS(G36-G37) -> 0
C230: Count in indicator (K no change; or K change but accept) | D230: =IF(D39<>"",1,"") ->  | F230: =IF(OR(AND($B$34 = "Yes", $D$39 <> F39, F39 <>"", $D$39 <> "", F41="Yes."),AND($B$34 = "Yes", $D$39 = F39, F39 <>"", $D$39 <> "")), 1,"") ->  | G230: =IF(OR(AND($B$34 = "Yes", $D$39 <> G39, G39 <>"", $D$39 <> "", G41="Yes."),AND($B$34 = "Yes", $D$39 = G39, G39 <>"", $D$39 <> "")), 1,"") -> 
C232: Valid abs(G2-G1) | D232: =IF(ISERROR(D229*D230),"",D229*D230) ->  | F232: =IF(ISERROR(F229*F230),"",F229*F230) ->  | G232: =IF(ISERROR(G229*G230),"",G229*G230) -> 
C233: The min valid abs(G2-G1) | E233: =MIN(D232,F232,G232) -> 0
C234: Index | E234: =MATCH(E233,D232:G232,0) -> 
C236: For Vertical Opt Use When No Vertical:
C237: G1 | D237: =IF(ISBLANK(D36), 999, D36) -> 999 | F237: =IF(ISBLANK(F36), 999, F36) -> 999 | G237: =IF(ISBLANK(G36), 999, G36) -> 999 | I237: =IF(E242=999,"",E242) -> 
C238: Sign of G1 | D238: =IF(D237>=0,1,-1) -> 1 | F238: =IF(F237>=0,1,-1) -> 1 | G238: =IF(G237>=0,1,-1) -> 1
C239: Abs G1 | D239: =ABS(D237) -> 999 | F239: =ABS(F237) -> 999 | G239: =ABS(G237) -> 999
C240: Min Abs G1 | E240: =MIN(D239:G239) -> 999
C241: Which is the Best G1 | E241: =MATCH(E240,D239:G239,0) -> 1
C242: Best G1 Value | E242: =INDEX(D237:G237,1,E241) -> 999
C249: Check if all cells filled | D249: =SUM(D251:D311) -> 18 | E249: =SUM(E251:E311) -> 1 | F249: 18 | G249: 18 | I249: 1
C251: =C24 -> Lane Width (feet) | D251: =IF(ISBLANK(D24),1,0) -> 1 | E251: =IF(ISBLANK(E24),1,0) -> 0 | F251: 1 | G251: 1 | I251: 0
C252: =C25 -> Shoulder Width (feet) | D252: =IF(ISBLANK(D25),1,0) -> 1 | E252: 0 | F252: 1 | G252: 1 | I252: 0
C253: Cross-slope or Superelevation (%) | D253: =IF(ISBLANK(D26),1,0) -> 1 | E253: 0 | F253: 1 | G253: 1 | I253: 0
C254: Horizontal Curve Present?
C255: Horizontal Curve Data for Controlling Element:
C256: Radius (feet) | D256: =IF(AND($B$27="Yes", ISBLANK(D29)),1,0) -> 0 | E256: =IF(AND($B$27="Yes", ISBLANK(E29)),1,0) -> 0 | F256: 0 | G256: 0 | I256: 0
C257: Length of Horizontal Curve (feet) | D257: =IF(AND($B$27="Yes", ISBLANK(D30)),1,0) -> 0 | E257: 0 | F257: 0 | G257: 0 | I257: 0
... 99 more rows

Sheet Configuration 3
G2: Preferred Schematic View to Display | I2: Standard | V2: NOTES:
B3: CHARACTERISTICS TO CONSIDER FOR ANALYSIS | V3: ELEMENTS INCREASING SAFETY | AE3: COMMENTS ON PRIMARY CONSTRAINTS
B4: INPUT INSTRUCTIONS | G4: Relative to | I4: Existing
B5: Blue Boxes -- Select from pulldown options | D5: Select from Pulldown
B6: Yellow Boxes -- Type input information into box | D6: Type Input Value
B7: Rural Two-Lane Road Segment -- Safety Score Input | CF7: Unadjusted Marginal Safety
B8: General Information: | F8: General Site Features | H8: =I315 & " Missing Features and Curves" -> 9 Missing Features and Curves | CF8: =I2&" relative to " &I4 -> Standard relative to Existing
C9: Analyst: | D9: =+'Start Here'!J7 -> 0 | F9: Location
C10: Agency or Company: | D10: =+'Start Here'!J8 -> 0 | F10: Design Speed (mph)
C11: Date: | D11: =+'Start Here'!J9 -> 00:00:00 | F11: Posted Speed (mph)
C12: Description: | F12: E max (%)
F13: Design Year AADT (vehicles per day)
F14: Dist. from Centerline to Left ROW (feet)
F15: Dist. from Centerline to Right ROW (feet)
B17: Warning:
C18: =+IF(+I11>I10,"Posted speed exceeds design speed. Optimal safety will only be achieved if design speed exceeds posted speed. The Safety Assessment Score is based on the higher of the two speed values.","No warnings identified") -> No warnings identified
P19: ="Unadjusted Marginal Safety of elements in "&I2&" from Design Standards" -> Unadjusted Marginal Safety of elements in Standard from Design Standards | DB19: =COUNTIF(DB23:DB41,DB20) -> 1
DB20: =VLOOKUP(0,CZ23:DB41,3,) -> 10.01
D21: Fill all elements | F21: To enter notes, use boxes to the right of the vortex
B22: =+Construction!$I$8&" Total Available Points" -> 40 Total Available Points | D22: =D249 & " Missing Elements" -> 18 Missing Elements | F22: =F249 & " Missing Elements" -> 18 Missing Elements | G22: =G249 & " Missing Elements" -> 18 Missing Elements | CX22: Ranked element | CY22: CRF | CZ22: abs | DA22: Re-rank | DB22: Rank | DC22: Ranked CRF | DD22: Element | DE22: New Element | DF22: crf.abs | DG22: rank | DH22: Sorted Element | DI22: Sorted CRF
B23: Geometric Design Elements | D23: Existing | E23: Standard | F23: Design 1 | G23: Design 2 | H23: ="Marginal Safety for "&$I$2&" (compared to " & $I$4 & ")" -> Marginal Safety for Standard (compared to Existing) | I23: Optimal | CX23: =IF(CY23=0,"",DB23&". "&DD23) ->  | CY23: =H24 -> 0 | CZ23: =ABS(CY23) -> 0 | DA23: =RANK(DB23,$DB$23:$DB$41,1) -> 10 | DB23: =_xlfn.RANK.EQ(CZ23,$CZ$23:$CZ$41)+DG23/100 -> 10.01 | DC23: =CY23 -> 0 | DD23: =IF(ROUND(DF23,2)=0,"",C24) ->  | DE23: =DD23 ->  | DF23: =CZ23 -> 0 | DG23: 1 | DH23: =IFERROR(IF(IFERROR(VLOOKUP(DG23,$DA$23:$DF$41,4,)&", "&CY23=0,""),"",IFERROR(VLOOKUP(DG23,$DA$23:$DE$41,4,),"")),"") -> TWLTL (two-way left-turn lane) | DI23: =IFERROR(IF(IFERROR(VLOOKUP(DG23,$DA$23:$DF$41,3,)&", "&CY23=0,""),"",IFERROR(VLOOKUP(DG23,$DA$23:$DE$41,3,),"")),"") -> -0.4084507042
C24: Lane Width (feet) | E24: 12 | H24: =M100 -> 0 | I24: 12 | CX24: 5.02. Shoulder Width (feet) | CY24: =H25 -> 0.1550387597 | CZ24: 0.1550387597 | DA24: =RANK(DB24,$DB$23:$DB$41,1) -> 5 | DB24: =_xlfn.RANK.EQ(CZ24,$CZ$23:$CZ$41)+DG24/100 -> 5.02 | DC24: =CY24 -> 0.1550387597 | DD24: =IF(ROUND(DF24,2)=0,"",C25) -> Shoulder Width (feet) | DE24: =DD24 -> Shoulder Width (feet) | DF24: 0.1550387597 | DG24: 2 | DH24: Pavement Friction (skid number) *** | DI24: =IFERROR(IF(IFERROR(VLOOKUP(DG24,$DA$23:$DF$41,3,)&", "&CY24=0,""),"",IFERROR(VLOOKUP(DG24,$DA$23:$DE$41,3,),"")),"") -> 0.2843095602
C25: Shoulder Width (feet) | E25: =IF('Start Here'!$J$12="4R",8,4) -> 4 | H25: =M101 -> 0.1550387597 | I25: 10 | CY25: =H29 -> 0 | CZ25: 0 | DA25: 11 | DB25: 10.03 | DC25: 0 | DD25: =IF(ROUND(DF25,2)=0,"","Hz and Vt Alignment") ->  | DF25: 0 | DG25: 3 | DH25: Driveway Density (driveways per mile) | DI25: -0.223881142
C26: Cross-slope or Superelevation (%) | E26: =IF($I$12=6,IFERROR(VLOOKUP(E29,$C$382:$D$402,2,TRUE),6),IFERROR(VLOOKUP(E29,$C$409:$D$439,2,TRUE),8)) -> 8 | I26: =I12 -> 0 | CX26: 1.04. TWLTL (two-way left-turn lane) | CY26: =H43 -> -0.4084507042 | CZ26: 0.4084507042 | DA26: 1 | DB26: 1.04 | DC26: -0.4084507042 | DD26: =IF(ROUND(DF26,2)=0,"",C43) -> TWLTL (two-way left-turn lane) | DE26: TWLTL (two-way left-turn lane) | DF26: 0.4084507042 | DG26: 4 | DH26: Centerline Rumble Strips | DI26: -0.1627906977
C27: Horizontal Curve Present? | D27: -- | E27: -- | F27: -- | G27: -- | I27: -- | CY27: =H44 -> 0 | CZ27: 0 | DA27: 12 | DB27: 10.05 | DC27: 0 | DD27: =IF(ROUND(DF27,2)=0,"",C44) ->  | DF27: 0 | DG27: 5 | DH27: Shoulder Width (feet) | DI27: 0.1550387597
C28: Horizontal Curve Data for Controlling Element: | D28: -- | E28: -- | F28: -- | G28: -- | I28: -- | CY28: =H52 -> 0 | CZ28: 0 | DA28: 13 | DB28: 10.06 | DC28: 0 | DD28: =IF(ROUND(DF28,2)=0,"",C52) ->  | DF28: 0 | DG28: 6 | DH28: Edgeline Pavement Markings or Profile Markings | DI28: 0.1382411869
C29: Radius (feet) | E29: =IF(MAX($I$10,$I$11)<45,590,IF($I$12=6,VLOOKUP(MAX($I$10,$I$11),Construction!$B$29:$D$36,2,TRUE),VLOOKUP(MAX($I$10,$I$11),Construction!$G$29:$I$36,2,TRUE))) -> 590 | H29: =M140 -> 0 | I29: =IF(MAX($I$10,$I$11)<45,590,IF($I$12=6,VLOOKUP(MAX($I$10,$I$11),Construction!$B$45:$C$52,2,TRUE),VLOOKUP(MAX($I$10,$I$11),Construction!$G$45:$H$52,2,TRUE))) -> 590 | CY29: 0 | CZ29: 0 | DA29: 14 | DB29: 10.07 | DC29: 0 | DF29: 0 | DG29: 7 | DH29: Lateral Clearance to obstruction (ft) | DI29: 0.09030716297
C30: Length of Horizontal Curve (feet) | E30: =IF(D31="", "", E29*E31/57.296) ->  | I30: =I29*I31/57.296 -> 3758.55208 | CY30: 0 | CZ30: 0 | DA30: 15 | DB30: 10.08 | DC30: 0 | DF30: 0 | DG30: 8 | DH30: SafetyEdge | DI30: -0.02818899192
C31: Calculated Deflection Angle ∆ | D31: =IF(OR(ISBLANK(D29),ISBLANK(D30),$B$27="No",ISBLANK($B$27)),"",ROUND(D30/D29*57.296,1)) ->  | E31: =IF(ISBLANK(D31), "",D31) ->  | F31: =IF(OR(ISBLANK(F29),ISBLANK(F30),$B$27="No",ISBLANK($B$27)),"",ROUND(F30/F29*57.296,1)) ->  | G31: =IF(OR(ISBLANK(G29),ISBLANK(G30),$B$27="No",ISBLANK($B$27)),"",ROUND(G30/G29*57.296,1)) ->  | I31: =MIN(D31,IF(F33=INDEX(HCurveChange,1,0), F31, 365),IF(G33=INDEX(HCurveChange,1,0), G31, 365)) -> 365 | CX31: 6.09. Edgeline Pavement Markings or Profile Markings | CY31: 0.1382411869 | CZ31: 0.1382411869 | DA31: 6 | DB31: 6.09 | DC31: 0.1382411869 | DD31: Edgeline Pavement Markings or Profile Markings | DE31: Edgeline Pavement Markings or Profile Markings | DF31: 0.1382411869 | DG31: 9 | DH31: Lighting | DI31: -0.02349908153
F32: ∆ has changed. Are you changing the ∆? | G32: ∆ has changed. Are you changing the ∆? | CY32: 0 | CZ32: 0 | DA32: 16 | DB32: 10.1 | DC32: 0 | DF32: 0 | DG32: 10 | DI32: 0
CX33: 4.11. Centerline Rumble Strips | CY33: -0.1627906977 | CZ33: 0.1627906977 | DA33: 4 | DB33: 4.11 | DC33: -0.1627906977 | DD33: Centerline Rumble Strips | DE33: Centerline Rumble Strips | DF33: 0.1627906977 | DG33: 11 | DI33: 0
C34: Vertical Curve Present? | D34: -- | E34: -- | F34: -- | G34: -- | I34: =E34 -> -- | CX34: 3.12. Driveway Density (driveways per mile) | CY34: -0.223881142 | CZ34: 0.223881142 | DA34: 3 | DB34: 3.12 | DC34: -0.223881142 | DD34: =IF(DF34=0,"",C58) -> Driveway Density (driveways per mile) | DE34: Driveway Density (driveways per mile) | DF34: 0.223881142 | DG34: 12 | DI34: 0
C35: Vertical Curve Data for Controlling Element: | D35: -- | E35: -- | F35: -- | G35: -- | I35: -- | CX35: 9.13. Lighting | CY35: -0.02349908153 | CZ35: 0.02349908153 | DA35: 9 | DB35: 9.13 | DC35: -0.02349908153 | DD35: =IF(DF35=0,"",C59) -> Lighting | DE35: Lighting | DF35: 0.02349908153 | DG35: 13 | DI35: 0
C36: Approach (Entry) Grade, G1 (%) | E36: =IF(ISBLANK(D36),"", D36) ->  | I36: =IF(B34="Yes",I227,I237) ->  | CX36: 2.14. Pavement Friction (skid number) *** | CY36: 0.2843095602 | CZ36: 0.2843095602 | DA36: 2 | DB36: 2.14 | DC36: 0.2843095602 | DD36: =IF(DF36=0,"",C60) -> Pavement Friction (skid number) *** | DE36: Pavement Friction (skid number) *** | DF36: 0.2843095602 | DG36: 14 | DI36: 0
C37: Departure (Exit) Grade, G2 (%) | E37: =IF(ISBLANK(D37),"", D37) ->  | I37: =IF($B$34="Yes",I228,"") ->  | CY37: =H72 -> 0 | CZ37: 0 | DA37: 17 | DB37: 10.15 | DC37: 0 | DD37: =IF(DF37=0,"",C72) ->  | DF37: 0 | DG37: 15 | DI37: 0
C38: Length (feet) | E38: =IF(AND($B$34="Yes", D39<>""), ABS(E36-E37)*D39, "") ->  | I38: =IF(AND($B$34="Yes",I36<>"",I37<>"", NOT(ISBLANK($I$10)), NOT(ISBLANK($I$11))),ABS(I37-I36)*I39,"") ->  | CY38: =H73 -> 0 | CZ38: =ABS(CY38) -> 0 | DA38: 18 | DB38: 10.16 | DC38: 0 | DD38: =IF(DF38=0,"",C73) ->  | DF38: 0 | DG38: 16 | DI38: 0
C39: Calculated Rate of Change, K (ft/ft) | D39: =IF(OR($B$34="No",ISBLANK($B$34), ISBLANK(D36), ISBLANK(D37),ISBLANK(D38), D36=D37), "", ROUND(D38/(ABS(D37-D36)),1)) ->  | E39: =IF(AND($B$34="Yes", NOT(ISBLANK($I$10)), NOT(ISBLANK($I$11)), D39<>""), IF($E$42="Crest", VLOOKUP(MAX($I$10,$I$11),Construction!$B$159:$D$171,2,TRUE), VLOOKUP(MAX($I$10,$I$11),Construction!$B$159:$D$171,3,TRUE)), "") ->  | F39: =IF(AND($B$34="Yes", SUM(F263:F265)=0),ROUND(F38/(ABS(F37-F36)),1),"") ->  | G39: =IF(AND($B$34="Yes", SUM(G263:G265)=0),ROUND(G38/(ABS(G37-G36)),1),"") ->  | I39: =IF(OR($B$34<>"Yes", ISBLANK($I$10), ISBLANK($I$11), $I$36="", $I$37="", $I$42="--", ISBLANK($I$42)),"",IF($I$42="Crest",VLOOKUP(MAX($I$10,$I$11),Construction!$B$179:$D$191,2,TRUE),VLOOKUP(MAX($I$10,$I$11),Construction!$B$179:$D$191,3,TRUE))) ->  | CX39: 8.17. SafetyEdge | CY39: =H74 -> -0.02818899192 | CZ39: =ABS(CY39) -> 0.02818899192 | DA39: 8 | DB39: 8.17 | DC39: -0.02818899192 | DD39: =IF(DF39=0,"",C74) -> SafetyEdge | DE39: SafetyEdge | DF39: 0.02818899192 | DG39: 17 | DI39: 0
F40: Are you changing the geometry? | G40: Are you changing the geometry? | CX40: 7.18. Lateral Clearance to obstruction (ft) | CY40: =H75 -> 0.09030716297 | CZ40: =ABS(CY40) -> 0.09030716297 | DA40: 7 | DB40: 7.18 | DC40: 0.09030716297 | DD40: =IF(DF40=0,"",C75) -> Lateral Clearance to obstruction (ft) | DE40: Lateral Clearance to obstruction (ft) | DF40: 0.09030716297 | DG40: 18 | DI40: 0
CY41: =H76 -> 0 | CZ41: =ABS(CY41) -> 0 | DA41: 19 | DB41: 10.19 | DC41: 0 | DD41: =IF(DF41=0,"",C76) ->  | DF41: 0 | DG41: 19 | DI41: 0
C42: Calculated Sag or Crest? | D42: =IF(AND($B$34="Yes", SUM(D263:D265)=0),IF(D36>D37,"Crest","Sag"),"--") -> -- | E42: =IF(AND($B$34="Yes", SUM(D263:D265)=0),IF(E36>E37,"Crest","Sag"),"--") -> -- | F42: =IF(AND($B$34="Yes", SUM(F263:F265)=0),IF(F36>F37,"Crest","Sag"),"--") -> -- | G42: =IF(AND($B$34="Yes", SUM(G263:G265)=0),IF(G36>G37,"Crest","Sag"),"--") -> -- | I42: =IF($B$34="Yes",IF(I36>I37,"Crest","Sag"),"--") -> --
C43: TWLTL (two-way left-turn lane) | E43: No | H43: =M108 -> -0.4084507042 | I43: =IF(OR($D$43="Yes", $F$43="Yes",$G$43="Yes"), "Yes", "No") -> No
C44: Passing Lane Type | E44: No Passing Lane | H44: =M109 -> 0 | I44: Super 2
C45: Geometric Design Element (Partial Score) | D45: =IF(OR(SUM(D251:D253,D256:D257,D263:D265,D270:D271)>0, ISERR(D125)),"",D125) ->  | E45: =IF(OR(SUM(E251:E253,E256:E257,E263:E265,E270:E271)>0, ISERR(E125)),"",E125) ->  | I45: =IF(OR(SUM(I251:I253,I256:I257,I263:I265,I270:I271)>0, ISERR(I125)),"",I125) -> 
C46: Total Safety Score | D46: =IF(OR(D$249>0, $I$315>0,ISERROR(D$201+D$171+D$125)),"",D$201+D$171+D$125) ->  | E46: =IF(OR(E$249>0, $I$315>0,ISERROR(E$201+E$171+E$125)),"",E$201+E$171+E$125) ->  | M46: SCHEMATIC REPRESENTING INPUT DATA FOR | U46: =IF($I$2="Existing","EXISTING CONFIGURATION",IF($I$2="Standard","STANDARD OPTION",IF($I$2="Design 1","DESIGN 1 OPTION",IF($I$2="Design 2","DESIGN 2 OPTION","OPTIMAL OPTION")))) -> STANDARD OPTION
L48: LT | AA48: RT
L49: R/W | AA49: R/W
B50: =+Construction!$I$9&" Total Available Points" -> 20 Total Available Points
B51: Traffic Elements | D51: Existing | E51: Standard | F51: Design 1 | G51: Design 2 | H51: =$H$23 -> Marginal Safety for Standard (compared to Existing) | I51: Optimal | O51: =+$I$14 -> 0 | W51: =+$I$15 -> 0
C52: Advance Static Curve Warning Signs | E52: No | H52: =M145 -> 0 | I52: Yes
C53: Chevron Signs on Horizontal Curves | E53: No | H53: =M146 -> 0 | I53: Yes | L53: =+O51-N53-Q53 -> -16 | N53: =IF(+$I$2="Existing",D25,IF($I$2="Standard",E25,IF($I$2="Design 1",F25,IF($I$2="Design 2",G25,I25)))) -> 4 | Q53: =IF(+$I$2="Existing",D24,IF($I$2="Standard",E24,IF($I$2="Design 1",F24,IF($I$2="Design 2",G24,I24)))) -> 12 | V53: =+Q53 -> 12 | Y53: =+N53 -> 4 | Z53: =+W51-V53-Y53 -> -16
C54: Post-Mounted Delineators | E54: No | H54: 0 | I54: Yes
C55: Edgeline Pavement Markings or Profile Markings | E55: Yes | H55: 0.1382411869 | I55: Yes
C56: Shoulder Rumble Strips | E56: Yes | H56: =M150 -> 0 | I56: Yes
C57: Centerline Rumble Strips | E57: No | H57: =M151 -> -0.1627906977 | I57: Yes
C58: Driveway Density (driveways per mile) | E58: 10 | H58: =M152 -> -0.223881142 | I58: 0
C59: Lighting | E59: No | H59: =M153 -> -0.02349908153 | I59: Yes | S59: Tangent X-Section
C60: Pavement Friction (skid number) *** | E60: 37 | H60: =M154 -> 0.2843095602 | I60: 54
C62: Traffic Control Element (Partial Score): | D62: =IF(ISERROR(D171), "", D171) -> 12 | E62: =IF(ISERROR(E171), "", E171) -> 14 | F62: =IF(ISERROR(F171), "", F171) ->  | G62: =IF(ISERROR(G171), "", G171) ->  | I62: =IF(ISERROR(I171), "", I171) -> 20
C63: Total Safety Score | D63: =IF(OR(D$249>0, $I$315>0,ISERROR(D$201+D$171+D$125)),"",D$201+D$171+D$125) ->  | E63: =IF(OR(E$249>0, $I$315>0,ISERROR(E$201+E$171+E$125)),"",E$201+E$171+E$125) -> 
C65: *** Pavement friction/skid numbers will not be subject to open records requests ***
S69: Curved X-Section
B70: =+Construction!$I$10&" Total Available Points" -> 40 Total Available Points
B71: Roadside Elements | D71: Existing | E71: Standard | F71: Design 1 | G71: Design 2 | H71: =$H$23 -> Marginal Safety for Standard (compared to Existing) | I71: Optimal
C72: Sideslope (Foreslope) | E72: 1V:4H | H72: =M180 -> 0 | I72: 1V:6H
C73: Backslope | E73: =E72 -> 1V:4H | H73: =M181 -> 0 | I73: 1V:4H
C74: SafetyEdge | E74: No | H74: =M182 -> -0.02818899192 | I74: Yes
C75: Lateral Clearance to obstruction (ft) | E75: 30 | H75: =M183 -> 0.09030716297 | I75: 40 | Q75: =IF($I$2="Existing","SCORE SUMMARY FOR EXISTING CONFIGURATION", IF($I$2="Standard","SCORE SUMMARY FOR STANDARD OPTION",IF($I$2="Design 1","SCORE SUMMARY FOR DESIGN 1 OPTION",IF($I$2="Design 2","SCORE SUMMARY FOR DESIGN 2 OPTION", "SCORE SUMMARY FOR OPTIMAL OPTION")))) -> SCORE SUMMARY FOR STANDARD OPTION
C76: Obstruction Type | E76: Other Fixed Object | H76: =M184 -> 0 | I76: None | Q76: GEOMETRIC DESIGN: | W76: =IF($I$2="Existing",D45,IF($I$2="Standard",E45,IF($I$2="Design 1",F45,IF($I$2="Design 2",G45,I45)))) -> 
C77: Roadside Element (Partial Score): | D77: =IF(ISERR(D201),"",D201) ->  | E77: =IF(ISERR(E201),"",E201) -> 27 | F77: =IF(ISERR(F201),"",F201) ->  | G77: =IF(ISERR(G201),"",G201) ->  | I77: =IF(ISERR(I201),"",I201) -> 40 | Q77: TRAFFIC CONTROL: | W77: =IF($I$2="Existing",D62,IF($I$2="Standard",E62,IF($I$2="Design 1",F62,IF($I$2="Design 2",G62,I62)))) -> 14
C78: Total Safety Score | D78: =IF(OR(D$249>0, $I$315>0,ISERROR(D$201+D$171+D$125)),"",D$201+D$171+D$125) ->  | E78: =IF(OR(E$249>0, $I$315>0,ISERROR(E$201+E$171+E$125)),"",E$201+E$171+E$125) ->  | Q78: ROADSIDE: | W78: =IF($I$2="Existing",D77,IF($I$2="Standard",E77,IF($I$2="Design 1",F77,IF($I$2="Design 2",G77,I77)))) -> 27
Q79: OVERALL SAFETY SCORE: | W79: =SUM(W76:X78) -> 41
B83: ADDITIONAL SIDESLOPE INFORMATION
C84: Distance to Slope Toe from Shoulder (ft) | E84: =D84 -> 0 | F84: =E84 -> 0 | G84: =F84 -> 0 | I84: =G84 -> 0
B85: Minimum foreslope feasible within current ROW | E85: =IF(OR(ISBLANK($D$84), ISERROR(E206)), "", "1V:"&E206&"H") ->  | F85: =IF(OR(ISBLANK($D$84), ISERROR(F206)), "", "1V:"&F206&"H") ->  | G85: =IF(OR(ISBLANK($D$84), ISERROR(G206)), "", "1V:"&G206&"H") ->  | I85: =IF(OR(ISBLANK($D$84), ISERROR(I206)), "", "1V:"&I206&"H") -> 
B86: Additional R/W needed on left side | E86: =IF(OR(ISBLANK($D$84), ISERROR(E210)),"", MAX(E210,E213)) ->  | F86: =IF(OR(ISBLANK($D$84), ISERROR(F210)), "", MAX(F210,F213)) ->  | G86: =IF(OR(ISBLANK($D$84), ISERROR(G210)),"", MAX(G210,G213)) ->  | I86: =IF(OR(ISBLANK($D$84), ISERROR(I210)),"", MAX(I210,I213)) -> 
B87: Additional R/W needed on right side | E87: =IF(OR(ISBLANK($D$84), ISERROR(E211)), "", MAX(E211,E214)) ->  | F87: =IF(OR(ISBLANK($D$84), ISERROR(F211)), "", MAX(F211,F214)) ->  | G87: =IF(OR(ISBLANK($D$84), ISERROR(G211)),"", MAX(G211,G214)) ->  | I87: =IF(OR(ISBLANK($D$84), ISERROR(I211)),"", MAX(I211,I214)) -> 
J95: =1-I100/E100 -> 0
J96: =1-I101/E101 -> 0.1743119266 | K96: For Plot
D97: =MAX(SUM(D103:D107)-5,$I$97) ->  | E97: =MAX(SUM(E103:E107)-5,$I$97) ->  | F97: =MAX(SUM(F103:F107)-5,$I$97) ->  | G97: =MAX(SUM(G103:G107)-5,$I$97) ->  | I97: =SUM(I103:I107)-5 ->  | J97: =1-I102/E102 -> 0 | K97: relative to | L97: Prefer
J98: =1-I103/E103 ->  | K98: =MATCH(K99,ModView,0) -> 1 | L98: =MATCH(L99,ModView,0) -> 2
B99: Geometric | K99: =I4 -> Existing | L99: =I2 -> Standard | M99: %
C100: LW CMF | D100: =VLOOKUP(+D24,Construction!$C$3:$D$9,2) ->  | E100: =VLOOKUP(+E24,Construction!$C$3:$D$9,2) -> 1 | F100: =VLOOKUP(+F24,Construction!$C$3:$D$9,2) ->  | G100: =VLOOKUP(+G24,Construction!$C$3:$D$9,2) ->  | H100: =H24 -> 0 | I100: =VLOOKUP(+I24,Construction!$C$3:$D$9,2) -> 1 | K100: =INDEX($D100:$I100,K$98) ->  | L100: =INDEX($D100:$I100,L$98) -> 1 | M100: =IF(ISERROR(1-L100/K100), 0, 1-L100/K100) -> 0
C101: SW CMF | D101: =VLOOKUP(D25,Construction!$C$13:D23,2) -> 1.29 | E101: =VLOOKUP(E25,Construction!$C$13:E23,2) -> 1.09 | F101: =VLOOKUP(F25,Construction!$C$13:F23,2) -> 1.29 | G101: =VLOOKUP(G25,Construction!$C$13:G23,2) -> 1.29 | H101: =IF($I$2="Existing",(1-D101/E101),(IF($I$2="Design 1",(1-F101/E101),(IF($I$2="Design 2",(1-G101/E101),(IF($I$2="Optimal",(1-I101/E101),0))))))) -> 0 | I101: =VLOOKUP(I25,Construction!$C$13:I23,2) -> 0.9 | K101: =INDEX($D101:$I101,K$98) -> 1.29 | L101: =INDEX($D101:$I101,L$98) -> 1.09 | M101: =IF(ISERROR(1-L101/K101), 0, 1-L101/K101) -> 0.1550387597
C102: Placeholder for super deficincy | D102: 1 | E102: 1 | F102: 1 | G102: 1 | H102: 0 | I102: 1 | K102: =INDEX($D102:$I102,K$98) -> 1 | L102: =INDEX($D102:$I102,L$98) -> 1 | M102: 0
C103: HC and Grade | D103: =D$134^D$127 -> 1 | E103: =E$134^E$127 ->  | F103: =F$134^F$127 -> 1 | G103: =G$134^G$127 -> 1 | H103: 0 | I103: =I$134^I$127 ->  | K103: =INDEX($D103:$I103,K$98) -> 1 | L103: =INDEX($D103:$I103,L$98) ->  | M103: 0
C104: HC and VC Crest type I | D104: =D$135^D$128 -> 1 | E104: =E$135^E$128 -> 1 | F104: =F$135^F$128 -> 1 | G104: =G$135^G$128 -> 1 | H104: 0 | I104: =I$135^I$128 ->  | K104: =INDEX($D104:$I104,K$98) -> 1 | L104: =INDEX($D104:$I104,L$98) -> 1 | M104: 0
C105: HC and VC Sag type I | D105: =D$136^D$129 -> 1 | E105: =E$136^E$129 -> 1 | F105: =F$136^F$129 -> 1 | G105: =G$136^G$129 -> 1 | H105: 0 | I105: =I$136^I$129 ->  | K105: =INDEX($D105:$I105,K$98) -> 1 | L105: =INDEX($D105:$I105,L$98) -> 1 | M105: 0
C106: HC and VC Crest type II | D106: =D$137^D$130 -> 1 | E106: =E$137^E$130 -> 1 | F106: =F$137^F$130 -> 1 | G106: =G$137^G$130 -> 1 | H106: 0 | I106: =I$137^I$130 ->  | J106: =1-I111/E111 ->  | K106: =INDEX($D106:$I106,K$98) -> 1 | L106: =INDEX($D106:$I106,L$98) -> 1 | M106: 0
C107: HC and VC Sag type II | D107: =D$138^D$131 -> 1 | E107: =E$138^E$131 -> 1 | F107: =F$138^F$131 -> 1 | G107: =G$138^G$131 -> 1 | H107: 0 | I107: =I$138^I$131 ->  | J107: =1-I112/E112 ->  | K107: =INDEX($D107:$I107,K$98) -> 1 | L107: =INDEX($D107:$I107,L$98) -> 1 | M107: 0
C108: Add TWLTL | D108: =IF(D$43="No",1,CMFs!$F$17) -> 0.71 | E108: =IF(E$43="No",1,CMFs!$F$17) -> 1 | F108: =IF(F$43="No",1,CMFs!$F$17) -> 0.71 | G108: =IF(G$43="No",1,CMFs!$F$17) -> 0.71 | H108: 0 | I108: =IF(I$43="No",1,CMFs!$F$17) -> 1 | J108: =1-I113/E113 ->  | K108: =INDEX($D108:$I108,K$98) -> 0.71 | L108: =INDEX($D108:$I108,L$98) -> 1 | M108: -0.4084507042
C109: Passing Lane Type | D109: =IF(ISNUMBER(INDEX(PassLNCMF, MATCH(D44,Passing_Lane_Type,0))),INDEX(PassLNCMF, MATCH(D44,Passing_Lane_Type,0)),1) -> 1 | E109: =IF(ISNUMBER(INDEX(PassLNCMF, MATCH(E44,Passing_Lane_Type,0))),INDEX(PassLNCMF, MATCH(E44,Passing_Lane_Type,0)),1) -> 1 | F109: =IF(ISNUMBER(INDEX(PassLNCMF, MATCH(F44,Passing_Lane_Type,0))),INDEX(PassLNCMF, MATCH(F44,Passing_Lane_Type,0)),1) -> 1 | G109: =IF(ISNUMBER(INDEX(PassLNCMF, MATCH(G44,Passing_Lane_Type,0))),INDEX(PassLNCMF, MATCH(G44,Passing_Lane_Type,0)),1) -> 1 | H109: 0 | I109: =IF(ISNUMBER(INDEX(PassLNCMF, MATCH(I44,Passing_Lane_Type,0))),INDEX(PassLNCMF, MATCH(I44,Passing_Lane_Type,0)),1) -> 0.65 | J109: =1-I114/E114 ->  | K109: =INDEX($D109:$I109,K$98) -> 1 | L109: =INDEX($D109:$I109,L$98) -> 1 | M109: 0
J110: =I115/E115 -> 
C111: COMBINED Calculated CMF | D111: =+D100*D101*D102*D103*D104*D105*D106*D107*D108*D109 ->  | E111: =+E100*E101*E102*E103*E104*E105*E106*E107*E108*E109 ->  | F111: =+F100*F101*F102*F103*F104*F105*F106*F107*F108*F109 ->  | G111: =+G100*G101*G102*G103*G104*G105*G106*G107*G108*G109 ->  | H111: =IF($I$2="Existing",(D111),(IF($I$2="Design 1",(F111),(IF($I$2="Design 2",(G111),(IF($I$2="Optimal",(I111),E111))))))) ->  | I111: =+I100*I101*I102*I103*I104*I105*I106*I107*I108*I109 ->  | K111: =INDEX($D111:$I111,K$98) ->  | L111: =INDEX($D111:$I111,L$98) ->  | M111: =IF(ISERROR(1-L111/K111), 0, 1-L111/K111) -> 0
C112: Calculated Relative to Design Standards (Column E) | D112: =+D111/$E$111 ->  | K112: =INDEX($D112:$I112,K$98) ->  | L112: =INDEX($D112:$I112,L$98) ->  | M112: 0
C113: P(Crash) | D113: =+D112/(D112+1) ->  | K113: =INDEX($D113:$I113,K$98) ->  | L113: =INDEX($D113:$I113,L$98) ->  | M113: 0
C114: Factor Change on S curve | D114: =+D113/$E$113 ->  | K114: =INDEX($D114:$I114,K$98) ->  | L114: =INDEX($D114:$I114,L$98) ->  | M114: 0
C115: Adjust to Scale of 100 | D115: =+$I$114/D114*100 -> 
C116: Unadjusted Combined Relative to Standard | D116: =+D111/$E$111 ->  | K116: =INDEX($D116:$I116,K$98) ->  | L116: =INDEX($D116:$I116,L$98) ->  | M116: =IF(ISERROR(1-L116/K116), 0, 1-L116/K116) -> 0
J117: =I122/E122 -> 
C118: Adjusted for PA Basis | D118: =+D111*(1+1)/(1+D111*1) ->  | H118: =IF($I$2="Existing",(D118),(IF($I$2="Design 1",(F118),(IF($I$2="Design 2",(G118),(IF($I$2="Optimal",(I118),E118))))))) ->  | K118: =INDEX($D118:$I118,K$98) ->  | L118: =INDEX($D118:$I118,L$98) ->  | M118: =IF(ISERROR(1-L118/K118), 0, 1-L118/K118) -> 0
C119: Corrected by Odds Ratio | D119: =+D118/$E$118 ->  | H119: =IF($I$2="Existing",(D119),(IF($I$2="Design 1",(F119),(IF($I$2="Design 2",(G119),(IF($I$2="Optimal",(I119),E119))))))) ->  | K119: =INDEX($D119:$I119,K$98) ->  | L119: =INDEX($D119:$I119,L$98) ->  | M119: 0
C120: Pinned s | D120: =(1/D119)^$D123 ->  | J120: =I125/E125 ->  | K120: =INDEX($D120:$I120,K$98) ->  | L120: =INDEX($D120:$I120,L$98) ->  | M120: 0
D121: =(D120+$F124-1)/(1+(D120+$F124-1)) ->  | K121: =INDEX($D121:$I121,K$98) ->  | L121: =INDEX($D121:$I121,L$98) ->  | M121: 0
C122: Score Odds Ratio with Optimal (old) | D122: =MIN(ROUND($I$119/D119*Construction!$I$8,0),$I122) ->  | E122: =MIN(ROUND($I$119/E119*Construction!$I$8,0),$I122) ->  | F122: =MIN(ROUND($I$119/F119*Construction!$I$8,0),$I122) ->  | G122: =MIN(ROUND($I$119/G119*Construction!$I$8,0),$I122) ->  | H122: =IF($I$2="Existing",(D122),(IF($I$2="Design 1",(F122),(IF($I$2="Design 2",(G122),(IF($I$2="Optimal",(I122),E122))))))) ->  | I122: =ROUND($I$119/I119*Construction!$I$8,0) -> 
C123: Logistic1 | D123: =LN((D124/(1-D124))/(0.5/0.5))/LN($E119/I119) -> 
C124: Logistic Param | D124: 0.999 | F124: =0.7/0.3 -> 2.333333333
C125: Score | D125: =MIN(ROUND(D121*Construction!$I$8,0),$I122) ->  | E125: =MIN(ROUND(E121*Construction!$I$8,0),$I122) ->  | F125: =MIN(ROUND(F121*Construction!$I$8,0),$I122) ->  | G125: =MIN(ROUND(G121*Construction!$I$8,0),$I122) ->  | H125: =MIN(ROUND(H121*Construction!$I$8,0),$I122) ->  | I125: =MIN(ROUND(I121*Construction!$I$8,0),$I122) -> 
C127: HC and Grade | D127: =IF($B$135,0,1) -> 1 | E127: =IF($B$135,0,1) -> 1 | F127: =IF($B$135,0,1) -> 1 | G127: =IF($B$135,0,1) -> 1 | H127: =IF($I$2="Existing",(D127),(IF($I$2="Design 1",(F127),(IF($I$2="Design 2",(G127),(IF($I$2="Optimal",(I127),E127))))))) -> 1 | I127: =IF($B$135,0,1) -> 1
C128: HC and VC Crest type I | D128: =IF(AND($B$135=1,SIGN(D$36)=1,ABS(D$36)<=ABS(D$36-D$37),D$42="Crest"),1,0) -> 0 | E128: =IF(AND($B$135=1, SIGN(IF(ISNUMBER(E$36),E$36,0))=1,ABS(IF(ISNUMBER(E$36),E$36,0)) <= ABS(IF(ISNUMBER(E$36),E$36,0)-IF(ISNUMBER(E$37),E$37,0)),E$42="Crest"),1,0) -> 0 | F128: =IF(AND($B$135=1,SIGN(F$36)=1,ABS(F$36)<=ABS(F$36-F$37),F$42="Crest"),1,0) -> 0 | G128: =IF(AND($B$135=1,SIGN(G$36)=1,ABS(G$36)<=ABS(G$36-G$37),G$42="Crest"),1,0) -> 0 | H128: =IF($I$2="Existing",(D128),(IF($I$2="Design 1",(F128),(IF($I$2="Design 2",(G128),(IF($I$2="Optimal",(I128),E128))))))) -> 0 | I128: =IF(AND($B$135=1,SIGN(I$36)=1,ABS(I$36)<=ABS(I$36-IF(ISNUMBER(I$37), I$37,0)),I$42="Crest"),1,0) -> 
A129: HC? | C129: HC and VC Sag type I | D129: =IF(AND($B$135=1,SIGN(D$36)=1,ABS(D$36)<=ABS(D$36-D$37),D$42="Sag"),1,0) -> 0 | E129: =IF(AND($B$135=1, SIGN(IF(ISNUMBER(E$36),E$36,0))=1,ABS(IF(ISNUMBER(E$36),E$36,0)) <= ABS(IF(ISNUMBER(E$36),E$36,0)-IF(ISNUMBER(E$37),E$37,0)),E$42="Sag"),1,0) -> 0 | F129: =IF(AND($B$135=1,SIGN(F$36)=1,ABS(F$36)<=ABS(F$36-F$37),F$42="Sag"),1,0) -> 0 | G129: =IF(AND($B$135=1,SIGN(G$36)=1,ABS(G$36)<=ABS(G$36-G$37),G$42="Sag"),1,0) -> 0 | H129: =IF($I$2="Existing",(D129),(IF($I$2="Design 1",(F129),(IF($I$2="Design 2",(G129),(IF($I$2="Optimal",(I129),E129))))))) -> 0 | I129: =IF(AND($B$135=1,SIGN(I$36)=1,ABS(I$36)<=ABS(I$36-IF(ISNUMBER(I$37), I$37,0)),I$42="Sag"),1,0) -> 
A130: VC? | C130: HC and VC Crest type II | D130: =IF(AND($B$135=1,D$42="Crest",D$128=0),1,0) -> 0 | E130: =IF(AND($B$135=1,E$42="Crest",E$128=0),1,0) -> 0 | F130: =IF(AND($B$135=1,F$42="Crest",F$128=0),1,0) -> 0 | G130: =IF(AND($B$135=1,G$42="Crest",G$128=0),1,0) -> 0 | H130: =IF($I$2="Existing",(D130),(IF($I$2="Design 1",(F130),(IF($I$2="Design 2",(G130),(IF($I$2="Optimal",(I130),E130))))))) -> 0 | I130: =IF(AND($B$135=1,I$42="Crest",I$128=0),1,0) -> 
C131: HC and VC Sag type II | D131: =IF(AND($B$135=1,D$42="Sag",D$129=0),1,0) -> 0 | E131: =IF(AND($B$135=1,E$42="Sag",E$129=0),1,0) -> 0 | F131: =IF(AND($B$135=1,F$42="Sag",F$129=0),1,0) -> 0 | G131: =IF(AND($B$135=1,G$42="Sag",G$129=0),1,0) -> 0 | H131: =IF($I$2="Existing",(D131),(IF($I$2="Design 1",(F131),(IF($I$2="Design 2",(G131),(IF($I$2="Optimal",(I131),E131))))))) -> 0 | I131: =IF(AND($B$135=1,I$42="Sag",I$129=0),1,0) -> 
B132: Yes/No
C133: HC and VC: | E133: =EXP(0.042*ABS(D$36)+$B$134*0.16*LN(2*5730/IF(ISNUMBER(E$29),E$29,1))) -> 1
B134: =IF(B27="Yes",1,0) -> 0 | C134: HC and Grade | D134: =IF($B$135=0,EXP(0.042*ABS(D$36)+$B$134*0.16*LN(2*5730/D$141)+4.16*$B$134/D$141/IF(ISNUMBER(D$30),D$30,999999)),1) -> 1 | E134: =IF($B$135=0,EXP(0.042*ABS(E$36)+$B$134*0.16*LN(2*5730/E$141)+4.16*$B$134/E$141/IF(ISNUMBER(E$30),E$30,999999)),1) ->  | F134: 1 | G134: 1 | H134: =IF($B$135=0,EXP(0.042*ABS(H$36)+$B$134*0.16*LN(2*5730/IF(ISNUMBER(H$29),H$29,1))+4.16*$B$134/IF(ISNUMBER(H$29),H$29,1)/IF(ISNUMBER(H$30),H$30,1)),1) ->  | K134: =INDEX($D134:$I134,K$98) -> 1 | L134: =INDEX($D134:$I134,L$98) ->  | M134: =IF(ISERROR(1-L134/K134), 0, 1-L134/K134) -> 0
B135: =IF(B34="Yes",1,0) -> 0 | C135: HC and VC Crest type I | D135: =IF($B$135=0,1,EXP(0.005648908*5730*ABS(+D$36-D$37)*$B$135/D$141*$B$134)) -> 1 | E135: =IF($B$135=0,1,EXP(0.005648908*5730*ABS(+E$36-E$37)*$B$135/E$141*$B$134)) -> 1 | F135: 1 | G135: 1 | H135: =IF($I$2="Existing",(D135),(IF($I$2="Design 1",(F135),(IF($I$2="Design 2",(G135),(IF($I$2="Optimal",(I135),E135))))))) -> 1 | I135: 1 | K135: =INDEX($D135:$I135,K$98) -> 1 | L135: =INDEX($D135:$I135,L$98) -> 1 | M135: 0
C136: HC and VC Sag type I | D136: =IF($B$135=0,1,EXP(9.15857042*$B$135/D$142+0.010284958*5730*$B$135*$B$134*ABS(+D$36-D$37)/D$141)) -> 1 | E136: =IF($B$135=0,1,EXP(9.15857042*$B$135/E$142+0.010284958*5730*$B$135*$B$134*ABS(+E$36-E$37)/E$141)) -> 1 | F136: 1 | G136: 1 | H136: =IF($I$2="Existing",(D136),(IF($I$2="Design 1",(F136),(IF($I$2="Design 2",(G136),(IF($I$2="Optimal",(I136),E136))))))) -> 1 | I136: 1 | K136: =INDEX($D136:$I136,K$98) -> 1 | L136: =INDEX($D136:$I136,L$98) -> 1 | M136: 0
C137: HC and VC Crest type II | D137: =IF($B$135=0,1,EXP(0.005648908*5730*ABS(+D$36-D$37)*$B$135/D$141*$B$134)) -> 1 | E137: =IF($B$135=0,1,EXP(0.005648908*5730*ABS(+E$36-E$37)*$B$135/E$141*$B$134)) -> 1 | F137: 1 | G137: 1 | H137: =IF($I$2="Existing",(D137),(IF($I$2="Design 1",(F137),(IF($I$2="Design 2",(G137),(IF($I$2="Optimal",(I137),E137))))))) -> 1 | I137: 1 | K137: =INDEX($D137:$I137,K$98) -> 1 | L137: =INDEX($D137:$I137,L$98) -> 1 | M137: 0
C138: HC and VC Sag type II | D138: =IF($B$135=0,1,(0.246011284*EXP(LN(0.188*2*5730/D$141)*$B$134)+0.7514288716*EXP(0.022*5730/D$141*ABS(D$36-D$37)*$B$135*$B$134))) -> 1 | E138: =IF($B$135=0,1,(0.246011284*EXP(LN(0.188*2*5730/E$141)*$B$134)+0.7514288716*EXP(0.022*5730/E$141*ABS(E$36-E$37)*$B$135*$B$134))) -> 1 | F138: 1 | G138: 1 | H138: =IF($I$2="Existing",(D138),(IF($I$2="Design 1",(F138),(IF($I$2="Design 2",(G138),(IF($I$2="Optimal",(I138),E138))))))) -> 1 | I138: 1 | K138: =INDEX($D138:$I138,K$98) -> 1 | L138: =INDEX($D138:$I138,L$98) -> 1 | M138: 0
C140: Combined HZ and VT | D140: =MMULT(TRANSPOSE(D127:D131),D134:D138) -> 1 | E140: =MMULT(TRANSPOSE(E127:E131),E134:E138) ->  | F140: =MMULT(TRANSPOSE(F127:F131),F134:F138) -> 1 | G140: =MMULT(TRANSPOSE(G127:G131),G134:G138) -> 1 | H140: =IF($I$2="Existing",(D140),(IF($I$2="Design 1",(F140),(IF($I$2="Design 2",(G140),(IF($I$2="Optimal",(I140),E140))))))) ->  | I140: =MMULT(TRANSPOSE(I127:I131),I134:I138) ->  | K140: =INDEX($D140:$I140,K$98) -> 1 | L140: =INDEX($D140:$I140,L$98) ->  | M140: =IF(ISERROR(1-L140/K140), 0, 1-L140/K140) -> 0
C141: effective R for calculation | D141: =IF(ISNUMBER(D29), D29, 99999999) -> 99999999 | E141: =IF(ISNUMBER(E29), E29, 99999999) -> 590 | F141: 99999999 | G141: 99999999 | I141: 590
C142: effective K for calculation | D142: =IF(ISNUMBER(D39), D39, 9999999) -> 9999999 | E142: =IF(ISNUMBER(E39), E39, 9999999) -> 9999999 | F142: 9999999 | G142: 9999999 | I142: 9999999
B143: Traffic
D144: Existing | E144: Standard | F144: Design 1 | G144: Design 2
C145: Advance static curve warning signs | D145: =IF(AND($B$27="Yes",D$52="Yes"),(Traffic!$F$4-1)*AVERAGE(Constraints!$F$37,Constraints!$H$37)/Constraints!$D$37+1,1) -> 1 | E145: =IF(AND($B$27="Yes",E$52="Yes"),(Traffic!$F$4-1)*AVERAGE(Constraints!$F$37,Constraints!$H$37)/Constraints!$D$37+1,1) -> 1 | F145: =IF(AND($B$27="Yes",F$52="Yes"),(Traffic!$F$4-1)*AVERAGE(Constraints!$F$37,Constraints!$H$37)/Constraints!$D$37+1,1) -> 1 | G145: =IF(AND($B$27="Yes",G$52="Yes"),(Traffic!$F$4-1)*AVERAGE(Constraints!$F$37,Constraints!$H$37)/Constraints!$D$37+1,1) -> 1 | H145: =IF($I$2="Existing",(D145),(IF($I$2="Design 1",(F145),(IF($I$2="Design 2",(G145),(IF($I$2="Optimal",(I145),E145))))))) -> 1 | I145: =IF(AND($B$27="Yes",I$52="Yes"),(Traffic!$F$4-1)*AVERAGE(Constraints!$F$37,Constraints!$H$37)/Constraints!$D$37+1,1) -> 1 | K145: =INDEX($D145:$I145,K$98) -> 1 | L145: =INDEX($D145:$I145,L$98) -> 1 | M145: =IF(ISERROR(1-L145/K145), 0, 1-L145/K145) -> 0
C146: Install chevron signs on horizontal curves | D146: =IF(D$53="No",1,(IF(AND($B$27="Yes",D$24<11.5),((Traffic!$F$6-1)*(Constraints!$E$35+Constraints!$E$31))+1,1))) -> 1 | E146: =IF(E$53="No",1,(IF(AND($B$27="Yes",E$24<11.5),((Traffic!$F$6-1)*(Constraints!$E$35+Constraints!$E$31))+1,1))) -> 1 | F146: =IF(F$53="No",1,(IF(AND($B$27="Yes",F$24<11.5),((Traffic!$F$6-1)*(Constraints!$E$35+Constraints!$E$31))+1,1))) -> 1 | G146: =IF(G$53="No",1,(IF(AND($B$27="Yes",G$24<11.5),((Traffic!$F$6-1)*(Constraints!$E$35+Constraints!$E$31))+1,1))) -> 1 | H146: =IF($I$2="Existing",(D146),(IF($I$2="Design 1",(F146),(IF($I$2="Design 2",(G146),(IF($I$2="Optimal",(I146),E146))))))) -> 1 | I146: =IF(I$53="No",1,(IF(AND($B$27="Yes",I$24<11.5),((Traffic!$F$6-1)*(Constraints!$E$35+Constraints!$E$31))+1,1))) -> 1 | K146: =INDEX($D146:$I146,K$98) -> 1 | L146: =INDEX($D146:$I146,L$98) -> 1 | M146: 0
C147: Install post-mounted delineators | D147: =IF(AND($B$27="Yes",D$54="Yes"),(Traffic!$F$12-1)*Constraints!$E$36+1,1) -> 1 | E147: =IF(AND($B$27="Yes",E$54="Yes"),(Traffic!$F$12-1)*Constraints!$E$36+1,1) -> 1 | F147: =IF(AND($B$27="Yes",F$54="Yes"),(Traffic!$F$12-1)*Constraints!$E$36+1,1) -> 1 | G147: =IF(AND($B$27="Yes",G$54="Yes"),(Traffic!$F$12-1)*Constraints!$E$36+1,1) -> 1 | H147: =IF($I$2="Existing",(D147),(IF($I$2="Design 1",(F147),(IF($I$2="Design 2",(G147),(IF($I$2="Optimal",(I147),E147))))))) -> 1 | I147: =IF(AND($B$27="Yes",I$54="Yes"),(Traffic!$F$12-1)*Constraints!$E$36+1,1) -> 1 | K147: =INDEX($D147:$I147,K$98) -> 1 | L147: =INDEX($D147:$I147,L$98) -> 1 | M147: 0
C148: Install edgeline or Profile pavement markings | D148: =IF(D$55="Yes",Traffic!$F$18*0.5+((Traffic!$F$20*(Constraints!$H$36+Constraints!$H$32)+1*(Constraints!$H$37-(Constraints!$H$36+Constraints!$H$32)))/Constraints!$H$37)*0.5,1) -> 1 | E148: =IF(E$55="Yes",Traffic!$F$18*0.5+((Traffic!$F$20*(Constraints!$H$36+Constraints!$H$32)+1*(Constraints!$H$37-(Constraints!$H$36+Constraints!$H$32)))/Constraints!$H$37)*0.5,1) -> 0.8617588131 | F148: =IF(F$55="Yes",Traffic!$F$18*0.5+((Traffic!$F$20*(Constraints!$H$36+Constraints!$H$32)+1*(Constraints!$H$37-(Constraints!$H$36+Constraints!$H$32)))/Constraints!$H$37)*0.5,1) -> 1 | G148: =IF(G$55="Yes",Traffic!$F$18*0.5+((Traffic!$F$20*(Constraints!$H$36+Constraints!$H$32)+1*(Constraints!$H$37-(Constraints!$H$36+Constraints!$H$32)))/Constraints!$H$37)*0.5,1) -> 1 | H148: =IF($I$2="Existing",(D148),(IF($I$2="Design 1",(F148),(IF($I$2="Design 2",(G148),(IF($I$2="Optimal",(I148),E148))))))) -> 0.8617588131 | I148: =IF(I$55="Yes",Traffic!$F$18*0.5+((Traffic!$F$20*(Constraints!$H$36+Constraints!$H$32)+1*(Constraints!$H$37-(Constraints!$H$36+Constraints!$H$32)))/Constraints!$H$37)*0.5,1) -> 0.8617588131 | K148: =INDEX($D148:$I148,K$98) -> 1 | L148: =INDEX($D148:$I148,L$98) -> 0.8617588131 | M148: 0.1382411869
C149: Profiles | D149: 1 | E149: 1 | F149: 1 | G149: 1 | H149: 1 | I149: 1 | K149: =INDEX($D149:$I149,K$98) -> 1 | L149: =INDEX($D149:$I149,L$98) -> 1 | M149: 0
C150: Shoulder rumble strips | D150: =IF(D$56="No",1,(Traffic!$F$27*(Constraints!$H$36+Constraints!$H$32)+1*(Constraints!$H$37-(Constraints!$H$36+Constraints!$H$32)))/Constraints!$H$37) -> 0.8976095069 | E150: =IF(E$56="No",1,(Traffic!$F$27*(Constraints!$H$36+Constraints!$H$32)+1*(Constraints!$H$37-(Constraints!$H$36+Constraints!$H$32)))/Constraints!$H$37) -> 0.8976095069 | F150: =IF(F$56="No",1,(Traffic!$F$27*(Constraints!$H$36+Constraints!$H$32)+1*(Constraints!$H$37-(Constraints!$H$36+Constraints!$H$32)))/Constraints!$H$37) -> 0.8976095069 | G150: =IF(G$56="No",1,(Traffic!$F$27*(Constraints!$H$36+Constraints!$H$32)+1*(Constraints!$H$37-(Constraints!$H$36+Constraints!$H$32)))/Constraints!$H$37) -> 0.8976095069 | H150: =IF($I$2="Existing",(D150),(IF($I$2="Design 1",(F150),(IF($I$2="Design 2",(G150),(IF($I$2="Optimal",(I150),E150))))))) -> 0.8976095069 | I150: =IF(I$56="No",1,(Traffic!$F$27*(Constraints!$H$36+Constraints!$H$32)+1*(Constraints!$H$37-(Constraints!$H$36+Constraints!$H$32)))/Constraints!$H$37) -> 0.8976095069 | K150: =INDEX($D150:$I150,K$98) -> 0.8976095069 | L150: =INDEX($D150:$I150,L$98) -> 0.8976095069 | M150: 0
C151: Install centerline rumble strips | D151: =IF(D$57="No",1,Traffic!$F$30) -> 0.86 | E151: =IF(E$57="No",1,Traffic!$F$30) -> 1 | F151: =IF(F$57="No",1,Traffic!$F$30) -> 0.86 | G151: =IF(G$57="No",1,Traffic!$F$30) -> 0.86 | H151: =IF($I$2="Existing",(D151),(IF($I$2="Design 1",(F151),(IF($I$2="Design 2",(G151),(IF($I$2="Optimal",(I151),E151))))))) -> 1 | I151: =IF(I$57="No",1,Traffic!$F$30) -> 0.86 | K151: =INDEX($D151:$I151,K$98) -> 0.86 | L151: =INDEX($D151:$I151,L$98) -> 1 | M151: -0.1627906977
C152: Driveway Density (driveways per mile) | D152: =EXP(-LN(Traffic!$F$32)*(D$58-$E$58)) -> 0.8170728069 | E152: =EXP(-LN(Traffic!$F$32)*(E$58-$E$58)) -> 1 | F152: =EXP(-LN(Traffic!$F$32)*(F$58-$E$58)) -> 0.8170728069 | G152: =EXP(-LN(Traffic!$F$32)*(G$58-$E$58)) -> 0.8170728069 | H152: =IF($I$2="Existing",(D152),(IF($I$2="Design 1",(F152),(IF($I$2="Design 2",(G152),(IF($I$2="Optimal",(I152),E152))))))) -> 1 | I152: =EXP(-LN(Traffic!$F$32)*(I$58-$E$58)) -> 0.8170728069 | K152: =INDEX($D152:$I152,K$98) -> 0.8170728069 | L152: =INDEX($D152:$I152,L$98) -> 1 | M152: -0.223881142
C153: Install lighting | D153: =IF(D$59="No",1,1-(((1-Traffic!$F$55*Constraints!$H$37-Constraints!$F$37/3)+((1-Traffic!$F$55*Constraints!$D$37-Constraints!$H$37)))*$S$19+((1-Traffic!$F$57)*Constraints!$F$37/3))/Constraints!$D$37) -> 0.9770404469 | E153: =IF(E$59="No",1,1-(((1-Traffic!$F$55*Constraints!$H$37-Constraints!$F$37/3)+((1-Traffic!$F$55*Constraints!$D$37-Constraints!$H$37)))*$S$19+((1-Traffic!$F$57)*Constraints!$F$37/3))/Constraints!$D$37) -> 1 | F153: =IF(F$59="No",1,1-(((1-Traffic!$F$55*Constraints!$H$37-Constraints!$F$37/3)+((1-Traffic!$F$55*Constraints!$D$37-Constraints!$H$37)))*$S$19+((1-Traffic!$F$57)*Constraints!$F$37/3))/Constraints!$D$37) -> 0.9770404469 | G153: =IF(G$59="No",1,1-(((1-Traffic!$F$55*Constraints!$H$37-Constraints!$F$37/3)+((1-Traffic!$F$55*Constraints!$D$37-Constraints!$H$37)))*$S$19+((1-Traffic!$F$57)*Constraints!$F$37/3))/Constraints!$D$37) -> 0.9770404469 | H153: =IF($I$2="Existing",(D153),(IF($I$2="Design 1",(F153),(IF($I$2="Design 2",(G153),(IF($I$2="Optimal",(I153),E153))))))) -> 1 | I153: =IF(I$59="No",1,1-(((1-Traffic!$F$55*Constraints!$H$37-Constraints!$F$37/3)+((1-Traffic!$F$55*Constraints!$D$37-Constraints!$H$37)))*$S$19+((1-Traffic!$F$57)*Constraints!$F$37/3))/Constraints!$D$37) -> 0.9770404469 | K153: =INDEX($D153:$I153,K$98) -> 0.9770404469 | L153: =INDEX($D153:$I153,L$98) -> 1 | M153: -0.02349908153
C154: Pavement friction (skid number) | D154: =EXP(LN(Traffic!$F$49)*(D$60-$E$60)) -> 1.397252142 | E154: =EXP(LN(Traffic!$F$49)*(E$60-$E$60)) -> 1 | F154: =IF(MATCH(F60,SkidNums,0)=3, $D154,EXP(LN(Traffic!$F$49)*(RIGHT(F$60,2)-$E$60))) ->  | G154: =IF(MATCH(G60,SkidNums,0)=3, $D154,EXP(LN(Traffic!$F$49)*(RIGHT(G$60,2)-$E$60))) ->  | H154: =IF($I$2="Existing",(D154),(IF($I$2="Design 1",(F154),(IF($I$2="Design 2",(G154),(IF($I$2="Optimal",(I154),E154))))))) -> 1 | I154: =EXP(LN(Traffic!$F$49)*(I$60-$E$60)) -> 0.8575355363 | K154: =INDEX($D154:$I154,K$98) -> 1.397252142 | L154: =INDEX($D154:$I154,L$98) -> 1 | M154: 0.2843095602
C157: COMBINED Calculated CMF | D157: =+D145*D146*D147*D148*D149*D150*D151*D152*D153*D154 -> 0.8610611179 | E157: =+E145*E146*E147*E148*E149*E150*E151*E152*E153*E154 -> 0.7735229033 | F157: =+F145*F146*F147*F148*F149*F150*F151*F152*F153*F154 ->  | G157: =+G145*G146*G147*G148*G149*G150*G151*G152*G153*G154 ->  | H157: =IF($I$2="Existing",(D157),(IF($I$2="Design 1",(F157),(IF($I$2="Design 2",(G157),(IF($I$2="Optimal",(I157),E157))))))) -> 0.7735229033 | I157: =+I145*I146*I147*I148*I149*I150*I151*I152*I153*I154 -> 0.4554042239 | K157: =INDEX($D157:$I157,K$98) -> 0.8610611179 | L157: =INDEX($D157:$I157,L$98) -> 0.7735229033 | M157: =IF(ISERROR(1-L157/K157), 0, 1-L157/K157) -> 0.1016631837
C158: Calculated Relative to Design Standards (Column E) | D158: =+D157/$E$157 -> 1.113168226 | E158: =+E157/$E$157 -> 1 | F158: =+F157/$E$157 ->  | G158: =+G157/$E$157 ->  | H158: 1 | I158: =+I157/$E$157 -> 0.5887404523 | K158: =INDEX($D158:$I158,K$98) -> 1.113168226 | L158: =INDEX($D158:$I158,L$98) -> 1 | M158: 0.1016631837
C159: P(Crash) | D159: =+D158/(D158+1) -> 0.5267769088 | E159: =+E158/(E158+1) -> 0.5 | F159: =+F158/(F158+1) ->  | G159: =+G158/(G158+1) ->  | H159: 0.5 | I159: =+I158/(I158+1) -> 0.3705705683
C160: Factor Change on S curve | D160: =+D159/$E$159 -> 1.053553818 | E160: =+E159/$E$159 -> 1 | F160: =+F159/$E$159 ->  | G160: =+G159/$E$159 ->  | H160: 1 | I160: =+I159/$E$159 -> 0.7411411366
C161: Adjust to Scale of 100 | D161: =+$I$114/D160*100 ->  | E161: =+$I$114/E160*100 ->  | F161: =+$I$114/F160*100 ->  | G161: =+$I$114/G160*100 ->  | I161: =+$I$114/I160*100 -> 
C162: Unadjusted Combined Relative to Standard | D162: =+D157/$E$157 -> 1.113168226 | E162: =+E157/$E$157 -> 1 | F162: =+F157/$E$157 ->  | G162: =+G157/$E$157 ->  | H162: 1 | I162: =+I157/$E$157 -> 0.5887404523
H163: 0 | J163: =I168/E168 -> 1.428571429
C164: Adjusted for PA Basis | D164: =+D157*(1+1)/(1+D157*1) -> 0.9253442669 | E164: =+E157*(1+1)/(1+E157*1) -> 0.8723010025 | F164: =+F157*(1+1)/(1+F157*1) ->  | G164: =+G157*(1+1)/(1+G157*1) ->  | H164: 0.8723010025 | I164: =+I157*(1+1)/(1+I157*1) -> 0.6258113264
C165: Corrected by Odds Ratio | D165: =+D164/$E$164 -> 1.060808441 | E165: =+E164/$E$164 -> 1 | F165: =+F164/$E$164 ->  | G165: =+G164/$E$164 ->  | H165: 1 | I165: =+I164/$E$164 -> 0.7174258938
D166: =(1/D165)^$D169 -> 0.2929539947 | E166: 1 | H166: 1 | I166: 999 | J166: =I171/E171 -> 1.428571429
D167: =(D166+$F170-1)/(1+(D166+$F170-1)) -> 0.6192343506 | E167: 0.7 | H167: 0.7 | I167: 0.9990013316
C168: Score Odds Ratio with Optimal as 100 (old) | D168: =MIN(ROUND($I$165/D165*Construction!$I$9,0),$I168) -> 14 | E168: =MIN(ROUND($I$165/E165*Construction!$I$9,0),$I168) -> 14 | F168: =MIN(ROUND($I$165/F165*Construction!$I$9,0),$I168) ->  | G168: =MIN(ROUND($I$165/G165*Construction!$I$9,0),$I168) ->  | I168: =ROUND($I$165/I165*Construction!$I$9,0) -> 20
C169: Logistic1 | D169: =LN((D170/(1-D170))/(0.5/0.5))/LN($E165/I165) -> 20.79811455
C170: Logistic Param | D170: 0.999 | F170: =0.7/0.3 -> 2.333333333
C171: Score | D171: =MIN(ROUND(D167*Construction!$I$9,0),$I168) -> 12 | E171: =MIN(ROUND(E167*Construction!$I$9,0),$I168) -> 14 | F171: =MIN(ROUND(F167*Construction!$I$9,0),$I168) ->  | G171: =MIN(ROUND(G167*Construction!$I$9,0),$I168) ->  | I171: =MIN(ROUND(I167*Construction!$I$9,0),$I168) -> 20
B178: Roadsde | D178: Existing | E178: Standard | F178: Design 1 | G178: Design 2
D179: =MID(D72,FIND(":",D72,1)+1,FIND("H",D72,1)-FIND(":",D72,1)-1)+0 ->  | E179: =MID(E72,FIND(":",E72,1)+1,FIND("H",E72,1)-FIND(":",E72,1)-1)+0 -> 4 | F179: =MID(F72,FIND(":",F72,1)+1,FIND("H",F72,1)-FIND(":",F72,1)-1)+0 ->  | G179: =MID(G72,FIND(":",G72,1)+1,FIND("H",G72,1)-FIND(":",G72,1)-1)+0 ->  | I179: =MID(I72,FIND(":",I72,1)+1,FIND("H",I72,1)-FIND(":",I72,1)-1)+0 -> 6 | K179: =INDEX($D179:$I179,K$98) ->  | L179: =INDEX($D179:$I179,L$98) -> 4 | M179: =IF(ISERROR(1-L179/K179), 0, 1-L179/K179) -> 0
C180: Sideslope (Foreslope) | D180: =IF(D179<=3,1,IF(OR(D179=4,D179=5),(Roadside!$F$15-1)*Constraints!$H$37/Constraints!$D$37+1,(Roadside!$F$15*Roadside!$F$16-1)*Constraints!$H$37/Constraints!$D$37+1)) ->  | E180: =IF(E179<=3,1,IF(OR(E179=4,E179=5),(Roadside!$F$15-1)*Constraints!$H$37/Constraints!$D$37+1,(Roadside!$F$15*Roadside!$F$16-1)*Constraints!$H$37/Constraints!$D$37+1)) -> 0.8286893555 | F180: =IF(F179<=3,1,IF(OR(F179=4,F179=5),(Roadside!$F$15-1)*Constraints!$H$37/Constraints!$D$37+1,(Roadside!$F$15*Roadside!$F$16-1)*Constraints!$H$37/Constraints!$D$37+1)) ->  | G180: =IF(G179<=3,1,IF(OR(G179=4,G179=5),(Roadside!$F$15-1)*Constraints!$H$37/Constraints!$D$37+1,(Roadside!$F$15*Roadside!$F$16-1)*Constraints!$H$37/Constraints!$D$37+1)) ->  | H180: =IF($I$2="Existing",(D180),(IF($I$2="Design 1",(F180),(IF($I$2="Design 2",(G180),(IF($I$2="Optimal",(I180),E180))))))) -> 0.8286893555 | I180: =IF(I179<=3,1,IF(OR(I179=4,I179=5),(Roadside!$F$15-1)*Constraints!$H$37/Constraints!$D$37+1,(Roadside!$F$15*Roadside!$F$16-1)*Constraints!$H$37/Constraints!$D$37+1)) -> 0.7766435502 | K180: =INDEX($D180:$I180,K$98) ->  | L180: =INDEX($D180:$I180,L$98) -> 0.8286893555 | M180: 0
C181: Backslope | D181: 1 | E181: 1 | F181: 1 | G181: 1 | H181: =IF($I$2="Existing",(D181),(IF($I$2="Design 1",(F181),(IF($I$2="Design 2",(G181),(IF($I$2="Optimal",(I181),E181))))))) -> 1 | I181: 1 | K181: =INDEX($D181:$I181,K$98) -> 1 | L181: =INDEX($D181:$I181,L$98) -> 1 | M181: 0
C182: SafetyEdge | D182: =IF(D$74="No",1,(Roadside!$F$23-1)*AVERAGE(Constraints!$H$37,Constraints!$F$37)/Constraints!$D$37+1) -> 0.9725838419 | E182: =IF(E$74="No",1,(Roadside!$F$23-1)*AVERAGE(Constraints!$H$37,Constraints!$F$37)/Constraints!$D$37+1) -> 1 | F182: =IF(F$74="No",1,(Roadside!$F$23-1)*AVERAGE(Constraints!$H$37,Constraints!$F$37)/Constraints!$D$37+1) -> 0.9725838419 | G182: =IF(G$74="No",1,(Roadside!$F$23-1)*AVERAGE(Constraints!$H$37,Constraints!$F$37)/Constraints!$D$37+1) -> 0.9725838419 | H182: =IF($I$2="Existing",(D182),(IF($I$2="Design 1",(F182),(IF($I$2="Design 2",(G182),(IF($I$2="Optimal",(I182),E182))))))) -> 1 | I182: =IF(I$74="No",1,(Roadside!$F$23-1)*AVERAGE(Constraints!$H$37,Constraints!$F$37)/Constraints!$D$37+1) -> 0.9725838419 | K182: =INDEX($D182:$I182,K$98) -> 0.9725838419 | L182: =INDEX($D182:$I182,L$98) -> 1 | M182: -0.02818899192
C183: Lateral Clearance (ft) | D183: =IF($B$27="Yes",((EXP(LN(Roadside!$F$11)*(IF(D$76="None",40,D$75)-30)/30)-1))*Constraints!$H$36/Constraints!$D$37+1,((EXP(LN(Roadside!$F$10)*(IF(D$76="None",40,D$75)-30)/30)-1))*Constraints!$H$36/Constraints!$D$37+1) -> 1.099272149 | E183: =IF($B$27="Yes",((EXP(LN(Roadside!$F$11)*(IF(E$76="None",40,E$75)-30)/30)-1))*Constraints!$H$36/Constraints!$D$37+1,((EXP(LN(Roadside!$F$10)*(IF(E$76="None",40,E$75)-30)/30)-1))*Constraints!$H$36/Constraints!$D$37+1) -> 1 | F183: =IF($B$27="Yes",((EXP(LN(Roadside!$F$11)*(IF(F$76="None",40,F$75)-30)/30)-1))*Constraints!$H$36/Constraints!$D$37+1,((EXP(LN(Roadside!$F$10)*(IF(F$76="None",40,F$75)-30)/30)-1))*Constraints!$H$36/Constraints!$D$37+1) -> 1.099272149 | G183: =IF($B$27="Yes",((EXP(LN(Roadside!$F$11)*(IF(G$76="None",40,G$75)-30)/30)-1))*Constraints!$H$36/Constraints!$D$37+1,((EXP(LN(Roadside!$F$10)*(IF(G$76="None",40,G$75)-30)/30)-1))*Constraints!$H$36/Constraints!$D$37+1) -> 1.099272149 | H183: =IF($I$2="Existing",(D183),(IF($I$2="Design 1",(F183),(IF($I$2="Design 2",(G183),(IF($I$2="Optimal",(I183),E183))))))) -> 1 | I183: =IF($B$27="Yes",((EXP(LN(Roadside!$F$11)*(IF(I$76="None",40,I$75)-30)/30)-1))*Constraints!$H$36/Constraints!$D$37+1,((EXP(LN(Roadside!$F$10)*(IF(I$76="None",40,I$75)-30)/30)-1))*Constraints!$H$36/Constraints!$D$37+1) -> 0.9745518437 | K183: =INDEX($D183:$I183,K$98) -> 1.099272149 | L183: =INDEX($D183:$I183,L$98) -> 1 | M183: 0.09030716297
C184: Fixed Object Type | D184: =IF(D$76="Guardrail",(Roadside!$F$25-1)*(($I$75-D$75)/$I$75)^2*Constraints!$H$36/Constraints!$D$37+1,1) -> 1 | E184: =IF(E$76="Guardrail",(Roadside!$F$25-1)*(($I$75-E$75)/$I$75)^2*Constraints!$H$36/Constraints!$D$37+1,1) -> 1 | F184: =IF(F$76="Guardrail",(Roadside!$F$25-1)*(($I$75-F$75)/$I$75)^2*Constraints!$H$36/Constraints!$D$37+1,1) -> 1 | G184: =IF(G$76="Guardrail",(Roadside!$F$25-1)*(($I$75-G$75)/$I$75)^2*Constraints!$H$36/Constraints!$D$37+1,1) -> 1 | H184: =IF($I$2="Existing",(D184),(IF($I$2="Design 1",(F184),(IF($I$2="Design 2",(G184),(IF($I$2="Optimal",(I184),E184))))))) -> 1 | I184: =IF(I$76="Guardrail",(Roadside!$F$25-1)*(($I$75-I$75)/$I$75)^2*Constraints!$H$36/Constraints!$D$37+1,1) -> 1 | K184: =INDEX($D184:$I184,K$98) -> 1 | L184: =INDEX($D184:$I184,L$98) -> 1 | M184: 0
C187: COMBINED Calculated CMF | D187: =+D180*D181*D182*D183*D184 ->  | E187: =+E180*E181*E182*E183*E184 -> 0.8286893555 | F187: =+F180*F181*F182*F183*F184 ->  | G187: =+G180*G181*G182*G183*G184 ->  | H187: =IF($I$2="Existing",(D187),(IF($I$2="Design 1",(F187),(IF($I$2="Design 2",(G187),(IF($I$2="Optimal",(I187),E187))))))) -> 0.8286893555 | I187: =+I180*I181*I182*I183*I184 -> 0.7361286784
C188: Calculated Relative to Design Standards (Column E) | D188: =+D187/$E$187 ->  | E188: =+E187/$E$187 -> 1 | F188: =+F187/$E$187 ->  | G188: =+G187/$E$187 ->  | H188: 1 | I188: =+I187/$E$187 -> 0.8883047351
C189: P(Crash) | D189: =+D188/(D188+1) ->  | E189: =+E188/(E188+1) -> 0.5 | F189: =+F188/(F188+1) ->  | G189: =+G188/(G188+1) ->  | H189: 0.5 | I189: =+I188/(I188+1) -> 0.4704244599
C190: Factor Change on S curve | D190: =+D189/$E$189 ->  | E190: =+E189/$E$189 -> 1 | F190: =+F189/$E$189 ->  | G190: =+G189/$E$189 ->  | H190: 1 | I190: =+I189/$E$189 -> 0.9408489197
C191: Adjust to Scale of 100 | D191: =+$I$114/D190*100 ->  | E191: =+$I$114/E190*100 ->  | F191: =+$I$114/F190*100 ->  | G191: =+$I$114/G190*100 ->  | I191: =+$I$114/I190*100 -> 
C192: Unadjusted Combined Relative to Standard | D192: =+D187/$E$187 ->  | E192: =+E187/$E$187 -> 1 | F192: =+F187/$E$187 ->  | G192: =+G187/$E$187 ->  | H192: 1 | I192: =+I187/$E$187 -> 0.8883047351
J193: =I198/E198 -> 1.111111111
C194: Adjusted for PA Basis | D194: =+D187*(1+1)/(1+D187*1) ->  | E194: =+E187*(1+1)/(1+E187*1) -> 0.9063205328 | F194: =+F187*(1+1)/(1+F187*1) ->  | G194: =+G187*(1+1)/(1+G187*1) ->  | H194: =IF($I$2="Existing",(D194),(IF($I$2="Design 1",(F194),(IF($I$2="Design 2",(G194),(IF($I$2="Optimal",(I194),E194))))))) -> 0.9063205328 | I194: =+I187*(1+1)/(1+I187*1) -> 0.8480116567
C195: Corrected by Odds Ratio | D195: =+D187/$E$187 ->  | E195: =+E187/$E$187 -> 1 | F195: =+F187/$E$187 ->  | G195: =+G187/$E$187 ->  | H195: =IF($I$2="Existing",(D195),(IF($I$2="Design 1",(F195),(IF($I$2="Design 2",(G195),(IF($I$2="Optimal",(I195),E195))))))) -> 1 | I195: =+I187/$E$187 -> 0.8883047351
D196: =(1/D195)^$D199 ->  | E196: 1 | H196: 1 | I196: 999 | J196: =I201/E201 -> 1.481481481
D197: =(D196+$F200-1)/(1+(D196+$F200-1)) ->  | E197: 0.6666666667 | H197: 0.6666666667 | I197: 0.999000999
C198: Score Odds Ratio with Optimal as 100 (old) | D198: =MIN(ROUND($I$195/D195*Construction!$I$10,0),$I198) ->  | E198: =MIN(ROUND($I$195/E195*Construction!$I$10,0),$I198) -> 36 | F198: =MIN(ROUND($I$195/F195*Construction!$I$10,0),$I198) ->  | G198: =MIN(ROUND($I$195/G195*Construction!$I$10,0),$I198) ->  | I198: =ROUND($I$195/I195*Construction!$I$10,0) -> 40
C199: Logistic1 | D199: =LN((D200/(1-D200))/(0.5/0.5))/LN($E195/I195) -> 58.3141676
C200: Logistic Param | D200: 0.999 | F200: 2
C201: Score | D201: =MIN(ROUND(D197*Construction!$I$10,0),$I198) ->  | E201: =MIN(ROUND(E197*Construction!$I$10,0),$I198) -> 27 | F201: =MIN(ROUND(F197*Construction!$I$10,0),$I198) ->  | G201: =MIN(ROUND(G197*Construction!$I$10,0),$I198) ->  | I201: =MIN(ROUND(I197*Construction!$I$10,0),$I198) -> 40
C206: =D84/D179 ->  | E206: =ROUNDUP((MIN($I$14,$I$15)-E24-E25)/$C$206,0) ->  | F206: =ROUNDUP((MIN($I$14,$I$15)-F24-F25)/$C$206,0) ->  | G206: =ROUNDUP((MIN($I$14,$I$15)-G24-G25)/$C$206,0) ->  | I206: =ROUNDUP((MIN($I$14,$I$15)-I24-I25)/$C$206,0) -> 
C209: Distance to low point | D209: Distance to low point | E209: =$C$206*E179 ->  | F209: =$C$206*F179 ->  | G209: =$C$206*G179 ->  | I209: =$C$206*I179 -> 
D210: Additional ROW1 Needed for Foreslope | E210: =IF(E209>($I$14-E24-E25),E209-($I$14-E24-E25),0) ->  | F210: =IF(F209>($I$14-F24-F25),F209-($I$14-F24-F25),0) ->  | G210: =IF(G209>($I$14-G24-G25),G209-($I$14-G24-G25),0) ->  | I210: =IF(I209>($I$14-I24-I25),I209-($I$14-I24-I25),0) -> 
D211: Additional ROW2 Needed for Foreslope | E211: =IF(E209>($I$15-E24-E25),E209-($I$15-E24-E25),0) ->  | F211: =IF(F209>($I$15-F24-F25),F209-($I$15-F24-F25),0) ->  | G211: =IF(G209>($I$15-G24-G25),G209-($I$15-G24-G25),0) ->  | I211: =IF(I209>($I$15-I24-I25),I209-($I$15-I24-I25),0) -> 
D213: Additional ROW1 Needed for Lateral Clearance | E213: =IF((CL248+E26)-$I$14<0,0,(CL248+E26)-$I$14) -> 8 | F213: =IF((CM248+F26)-$I$14<0,0,(CM248+F26)-$I$14) -> 0 | G213: =IF((CN248+G26)-$I$14<0,0,(CN248+G26)-$I$14) -> 0 | I213: =IF((CP248+I26)-$I$14<0,0,(CP248+I26)-$I$14) -> 0
D214: Additional ROW2 Needed for Lateral Clearance | E214: =IF((CL248+E26)-$I$15<0,0,(CL248+E26)-$I$15) -> 8 | F214: =IF((CM248+F26)-$I$15<0,0,(CM248+F26)-$I$15) -> 0 | G214: =IF((CN248+G26)-$I$15<0,0,(CN248+G26)-$I$15) -> 0 | I214: =IF((CP248+I26)-$I$15<0,0,(CP248+I26)-$I$15) -> 0
C226: For Vertical Opt Use when Yes Vertical:
C227: G1 | D227: =D36 -> 0 | F227: =F36 -> 0 | G227: =G36 -> 0 | I227: =IF(ISERROR($E$234),"",INDEX(D227:G227,$E$234)) -> 
C228: G2 | D228: =D37 -> 0 | F228: =F37 -> 0 | G228: =G37 -> 0 | I228: =IF(ISERROR($E$234),"",INDEX(D228:G228,$E$234)) -> 
C229: abs(G2-G1) | D229: =ABS(D36-D37) -> 0 | F229: =ABS(F36-F37) -> 0 | G229: =ABS(G36-G37) -> 0
C230: Count in indicator (K no change; or K change but accept) | D230: =IF(D39<>"",1,"") ->  | F230: =IF(OR(AND($B$34 = "Yes", $D$39 <> F39, F39 <>"", $D$39 <> "", F41="Yes."),AND($B$34 = "Yes", $D$39 = F39, F39 <>"", $D$39 <> "")), 1,"") ->  | G230: =IF(OR(AND($B$34 = "Yes", $D$39 <> G39, G39 <>"", $D$39 <> "", G41="Yes."),AND($B$34 = "Yes", $D$39 = G39, G39 <>"", $D$39 <> "")), 1,"") -> 
C232: Valid abs(G2-G1) | D232: =IF(ISERROR(D229*D230),"",D229*D230) ->  | F232: =IF(ISERROR(F229*F230),"",F229*F230) ->  | G232: =IF(ISERROR(G229*G230),"",G229*G230) -> 
C233: The min valid abs(G2-G1) | E233: =MIN(D232,F232,G232) -> 0
C234: Index | E234: =MATCH(E233,D232:G232,0) -> 
C236: For Vertical Opt Use When No Vertical:
C237: G1 | D237: =IF(ISBLANK(D36), 999, D36) -> 999 | F237: =IF(ISBLANK(F36), 999, F36) -> 999 | G237: =IF(ISBLANK(G36), 999, G36) -> 999 | I237: =IF(E242=999,"",E242) -> 
C238: Sign of G1 | D238: =IF(D237>=0,1,-1) -> 1 | F238: =IF(F237>=0,1,-1) -> 1 | G238: =IF(G237>=0,1,-1) -> 1
C239: Abs G1 | D239: =ABS(D237) -> 999 | F239: =ABS(F237) -> 999 | G239: =ABS(G237) -> 999
C240: Min Abs G1 | E240: =MIN(D239:G239) -> 999
C241: Which is the Best G1 | E241: =MATCH(E240,D239:G239,0) -> 1
C242: Best G1 Value | E242: =INDEX(D237:G237,1,E241) -> 999
C249: Check if all cells filled | D249: =SUM(D251:D311) -> 18 | E249: =SUM(E251:E311) -> 1 | F249: 18 | G249: 18 | I249: 1
C251: =C24 -> Lane Width (feet) | D251: =IF(ISBLANK(D24),1,0) -> 1 | E251: =IF(ISBLANK(E24),1,0) -> 0 | F251: 1 | G251: 1 | I251: 0
C252: =C25 -> Shoulder Width (feet) | D252: =IF(ISBLANK(D25),1,0) -> 1 | E252: 0 | F252: 1 | G252: 1 | I252: 0
C253: Cross-slope or Superelevation (%) | D253: =IF(ISBLANK(D26),1,0) -> 1 | E253: 0 | F253: 1 | G253: 1 | I253: 0
C254: Horizontal Curve Present?
C255: Horizontal Curve Data for Controlling Element:
C256: Radius (feet) | D256: =IF(AND($B$27="Yes", ISBLANK(D29)),1,0) -> 0 | E256: =IF(AND($B$27="Yes", ISBLANK(E29)),1,0) -> 0 | F256: 0 | G256: 0 | I256: 0
C257: Length of Horizontal Curve (feet) | D257: =IF(AND($B$27="Yes", ISBLANK(D30)),1,0) -> 0 | E257: 0 | F257: 0 | G257: 0 | I257: 0
... 99 more rows

Sheet Configuration 4
G2: Preferred Schematic View to Display | I2: Standard | V2: NOTES:
B3: CHARACTERISTICS TO CONSIDER FOR ANALYSIS | V3: ELEMENTS INCREASING SAFETY | AE3: COMMENTS ON PRIMARY CONSTRAINTS
B4: INPUT INSTRUCTIONS | G4: Relative to | I4: Existing
B5: Blue Boxes -- Select from pulldown options | D5: Select from Pulldown
B6: Yellow Boxes -- Type input information into box | D6: Type Input Value
B7: Rural Two-Lane Road Segment -- Safety Score Input | CF7: Unadjusted Marginal Safety
B8: General Information: | F8: General Site Features | H8: =I315 & " Missing Features and Curves" -> 9 Missing Features and Curves | CF8: =I2&" relative to " &I4 -> Standard relative to Existing
C9: Analyst: | D9: =+'Start Here'!J7 -> 0 | F9: Location
C10: Agency or Company: | D10: =+'Start Here'!J8 -> 0 | F10: Design Speed (mph)
C11: Date: | D11: =+'Start Here'!J9 -> 00:00:00 | F11: Posted Speed (mph)
C12: Description: | F12: E max (%)
F13: Design Year AADT (vehicles per day)
F14: Dist. from Centerline to Left ROW (feet)
F15: Dist. from Centerline to Right ROW (feet)
B17: Warning:
C18: =+IF(+I11>I10,"Posted speed exceeds design speed. Optimal safety will only be achieved if design speed exceeds posted speed. The Safety Assessment Score is based on the higher of the two speed values.","No warnings identified") -> No warnings identified
P19: ="Unadjusted Marginal Safety of elements in "&I2&" from Design Standards" -> Unadjusted Marginal Safety of elements in Standard from Design Standards | DB19: =COUNTIF(DB23:DB41,DB20) -> 1
DB20: =VLOOKUP(0,CZ23:DB41,3,) -> 10.01
D21: Fill all elements | F21: To enter notes, use boxes to the right of the vortex
B22: =+Construction!$I$8&" Total Available Points" -> 40 Total Available Points | D22: =D249 & " Missing Elements" -> 18 Missing Elements | F22: =F249 & " Missing Elements" -> 18 Missing Elements | G22: =G249 & " Missing Elements" -> 18 Missing Elements | CX22: Ranked element | CY22: CRF | CZ22: abs | DA22: Re-rank | DB22: Rank | DC22: Ranked CRF | DD22: Element | DE22: New Element | DF22: crf.abs | DG22: rank | DH22: Sorted Element | DI22: Sorted CRF
B23: Geometric Design Elements | D23: Existing | E23: Standard | F23: Design 1 | G23: Design 2 | H23: ="Marginal Safety for "&$I$2&" (compared to " & $I$4 & ")" -> Marginal Safety for Standard (compared to Existing) | I23: Optimal | CX23: =IF(CY23=0,"",DB23&". "&DD23) ->  | CY23: =H24 -> 0 | CZ23: =ABS(CY23) -> 0 | DA23: =RANK(DB23,$DB$23:$DB$41,1) -> 10 | DB23: =_xlfn.RANK.EQ(CZ23,$CZ$23:$CZ$41)+DG23/100 -> 10.01 | DC23: =CY23 -> 0 | DD23: =IF(ROUND(DF23,2)=0,"",C24) ->  | DE23: =DD23 ->  | DF23: =CZ23 -> 0 | DG23: 1 | DH23: =IFERROR(IF(IFERROR(VLOOKUP(DG23,$DA$23:$DF$41,4,)&", "&CY23=0,""),"",IFERROR(VLOOKUP(DG23,$DA$23:$DE$41,4,),"")),"") -> TWLTL (two-way left-turn lane) | DI23: =IFERROR(IF(IFERROR(VLOOKUP(DG23,$DA$23:$DF$41,3,)&", "&CY23=0,""),"",IFERROR(VLOOKUP(DG23,$DA$23:$DE$41,3,),"")),"") -> -0.4084507042
C24: Lane Width (feet) | E24: 12 | H24: =M100 -> 0 | I24: 12 | CX24: 5.02. Shoulder Width (feet) | CY24: =H25 -> 0.1550387597 | CZ24: 0.1550387597 | DA24: =RANK(DB24,$DB$23:$DB$41,1) -> 5 | DB24: =_xlfn.RANK.EQ(CZ24,$CZ$23:$CZ$41)+DG24/100 -> 5.02 | DC24: =CY24 -> 0.1550387597 | DD24: =IF(ROUND(DF24,2)=0,"",C25) -> Shoulder Width (feet) | DE24: =DD24 -> Shoulder Width (feet) | DF24: 0.1550387597 | DG24: 2 | DH24: Pavement Friction (skid number) *** | DI24: =IFERROR(IF(IFERROR(VLOOKUP(DG24,$DA$23:$DF$41,3,)&", "&CY24=0,""),"",IFERROR(VLOOKUP(DG24,$DA$23:$DE$41,3,),"")),"") -> 0.2843095602
C25: Shoulder Width (feet) | E25: =IF('Start Here'!$J$12="4R",8,4) -> 4 | H25: =M101 -> 0.1550387597 | I25: 10 | CY25: =H29 -> 0 | CZ25: 0 | DA25: 11 | DB25: 10.03 | DC25: 0 | DD25: =IF(ROUND(DF25,2)=0,"","Hz and Vt Alignment") ->  | DF25: 0 | DG25: 3 | DH25: Driveway Density (driveways per mile) | DI25: -0.223881142
C26: Cross-slope or Superelevation (%) | E26: =IF($I$12=6,IFERROR(VLOOKUP(E29,$C$382:$D$402,2,TRUE),6),IFERROR(VLOOKUP(E29,$C$409:$D$439,2,TRUE),8)) -> 8 | I26: =I12 -> 0 | CX26: 1.04. TWLTL (two-way left-turn lane) | CY26: =H43 -> -0.4084507042 | CZ26: 0.4084507042 | DA26: 1 | DB26: 1.04 | DC26: -0.4084507042 | DD26: =IF(ROUND(DF26,2)=0,"",C43) -> TWLTL (two-way left-turn lane) | DE26: TWLTL (two-way left-turn lane) | DF26: 0.4084507042 | DG26: 4 | DH26: Centerline Rumble Strips | DI26: -0.1627906977
C27: Horizontal Curve Present? | D27: -- | E27: -- | F27: -- | G27: -- | I27: -- | CY27: =H44 -> 0 | CZ27: 0 | DA27: 12 | DB27: 10.05 | DC27: 0 | DD27: =IF(ROUND(DF27,2)=0,"",C44) ->  | DF27: 0 | DG27: 5 | DH27: Shoulder Width (feet) | DI27: 0.1550387597
C28: Horizontal Curve Data for Controlling Element: | D28: -- | E28: -- | F28: -- | G28: -- | I28: -- | CY28: =H52 -> 0 | CZ28: 0 | DA28: 13 | DB28: 10.06 | DC28: 0 | DD28: =IF(ROUND(DF28,2)=0,"",C52) ->  | DF28: 0 | DG28: 6 | DH28: Edgeline Pavement Markings or Profile Markings | DI28: 0.1382411869
C29: Radius (feet) | E29: =IF(MAX($I$10,$I$11)<45,590,IF($I$12=6,VLOOKUP(MAX($I$10,$I$11),Construction!$B$29:$D$36,2,TRUE),VLOOKUP(MAX($I$10,$I$11),Construction!$G$29:$I$36,2,TRUE))) -> 590 | H29: =M140 -> 0 | I29: =IF(MAX($I$10,$I$11)<45,590,IF($I$12=6,VLOOKUP(MAX($I$10,$I$11),Construction!$B$45:$C$52,2,TRUE),VLOOKUP(MAX($I$10,$I$11),Construction!$G$45:$H$52,2,TRUE))) -> 590 | CY29: 0 | CZ29: 0 | DA29: 14 | DB29: 10.07 | DC29: 0 | DF29: 0 | DG29: 7 | DH29: Lateral Clearance to obstruction (ft) | DI29: 0.09030716297
C30: Length of Horizontal Curve (feet) | E30: =IF(D31="", "", E29*E31/57.296) ->  | I30: =I29*I31/57.296 -> 3758.55208 | CY30: 0 | CZ30: 0 | DA30: 15 | DB30: 10.08 | DC30: 0 | DF30: 0 | DG30: 8 | DH30: SafetyEdge | DI30: -0.02818899192
C31: Calculated Deflection Angle ∆ | D31: =IF(OR(ISBLANK(D29),ISBLANK(D30),$B$27="No",ISBLANK($B$27)),"",ROUND(D30/D29*57.296,1)) ->  | E31: =IF(ISBLANK(D31), "",D31) ->  | F31: =IF(OR(ISBLANK(F29),ISBLANK(F30),$B$27="No",ISBLANK($B$27)),"",ROUND(F30/F29*57.296,1)) ->  | G31: =IF(OR(ISBLANK(G29),ISBLANK(G30),$B$27="No",ISBLANK($B$27)),"",ROUND(G30/G29*57.296,1)) ->  | I31: =MIN(D31,IF(F33=INDEX(HCurveChange,1,0), F31, 365),IF(G33=INDEX(HCurveChange,1,0), G31, 365)) -> 365 | CX31: 6.09. Edgeline Pavement Markings or Profile Markings | CY31: 0.1382411869 | CZ31: 0.1382411869 | DA31: 6 | DB31: 6.09 | DC31: 0.1382411869 | DD31: Edgeline Pavement Markings or Profile Markings | DE31: Edgeline Pavement Markings or Profile Markings | DF31: 0.1382411869 | DG31: 9 | DH31: Lighting | DI31: -0.02349908153
F32: ∆ has changed. Are you changing the ∆? | G32: ∆ has changed. Are you changing the ∆? | CY32: 0 | CZ32: 0 | DA32: 16 | DB32: 10.1 | DC32: 0 | DF32: 0 | DG32: 10 | DI32: 0
CX33: 4.11. Centerline Rumble Strips | CY33: -0.1627906977 | CZ33: 0.1627906977 | DA33: 4 | DB33: 4.11 | DC33: -0.1627906977 | DD33: Centerline Rumble Strips | DE33: Centerline Rumble Strips | DF33: 0.1627906977 | DG33: 11 | DI33: 0
C34: Vertical Curve Present? | D34: -- | E34: -- | F34: -- | G34: -- | I34: =E34 -> -- | CX34: 3.12. Driveway Density (driveways per mile) | CY34: -0.223881142 | CZ34: 0.223881142 | DA34: 3 | DB34: 3.12 | DC34: -0.223881142 | DD34: =IF(DF34=0,"",C58) -> Driveway Density (driveways per mile) | DE34: Driveway Density (driveways per mile) | DF34: 0.223881142 | DG34: 12 | DI34: 0
C35: Vertical Curve Data for Controlling Element: | D35: -- | E35: -- | F35: -- | G35: -- | I35: -- | CX35: 9.13. Lighting | CY35: -0.02349908153 | CZ35: 0.02349908153 | DA35: 9 | DB35: 9.13 | DC35: -0.02349908153 | DD35: =IF(DF35=0,"",C59) -> Lighting | DE35: Lighting | DF35: 0.02349908153 | DG35: 13 | DI35: 0
C36: Approach (Entry) Grade, G1 (%) | E36: =IF(ISBLANK(D36),"", D36) ->  | I36: =IF(B34="Yes",I227,I237) ->  | CX36: 2.14. Pavement Friction (skid number) *** | CY36: 0.2843095602 | CZ36: 0.2843095602 | DA36: 2 | DB36: 2.14 | DC36: 0.2843095602 | DD36: =IF(DF36=0,"",C60) -> Pavement Friction (skid number) *** | DE36: Pavement Friction (skid number) *** | DF36: 0.2843095602 | DG36: 14 | DI36: 0
C37: Departure (Exit) Grade, G2 (%) | E37: =IF(ISBLANK(D37),"", D37) ->  | I37: =IF($B$34="Yes",I228,"") ->  | CY37: =H72 -> 0 | CZ37: 0 | DA37: 17 | DB37: 10.15 | DC37: 0 | DD37: =IF(DF37=0,"",C72) ->  | DF37: 0 | DG37: 15 | DI37: 0
C38: Length (feet) | E38: =IF(AND($B$34="Yes", D39<>""), ABS(E36-E37)*D39, "") ->  | I38: =IF(AND($B$34="Yes",I36<>"",I37<>"", NOT(ISBLANK($I$10)), NOT(ISBLANK($I$11))),ABS(I37-I36)*I39,"") ->  | CY38: =H73 -> 0 | CZ38: =ABS(CY38) -> 0 | DA38: 18 | DB38: 10.16 | DC38: 0 | DD38: =IF(DF38=0,"",C73) ->  | DF38: 0 | DG38: 16 | DI38: 0
C39: Calculated Rate of Change, K (ft/ft) | D39: =IF(OR($B$34="No",ISBLANK($B$34), ISBLANK(D36), ISBLANK(D37),ISBLANK(D38), D36=D37), "", ROUND(D38/(ABS(D37-D36)),1)) ->  | E39: =IF(AND($B$34="Yes", NOT(ISBLANK($I$10)), NOT(ISBLANK($I$11)), D39<>""), IF($E$42="Crest", VLOOKUP(MAX($I$10,$I$11),Construction!$B$159:$D$171,2,TRUE), VLOOKUP(MAX($I$10,$I$11),Construction!$B$159:$D$171,3,TRUE)), "") ->  | F39: =IF(AND($B$34="Yes", SUM(F263:F265)=0),ROUND(F38/(ABS(F37-F36)),1),"") ->  | G39: =IF(AND($B$34="Yes", SUM(G263:G265)=0),ROUND(G38/(ABS(G37-G36)),1),"") ->  | I39: =IF(OR($B$34<>"Yes", ISBLANK($I$10), ISBLANK($I$11), $I$36="", $I$37="", $I$42="--", ISBLANK($I$42)),"",IF($I$42="Crest",VLOOKUP(MAX($I$10,$I$11),Construction!$B$179:$D$191,2,TRUE),VLOOKUP(MAX($I$10,$I$11),Construction!$B$179:$D$191,3,TRUE))) ->  | CX39: 8.17. SafetyEdge | CY39: =H74 -> -0.02818899192 | CZ39: =ABS(CY39) -> 0.02818899192 | DA39: 8 | DB39: 8.17 | DC39: -0.02818899192 | DD39: =IF(DF39=0,"",C74) -> SafetyEdge | DE39: SafetyEdge | DF39: 0.02818899192 | DG39: 17 | DI39: 0
F40: Are you changing the geometry? | G40: Are you changing the geometry? | CX40: 7.18. Lateral Clearance to obstruction (ft) | CY40: =H75 -> 0.09030716297 | CZ40: =ABS(CY40) -> 0.09030716297 | DA40: 7 | DB40: 7.18 | DC40: 0.09030716297 | DD40: =IF(DF40=0,"",C75) -> Lateral Clearance to obstruction (ft) | DE40: Lateral Clearance to obstruction (ft) | DF40: 0.09030716297 | DG40: 18 | DI40: 0
CY41: =H76 -> 0 | CZ41: =ABS(CY41) -> 0 | DA41: 19 | DB41: 10.19 | DC41: 0 | DD41: =IF(DF41=0,"",C76) ->  | DF41: 0 | DG41: 19 | DI41: 0
C42: Calculated Sag or Crest? | D42: =IF(AND($B$34="Yes", SUM(D263:D265)=0),IF(D36>D37,"Crest","Sag"),"--") -> -- | E42: =IF(AND($B$34="Yes", SUM(D263:D265)=0),IF(E36>E37,"Crest","Sag"),"--") -> -- | F42: =IF(AND($B$34="Yes", SUM(F263:F265)=0),IF(F36>F37,"Crest","Sag"),"--") -> -- | G42: =IF(AND($B$34="Yes", SUM(G263:G265)=0),IF(G36>G37,"Crest","Sag"),"--") -> -- | I42: =IF($B$34="Yes",IF(I36>I37,"Crest","Sag"),"--") -> --
C43: TWLTL (two-way left-turn lane) | E43: No | H43: =M108 -> -0.4084507042 | I43: =IF(OR($D$43="Yes", $F$43="Yes",$G$43="Yes"), "Yes", "No") -> No
C44: Passing Lane Type | E44: No Passing Lane | H44: =M109 -> 0 | I44: Super 2
C45: Geometric Design Element (Partial Score) | D45: =IF(OR(SUM(D251:D253,D256:D257,D263:D265,D270:D271)>0, ISERR(D125)),"",D125) ->  | E45: =IF(OR(SUM(E251:E253,E256:E257,E263:E265,E270:E271)>0, ISERR(E125)),"",E125) ->  | I45: =IF(OR(SUM(I251:I253,I256:I257,I263:I265,I270:I271)>0, ISERR(I125)),"",I125) -> 
C46: Total Safety Score | D46: =IF(OR(D$249>0, $I$315>0,ISERROR(D$201+D$171+D$125)),"",D$201+D$171+D$125) ->  | E46: =IF(OR(E$249>0, $I$315>0,ISERROR(E$201+E$171+E$125)),"",E$201+E$171+E$125) ->  | M46: SCHEMATIC REPRESENTING INPUT DATA FOR | U46: =IF($I$2="Existing","EXISTING CONFIGURATION",IF($I$2="Standard","STANDARD OPTION",IF($I$2="Design 1","DESIGN 1 OPTION",IF($I$2="Design 2","DESIGN 2 OPTION","OPTIMAL OPTION")))) -> STANDARD OPTION
L48: LT | AA48: RT
L49: R/W | AA49: R/W
B50: =+Construction!$I$9&" Total Available Points" -> 20 Total Available Points
B51: Traffic Elements | D51: Existing | E51: Standard | F51: Design 1 | G51: Design 2 | H51: =$H$23 -> Marginal Safety for Standard (compared to Existing) | I51: Optimal | O51: =+$I$14 -> 0 | W51: =+$I$15 -> 0
C52: Advance Static Curve Warning Signs | E52: No | H52: =M145 -> 0 | I52: Yes
C53: Chevron Signs on Horizontal Curves | E53: No | H53: =M146 -> 0 | I53: Yes | L53: =+O51-N53-Q53 -> -16 | N53: =IF(+$I$2="Existing",D25,IF($I$2="Standard",E25,IF($I$2="Design 1",F25,IF($I$2="Design 2",G25,I25)))) -> 4 | Q53: =IF(+$I$2="Existing",D24,IF($I$2="Standard",E24,IF($I$2="Design 1",F24,IF($I$2="Design 2",G24,I24)))) -> 12 | V53: =+Q53 -> 12 | Y53: =+N53 -> 4 | Z53: =+W51-V53-Y53 -> -16
C54: Post-Mounted Delineators | E54: No | H54: 0 | I54: Yes
C55: Edgeline Pavement Markings or Profile Markings | E55: Yes | H55: 0.1382411869 | I55: Yes
C56: Shoulder Rumble Strips | E56: Yes | H56: =M150 -> 0 | I56: Yes
C57: Centerline Rumble Strips | E57: No | H57: =M151 -> -0.1627906977 | I57: Yes
C58: Driveway Density (driveways per mile) | E58: 10 | H58: =M152 -> -0.223881142 | I58: 0
C59: Lighting | E59: No | H59: =M153 -> -0.02349908153 | I59: Yes | S59: Tangent X-Section
C60: Pavement Friction (skid number) *** | E60: 37 | H60: =M154 -> 0.2843095602 | I60: 54
C62: Traffic Control Element (Partial Score): | D62: =IF(ISERROR(D171), "", D171) -> 12 | E62: =IF(ISERROR(E171), "", E171) -> 14 | F62: =IF(ISERROR(F171), "", F171) ->  | G62: =IF(ISERROR(G171), "", G171) ->  | I62: =IF(ISERROR(I171), "", I171) -> 20
C63: Total Safety Score | D63: =IF(OR(D$249>0, $I$315>0,ISERROR(D$201+D$171+D$125)),"",D$201+D$171+D$125) ->  | E63: =IF(OR(E$249>0, $I$315>0,ISERROR(E$201+E$171+E$125)),"",E$201+E$171+E$125) -> 
C65: *** Pavement friction/skid numbers will not be subject to open records requests ***
S69: Curved X-Section
B70: =+Construction!$I$10&" Total Available Points" -> 40 Total Available Points
B71: Roadside Elements | D71: Existing | E71: Standard | F71: Design 1 | G71: Design 2 | H71: =$H$23 -> Marginal Safety for Standard (compared to Existing) | I71: Optimal
C72: Sideslope (Foreslope) | E72: 1V:4H | H72: =M180 -> 0 | I72: 1V:6H
C73: Backslope | E73: =E72 -> 1V:4H | H73: =M181 -> 0 | I73: 1V:4H
C74: SafetyEdge | E74: No | H74: =M182 -> -0.02818899192 | I74: Yes
C75: Lateral Clearance to obstruction (ft) | E75: 30 | H75: =M183 -> 0.09030716297 | I75: 40 | Q75: =IF($I$2="Existing","SCORE SUMMARY FOR EXISTING CONFIGURATION", IF($I$2="Standard","SCORE SUMMARY FOR STANDARD OPTION",IF($I$2="Design 1","SCORE SUMMARY FOR DESIGN 1 OPTION",IF($I$2="Design 2","SCORE SUMMARY FOR DESIGN 2 OPTION", "SCORE SUMMARY FOR OPTIMAL OPTION")))) -> SCORE SUMMARY FOR STANDARD OPTION
C76: Obstruction Type | E76: Other Fixed Object | H76: =M184 -> 0 | I76: None | Q76: GEOMETRIC DESIGN: | W76: =IF($I$2="Existing",D45,IF($I$2="Standard",E45,IF($I$2="Design 1",F45,IF($I$2="Design 2",G45,I45)))) -> 
C77: Roadside Element (Partial Score): | D77: =IF(ISERR(D201),"",D201) ->  | E77: =IF(ISERR(E201),"",E201) -> 27 | F77: =IF(ISERR(F201),"",F201) ->  | G77: =IF(ISERR(G201),"",G201) ->  | I77: =IF(ISERR(I201),"",I201) -> 40 | Q77: TRAFFIC CONTROL: | W77: =IF($I$2="Existing",D62,IF($I$2="Standard",E62,IF($I$2="Design 1",F62,IF($I$2="Design 2",G62,I62)))) -> 14
C78: Total Safety Score | D78: =IF(OR(D$249>0, $I$315>0,ISERROR(D$201+D$171+D$125)),"",D$201+D$171+D$125) ->  | E78: =IF(OR(E$249>0, $I$315>0,ISERROR(E$201+E$171+E$125)),"",E$201+E$171+E$125) ->  | Q78: ROADSIDE: | W78: =IF($I$2="Existing",D77,IF($I$2="Standard",E77,IF($I$2="Design 1",F77,IF($I$2="Design 2",G77,I77)))) -> 27
Q79: OVERALL SAFETY SCORE: | W79: =SUM(W76:X78) -> 41
B83: ADDITIONAL SIDESLOPE INFORMATION
C84: Distance to Slope Toe from Shoulder (ft) | E84: =D84 -> 0 | F84: =E84 -> 0 | G84: =F84 -> 0 | I84: =G84 -> 0
B85: Minimum foreslope feasible within current ROW | E85: =IF(OR(ISBLANK($D$84), ISERROR(E206)), "", "1V:"&E206&"H") ->  | F85: =IF(OR(ISBLANK($D$84), ISERROR(F206)), "", "1V:"&F206&"H") ->  | G85: =IF(OR(ISBLANK($D$84), ISERROR(G206)), "", "1V:"&G206&"H") ->  | I85: =IF(OR(ISBLANK($D$84), ISERROR(I206)), "", "1V:"&I206&"H") -> 
B86: Additional R/W needed on left side | E86: =IF(OR(ISBLANK($D$84), ISERROR(E210)),"", MAX(E210,E213)) ->  | F86: =IF(OR(ISBLANK($D$84), ISERROR(F210)), "", MAX(F210,F213)) ->  | G86: =IF(OR(ISBLANK($D$84), ISERROR(G210)),"", MAX(G210,G213)) ->  | I86: =IF(OR(ISBLANK($D$84), ISERROR(I210)),"", MAX(I210,I213)) -> 
B87: Additional R/W needed on right side | E87: =IF(OR(ISBLANK($D$84), ISERROR(E211)), "", MAX(E211,E214)) ->  | F87: =IF(OR(ISBLANK($D$84), ISERROR(F211)), "", MAX(F211,F214)) ->  | G87: =IF(OR(ISBLANK($D$84), ISERROR(G211)),"", MAX(G211,G214)) ->  | I87: =IF(OR(ISBLANK($D$84), ISERROR(I211)),"", MAX(I211,I214)) -> 
J95: =1-I100/E100 -> 0
J96: =1-I101/E101 -> 0.1743119266 | K96: For Plot
D97: =MAX(SUM(D103:D107)-5,$I$97) ->  | E97: =MAX(SUM(E103:E107)-5,$I$97) ->  | F97: =MAX(SUM(F103:F107)-5,$I$97) ->  | G97: =MAX(SUM(G103:G107)-5,$I$97) ->  | I97: =SUM(I103:I107)-5 ->  | J97: =1-I102/E102 -> 0 | K97: relative to | L97: Prefer
J98: =1-I103/E103 ->  | K98: =MATCH(K99,ModView,0) -> 1 | L98: =MATCH(L99,ModView,0) -> 2
B99: Geometric | K99: =I4 -> Existing | L99: =I2 -> Standard | M99: %
C100: LW CMF | D100: =VLOOKUP(+D24,Construction!$C$3:$D$9,2) ->  | E100: =VLOOKUP(+E24,Construction!$C$3:$D$9,2) -> 1 | F100: =VLOOKUP(+F24,Construction!$C$3:$D$9,2) ->  | G100: =VLOOKUP(+G24,Construction!$C$3:$D$9,2) ->  | H100: =H24 -> 0 | I100: =VLOOKUP(+I24,Construction!$C$3:$D$9,2) -> 1 | K100: =INDEX($D100:$I100,K$98) ->  | L100: =INDEX($D100:$I100,L$98) -> 1 | M100: =IF(ISERROR(1-L100/K100), 0, 1-L100/K100) -> 0
C101: SW CMF | D101: =VLOOKUP(D25,Construction!$C$13:D23,2) -> 1.29 | E101: =VLOOKUP(E25,Construction!$C$13:E23,2) -> 1.09 | F101: =VLOOKUP(F25,Construction!$C$13:F23,2) -> 1.29 | G101: =VLOOKUP(G25,Construction!$C$13:G23,2) -> 1.29 | H101: =IF($I$2="Existing",(1-D101/E101),(IF($I$2="Design 1",(1-F101/E101),(IF($I$2="Design 2",(1-G101/E101),(IF($I$2="Optimal",(1-I101/E101),0))))))) -> 0 | I101: =VLOOKUP(I25,Construction!$C$13:I23,2) -> 0.9 | K101: =INDEX($D101:$I101,K$98) -> 1.29 | L101: =INDEX($D101:$I101,L$98) -> 1.09 | M101: =IF(ISERROR(1-L101/K101), 0, 1-L101/K101) -> 0.1550387597
C102: Placeholder for super deficincy | D102: 1 | E102: 1 | F102: 1 | G102: 1 | H102: 0 | I102: 1 | K102: =INDEX($D102:$I102,K$98) -> 1 | L102: =INDEX($D102:$I102,L$98) -> 1 | M102: 0
C103: HC and Grade | D103: =D$134^D$127 -> 1 | E103: =E$134^E$127 ->  | F103: =F$134^F$127 -> 1 | G103: =G$134^G$127 -> 1 | H103: 0 | I103: =I$134^I$127 ->  | K103: =INDEX($D103:$I103,K$98) -> 1 | L103: =INDEX($D103:$I103,L$98) ->  | M103: 0
C104: HC and VC Crest type I | D104: =D$135^D$128 -> 1 | E104: =E$135^E$128 -> 1 | F104: =F$135^F$128 -> 1 | G104: =G$135^G$128 -> 1 | H104: 0 | I104: =I$135^I$128 ->  | K104: =INDEX($D104:$I104,K$98) -> 1 | L104: =INDEX($D104:$I104,L$98) -> 1 | M104: 0
C105: HC and VC Sag type I | D105: =D$136^D$129 -> 1 | E105: =E$136^E$129 -> 1 | F105: =F$136^F$129 -> 1 | G105: =G$136^G$129 -> 1 | H105: 0 | I105: =I$136^I$129 ->  | K105: =INDEX($D105:$I105,K$98) -> 1 | L105: =INDEX($D105:$I105,L$98) -> 1 | M105: 0
C106: HC and VC Crest type II | D106: =D$137^D$130 -> 1 | E106: =E$137^E$130 -> 1 | F106: =F$137^F$130 -> 1 | G106: =G$137^G$130 -> 1 | H106: 0 | I106: =I$137^I$130 ->  | J106: =1-I111/E111 ->  | K106: =INDEX($D106:$I106,K$98) -> 1 | L106: =INDEX($D106:$I106,L$98) -> 1 | M106: 0
C107: HC and VC Sag type II | D107: =D$138^D$131 -> 1 | E107: =E$138^E$131 -> 1 | F107: =F$138^F$131 -> 1 | G107: =G$138^G$131 -> 1 | H107: 0 | I107: =I$138^I$131 ->  | J107: =1-I112/E112 ->  | K107: =INDEX($D107:$I107,K$98) -> 1 | L107: =INDEX($D107:$I107,L$98) -> 1 | M107: 0
C108: Add TWLTL | D108: =IF(D$43="No",1,CMFs!$F$17) -> 0.71 | E108: =IF(E$43="No",1,CMFs!$F$17) -> 1 | F108: =IF(F$43="No",1,CMFs!$F$17) -> 0.71 | G108: =IF(G$43="No",1,CMFs!$F$17) -> 0.71 | H108: 0 | I108: =IF(I$43="No",1,CMFs!$F$17) -> 1 | J108: =1-I113/E113 ->  | K108: =INDEX($D108:$I108,K$98) -> 0.71 | L108: =INDEX($D108:$I108,L$98) -> 1 | M108: -0.4084507042
C109: Passing Lane Type | D109: =IF(ISNUMBER(INDEX(PassLNCMF, MATCH(D44,Passing_Lane_Type,0))),INDEX(PassLNCMF, MATCH(D44,Passing_Lane_Type,0)),1) -> 1 | E109: =IF(ISNUMBER(INDEX(PassLNCMF, MATCH(E44,Passing_Lane_Type,0))),INDEX(PassLNCMF, MATCH(E44,Passing_Lane_Type,0)),1) -> 1 | F109: =IF(ISNUMBER(INDEX(PassLNCMF, MATCH(F44,Passing_Lane_Type,0))),INDEX(PassLNCMF, MATCH(F44,Passing_Lane_Type,0)),1) -> 1 | G109: =IF(ISNUMBER(INDEX(PassLNCMF, MATCH(G44,Passing_Lane_Type,0))),INDEX(PassLNCMF, MATCH(G44,Passing_Lane_Type,0)),1) -> 1 | H109: 0 | I109: =IF(ISNUMBER(INDEX(PassLNCMF, MATCH(I44,Passing_Lane_Type,0))),INDEX(PassLNCMF, MATCH(I44,Passing_Lane_Type,0)),1) -> 0.65 | J109: =1-I114/E114 ->  | K109: =INDEX($D109:$I109,K$98) -> 1 | L109: =INDEX($D109:$I109,L$98) -> 1 | M109: 0
J110: =I115/E115 -> 
C111: COMBINED Calculated CMF | D111: =+D100*D101*D102*D103*D104*D105*D106*D107*D108*D109 ->  | E111: =+E100*E101*E102*E103*E104*E105*E106*E107*E108*E109 ->  | F111: =+F100*F101*F102*F103*F104*F105*F106*F107*F108*F109 ->  | G111: =+G100*G101*G102*G103*G104*G105*G106*G107*G108*G109 ->  | H111: =IF($I$2="Existing",(D111),(IF($I$2="Design 1",(F111),(IF($I$2="Design 2",(G111),(IF($I$2="Optimal",(I111),E111))))))) ->  | I111: =+I100*I101*I102*I103*I104*I105*I106*I107*I108*I109 ->  | K111: =INDEX($D111:$I111,K$98) ->  | L111: =INDEX($D111:$I111,L$98) ->  | M111: =IF(ISERROR(1-L111/K111), 0, 1-L111/K111) -> 0
C112: Calculated Relative to Design Standards (Column E) | D112: =+D111/$E$111 ->  | K112: =INDEX($D112:$I112,K$98) ->  | L112: =INDEX($D112:$I112,L$98) ->  | M112: 0
C113: P(Crash) | D113: =+D112/(D112+1) ->  | K113: =INDEX($D113:$I113,K$98) ->  | L113: =INDEX($D113:$I113,L$98) ->  | M113: 0
C114: Factor Change on S curve | D114: =+D113/$E$113 ->  | K114: =INDEX($D114:$I114,K$98) ->  | L114: =INDEX($D114:$I114,L$98) ->  | M114: 0
C115: Adjust to Scale of 100 | D115: =+$I$114/D114*100 -> 
C116: Unadjusted Combined Relative to Standard | D116: =+D111/$E$111 ->  | K116: =INDEX($D116:$I116,K$98) ->  | L116: =INDEX($D116:$I116,L$98) ->  | M116: =IF(ISERROR(1-L116/K116), 0, 1-L116/K116) -> 0
J117: =I122/E122 -> 
C118: Adjusted for PA Basis | D118: =+D111*(1+1)/(1+D111*1) ->  | H118: =IF($I$2="Existing",(D118),(IF($I$2="Design 1",(F118),(IF($I$2="Design 2",(G118),(IF($I$2="Optimal",(I118),E118))))))) ->  | K118: =INDEX($D118:$I118,K$98) ->  | L118: =INDEX($D118:$I118,L$98) ->  | M118: =IF(ISERROR(1-L118/K118), 0, 1-L118/K118) -> 0
C119: Corrected by Odds Ratio | D119: =+D118/$E$118 ->  | H119: =IF($I$2="Existing",(D119),(IF($I$2="Design 1",(F119),(IF($I$2="Design 2",(G119),(IF($I$2="Optimal",(I119),E119))))))) ->  | K119: =INDEX($D119:$I119,K$98) ->  | L119: =INDEX($D119:$I119,L$98) ->  | M119: 0
C120: Pinned s | D120: =(1/D119)^$D123 ->  | J120: =I125/E125 ->  | K120: =INDEX($D120:$I120,K$98) ->  | L120: =INDEX($D120:$I120,L$98) ->  | M120: 0
D121: =(D120+$F124-1)/(1+(D120+$F124-1)) ->  | K121: =INDEX($D121:$I121,K$98) ->  | L121: =INDEX($D121:$I121,L$98) ->  | M121: 0
C122: Score Odds Ratio with Optimal (old) | D122: =MIN(ROUND($I$119/D119*Construction!$I$8,0),$I122) ->  | E122: =MIN(ROUND($I$119/E119*Construction!$I$8,0),$I122) ->  | F122: =MIN(ROUND($I$119/F119*Construction!$I$8,0),$I122) ->  | G122: =MIN(ROUND($I$119/G119*Construction!$I$8,0),$I122) ->  | H122: =IF($I$2="Existing",(D122),(IF($I$2="Design 1",(F122),(IF($I$2="Design 2",(G122),(IF($I$2="Optimal",(I122),E122))))))) ->  | I122: =ROUND($I$119/I119*Construction!$I$8,0) -> 
C123: Logistic1 | D123: =LN((D124/(1-D124))/(0.5/0.5))/LN($E119/I119) -> 
C124: Logistic Param | D124: 0.999 | F124: =0.7/0.3 -> 2.333333333
C125: Score | D125: =MIN(ROUND(D121*Construction!$I$8,0),$I122) ->  | E125: =MIN(ROUND(E121*Construction!$I$8,0),$I122) ->  | F125: =MIN(ROUND(F121*Construction!$I$8,0),$I122) ->  | G125: =MIN(ROUND(G121*Construction!$I$8,0),$I122) ->  | H125: =MIN(ROUND(H121*Construction!$I$8,0),$I122) ->  | I125: =MIN(ROUND(I121*Construction!$I$8,0),$I122) -> 
C127: HC and Grade | D127: =IF($B$135,0,1) -> 1 | E127: =IF($B$135,0,1) -> 1 | F127: =IF($B$135,0,1) -> 1 | G127: =IF($B$135,0,1) -> 1 | H127: =IF($I$2="Existing",(D127),(IF($I$2="Design 1",(F127),(IF($I$2="Design 2",(G127),(IF($I$2="Optimal",(I127),E127))))))) -> 1 | I127: =IF($B$135,0,1) -> 1
C128: HC and VC Crest type I | D128: =IF(AND($B$135=1,SIGN(D$36)=1,ABS(D$36)<=ABS(D$36-D$37),D$42="Crest"),1,0) -> 0 | E128: =IF(AND($B$135=1, SIGN(IF(ISNUMBER(E$36),E$36,0))=1,ABS(IF(ISNUMBER(E$36),E$36,0)) <= ABS(IF(ISNUMBER(E$36),E$36,0)-IF(ISNUMBER(E$37),E$37,0)),E$42="Crest"),1,0) -> 0 | F128: =IF(AND($B$135=1,SIGN(F$36)=1,ABS(F$36)<=ABS(F$36-F$37),F$42="Crest"),1,0) -> 0 | G128: =IF(AND($B$135=1,SIGN(G$36)=1,ABS(G$36)<=ABS(G$36-G$37),G$42="Crest"),1,0) -> 0 | H128: =IF($I$2="Existing",(D128),(IF($I$2="Design 1",(F128),(IF($I$2="Design 2",(G128),(IF($I$2="Optimal",(I128),E128))))))) -> 0 | I128: =IF(AND($B$135=1,SIGN(I$36)=1,ABS(I$36)<=ABS(I$36-IF(ISNUMBER(I$37), I$37,0)),I$42="Crest"),1,0) -> 
A129: HC? | C129: HC and VC Sag type I | D129: =IF(AND($B$135=1,SIGN(D$36)=1,ABS(D$36)<=ABS(D$36-D$37),D$42="Sag"),1,0) -> 0 | E129: =IF(AND($B$135=1, SIGN(IF(ISNUMBER(E$36),E$36,0))=1,ABS(IF(ISNUMBER(E$36),E$36,0)) <= ABS(IF(ISNUMBER(E$36),E$36,0)-IF(ISNUMBER(E$37),E$37,0)),E$42="Sag"),1,0) -> 0 | F129: =IF(AND($B$135=1,SIGN(F$36)=1,ABS(F$36)<=ABS(F$36-F$37),F$42="Sag"),1,0) -> 0 | G129: =IF(AND($B$135=1,SIGN(G$36)=1,ABS(G$36)<=ABS(G$36-G$37),G$42="Sag"),1,0) -> 0 | H129: =IF($I$2="Existing",(D129),(IF($I$2="Design 1",(F129),(IF($I$2="Design 2",(G129),(IF($I$2="Optimal",(I129),E129))))))) -> 0 | I129: =IF(AND($B$135=1,SIGN(I$36)=1,ABS(I$36)<=ABS(I$36-IF(ISNUMBER(I$37), I$37,0)),I$42="Sag"),1,0) -> 
A130: VC? | C130: HC and VC Crest type II | D130: =IF(AND($B$135=1,D$42="Crest",D$128=0),1,0) -> 0 | E130: =IF(AND($B$135=1,E$42="Crest",E$128=0),1,0) -> 0 | F130: =IF(AND($B$135=1,F$42="Crest",F$128=0),1,0) -> 0 | G130: =IF(AND($B$135=1,G$42="Crest",G$128=0),1,0) -> 0 | H130: =IF($I$2="Existing",(D130),(IF($I$2="Design 1",(F130),(IF($I$2="Design 2",(G130),(IF($I$2="Optimal",(I130),E130))))))) -> 0 | I130: =IF(AND($B$135=1,I$42="Crest",I$128=0),1,0) -> 
C131: HC and VC Sag type II | D131: =IF(AND($B$135=1,D$42="Sag",D$129=0),1,0) -> 0 | E131: =IF(AND($B$135=1,E$42="Sag",E$129=0),1,0) -> 0 | F131: =IF(AND($B$135=1,F$42="Sag",F$129=0),1,0) -> 0 | G131: =IF(AND($B$135=1,G$42="Sag",G$129=0),1,0) -> 0 | H131: =IF($I$2="Existing",(D131),(IF($I$2="Design 1",(F131),(IF($I$2="Design 2",(G131),(IF($I$2="Optimal",(I131),E131))))))) -> 0 | I131: =IF(AND($B$135=1,I$42="Sag",I$129=0),1,0) -> 
B132: Yes/No
C133: HC and VC: | E133: =EXP(0.042*ABS(D$36)+$B$134*0.16*LN(2*5730/IF(ISNUMBER(E$29),E$29,1))) -> 1
B134: =IF(B27="Yes",1,0) -> 0 | C134: HC and Grade | D134: =IF($B$135=0,EXP(0.042*ABS(D$36)+$B$134*0.16*LN(2*5730/D$141)+4.16*$B$134/D$141/IF(ISNUMBER(D$30),D$30,999999)),1) -> 1 | E134: =IF($B$135=0,EXP(0.042*ABS(E$36)+$B$134*0.16*LN(2*5730/E$141)+4.16*$B$134/E$141/IF(ISNUMBER(E$30),E$30,999999)),1) ->  | F134: 1 | G134: 1 | H134: =IF($B$135=0,EXP(0.042*ABS(H$36)+$B$134*0.16*LN(2*5730/IF(ISNUMBER(H$29),H$29,1))+4.16*$B$134/IF(ISNUMBER(H$29),H$29,1)/IF(ISNUMBER(H$30),H$30,1)),1) ->  | K134: =INDEX($D134:$I134,K$98) -> 1 | L134: =INDEX($D134:$I134,L$98) ->  | M134: =IF(ISERROR(1-L134/K134), 0, 1-L134/K134) -> 0
B135: =IF(B34="Yes",1,0) -> 0 | C135: HC and VC Crest type I | D135: =IF($B$135=0,1,EXP(0.005648908*5730*ABS(+D$36-D$37)*$B$135/D$141*$B$134)) -> 1 | E135: =IF($B$135=0,1,EXP(0.005648908*5730*ABS(+E$36-E$37)*$B$135/E$141*$B$134)) -> 1 | F135: 1 | G135: 1 | H135: =IF($I$2="Existing",(D135),(IF($I$2="Design 1",(F135),(IF($I$2="Design 2",(G135),(IF($I$2="Optimal",(I135),E135))))))) -> 1 | I135: 1 | K135: =INDEX($D135:$I135,K$98) -> 1 | L135: =INDEX($D135:$I135,L$98) -> 1 | M135: 0
C136: HC and VC Sag type I | D136: =IF($B$135=0,1,EXP(9.15857042*$B$135/D$142+0.010284958*5730*$B$135*$B$134*ABS(+D$36-D$37)/D$141)) -> 1 | E136: =IF($B$135=0,1,EXP(9.15857042*$B$135/E$142+0.010284958*5730*$B$135*$B$134*ABS(+E$36-E$37)/E$141)) -> 1 | F136: 1 | G136: 1 | H136: =IF($I$2="Existing",(D136),(IF($I$2="Design 1",(F136),(IF($I$2="Design 2",(G136),(IF($I$2="Optimal",(I136),E136))))))) -> 1 | I136: 1 | K136: =INDEX($D136:$I136,K$98) -> 1 | L136: =INDEX($D136:$I136,L$98) -> 1 | M136: 0
C137: HC and VC Crest type II | D137: =IF($B$135=0,1,EXP(0.005648908*5730*ABS(+D$36-D$37)*$B$135/D$141*$B$134)) -> 1 | E137: =IF($B$135=0,1,EXP(0.005648908*5730*ABS(+E$36-E$37)*$B$135/E$141*$B$134)) -> 1 | F137: 1 | G137: 1 | H137: =IF($I$2="Existing",(D137),(IF($I$2="Design 1",(F137),(IF($I$2="Design 2",(G137),(IF($I$2="Optimal",(I137),E137))))))) -> 1 | I137: 1 | K137: =INDEX($D137:$I137,K$98) -> 1 | L137: =INDEX($D137:$I137,L$98) -> 1 | M137: 0
C138: HC and VC Sag type II | D138: =IF($B$135=0,1,(0.246011284*EXP(LN(0.188*2*5730/D$141)*$B$134)+0.7514288716*EXP(0.022*5730/D$141*ABS(D$36-D$37)*$B$135*$B$134))) -> 1 | E138: =IF($B$135=0,1,(0.246011284*EXP(LN(0.188*2*5730/E$141)*$B$134)+0.7514288716*EXP(0.022*5730/E$141*ABS(E$36-E$37)*$B$135*$B$134))) -> 1 | F138: 1 | G138: 1 | H138: =IF($I$2="Existing",(D138),(IF($I$2="Design 1",(F138),(IF($I$2="Design 2",(G138),(IF($I$2="Optimal",(I138),E138))))))) -> 1 | I138: 1 | K138: =INDEX($D138:$I138,K$98) -> 1 | L138: =INDEX($D138:$I138,L$98) -> 1 | M138: 0
C140: Combined HZ and VT | D140: =MMULT(TRANSPOSE(D127:D131),D134:D138) -> 1 | E140: =MMULT(TRANSPOSE(E127:E131),E134:E138) ->  | F140: =MMULT(TRANSPOSE(F127:F131),F134:F138) -> 1 | G140: =MMULT(TRANSPOSE(G127:G131),G134:G138) -> 1 | H140: =IF($I$2="Existing",(D140),(IF($I$2="Design 1",(F140),(IF($I$2="Design 2",(G140),(IF($I$2="Optimal",(I140),E140))))))) ->  | I140: =MMULT(TRANSPOSE(I127:I131),I134:I138) ->  | K140: =INDEX($D140:$I140,K$98) -> 1 | L140: =INDEX($D140:$I140,L$98) ->  | M140: =IF(ISERROR(1-L140/K140), 0, 1-L140/K140) -> 0
C141: effective R for calculation | D141: =IF(ISNUMBER(D29), D29, 99999999) -> 99999999 | E141: =IF(ISNUMBER(E29), E29, 99999999) -> 590 | F141: 99999999 | G141: 99999999 | I141: 590
C142: effective K for calculation | D142: =IF(ISNUMBER(D39), D39, 9999999) -> 9999999 | E142: =IF(ISNUMBER(E39), E39, 9999999) -> 9999999 | F142: 9999999 | G142: 9999999 | I142: 9999999
B143: Traffic
D144: Existing | E144: Standard | F144: Design 1 | G144: Design 2
C145: Advance static curve warning signs | D145: =IF(AND($B$27="Yes",D$52="Yes"),(Traffic!$F$4-1)*AVERAGE(Constraints!$F$37,Constraints!$H$37)/Constraints!$D$37+1,1) -> 1 | E145: =IF(AND($B$27="Yes",E$52="Yes"),(Traffic!$F$4-1)*AVERAGE(Constraints!$F$37,Constraints!$H$37)/Constraints!$D$37+1,1) -> 1 | F145: =IF(AND($B$27="Yes",F$52="Yes"),(Traffic!$F$4-1)*AVERAGE(Constraints!$F$37,Constraints!$H$37)/Constraints!$D$37+1,1) -> 1 | G145: =IF(AND($B$27="Yes",G$52="Yes"),(Traffic!$F$4-1)*AVERAGE(Constraints!$F$37,Constraints!$H$37)/Constraints!$D$37+1,1) -> 1 | H145: =IF($I$2="Existing",(D145),(IF($I$2="Design 1",(F145),(IF($I$2="Design 2",(G145),(IF($I$2="Optimal",(I145),E145))))))) -> 1 | I145: =IF(AND($B$27="Yes",I$52="Yes"),(Traffic!$F$4-1)*AVERAGE(Constraints!$F$37,Constraints!$H$37)/Constraints!$D$37+1,1) -> 1 | K145: =INDEX($D145:$I145,K$98) -> 1 | L145: =INDEX($D145:$I145,L$98) -> 1 | M145: =IF(ISERROR(1-L145/K145), 0, 1-L145/K145) -> 0
C146: Install chevron signs on horizontal curves | D146: =IF(D$53="No",1,(IF(AND($B$27="Yes",D$24<11.5),((Traffic!$F$6-1)*(Constraints!$E$35+Constraints!$E$31))+1,1))) -> 1 | E146: =IF(E$53="No",1,(IF(AND($B$27="Yes",E$24<11.5),((Traffic!$F$6-1)*(Constraints!$E$35+Constraints!$E$31))+1,1))) -> 1 | F146: =IF(F$53="No",1,(IF(AND($B$27="Yes",F$24<11.5),((Traffic!$F$6-1)*(Constraints!$E$35+Constraints!$E$31))+1,1))) -> 1 | G146: =IF(G$53="No",1,(IF(AND($B$27="Yes",G$24<11.5),((Traffic!$F$6-1)*(Constraints!$E$35+Constraints!$E$31))+1,1))) -> 1 | H146: =IF($I$2="Existing",(D146),(IF($I$2="Design 1",(F146),(IF($I$2="Design 2",(G146),(IF($I$2="Optimal",(I146),E146))))))) -> 1 | I146: =IF(I$53="No",1,(IF(AND($B$27="Yes",I$24<11.5),((Traffic!$F$6-1)*(Constraints!$E$35+Constraints!$E$31))+1,1))) -> 1 | K146: =INDEX($D146:$I146,K$98) -> 1 | L146: =INDEX($D146:$I146,L$98) -> 1 | M146: 0
C147: Install post-mounted delineators | D147: =IF(AND($B$27="Yes",D$54="Yes"),(Traffic!$F$12-1)*Constraints!$E$36+1,1) -> 1 | E147: =IF(AND($B$27="Yes",E$54="Yes"),(Traffic!$F$12-1)*Constraints!$E$36+1,1) -> 1 | F147: =IF(AND($B$27="Yes",F$54="Yes"),(Traffic!$F$12-1)*Constraints!$E$36+1,1) -> 1 | G147: =IF(AND($B$27="Yes",G$54="Yes"),(Traffic!$F$12-1)*Constraints!$E$36+1,1) -> 1 | H147: =IF($I$2="Existing",(D147),(IF($I$2="Design 1",(F147),(IF($I$2="Design 2",(G147),(IF($I$2="Optimal",(I147),E147))))))) -> 1 | I147: =IF(AND($B$27="Yes",I$54="Yes"),(Traffic!$F$12-1)*Constraints!$E$36+1,1) -> 1 | K147: =INDEX($D147:$I147,K$98) -> 1 | L147: =INDEX($D147:$I147,L$98) -> 1 | M147: 0
C148: Install edgeline or Profile pavement markings | D148: =IF(D$55="Yes",Traffic!$F$18*0.5+((Traffic!$F$20*(Constraints!$H$36+Constraints!$H$32)+1*(Constraints!$H$37-(Constraints!$H$36+Constraints!$H$32)))/Constraints!$H$37)*0.5,1) -> 1 | E148: =IF(E$55="Yes",Traffic!$F$18*0.5+((Traffic!$F$20*(Constraints!$H$36+Constraints!$H$32)+1*(Constraints!$H$37-(Constraints!$H$36+Constraints!$H$32)))/Constraints!$H$37)*0.5,1) -> 0.8617588131 | F148: =IF(F$55="Yes",Traffic!$F$18*0.5+((Traffic!$F$20*(Constraints!$H$36+Constraints!$H$32)+1*(Constraints!$H$37-(Constraints!$H$36+Constraints!$H$32)))/Constraints!$H$37)*0.5,1) -> 1 | G148: =IF(G$55="Yes",Traffic!$F$18*0.5+((Traffic!$F$20*(Constraints!$H$36+Constraints!$H$32)+1*(Constraints!$H$37-(Constraints!$H$36+Constraints!$H$32)))/Constraints!$H$37)*0.5,1) -> 1 | H148: =IF($I$2="Existing",(D148),(IF($I$2="Design 1",(F148),(IF($I$2="Design 2",(G148),(IF($I$2="Optimal",(I148),E148))))))) -> 0.8617588131 | I148: =IF(I$55="Yes",Traffic!$F$18*0.5+((Traffic!$F$20*(Constraints!$H$36+Constraints!$H$32)+1*(Constraints!$H$37-(Constraints!$H$36+Constraints!$H$32)))/Constraints!$H$37)*0.5,1) -> 0.8617588131 | K148: =INDEX($D148:$I148,K$98) -> 1 | L148: =INDEX($D148:$I148,L$98) -> 0.8617588131 | M148: 0.1382411869
C149: Profiles | D149: 1 | E149: 1 | F149: 1 | G149: 1 | H149: 1 | I149: 1 | K149: =INDEX($D149:$I149,K$98) -> 1 | L149: =INDEX($D149:$I149,L$98) -> 1 | M149: 0
C150: Shoulder rumble strips | D150: =IF(D$56="No",1,(Traffic!$F$27*(Constraints!$H$36+Constraints!$H$32)+1*(Constraints!$H$37-(Constraints!$H$36+Constraints!$H$32)))/Constraints!$H$37) -> 0.8976095069 | E150: =IF(E$56="No",1,(Traffic!$F$27*(Constraints!$H$36+Constraints!$H$32)+1*(Constraints!$H$37-(Constraints!$H$36+Constraints!$H$32)))/Constraints!$H$37) -> 0.8976095069 | F150: =IF(F$56="No",1,(Traffic!$F$27*(Constraints!$H$36+Constraints!$H$32)+1*(Constraints!$H$37-(Constraints!$H$36+Constraints!$H$32)))/Constraints!$H$37) -> 0.8976095069 | G150: =IF(G$56="No",1,(Traffic!$F$27*(Constraints!$H$36+Constraints!$H$32)+1*(Constraints!$H$37-(Constraints!$H$36+Constraints!$H$32)))/Constraints!$H$37) -> 0.8976095069 | H150: =IF($I$2="Existing",(D150),(IF($I$2="Design 1",(F150),(IF($I$2="Design 2",(G150),(IF($I$2="Optimal",(I150),E150))))))) -> 0.8976095069 | I150: =IF(I$56="No",1,(Traffic!$F$27*(Constraints!$H$36+Constraints!$H$32)+1*(Constraints!$H$37-(Constraints!$H$36+Constraints!$H$32)))/Constraints!$H$37) -> 0.8976095069 | K150: =INDEX($D150:$I150,K$98) -> 0.8976095069 | L150: =INDEX($D150:$I150,L$98) -> 0.8976095069 | M150: 0
C151: Install centerline rumble strips | D151: =IF(D$57="No",1,Traffic!$F$30) -> 0.86 | E151: =IF(E$57="No",1,Traffic!$F$30) -> 1 | F151: =IF(F$57="No",1,Traffic!$F$30) -> 0.86 | G151: =IF(G$57="No",1,Traffic!$F$30) -> 0.86 | H151: =IF($I$2="Existing",(D151),(IF($I$2="Design 1",(F151),(IF($I$2="Design 2",(G151),(IF($I$2="Optimal",(I151),E151))))))) -> 1 | I151: =IF(I$57="No",1,Traffic!$F$30) -> 0.86 | K151: =INDEX($D151:$I151,K$98) -> 0.86 | L151: =INDEX($D151:$I151,L$98) -> 1 | M151: -0.1627906977
C152: Driveway Density (driveways per mile) | D152: =EXP(-LN(Traffic!$F$32)*(D$58-$E$58)) -> 0.8170728069 | E152: =EXP(-LN(Traffic!$F$32)*(E$58-$E$58)) -> 1 | F152: =EXP(-LN(Traffic!$F$32)*(F$58-$E$58)) -> 0.8170728069 | G152: =EXP(-LN(Traffic!$F$32)*(G$58-$E$58)) -> 0.8170728069 | H152: =IF($I$2="Existing",(D152),(IF($I$2="Design 1",(F152),(IF($I$2="Design 2",(G152),(IF($I$2="Optimal",(I152),E152))))))) -> 1 | I152: =EXP(-LN(Traffic!$F$32)*(I$58-$E$58)) -> 0.8170728069 | K152: =INDEX($D152:$I152,K$98) -> 0.8170728069 | L152: =INDEX($D152:$I152,L$98) -> 1 | M152: -0.223881142
C153: Install lighting | D153: =IF(D$59="No",1,1-(((1-Traffic!$F$55*Constraints!$H$37-Constraints!$F$37/3)+((1-Traffic!$F$55*Constraints!$D$37-Constraints!$H$37)))*$S$19+((1-Traffic!$F$57)*Constraints!$F$37/3))/Constraints!$D$37) -> 0.9770404469 | E153: =IF(E$59="No",1,1-(((1-Traffic!$F$55*Constraints!$H$37-Constraints!$F$37/3)+((1-Traffic!$F$55*Constraints!$D$37-Constraints!$H$37)))*$S$19+((1-Traffic!$F$57)*Constraints!$F$37/3))/Constraints!$D$37) -> 1 | F153: =IF(F$59="No",1,1-(((1-Traffic!$F$55*Constraints!$H$37-Constraints!$F$37/3)+((1-Traffic!$F$55*Constraints!$D$37-Constraints!$H$37)))*$S$19+((1-Traffic!$F$57)*Constraints!$F$37/3))/Constraints!$D$37) -> 0.9770404469 | G153: =IF(G$59="No",1,1-(((1-Traffic!$F$55*Constraints!$H$37-Constraints!$F$37/3)+((1-Traffic!$F$55*Constraints!$D$37-Constraints!$H$37)))*$S$19+((1-Traffic!$F$57)*Constraints!$F$37/3))/Constraints!$D$37) -> 0.9770404469 | H153: =IF($I$2="Existing",(D153),(IF($I$2="Design 1",(F153),(IF($I$2="Design 2",(G153),(IF($I$2="Optimal",(I153),E153))))))) -> 1 | I153: =IF(I$59="No",1,1-(((1-Traffic!$F$55*Constraints!$H$37-Constraints!$F$37/3)+((1-Traffic!$F$55*Constraints!$D$37-Constraints!$H$37)))*$S$19+((1-Traffic!$F$57)*Constraints!$F$37/3))/Constraints!$D$37) -> 0.9770404469 | K153: =INDEX($D153:$I153,K$98) -> 0.9770404469 | L153: =INDEX($D153:$I153,L$98) -> 1 | M153: -0.02349908153
C154: Pavement friction (skid number) | D154: =EXP(LN(Traffic!$F$49)*(D$60-$E$60)) -> 1.397252142 | E154: =EXP(LN(Traffic!$F$49)*(E$60-$E$60)) -> 1 | F154: =IF(MATCH(F60,SkidNums,0)=3, $D154,EXP(LN(Traffic!$F$49)*(RIGHT(F$60,2)-$E$60))) ->  | G154: =IF(MATCH(G60,SkidNums,0)=3, $D154,EXP(LN(Traffic!$F$49)*(RIGHT(G$60,2)-$E$60))) ->  | H154: =IF($I$2="Existing",(D154),(IF($I$2="Design 1",(F154),(IF($I$2="Design 2",(G154),(IF($I$2="Optimal",(I154),E154))))))) -> 1 | I154: =EXP(LN(Traffic!$F$49)*(I$60-$E$60)) -> 0.8575355363 | K154: =INDEX($D154:$I154,K$98) -> 1.397252142 | L154: =INDEX($D154:$I154,L$98) -> 1 | M154: 0.2843095602
C157: COMBINED Calculated CMF | D157: =+D145*D146*D147*D148*D149*D150*D151*D152*D153*D154 -> 0.8610611179 | E157: =+E145*E146*E147*E148*E149*E150*E151*E152*E153*E154 -> 0.7735229033 | F157: =+F145*F146*F147*F148*F149*F150*F151*F152*F153*F154 ->  | G157: =+G145*G146*G147*G148*G149*G150*G151*G152*G153*G154 ->  | H157: =IF($I$2="Existing",(D157),(IF($I$2="Design 1",(F157),(IF($I$2="Design 2",(G157),(IF($I$2="Optimal",(I157),E157))))))) -> 0.7735229033 | I157: =+I145*I146*I147*I148*I149*I150*I151*I152*I153*I154 -> 0.4554042239 | K157: =INDEX($D157:$I157,K$98) -> 0.8610611179 | L157: =INDEX($D157:$I157,L$98) -> 0.7735229033 | M157: =IF(ISERROR(1-L157/K157), 0, 1-L157/K157) -> 0.1016631837
C158: Calculated Relative to Design Standards (Column E) | D158: =+D157/$E$157 -> 1.113168226 | E158: =+E157/$E$157 -> 1 | F158: =+F157/$E$157 ->  | G158: =+G157/$E$157 ->  | H158: 1 | I158: =+I157/$E$157 -> 0.5887404523 | K158: =INDEX($D158:$I158,K$98) -> 1.113168226 | L158: =INDEX($D158:$I158,L$98) -> 1 | M158: 0.1016631837
C159: P(Crash) | D159: =+D158/(D158+1) -> 0.5267769088 | E159: =+E158/(E158+1) -> 0.5 | F159: =+F158/(F158+1) ->  | G159: =+G158/(G158+1) ->  | H159: 0.5 | I159: =+I158/(I158+1) -> 0.3705705683
C160: Factor Change on S curve | D160: =+D159/$E$159 -> 1.053553818 | E160: =+E159/$E$159 -> 1 | F160: =+F159/$E$159 ->  | G160: =+G159/$E$159 ->  | H160: 1 | I160: =+I159/$E$159 -> 0.7411411366
C161: Adjust to Scale of 100 | D161: =+$I$114/D160*100 ->  | E161: =+$I$114/E160*100 ->  | F161: =+$I$114/F160*100 ->  | G161: =+$I$114/G160*100 ->  | I161: =+$I$114/I160*100 -> 
C162: Unadjusted Combined Relative to Standard | D162: =+D157/$E$157 -> 1.113168226 | E162: =+E157/$E$157 -> 1 | F162: =+F157/$E$157 ->  | G162: =+G157/$E$157 ->  | H162: 1 | I162: =+I157/$E$157 -> 0.5887404523
H163: 0 | J163: =I168/E168 -> 1.428571429
C164: Adjusted for PA Basis | D164: =+D157*(1+1)/(1+D157*1) -> 0.9253442669 | E164: =+E157*(1+1)/(1+E157*1) -> 0.8723010025 | F164: =+F157*(1+1)/(1+F157*1) ->  | G164: =+G157*(1+1)/(1+G157*1) ->  | H164: 0.8723010025 | I164: =+I157*(1+1)/(1+I157*1) -> 0.6258113264
C165: Corrected by Odds Ratio | D165: =+D164/$E$164 -> 1.060808441 | E165: =+E164/$E$164 -> 1 | F165: =+F164/$E$164 ->  | G165: =+G164/$E$164 ->  | H165: 1 | I165: =+I164/$E$164 -> 0.7174258938
D166: =(1/D165)^$D169 -> 0.2929539947 | E166: 1 | H166: 1 | I166: 999 | J166: =I171/E171 -> 1.428571429
D167: =(D166+$F170-1)/(1+(D166+$F170-1)) -> 0.6192343506 | E167: 0.7 | H167: 0.7 | I167: 0.9990013316
C168: Score Odds Ratio with Optimal as 100 (old) | D168: =MIN(ROUND($I$165/D165*Construction!$I$9,0),$I168) -> 14 | E168: =MIN(ROUND($I$165/E165*Construction!$I$9,0),$I168) -> 14 | F168: =MIN(ROUND($I$165/F165*Construction!$I$9,0),$I168) ->  | G168: =MIN(ROUND($I$165/G165*Construction!$I$9,0),$I168) ->  | I168: =ROUND($I$165/I165*Construction!$I$9,0) -> 20
C169: Logistic1 | D169: =LN((D170/(1-D170))/(0.5/0.5))/LN($E165/I165) -> 20.79811455
C170: Logistic Param | D170: 0.999 | F170: =0.7/0.3 -> 2.333333333
C171: Score | D171: =MIN(ROUND(D167*Construction!$I$9,0),$I168) -> 12 | E171: =MIN(ROUND(E167*Construction!$I$9,0),$I168) -> 14 | F171: =MIN(ROUND(F167*Construction!$I$9,0),$I168) ->  | G171: =MIN(ROUND(G167*Construction!$I$9,0),$I168) ->  | I171: =MIN(ROUND(I167*Construction!$I$9,0),$I168) -> 20
B178: Roadsde | D178: Existing | E178: Standard | F178: Design 1 | G178: Design 2
D179: =MID(D72,FIND(":",D72,1)+1,FIND("H",D72,1)-FIND(":",D72,1)-1)+0 ->  | E179: =MID(E72,FIND(":",E72,1)+1,FIND("H",E72,1)-FIND(":",E72,1)-1)+0 -> 4 | F179: =MID(F72,FIND(":",F72,1)+1,FIND("H",F72,1)-FIND(":",F72,1)-1)+0 ->  | G179: =MID(G72,FIND(":",G72,1)+1,FIND("H",G72,1)-FIND(":",G72,1)-1)+0 ->  | I179: =MID(I72,FIND(":",I72,1)+1,FIND("H",I72,1)-FIND(":",I72,1)-1)+0 -> 6 | K179: =INDEX($D179:$I179,K$98) ->  | L179: =INDEX($D179:$I179,L$98) -> 4 | M179: =IF(ISERROR(1-L179/K179), 0, 1-L179/K179) -> 0
C180: Sideslope (Foreslope) | D180: =IF(D179<=3,1,IF(OR(D179=4,D179=5),(Roadside!$F$15-1)*Constraints!$H$37/Constraints!$D$37+1,(Roadside!$F$15*Roadside!$F$16-1)*Constraints!$H$37/Constraints!$D$37+1)) ->  | E180: =IF(E179<=3,1,IF(OR(E179=4,E179=5),(Roadside!$F$15-1)*Constraints!$H$37/Constraints!$D$37+1,(Roadside!$F$15*Roadside!$F$16-1)*Constraints!$H$37/Constraints!$D$37+1)) -> 0.8286893555 | F180: =IF(F179<=3,1,IF(OR(F179=4,F179=5),(Roadside!$F$15-1)*Constraints!$H$37/Constraints!$D$37+1,(Roadside!$F$15*Roadside!$F$16-1)*Constraints!$H$37/Constraints!$D$37+1)) ->  | G180: =IF(G179<=3,1,IF(OR(G179=4,G179=5),(Roadside!$F$15-1)*Constraints!$H$37/Constraints!$D$37+1,(Roadside!$F$15*Roadside!$F$16-1)*Constraints!$H$37/Constraints!$D$37+1)) ->  | H180: =IF($I$2="Existing",(D180),(IF($I$2="Design 1",(F180),(IF($I$2="Design 2",(G180),(IF($I$2="Optimal",(I180),E180))))))) -> 0.8286893555 | I180: =IF(I179<=3,1,IF(OR(I179=4,I179=5),(Roadside!$F$15-1)*Constraints!$H$37/Constraints!$D$37+1,(Roadside!$F$15*Roadside!$F$16-1)*Constraints!$H$37/Constraints!$D$37+1)) -> 0.7766435502 | K180: =INDEX($D180:$I180,K$98) ->  | L180: =INDEX($D180:$I180,L$98) -> 0.8286893555 | M180: 0
C181: Backslope | D181: 1 | E181: 1 | F181: 1 | G181: 1 | H181: =IF($I$2="Existing",(D181),(IF($I$2="Design 1",(F181),(IF($I$2="Design 2",(G181),(IF($I$2="Optimal",(I181),E181))))))) -> 1 | I181: 1 | K181: =INDEX($D181:$I181,K$98) -> 1 | L181: =INDEX($D181:$I181,L$98) -> 1 | M181: 0
C182: SafetyEdge | D182: =IF(D$74="No",1,(Roadside!$F$23-1)*AVERAGE(Constraints!$H$37,Constraints!$F$37)/Constraints!$D$37+1) -> 0.9725838419 | E182: =IF(E$74="No",1,(Roadside!$F$23-1)*AVERAGE(Constraints!$H$37,Constraints!$F$37)/Constraints!$D$37+1) -> 1 | F182: =IF(F$74="No",1,(Roadside!$F$23-1)*AVERAGE(Constraints!$H$37,Constraints!$F$37)/Constraints!$D$37+1) -> 0.9725838419 | G182: =IF(G$74="No",1,(Roadside!$F$23-1)*AVERAGE(Constraints!$H$37,Constraints!$F$37)/Constraints!$D$37+1) -> 0.9725838419 | H182: =IF($I$2="Existing",(D182),(IF($I$2="Design 1",(F182),(IF($I$2="Design 2",(G182),(IF($I$2="Optimal",(I182),E182))))))) -> 1 | I182: =IF(I$74="No",1,(Roadside!$F$23-1)*AVERAGE(Constraints!$H$37,Constraints!$F$37)/Constraints!$D$37+1) -> 0.9725838419 | K182: =INDEX($D182:$I182,K$98) -> 0.9725838419 | L182: =INDEX($D182:$I182,L$98) -> 1 | M182: -0.02818899192
C183: Lateral Clearance (ft) | D183: =IF($B$27="Yes",((EXP(LN(Roadside!$F$11)*(IF(D$76="None",40,D$75)-30)/30)-1))*Constraints!$H$36/Constraints!$D$37+1,((EXP(LN(Roadside!$F$10)*(IF(D$76="None",40,D$75)-30)/30)-1))*Constraints!$H$36/Constraints!$D$37+1) -> 1.099272149 | E183: =IF($B$27="Yes",((EXP(LN(Roadside!$F$11)*(IF(E$76="None",40,E$75)-30)/30)-1))*Constraints!$H$36/Constraints!$D$37+1,((EXP(LN(Roadside!$F$10)*(IF(E$76="None",40,E$75)-30)/30)-1))*Constraints!$H$36/Constraints!$D$37+1) -> 1 | F183: =IF($B$27="Yes",((EXP(LN(Roadside!$F$11)*(IF(F$76="None",40,F$75)-30)/30)-1))*Constraints!$H$36/Constraints!$D$37+1,((EXP(LN(Roadside!$F$10)*(IF(F$76="None",40,F$75)-30)/30)-1))*Constraints!$H$36/Constraints!$D$37+1) -> 1.099272149 | G183: =IF($B$27="Yes",((EXP(LN(Roadside!$F$11)*(IF(G$76="None",40,G$75)-30)/30)-1))*Constraints!$H$36/Constraints!$D$37+1,((EXP(LN(Roadside!$F$10)*(IF(G$76="None",40,G$75)-30)/30)-1))*Constraints!$H$36/Constraints!$D$37+1) -> 1.099272149 | H183: =IF($I$2="Existing",(D183),(IF($I$2="Design 1",(F183),(IF($I$2="Design 2",(G183),(IF($I$2="Optimal",(I183),E183))))))) -> 1 | I183: =IF($B$27="Yes",((EXP(LN(Roadside!$F$11)*(IF(I$76="None",40,I$75)-30)/30)-1))*Constraints!$H$36/Constraints!$D$37+1,((EXP(LN(Roadside!$F$10)*(IF(I$76="None",40,I$75)-30)/30)-1))*Constraints!$H$36/Constraints!$D$37+1) -> 0.9745518437 | K183: =INDEX($D183:$I183,K$98) -> 1.099272149 | L183: =INDEX($D183:$I183,L$98) -> 1 | M183: 0.09030716297
C184: Fixed Object Type | D184: =IF(D$76="Guardrail",(Roadside!$F$25-1)*(($I$75-D$75)/$I$75)^2*Constraints!$H$36/Constraints!$D$37+1,1) -> 1 | E184: =IF(E$76="Guardrail",(Roadside!$F$25-1)*(($I$75-E$75)/$I$75)^2*Constraints!$H$36/Constraints!$D$37+1,1) -> 1 | F184: =IF(F$76="Guardrail",(Roadside!$F$25-1)*(($I$75-F$75)/$I$75)^2*Constraints!$H$36/Constraints!$D$37+1,1) -> 1 | G184: =IF(G$76="Guardrail",(Roadside!$F$25-1)*(($I$75-G$75)/$I$75)^2*Constraints!$H$36/Constraints!$D$37+1,1) -> 1 | H184: =IF($I$2="Existing",(D184),(IF($I$2="Design 1",(F184),(IF($I$2="Design 2",(G184),(IF($I$2="Optimal",(I184),E184))))))) -> 1 | I184: =IF(I$76="Guardrail",(Roadside!$F$25-1)*(($I$75-I$75)/$I$75)^2*Constraints!$H$36/Constraints!$D$37+1,1) -> 1 | K184: =INDEX($D184:$I184,K$98) -> 1 | L184: =INDEX($D184:$I184,L$98) -> 1 | M184: 0
C187: COMBINED Calculated CMF | D187: =+D180*D181*D182*D183*D184 ->  | E187: =+E180*E181*E182*E183*E184 -> 0.8286893555 | F187: =+F180*F181*F182*F183*F184 ->  | G187: =+G180*G181*G182*G183*G184 ->  | H187: =IF($I$2="Existing",(D187),(IF($I$2="Design 1",(F187),(IF($I$2="Design 2",(G187),(IF($I$2="Optimal",(I187),E187))))))) -> 0.8286893555 | I187: =+I180*I181*I182*I183*I184 -> 0.7361286784
C188: Calculated Relative to Design Standards (Column E) | D188: =+D187/$E$187 ->  | E188: =+E187/$E$187 -> 1 | F188: =+F187/$E$187 ->  | G188: =+G187/$E$187 ->  | H188: 1 | I188: =+I187/$E$187 -> 0.8883047351
C189: P(Crash) | D189: =+D188/(D188+1) ->  | E189: =+E188/(E188+1) -> 0.5 | F189: =+F188/(F188+1) ->  | G189: =+G188/(G188+1) ->  | H189: 0.5 | I189: =+I188/(I188+1) -> 0.4704244599
C190: Factor Change on S curve | D190: =+D189/$E$189 ->  | E190: =+E189/$E$189 -> 1 | F190: =+F189/$E$189 ->  | G190: =+G189/$E$189 ->  | H190: 1 | I190: =+I189/$E$189 -> 0.9408489197
C191: Adjust to Scale of 100 | D191: =+$I$114/D190*100 ->  | E191: =+$I$114/E190*100 ->  | F191: =+$I$114/F190*100 ->  | G191: =+$I$114/G190*100 ->  | I191: =+$I$114/I190*100 -> 
C192: Unadjusted Combined Relative to Standard | D192: =+D187/$E$187 ->  | E192: =+E187/$E$187 -> 1 | F192: =+F187/$E$187 ->  | G192: =+G187/$E$187 ->  | H192: 1 | I192: =+I187/$E$187 -> 0.8883047351
J193: =I198/E198 -> 1.111111111
C194: Adjusted for PA Basis | D194: =+D187*(1+1)/(1+D187*1) ->  | E194: =+E187*(1+1)/(1+E187*1) -> 0.9063205328 | F194: =+F187*(1+1)/(1+F187*1) ->  | G194: =+G187*(1+1)/(1+G187*1) ->  | H194: =IF($I$2="Existing",(D194),(IF($I$2="Design 1",(F194),(IF($I$2="Design 2",(G194),(IF($I$2="Optimal",(I194),E194))))))) -> 0.9063205328 | I194: =+I187*(1+1)/(1+I187*1) -> 0.8480116567
C195: Corrected by Odds Ratio | D195: =+D187/$E$187 ->  | E195: =+E187/$E$187 -> 1 | F195: =+F187/$E$187 ->  | G195: =+G187/$E$187 ->  | H195: =IF($I$2="Existing",(D195),(IF($I$2="Design 1",(F195),(IF($I$2="Design 2",(G195),(IF($I$2="Optimal",(I195),E195))))))) -> 1 | I195: =+I187/$E$187 -> 0.8883047351
D196: =(1/D195)^$D199 ->  | E196: 1 | H196: 1 | I196: 999 | J196: =I201/E201 -> 1.481481481
D197: =(D196+$F200-1)/(1+(D196+$F200-1)) ->  | E197: 0.6666666667 | H197: 0.6666666667 | I197: 0.999000999
C198: Score Odds Ratio with Optimal as 100 (old) | D198: =MIN(ROUND($I$195/D195*Construction!$I$10,0),$I198) ->  | E198: =MIN(ROUND($I$195/E195*Construction!$I$10,0),$I198) -> 36 | F198: =MIN(ROUND($I$195/F195*Construction!$I$10,0),$I198) ->  | G198: =MIN(ROUND($I$195/G195*Construction!$I$10,0),$I198) ->  | I198: =ROUND($I$195/I195*Construction!$I$10,0) -> 40
C199: Logistic1 | D199: =LN((D200/(1-D200))/(0.5/0.5))/LN($E195/I195) -> 58.3141676
C200: Logistic Param | D200: 0.999 | F200: 2
C201: Score | D201: =MIN(ROUND(D197*Construction!$I$10,0),$I198) ->  | E201: =MIN(ROUND(E197*Construction!$I$10,0),$I198) -> 27 | F201: =MIN(ROUND(F197*Construction!$I$10,0),$I198) ->  | G201: =MIN(ROUND(G197*Construction!$I$10,0),$I198) ->  | I201: =MIN(ROUND(I197*Construction!$I$10,0),$I198) -> 40
C206: =D84/D179 ->  | E206: =ROUNDUP((MIN($I$14,$I$15)-E24-E25)/$C$206,0) ->  | F206: =ROUNDUP((MIN($I$14,$I$15)-F24-F25)/$C$206,0) ->  | G206: =ROUNDUP((MIN($I$14,$I$15)-G24-G25)/$C$206,0) ->  | I206: =ROUNDUP((MIN($I$14,$I$15)-I24-I25)/$C$206,0) -> 
C209: Distance to low point | D209: Distance to low point | E209: =$C$206*E179 ->  | F209: =$C$206*F179 ->  | G209: =$C$206*G179 ->  | I209: =$C$206*I179 -> 
D210: Additional ROW1 Needed for Foreslope | E210: =IF(E209>($I$14-E24-E25),E209-($I$14-E24-E25),0) ->  | F210: =IF(F209>($I$14-F24-F25),F209-($I$14-F24-F25),0) ->  | G210: =IF(G209>($I$14-G24-G25),G209-($I$14-G24-G25),0) ->  | I210: =IF(I209>($I$14-I24-I25),I209-($I$14-I24-I25),0) -> 
D211: Additional ROW2 Needed for Foreslope | E211: =IF(E209>($I$15-E24-E25),E209-($I$15-E24-E25),0) ->  | F211: =IF(F209>($I$15-F24-F25),F209-($I$15-F24-F25),0) ->  | G211: =IF(G209>($I$15-G24-G25),G209-($I$15-G24-G25),0) ->  | I211: =IF(I209>($I$15-I24-I25),I209-($I$15-I24-I25),0) -> 
D213: Additional ROW1 Needed for Lateral Clearance | E213: =IF((CL248+E26)-$I$14<0,0,(CL248+E26)-$I$14) -> 8 | F213: =IF((CM248+F26)-$I$14<0,0,(CM248+F26)-$I$14) -> 0 | G213: =IF((CN248+G26)-$I$14<0,0,(CN248+G26)-$I$14) -> 0 | I213: =IF((CP248+I26)-$I$14<0,0,(CP248+I26)-$I$14) -> 0
D214: Additional ROW2 Needed for Lateral Clearance | E214: =IF((CL248+E26)-$I$15<0,0,(CL248+E26)-$I$15) -> 8 | F214: =IF((CM248+F26)-$I$15<0,0,(CM248+F26)-$I$15) -> 0 | G214: =IF((CN248+G26)-$I$15<0,0,(CN248+G26)-$I$15) -> 0 | I214: =IF((CP248+I26)-$I$15<0,0,(CP248+I26)-$I$15) -> 0
C226: For Vertical Opt Use when Yes Vertical:
C227: G1 | D227: =D36 -> 0 | F227: =F36 -> 0 | G227: =G36 -> 0 | I227: =IF(ISERROR($E$234),"",INDEX(D227:G227,$E$234)) -> 
C228: G2 | D228: =D37 -> 0 | F228: =F37 -> 0 | G228: =G37 -> 0 | I228: =IF(ISERROR($E$234),"",INDEX(D228:G228,$E$234)) -> 
C229: abs(G2-G1) | D229: =ABS(D36-D37) -> 0 | F229: =ABS(F36-F37) -> 0 | G229: =ABS(G36-G37) -> 0
C230: Count in indicator (K no change; or K change but accept) | D230: =IF(D39<>"",1,"") ->  | F230: =IF(OR(AND($B$34 = "Yes", $D$39 <> F39, F39 <>"", $D$39 <> "", F41="Yes."),AND($B$34 = "Yes", $D$39 = F39, F39 <>"", $D$39 <> "")), 1,"") ->  | G230: =IF(OR(AND($B$34 = "Yes", $D$39 <> G39, G39 <>"", $D$39 <> "", G41="Yes."),AND($B$34 = "Yes", $D$39 = G39, G39 <>"", $D$39 <> "")), 1,"") -> 
C232: Valid abs(G2-G1) | D232: =IF(ISERROR(D229*D230),"",D229*D230) ->  | F232: =IF(ISERROR(F229*F230),"",F229*F230) ->  | G232: =IF(ISERROR(G229*G230),"",G229*G230) -> 
C233: The min valid abs(G2-G1) | E233: =MIN(D232,F232,G232) -> 0
C234: Index | E234: =MATCH(E233,D232:G232,0) -> 
C236: For Vertical Opt Use When No Vertical:
C237: G1 | D237: =IF(ISBLANK(D36), 999, D36) -> 999 | F237: =IF(ISBLANK(F36), 999, F36) -> 999 | G237: =IF(ISBLANK(G36), 999, G36) -> 999 | I237: =IF(E242=999,"",E242) -> 
C238: Sign of G1 | D238: =IF(D237>=0,1,-1) -> 1 | F238: =IF(F237>=0,1,-1) -> 1 | G238: =IF(G237>=0,1,-1) -> 1
C239: Abs G1 | D239: =ABS(D237) -> 999 | F239: =ABS(F237) -> 999 | G239: =ABS(G237) -> 999
C240: Min Abs G1 | E240: =MIN(D239:G239) -> 999
C241: Which is the Best G1 | E241: =MATCH(E240,D239:G239,0) -> 1
C242: Best G1 Value | E242: =INDEX(D237:G237,1,E241) -> 999
C249: Check if all cells filled | D249: =SUM(D251:D311) -> 18 | E249: =SUM(E251:E311) -> 1 | F249: 18 | G249: 18 | I249: 1
C251: =C24 -> Lane Width (feet) | D251: =IF(ISBLANK(D24),1,0) -> 1 | E251: =IF(ISBLANK(E24),1,0) -> 0 | F251: 1 | G251: 1 | I251: 0
C252: =C25 -> Shoulder Width (feet) | D252: =IF(ISBLANK(D25),1,0) -> 1 | E252: 0 | F252: 1 | G252: 1 | I252: 0
C253: Cross-slope or Superelevation (%) | D253: =IF(ISBLANK(D26),1,0) -> 1 | E253: 0 | F253: 1 | G253: 1 | I253: 0
C254: Horizontal Curve Present?
C255: Horizontal Curve Data for Controlling Element:
C256: Radius (feet) | D256: =IF(AND($B$27="Yes", ISBLANK(D29)),1,0) -> 0 | E256: =IF(AND($B$27="Yes", ISBLANK(E29)),1,0) -> 0 | F256: 0 | G256: 0 | I256: 0
C257: Length of Horizontal Curve (feet) | D257: =IF(AND($B$27="Yes", ISBLANK(D30)),1,0) -> 0 | E257: 0 | F257: 0 | G257: 0 | I257: 0
... 99 more rows

Sheet Configuration 5
G2: Preferred Schematic View to Display | I2: Standard | V2: NOTES:
B3: CHARACTERISTICS TO CONSIDER FOR ANALYSIS | V3: ELEMENTS INCREASING SAFETY | AE3: COMMENTS ON PRIMARY CONSTRAINTS
B4: INPUT INSTRUCTIONS | G4: Relative to | I4: Existing
B5: Blue Boxes -- Select from pulldown options | D5: Select from Pulldown
B6: Yellow Boxes -- Type input information into box | D6: Type Input Value
B7: Rural Two-Lane Road Segment -- Safety Score Input | CF7: Unadjusted Marginal Safety
B8: General Information: | F8: General Site Features | H8: =I315 & " Missing Features and Curves" -> 9 Missing Features and Curves | CF8: =I2&" relative to " &I4 -> Standard relative to Existing
C9: Analyst: | D9: =+'Start Here'!J7 -> 0 | F9: Location
C10: Agency or Company: | D10: =+'Start Here'!J8 -> 0 | F10: Design Speed (mph)
C11: Date: | D11: =+'Start Here'!J9 -> 00:00:00 | F11: Posted Speed (mph)
C12: Description: | F12: E max (%)
F13: Design Year AADT (vehicles per day)
F14: Dist. from Centerline to Left ROW (feet)
F15: Dist. from Centerline to Right ROW (feet)
B17: Warning:
C18: =+IF(+I11>I10,"Posted speed exceeds design speed. Optimal safety will only be achieved if design speed exceeds posted speed. The Safety Assessment Score is based on the higher of the two speed values.","No warnings identified") -> No warnings identified
P19: ="Unadjusted Marginal Safety of elements in "&I2&" from Design Standards" -> Unadjusted Marginal Safety of elements in Standard from Design Standards | DB19: =COUNTIF(DB23:DB41,DB20) -> 1
DB20: =VLOOKUP(0,CZ23:DB41,3,) -> 10.01
D21: Fill all elements | F21: To enter notes, use boxes to the right of the vortex
B22: =+Construction!$I$8&" Total Available Points" -> 40 Total Available Points | D22: =D249 & " Missing Elements" -> 18 Missing Elements | F22: =F249 & " Missing Elements" -> 18 Missing Elements | G22: =G249 & " Missing Elements" -> 18 Missing Elements | CX22: Ranked element | CY22: CRF | CZ22: abs | DA22: Re-rank | DB22: Rank | DC22: Ranked CRF | DD22: Element | DE22: New Element | DF22: crf.abs | DG22: rank | DH22: Sorted Element | DI22: Sorted CRF
B23: Geometric Design Elements | D23: Existing | E23: Standard | F23: Design 1 | G23: Design 2 | H23: ="Marginal Safety for "&$I$2&" (compared to " & $I$4 & ")" -> Marginal Safety for Standard (compared to Existing) | I23: Optimal | CX23: =IF(CY23=0,"",DB23&". "&DD23) ->  | CY23: =H24 -> 0 | CZ23: =ABS(CY23) -> 0 | DA23: =RANK(DB23,$DB$23:$DB$41,1) -> 10 | DB23: =_xlfn.RANK.EQ(CZ23,$CZ$23:$CZ$41)+DG23/100 -> 10.01 | DC23: =CY23 -> 0 | DD23: =IF(ROUND(DF23,2)=0,"",C24) ->  | DE23: =DD23 ->  | DF23: =CZ23 -> 0 | DG23: 1 | DH23: =IFERROR(IF(IFERROR(VLOOKUP(DG23,$DA$23:$DF$41,4,)&", "&CY23=0,""),"",IFERROR(VLOOKUP(DG23,$DA$23:$DE$41,4,),"")),"") -> TWLTL (two-way left-turn lane) | DI23: =IFERROR(IF(IFERROR(VLOOKUP(DG23,$DA$23:$DF$41,3,)&", "&CY23=0,""),"",IFERROR(VLOOKUP(DG23,$DA$23:$DE$41,3,),"")),"") -> -0.4084507042
C24: Lane Width (feet) | E24: 12 | H24: =M100 -> 0 | I24: 12 | CX24: 5.02. Shoulder Width (feet) | CY24: =H25 -> 0.1550387597 | CZ24: 0.1550387597 | DA24: =RANK(DB24,$DB$23:$DB$41,1) -> 5 | DB24: =_xlfn.RANK.EQ(CZ24,$CZ$23:$CZ$41)+DG24/100 -> 5.02 | DC24: =CY24 -> 0.1550387597 | DD24: =IF(ROUND(DF24,2)=0,"",C25) -> Shoulder Width (feet) | DE24: =DD24 -> Shoulder Width (feet) | DF24: 0.1550387597 | DG24: 2 | DH24: Pavement Friction (skid number) *** | DI24: =IFERROR(IF(IFERROR(VLOOKUP(DG24,$DA$23:$DF$41,3,)&", "&CY24=0,""),"",IFERROR(VLOOKUP(DG24,$DA$23:$DE$41,3,),"")),"") -> 0.2843095602
C25: Shoulder Width (feet) | E25: =IF('Start Here'!$J$12="4R",8,4) -> 4 | H25: =M101 -> 0.1550387597 | I25: 10 | CY25: =H29 -> 0 | CZ25: 0 | DA25: 11 | DB25: 10.03 | DC25: 0 | DD25: =IF(ROUND(DF25,2)=0,"","Hz and Vt Alignment") ->  | DF25: 0 | DG25: 3 | DH25: Driveway Density (driveways per mile) | DI25: -0.223881142
C26: Cross-slope or Superelevation (%) | E26: =IF($I$12=6,IFERROR(VLOOKUP(E29,$C$382:$D$402,2,TRUE),6),IFERROR(VLOOKUP(E29,$C$409:$D$439,2,TRUE),8)) -> 8 | I26: =I12 -> 0 | CX26: 1.04. TWLTL (two-way left-turn lane) | CY26: =H43 -> -0.4084507042 | CZ26: 0.4084507042 | DA26: 1 | DB26: 1.04 | DC26: -0.4084507042 | DD26: =IF(ROUND(DF26,2)=0,"",C43) -> TWLTL (two-way left-turn lane) | DE26: TWLTL (two-way left-turn lane) | DF26: 0.4084507042 | DG26: 4 | DH26: Centerline Rumble Strips | DI26: -0.1627906977
C27: Horizontal Curve Present? | D27: -- | E27: -- | F27: -- | G27: -- | I27: -- | CY27: =H44 -> 0 | CZ27: 0 | DA27: 12 | DB27: 10.05 | DC27: 0 | DD27: =IF(ROUND(DF27,2)=0,"",C44) ->  | DF27: 0 | DG27: 5 | DH27: Shoulder Width (feet) | DI27: 0.1550387597
C28: Horizontal Curve Data for Controlling Element: | D28: -- | E28: -- | F28: -- | G28: -- | I28: -- | CY28: =H52 -> 0 | CZ28: 0 | DA28: 13 | DB28: 10.06 | DC28: 0 | DD28: =IF(ROUND(DF28,2)=0,"",C52) ->  | DF28: 0 | DG28: 6 | DH28: Edgeline Pavement Markings or Profile Markings | DI28: 0.1382411869
C29: Radius (feet) | E29: =IF(MAX($I$10,$I$11)<45,590,IF($I$12=6,VLOOKUP(MAX($I$10,$I$11),Construction!$B$29:$D$36,2,TRUE),VLOOKUP(MAX($I$10,$I$11),Construction!$G$29:$I$36,2,TRUE))) -> 590 | H29: =M140 -> 0 | I29: =IF(MAX($I$10,$I$11)<45,590,IF($I$12=6,VLOOKUP(MAX($I$10,$I$11),Construction!$B$45:$C$52,2,TRUE),VLOOKUP(MAX($I$10,$I$11),Construction!$G$45:$H$52,2,TRUE))) -> 590 | CY29: 0 | CZ29: 0 | DA29: 14 | DB29: 10.07 | DC29: 0 | DF29: 0 | DG29: 7 | DH29: Lateral Clearance to obstruction (ft) | DI29: 0.09030716297
C30: Length of Horizontal Curve (feet) | E30: =IF(D31="", "", E29*E31/57.296) ->  | I30: =I29*I31/57.296 -> 3758.55208 | CY30: 0 | CZ30: 0 | DA30: 15 | DB30: 10.08 | DC30: 0 | DF30: 0 | DG30: 8 | DH30: SafetyEdge | DI30: -0.02818899192
C31: Calculated Deflection Angle ∆ | D31: =IF(OR(ISBLANK(D29),ISBLANK(D30),$B$27="No",ISBLANK($B$27)),"",ROUND(D30/D29*57.296,1)) ->  | E31: =IF(ISBLANK(D31), "",D31) ->  | F31: =IF(OR(ISBLANK(F29),ISBLANK(F30),$B$27="No",ISBLANK($B$27)),"",ROUND(F30/F29*57.296,1)) ->  | G31: =IF(OR(ISBLANK(G29),ISBLANK(G30),$B$27="No",ISBLANK($B$27)),"",ROUND(G30/G29*57.296,1)) ->  | I31: =MIN(D31,IF(F33=INDEX(HCurveChange,1,0), F31, 365),IF(G33=INDEX(HCurveChange,1,0), G31, 365)) -> 365 | CX31: 6.09. Edgeline Pavement Markings or Profile Markings | CY31: 0.1382411869 | CZ31: 0.1382411869 | DA31: 6 | DB31: 6.09 | DC31: 0.1382411869 | DD31: Edgeline Pavement Markings or Profile Markings | DE31: Edgeline Pavement Markings or Profile Markings | DF31: 0.1382411869 | DG31: 9 | DH31: Lighting | DI31: -0.02349908153
F32: ∆ has changed. Are you changing the ∆? | G32: ∆ has changed. Are you changing the ∆? | CY32: 0 | CZ32: 0 | DA32: 16 | DB32: 10.1 | DC32: 0 | DF32: 0 | DG32: 10 | DI32: 0
CX33: 4.11. Centerline Rumble Strips | CY33: -0.1627906977 | CZ33: 0.1627906977 | DA33: 4 | DB33: 4.11 | DC33: -0.1627906977 | DD33: Centerline Rumble Strips | DE33: Centerline Rumble Strips | DF33: 0.1627906977 | DG33: 11 | DI33: 0
C34: Vertical Curve Present? | D34: -- | E34: -- | F34: -- | G34: -- | I34: =E34 -> -- | CX34: 3.12. Driveway Density (driveways per mile) | CY34: -0.223881142 | CZ34: 0.223881142 | DA34: 3 | DB34: 3.12 | DC34: -0.223881142 | DD34: =IF(DF34=0,"",C58) -> Driveway Density (driveways per mile) | DE34: Driveway Density (driveways per mile) | DF34: 0.223881142 | DG34: 12 | DI34: 0
C35: Vertical Curve Data for Controlling Element: | D35: -- | E35: -- | F35: -- | G35: -- | I35: -- | CX35: 9.13. Lighting | CY35: -0.02349908153 | CZ35: 0.02349908153 | DA35: 9 | DB35: 9.13 | DC35: -0.02349908153 | DD35: =IF(DF35=0,"",C59) -> Lighting | DE35: Lighting | DF35: 0.02349908153 | DG35: 13 | DI35: 0
C36: Approach (Entry) Grade, G1 (%) | E36: =IF(ISBLANK(D36),"", D36) ->  | I36: =IF(B34="Yes",I227,I237) ->  | CX36: 2.14. Pavement Friction (skid number) *** | CY36: 0.2843095602 | CZ36: 0.2843095602 | DA36: 2 | DB36: 2.14 | DC36: 0.2843095602 | DD36: =IF(DF36=0,"",C60) -> Pavement Friction (skid number) *** | DE36: Pavement Friction (skid number) *** | DF36: 0.2843095602 | DG36: 14 | DI36: 0
C37: Departure (Exit) Grade, G2 (%) | E37: =IF(ISBLANK(D37),"", D37) ->  | I37: =IF($B$34="Yes",I228,"") ->  | CY37: =H72 -> 0 | CZ37: 0 | DA37: 17 | DB37: 10.15 | DC37: 0 | DD37: =IF(DF37=0,"",C72) ->  | DF37: 0 | DG37: 15 | DI37: 0
C38: Length (feet) | E38: =IF(AND($B$34="Yes", D39<>""), ABS(E36-E37)*D39, "") ->  | I38: =IF(AND($B$34="Yes",I36<>"",I37<>"", NOT(ISBLANK($I$10)), NOT(ISBLANK($I$11))),ABS(I37-I36)*I39,"") ->  | CY38: =H73 -> 0 | CZ38: =ABS(CY38) -> 0 | DA38: 18 | DB38: 10.16 | DC38: 0 | DD38: =IF(DF38=0,"",C73) ->  | DF38: 0 | DG38: 16 | DI38: 0
C39: Calculated Rate of Change, K (ft/ft) | D39: =IF(OR($B$34="No",ISBLANK($B$34), ISBLANK(D36), ISBLANK(D37),ISBLANK(D38), D36=D37), "", ROUND(D38/(ABS(D37-D36)),1)) ->  | E39: =IF(AND($B$34="Yes", NOT(ISBLANK($I$10)), NOT(ISBLANK($I$11)), D39<>""), IF($E$42="Crest", VLOOKUP(MAX($I$10,$I$11),Construction!$B$159:$D$171,2,TRUE), VLOOKUP(MAX($I$10,$I$11),Construction!$B$159:$D$171,3,TRUE)), "") ->  | F39: =IF(AND($B$34="Yes", SUM(F263:F265)=0),ROUND(F38/(ABS(F37-F36)),1),"") ->  | G39: =IF(AND($B$34="Yes", SUM(G263:G265)=0),ROUND(G38/(ABS(G37-G36)),1),"") ->  | I39: =IF(OR($B$34<>"Yes", ISBLANK($I$10), ISBLANK($I$11), $I$36="", $I$37="", $I$42="--", ISBLANK($I$42)),"",IF($I$42="Crest",VLOOKUP(MAX($I$10,$I$11),Construction!$B$179:$D$191,2,TRUE),VLOOKUP(MAX($I$10,$I$11),Construction!$B$179:$D$191,3,TRUE))) ->  | CX39: 8.17. SafetyEdge | CY39: =H74 -> -0.02818899192 | CZ39: =ABS(CY39) -> 0.02818899192 | DA39: 8 | DB39: 8.17 | DC39: -0.02818899192 | DD39: =IF(DF39=0,"",C74) -> SafetyEdge | DE39: SafetyEdge | DF39: 0.02818899192 | DG39: 17 | DI39: 0
F40: Are you changing the geometry? | G40: Are you changing the geometry? | CX40: 7.18. Lateral Clearance to obstruction (ft) | CY40: =H75 -> 0.09030716297 | CZ40: =ABS(CY40) -> 0.09030716297 | DA40: 7 | DB40: 7.18 | DC40: 0.09030716297 | DD40: =IF(DF40=0,"",C75) -> Lateral Clearance to obstruction (ft) | DE40: Lateral Clearance to obstruction (ft) | DF40: 0.09030716297 | DG40: 18 | DI40: 0
CY41: =H76 -> 0 | CZ41: =ABS(CY41) -> 0 | DA41: 19 | DB41: 10.19 | DC41: 0 | DD41: =IF(DF41=0,"",C76) ->  | DF41: 0 | DG41: 19 | DI41: 0
C42: Calculated Sag or Crest? | D42: =IF(AND($B$34="Yes", SUM(D263:D265)=0),IF(D36>D37,"Crest","Sag"),"--") -> -- | E42: =IF(AND($B$34="Yes", SUM(D263:D265)=0),IF(E36>E37,"Crest","Sag"),"--") -> -- | F42: =IF(AND($B$34="Yes", SUM(F263:F265)=0),IF(F36>F37,"Crest","Sag"),"--") -> -- | G42: =IF(AND($B$34="Yes", SUM(G263:G265)=0),IF(G36>G37,"Crest","Sag"),"--") -> -- | I42: =IF($B$34="Yes",IF(I36>I37,"Crest","Sag"),"--") -> --
C43: TWLTL (two-way left-turn lane) | E43: No | H43: =M108 -> -0.4084507042 | I43: =IF(OR($D$43="Yes", $F$43="Yes",$G$43="Yes"), "Yes", "No") -> No
C44: Passing Lane Type | E44: No Passing Lane | H44: =M109 -> 0 | I44: Super 2
C45: Geometric Design Element (Partial Score) | D45: =IF(OR(SUM(D251:D253,D256:D257,D263:D265,D270:D271)>0, ISERR(D125)),"",D125) ->  | E45: =IF(OR(SUM(E251:E253,E256:E257,E263:E265,E270:E271)>0, ISERR(E125)),"",E125) ->  | I45: =IF(OR(SUM(I251:I253,I256:I257,I263:I265,I270:I271)>0, ISERR(I125)),"",I125) -> 
C46: Total Safety Score | D46: =IF(OR(D$249>0, $I$315>0,ISERROR(D$201+D$171+D$125)),"",D$201+D$171+D$125) ->  | E46: =IF(OR(E$249>0, $I$315>0,ISERROR(E$201+E$171+E$125)),"",E$201+E$171+E$125) ->  | M46: SCHEMATIC REPRESENTING INPUT DATA FOR | U46: =IF($I$2="Existing","EXISTING CONFIGURATION",IF($I$2="Standard","STANDARD OPTION",IF($I$2="Design 1","DESIGN 1 OPTION",IF($I$2="Design 2","DESIGN 2 OPTION","OPTIMAL OPTION")))) -> STANDARD OPTION
L48: LT | AA48: RT
L49: R/W | AA49: R/W
B50: =+Construction!$I$9&" Total Available Points" -> 20 Total Available Points
B51: Traffic Elements | D51: Existing | E51: Standard | F51: Design 1 | G51: Design 2 | H51: =$H$23 -> Marginal Safety for Standard (compared to Existing) | I51: Optimal | O51: =+$I$14 -> 0 | W51: =+$I$15 -> 0
C52: Advance Static Curve Warning Signs | E52: No | H52: =M145 -> 0 | I52: Yes
C53: Chevron Signs on Horizontal Curves | E53: No | H53: =M146 -> 0 | I53: Yes | L53: =+O51-N53-Q53 -> -16 | N53: =IF(+$I$2="Existing",D25,IF($I$2="Standard",E25,IF($I$2="Design 1",F25,IF($I$2="Design 2",G25,I25)))) -> 4 | Q53: =IF(+$I$2="Existing",D24,IF($I$2="Standard",E24,IF($I$2="Design 1",F24,IF($I$2="Design 2",G24,I24)))) -> 12 | V53: =+Q53 -> 12 | Y53: =+N53 -> 4 | Z53: =+W51-V53-Y53 -> -16
C54: Post-Mounted Delineators | E54: No | H54: 0 | I54: Yes
C55: Edgeline Pavement Markings or Profile Markings | E55: Yes | H55: 0.1382411869 | I55: Yes
C56: Shoulder Rumble Strips | E56: Yes | H56: =M150 -> 0 | I56: Yes
C57: Centerline Rumble Strips | E57: No | H57: =M151 -> -0.1627906977 | I57: Yes
C58: Driveway Density (driveways per mile) | E58: 10 | H58: =M152 -> -0.223881142 | I58: 0
C59: Lighting | E59: No | H59: =M153 -> -0.02349908153 | I59: Yes | S59: Tangent X-Section
C60: Pavement Friction (skid number) *** | E60: 37 | H60: =M154 -> 0.2843095602 | I60: 54
C62: Traffic Control Element (Partial Score): | D62: =IF(ISERROR(D171), "", D171) -> 12 | E62: =IF(ISERROR(E171), "", E171) -> 14 | F62: =IF(ISERROR(F171), "", F171) ->  | G62: =IF(ISERROR(G171), "", G171) ->  | I62: =IF(ISERROR(I171), "", I171) -> 20
C63: Total Safety Score | D63: =IF(OR(D$249>0, $I$315>0,ISERROR(D$201+D$171+D$125)),"",D$201+D$171+D$125) ->  | E63: =IF(OR(E$249>0, $I$315>0,ISERROR(E$201+E$171+E$125)),"",E$201+E$171+E$125) -> 
C65: *** Pavement friction/skid numbers will not be subject to open records requests ***
S69: Curved X-Section
B70: =+Construction!$I$10&" Total Available Points" -> 40 Total Available Points
B71: Roadside Elements | D71: Existing | E71: Standard | F71: Design 1 | G71: Design 2 | H71: =$H$23 -> Marginal Safety for Standard (compared to Existing) | I71: Optimal
C72: Sideslope (Foreslope) | E72: 1V:4H | H72: =M180 -> 0 | I72: 1V:6H
C73: Backslope | E73: =E72 -> 1V:4H | H73: =M181 -> 0 | I73: 1V:4H
C74: SafetyEdge | E74: No | H74: =M182 -> -0.02818899192 | I74: Yes
C75: Lateral Clearance to obstruction (ft) | E75: 30 | H75: =M183 -> 0.09030716297 | I75: 40 | Q75: =IF($I$2="Existing","SCORE SUMMARY FOR EXISTING CONFIGURATION", IF($I$2="Standard","SCORE SUMMARY FOR STANDARD OPTION",IF($I$2="Design 1","SCORE SUMMARY FOR DESIGN 1 OPTION",IF($I$2="Design 2","SCORE SUMMARY FOR DESIGN 2 OPTION", "SCORE SUMMARY FOR OPTIMAL OPTION")))) -> SCORE SUMMARY FOR STANDARD OPTION
C76: Obstruction Type | E76: Other Fixed Object | H76: =M184 -> 0 | I76: None | Q76: GEOMETRIC DESIGN: | W76: =IF($I$2="Existing",D45,IF($I$2="Standard",E45,IF($I$2="Design 1",F45,IF($I$2="Design 2",G45,I45)))) -> 
C77: Roadside Element (Partial Score): | D77: =IF(ISERR(D201),"",D201) ->  | E77: =IF(ISERR(E201),"",E201) -> 27 | F77: =IF(ISERR(F201),"",F201) ->  | G77: =IF(ISERR(G201),"",G201) ->  | I77: =IF(ISERR(I201),"",I201) -> 40 | Q77: TRAFFIC CONTROL: | W77: =IF($I$2="Existing",D62,IF($I$2="Standard",E62,IF($I$2="Design 1",F62,IF($I$2="Design 2",G62,I62)))) -> 14
C78: Total Safety Score | D78: =IF(OR(D$249>0, $I$315>0,ISERROR(D$201+D$171+D$125)),"",D$201+D$171+D$125) ->  | E78: =IF(OR(E$249>0, $I$315>0,ISERROR(E$201+E$171+E$125)),"",E$201+E$171+E$125) ->  | Q78: ROADSIDE: | W78: =IF($I$2="Existing",D77,IF($I$2="Standard",E77,IF($I$2="Design 1",F77,IF($I$2="Design 2",G77,I77)))) -> 27
Q79: OVERALL SAFETY SCORE: | W79: =SUM(W76:X78) -> 41
B83: ADDITIONAL SIDESLOPE INFORMATION
C84: Distance to Slope Toe from Shoulder (ft) | E84: =D84 -> 0 | F84: =E84 -> 0 | G84: =F84 -> 0 | I84: =G84 -> 0
B85: Minimum foreslope feasible within current ROW | E85: =IF(OR(ISBLANK($D$84), ISERROR(E206)), "", "1V:"&E206&"H") ->  | F85: =IF(OR(ISBLANK($D$84), ISERROR(F206)), "", "1V:"&F206&"H") ->  | G85: =IF(OR(ISBLANK($D$84), ISERROR(G206)), "", "1V:"&G206&"H") ->  | I85: =IF(OR(ISBLANK($D$84), ISERROR(I206)), "", "1V:"&I206&"H") -> 
B86: Additional R/W needed on left side | E86: =IF(OR(ISBLANK($D$84), ISERROR(E210)),"", MAX(E210,E213)) ->  | F86: =IF(OR(ISBLANK($D$84), ISERROR(F210)), "", MAX(F210,F213)) ->  | G86: =IF(OR(ISBLANK($D$84), ISERROR(G210)),"", MAX(G210,G213)) ->  | I86: =IF(OR(ISBLANK($D$84), ISERROR(I210)),"", MAX(I210,I213)) -> 
